Workbook

Sheet Protect
B2: Liberty Midstates
B3: WNAR Filing
B4: Password Protection Worksheet
B6: This worksheet provides password protection for the report pages to prevent unintentional formula changes. The password is "WNAR".
G11: All Report Worksheets are Protected

Sheet Final Checklist
B2: Liberty Midstates
B3: Semi-Annual WNAR Filing
B4: Final Checklist
B7: Data Table List | C7: Check For | D7: Result | E7: Initials | F7: Initials
B8: Validation Lists | C8: Changes from prior filings | D8: Updated to comply with annual filing | E8: RS
B9: Beta Coefficient | C9: Changes from prior filings | D9: New beta coefficients added from rate case GR-2024-0106 | E9: RS
B10: Billing Determinants | C10: Changes from prior filings | D10: New billing determinants added from rate case GR-2024-0106 | E10: RS
B11: Volumetric Rates | C11: Changes from prior filings | D11: New volumetric rates added from rate case GR-2024-0106 | E11: RS
B12: Chillicothe Temp Adjustment | C12: Changes from prior filings | D12: Used for period prior to 1/8/2025 | E12: RS
B13: Ranked Normal HDD | C13: Changes from prior filings | D13: Used for period prior to 1/8/2025 | E13: RS
B14: Prior Period Adustments | C14: Additions and corrections add to total adjustment | D14: OK. No adjustments this filing | E14: RS
B15: Volumetric True-Up | C15: Ties out on Reconciliation Worksheet | D15: Checked and ties. | E15: RS
B16: Reconciliation Period Adjustment | C16: Ties out on Reconciliation Worksheet | D16: Checked and ties. | E16: RS
B17: CWNA Amounts | C17: Ties out on Reconciliation Worksheet | D17: Checked and ties. | E17: RS
B18: WNAR Rates | C18: Ties out on Reconciliation Worksheet | D18: Checked and ties. | E18: RS
B19: Customer Estimated Revenue | C19: Table has been updated. | D19: Checked and updated through December 2024 | E19: RS
B20: Customer Estimated Volume | C20: Table has been updated. | D20: Checked and updated through December 2024 | E20: RS
B21: WNARevAlloc | C21: Ties to Revenue Reports. | D21: Confirmed with Robert Brown in Finance | E21: RS
B22: Meter Read Schedule | C22: Table has been updated. | D22: Used billing cycles from revenue reports | E22: RS
B23: NEMO Cycles | C23: Prior to 9/1/2023, each region had a single meter read date for each month. After 9/1/2023, meters were read on multiple cycles each month. These tables take the billing data for each monthly cycle and perform CWNA calculations. | D23: Checked and ties to reports from Revenue Dept. | E23: RS
B24: SEMO Cycles | E24: RS
B25: WEMO Cycles | E25: RS
B26: WEMOTempAct | C26: Kansas City International Airport USW00003947 used on and after 1/8/2025, unranked | D26: Checked OK. | E26: RS
B27: NEMOTempAct | C27: Kirksville, MO USW00014938 used on and after 1/8/2025, unranked | D27: Checked OK. | E27: RS
B28: SEMOTempAct | C28: Cape Girardeau, MO USW00003935 used on and after 1/8/2025, unranked | D28: Checked OK. | E28: RS
B29: NHDD | C29: Normal HDDs from rate case GR-2024-0106, 20-year unranked per Schedule C | D29: Checked OK. | E29: RS
B30: CGI Actual Temperatures | C30: Make sure table is updated and RANK SORTED | D30: Checked OK. | E30: RS
B31: Chillicothe Actual Temperatures | C31: Make sure table is updated and RANK SORTED | D31: Checked OK. | E31: RS
B34: Report Worksheets | C34: Check For | D34: Result | E34: Initials | F34: Initials
B35: All Report Pages | C35: Correct year and filing period are showing on the dropdown menus. | D35: Checked OK. | E35: RS
B36: Reconciliaion worksheet | C36: No cells are shaded yellow. No inconsistencies indicated. | D36: Checked OK. | E36: RS
B37: Protect worksheet | C37: Password protection is turned on for report worksheets | D37: Checked OK. | E37: RS

Sheet Reconciliation
B2: Reconciiation Worksheet
B3: Worksheets vs. Tables
B4: Year: | C4: =DateSet!C2 -> 2025
B6: CWNA Amounts
B7: Res | C7: CWNA Worksheets | F7: CWNA Amount Table | I7: Difference
B8: Flow Month | C8: NEMO | D8: WEMO | E8: SEMO | F8: NEMO | G8: WEMO | H8: SEMO | I8: NEMO | J8: WEMO | K8: SEMO
B9: ='CWNA NEMO'!B11 -> 45474 | C9: ='CWNA NEMO'!E11 -> 421.0000318 | D9: ='CWNA WEMO'!E11 -> 86.19779202 | E9: ='CWNA SEMO'!E11 -> 72.12285888 | F9: =SUMPRODUCT((CSWNAAmounts[Month]=$B9)*(CSWNAAmounts[Region]=C$8)*(CSWNAAmounts[CustClass]="Res")*CSWNAAmounts[CAWNA]) -> 421.0000318 | G9: =SUMPRODUCT((CSWNAAmounts[Month]=$B9)*(CSWNAAmounts[Region]=D$8)*(CSWNAAmounts[CustClass]="Res")*CSWNAAmounts[CAWNA]) -> 86.19779202 | H9: =SUMPRODUCT((CSWNAAmounts[Month]=$B9)*(CSWNAAmounts[Region]=E$8)*(CSWNAAmounts[CustClass]="Res")*CSWNAAmounts[CAWNA]) -> 72.12285888 | I9: =F9-C9 -> 0 | J9: =G9-D9 -> 0 | K9: 0
B10: ='CWNA NEMO'!B12 -> 45505 | C10: ='CWNA NEMO'!E12 -> 16311.14175 | D10: ='CWNA WEMO'!E12 -> 3362.384484 | E10: ='CWNA SEMO'!E12 -> 6336.834388 | F10: =SUMPRODUCT((CSWNAAmounts[Month]=$B10)*(CSWNAAmounts[Region]=C$8)*(CSWNAAmounts[CustClass]="Res")*CSWNAAmounts[CAWNA]) -> 16311.14175 | G10: =SUMPRODUCT((CSWNAAmounts[Month]=$B10)*(CSWNAAmounts[Region]=D$8)*(CSWNAAmounts[CustClass]="Res")*CSWNAAmounts[CAWNA]) -> 3362.384484 | H10: =SUMPRODUCT((CSWNAAmounts[Month]=$B10)*(CSWNAAmounts[Region]=E$8)*(CSWNAAmounts[CustClass]="Res")*CSWNAAmounts[CAWNA]) -> 6336.834388 | I10: =F10-C10 -> 0 | J10: 0 | K10: 0
B11: ='CWNA NEMO'!B13 -> 45536 | C11: ='CWNA NEMO'!E13 -> 39184.31228 | D11: ='CWNA WEMO'!E13 -> 9199.542263 | E11: ='CWNA SEMO'!E13 -> 33871.06048 | F11: =SUMPRODUCT((CSWNAAmounts[Month]=$B11)*(CSWNAAmounts[Region]=C$8)*(CSWNAAmounts[CustClass]="Res")*CSWNAAmounts[CAWNA]) -> 39184.31228 | G11: =SUMPRODUCT((CSWNAAmounts[Month]=$B11)*(CSWNAAmounts[Region]=D$8)*(CSWNAAmounts[CustClass]="Res")*CSWNAAmounts[CAWNA]) -> 9199.542263 | H11: =SUMPRODUCT((CSWNAAmounts[Month]=$B11)*(CSWNAAmounts[Region]=E$8)*(CSWNAAmounts[CustClass]="Res")*CSWNAAmounts[CAWNA]) -> 33871.06048 | I11: 0 | J11: 0 | K11: 0
B12: ='CWNA NEMO'!B14 -> 45566 | C12: ='CWNA NEMO'!E14 -> 71757.98016 | D12: ='CWNA WEMO'!E14 -> 13790.11762 | E12: ='CWNA SEMO'!E14 -> 80520.83895 | F12: =SUMPRODUCT((CSWNAAmounts[Month]=$B12)*(CSWNAAmounts[Region]=C$8)*(CSWNAAmounts[CustClass]="Res")*CSWNAAmounts[CAWNA]) -> 71757.98016 | G12: =SUMPRODUCT((CSWNAAmounts[Month]=$B12)*(CSWNAAmounts[Region]=D$8)*(CSWNAAmounts[CustClass]="Res")*CSWNAAmounts[CAWNA]) -> 13790.11762 | H12: =SUMPRODUCT((CSWNAAmounts[Month]=$B12)*(CSWNAAmounts[Region]=E$8)*(CSWNAAmounts[CustClass]="Res")*CSWNAAmounts[CAWNA]) -> 80520.83895 | I12: 0 | J12: 0 | K12: 0
B13: ='CWNA NEMO'!B15 -> 45597 | C13: ='CWNA NEMO'!E15 -> 49028.65451 | D13: ='CWNA WEMO'!E15 -> 11145.20759 | E13: ='CWNA SEMO'!E15 -> 112168.2156 | F13: =SUMPRODUCT((CSWNAAmounts[Month]=$B13)*(CSWNAAmounts[Region]=C$8)*(CSWNAAmounts[CustClass]="Res")*CSWNAAmounts[CAWNA]) -> 49028.65451 | G13: =SUMPRODUCT((CSWNAAmounts[Month]=$B13)*(CSWNAAmounts[Region]=D$8)*(CSWNAAmounts[CustClass]="Res")*CSWNAAmounts[CAWNA]) -> 11145.20759 | H13: =SUMPRODUCT((CSWNAAmounts[Month]=$B13)*(CSWNAAmounts[Region]=E$8)*(CSWNAAmounts[CustClass]="Res")*CSWNAAmounts[CAWNA]) -> 112168.2156 | I13: 0 | J13: 0 | K13: 0
B14: ='CWNA NEMO'!B16 -> 45627 | C14: ='CWNA NEMO'!E16 -> -60320.82199 | D14: ='CWNA WEMO'!E16 -> -8901.471096 | E14: ='CWNA SEMO'!E16 -> 3166.286719 | F14: =SUMPRODUCT((CSWNAAmounts[Month]=$B14)*(CSWNAAmounts[Region]=C$8)*(CSWNAAmounts[CustClass]="Res")*CSWNAAmounts[CAWNA]) -> -60320.82199 | G14: =SUMPRODUCT((CSWNAAmounts[Month]=$B14)*(CSWNAAmounts[Region]=D$8)*(CSWNAAmounts[CustClass]="Res")*CSWNAAmounts[CAWNA]) -> -8901.471096 | H14: =SUMPRODUCT((CSWNAAmounts[Month]=$B14)*(CSWNAAmounts[Region]=E$8)*(CSWNAAmounts[CustClass]="Res")*CSWNAAmounts[CAWNA]) -> 3166.286719 | I14: 0 | J14: 0 | K14: 0
B15: ='CWNA NEMO'!B17 -> 45658 | C15: ='CWNA NEMO'!E17 -> -10816.45383 | D15: ='CWNA WEMO'!E17 -> -29154.9174 | E15: ='CWNA SEMO'!E17 -> -32032.50698 | F15: =SUMPRODUCT((CSWNAAmounts[Month]=$B15)*(CSWNAAmounts[Region]=C$8)*(CSWNAAmounts[CustClass]="Res")*CSWNAAmounts[CAWNA]) -> -10816.45383 | G15: =SUMPRODUCT((CSWNAAmounts[Month]=$B15)*(CSWNAAmounts[Region]=D$8)*(CSWNAAmounts[CustClass]="Res")*CSWNAAmounts[CAWNA]) -> -29154.9174 | H15: =SUMPRODUCT((CSWNAAmounts[Month]=$B15)*(CSWNAAmounts[Region]=E$8)*(CSWNAAmounts[CustClass]="Res")*CSWNAAmounts[CAWNA]) -> -32032.50698 | I15: 0 | J15: 0 | K15: 0
B16: ='CWNA NEMO'!B18 -> 45689 | C16: ='CWNA NEMO'!E18 -> 107190.9738 | D16: ='CWNA WEMO'!E18 -> 32399.40748 | E16: ='CWNA SEMO'!E18 -> -15046.64274 | F16: =SUMPRODUCT((CSWNAAmounts[Month]=$B16)*(CSWNAAmounts[Region]=C$8)*(CSWNAAmounts[CustClass]="Res")*CSWNAAmounts[CAWNA]) -> 107190.9738 | G16: =SUMPRODUCT((CSWNAAmounts[Month]=$B16)*(CSWNAAmounts[Region]=D$8)*(CSWNAAmounts[CustClass]="Res")*CSWNAAmounts[CAWNA]) -> 32399.40748 | H16: =SUMPRODUCT((CSWNAAmounts[Month]=$B16)*(CSWNAAmounts[Region]=E$8)*(CSWNAAmounts[CustClass]="Res")*CSWNAAmounts[CAWNA]) -> -15046.64274 | I16: 0 | J16: 0 | K16: 0
B17: ='CWNA NEMO'!B19 -> 45717 | C17: ='CWNA NEMO'!E19 -> 65373.9541 | D17: ='CWNA WEMO'!E19 -> 13135.34261 | E17: ='CWNA SEMO'!E19 -> 113498.1456 | F17: =SUMPRODUCT((CSWNAAmounts[Month]=$B17)*(CSWNAAmounts[Region]=C$8)*(CSWNAAmounts[CustClass]="Res")*CSWNAAmounts[CAWNA]) -> 65373.9541 | G17: =SUMPRODUCT((CSWNAAmounts[Month]=$B17)*(CSWNAAmounts[Region]=D$8)*(CSWNAAmounts[CustClass]="Res")*CSWNAAmounts[CAWNA]) -> 13135.34261 | H17: =SUMPRODUCT((CSWNAAmounts[Month]=$B17)*(CSWNAAmounts[Region]=E$8)*(CSWNAAmounts[CustClass]="Res")*CSWNAAmounts[CAWNA]) -> 113498.1456 | I17: 0 | J17: 0 | K17: 0
B18: ='CWNA NEMO'!B20 -> 45748 | C18: ='CWNA NEMO'!E20 -> 71749.64542 | D18: ='CWNA WEMO'!E20 -> 19007.14083 | E18: ='CWNA SEMO'!E20 -> 71746.0201 | F18: =SUMPRODUCT((CSWNAAmounts[Month]=$B18)*(CSWNAAmounts[Region]=C$8)*(CSWNAAmounts[CustClass]="Res")*CSWNAAmounts[CAWNA]) -> 71749.64542 | G18: =SUMPRODUCT((CSWNAAmounts[Month]=$B18)*(CSWNAAmounts[Region]=D$8)*(CSWNAAmounts[CustClass]="Res")*CSWNAAmounts[CAWNA]) -> 19007.14083 | H18: =SUMPRODUCT((CSWNAAmounts[Month]=$B18)*(CSWNAAmounts[Region]=E$8)*(CSWNAAmounts[CustClass]="Res")*CSWNAAmounts[CAWNA]) -> 71746.0201 | I18: 0 | J18: 0 | K18: 0
B19: ='CWNA NEMO'!B21 -> 45778 | C19: ='CWNA NEMO'!E21 -> -23461.62167 | D19: ='CWNA WEMO'!E21 -> -6096.052641 | E19: ='CWNA SEMO'!E21 -> 20184.27928 | F19: =SUMPRODUCT((CSWNAAmounts[Month]=$B19)*(CSWNAAmounts[Region]=C$8)*(CSWNAAmounts[CustClass]="Res")*CSWNAAmounts[CAWNA]) -> -23461.62167 | G19: =SUMPRODUCT((CSWNAAmounts[Month]=$B19)*(CSWNAAmounts[Region]=D$8)*(CSWNAAmounts[CustClass]="Res")*CSWNAAmounts[CAWNA]) -> -6096.052641 | H19: =SUMPRODUCT((CSWNAAmounts[Month]=$B19)*(CSWNAAmounts[Region]=E$8)*(CSWNAAmounts[CustClass]="Res")*CSWNAAmounts[CAWNA]) -> 20184.27928 | I19: 0 | J19: 0 | K19: 0
B20: ='CWNA NEMO'!B22 -> 45809 | C20: ='CWNA NEMO'!E22 -> 3340.720755 | D20: ='CWNA WEMO'!E22 -> 133.6961355 | E20: ='CWNA SEMO'!E22 -> 49.58028785 | F20: =SUMPRODUCT((CSWNAAmounts[Month]=$B20)*(CSWNAAmounts[Region]=C$8)*(CSWNAAmounts[CustClass]="Res")*CSWNAAmounts[CAWNA]) -> 3340.720755 | G20: =SUMPRODUCT((CSWNAAmounts[Month]=$B20)*(CSWNAAmounts[Region]=D$8)*(CSWNAAmounts[CustClass]="Res")*CSWNAAmounts[CAWNA]) -> 133.6961355 | H20: =SUMPRODUCT((CSWNAAmounts[Month]=$B20)*(CSWNAAmounts[Region]=E$8)*(CSWNAAmounts[CustClass]="Res")*CSWNAAmounts[CAWNA]) -> 49.58028785 | I20: 0 | J20: 0 | K20: 0
B21: Total | C21: =SUM(C9:C20) -> 329759.4853 | D21: =SUM(D9:D20) -> 58106.59566 | E21: 394534.2346 | F21: 329759.4853 | G21: 58106.59566 | H21: 394534.2346 | I21: 0 | J21: 0 | K21: 0
B23: SGS | C23: CWNA Worksheets | F23: CWNA Amount Table | I23: Difference
B24: Flow Month | C24: NEMO | D24: WEMO | E24: SEMO | F24: NEMO | G24: WEMO | H24: SEMO | I24: NEMO | J24: WEMO | K24: SEMO
B25: ='CWNA NEMO'!B31 -> 45474 | C25: ='CWNA NEMO'!E31 -> 52.85783979 | D25: ='CWNA WEMO'!E31 -> 12.22794266 | E25: ='CWNA SEMO'!E31 -> 6.241063757 | F25: =SUMPRODUCT((CSWNAAmounts[Month]=$B25)*(CSWNAAmounts[Region]=C$8)*(CSWNAAmounts[CustClass]="SGS")*CSWNAAmounts[CAWNA]) -> 52.85783979 | G25: =SUMPRODUCT((CSWNAAmounts[Month]=$B25)*(CSWNAAmounts[Region]=D$8)*(CSWNAAmounts[CustClass]="SGS")*CSWNAAmounts[CAWNA]) -> 12.22794266 | H25: =SUMPRODUCT((CSWNAAmounts[Month]=$B25)*(CSWNAAmounts[Region]=E$8)*(CSWNAAmounts[CustClass]="SGS")*CSWNAAmounts[CAWNA]) -> 6.241063757 | I25: =F25-C25 -> 0 | J25: =G25-D25 -> 0 | K25: =H25-E25 -> 0
B26: ='CWNA NEMO'!B32 -> 45505 | C26: ='CWNA NEMO'!E32 -> 2101.424098 | D26: ='CWNA WEMO'!E32 -> 534.3567138 | E26: ='CWNA SEMO'!E32 -> 582.037348 | F26: =SUMPRODUCT((CSWNAAmounts[Month]=$B26)*(CSWNAAmounts[Region]=C$8)*(CSWNAAmounts[CustClass]="SGS")*CSWNAAmounts[CAWNA]) -> 2101.424098 | G26: =SUMPRODUCT((CSWNAAmounts[Month]=$B26)*(CSWNAAmounts[Region]=D$8)*(CSWNAAmounts[CustClass]="SGS")*CSWNAAmounts[CAWNA]) -> 534.3567138 | H26: =SUMPRODUCT((CSWNAAmounts[Month]=$B26)*(CSWNAAmounts[Region]=E$8)*(CSWNAAmounts[CustClass]="SGS")*CSWNAAmounts[CAWNA]) -> 582.037348 | I26: =F26-C26 -> 0 | J26: 0 | K26: 0
B27: ='CWNA NEMO'!B33 -> 45536 | C27: ='CWNA NEMO'!E33 -> 4973.569394 | D27: ='CWNA WEMO'!E33 -> 1350.038495 | E27: ='CWNA SEMO'!E33 -> 2909.53819 | F27: =SUMPRODUCT((CSWNAAmounts[Month]=$B27)*(CSWNAAmounts[Region]=C$8)*(CSWNAAmounts[CustClass]="SGS")*CSWNAAmounts[CAWNA]) -> 4973.569394 | G27: =SUMPRODUCT((CSWNAAmounts[Month]=$B27)*(CSWNAAmounts[Region]=D$8)*(CSWNAAmounts[CustClass]="SGS")*CSWNAAmounts[CAWNA]) -> 1350.038495 | H27: =SUMPRODUCT((CSWNAAmounts[Month]=$B27)*(CSWNAAmounts[Region]=E$8)*(CSWNAAmounts[CustClass]="SGS")*CSWNAAmounts[CAWNA]) -> 2909.53819 | I27: 0 | J27: 0 | K27: 0
B28: ='CWNA NEMO'!B34 -> 45566 | C28: ='CWNA NEMO'!E34 -> 8759.812177 | D28: ='CWNA WEMO'!E34 -> 2179.604165 | E28: ='CWNA SEMO'!E34 -> 6895.236053 | F28: =SUMPRODUCT((CSWNAAmounts[Month]=$B28)*(CSWNAAmounts[Region]=C$8)*(CSWNAAmounts[CustClass]="SGS")*CSWNAAmounts[CAWNA]) -> 8759.812177 | G28: =SUMPRODUCT((CSWNAAmounts[Month]=$B28)*(CSWNAAmounts[Region]=D$8)*(CSWNAAmounts[CustClass]="SGS")*CSWNAAmounts[CAWNA]) -> 2179.604165 | H28: =SUMPRODUCT((CSWNAAmounts[Month]=$B28)*(CSWNAAmounts[Region]=E$8)*(CSWNAAmounts[CustClass]="SGS")*CSWNAAmounts[CAWNA]) -> 6895.236053 | I28: =F28-C28 -> 0 | J28: 0 | K28: 0
B29: ='CWNA NEMO'!B35 -> 45597 | C29: ='CWNA NEMO'!E35 -> 6028.133955 | D29: ='CWNA WEMO'!E35 -> 1595.712382 | E29: ='CWNA SEMO'!E35 -> 9567.637476 | F29: =SUMPRODUCT((CSWNAAmounts[Month]=$B29)*(CSWNAAmounts[Region]=C$8)*(CSWNAAmounts[CustClass]="SGS")*CSWNAAmounts[CAWNA]) -> 6028.133955 | G29: =SUMPRODUCT((CSWNAAmounts[Month]=$B29)*(CSWNAAmounts[Region]=D$8)*(CSWNAAmounts[CustClass]="SGS")*CSWNAAmounts[CAWNA]) -> 1595.712382 | H29: =SUMPRODUCT((CSWNAAmounts[Month]=$B29)*(CSWNAAmounts[Region]=E$8)*(CSWNAAmounts[CustClass]="SGS")*CSWNAAmounts[CAWNA]) -> 9567.637476 | I29: 0 | J29: 0 | K29: 0
B30: ='CWNA NEMO'!B36 -> 45627 | C30: ='CWNA NEMO'!E36 -> -14674.43169 | D30: ='CWNA WEMO'!E36 -> -1624.356105 | E30: ='CWNA SEMO'!E36 -> 228.7901428 | F30: =SUMPRODUCT((CSWNAAmounts[Month]=$B30)*(CSWNAAmounts[Region]=C$8)*(CSWNAAmounts[CustClass]="SGS")*CSWNAAmounts[CAWNA]) -> -14674.43169 | G30: =SUMPRODUCT((CSWNAAmounts[Month]=$B30)*(CSWNAAmounts[Region]=D$8)*(CSWNAAmounts[CustClass]="SGS")*CSWNAAmounts[CAWNA]) -> -1624.356105 | H30: =SUMPRODUCT((CSWNAAmounts[Month]=$B30)*(CSWNAAmounts[Region]=E$8)*(CSWNAAmounts[CustClass]="SGS")*CSWNAAmounts[CAWNA]) -> 228.7901428 | I30: 0 | J30: 0 | K30: 0
B31: ='CWNA NEMO'!B37 -> 45658 | C31: ='CWNA NEMO'!E37 -> -2389.597012 | D31: ='CWNA WEMO'!E37 -> -4975.888467 | E31: ='CWNA SEMO'!E37 -> -3255.486262 | F31: =SUMPRODUCT((CSWNAAmounts[Month]=$B31)*(CSWNAAmounts[Region]=C$8)*(CSWNAAmounts[CustClass]="SGS")*CSWNAAmounts[CAWNA]) -> -2389.597012 | G31: =SUMPRODUCT((CSWNAAmounts[Month]=$B31)*(CSWNAAmounts[Region]=D$8)*(CSWNAAmounts[CustClass]="SGS")*CSWNAAmounts[CAWNA]) -> -4975.888467 | H31: =SUMPRODUCT((CSWNAAmounts[Month]=$B31)*(CSWNAAmounts[Region]=E$8)*(CSWNAAmounts[CustClass]="SGS")*CSWNAAmounts[CAWNA]) -> -3255.486262 | I31: 0 | J31: 0 | K31: 0
B32: ='CWNA NEMO'!B38 -> 45689 | C32: ='CWNA NEMO'!E38 -> 16131.82375 | D32: ='CWNA WEMO'!E38 -> 5198.143844 | E32: ='CWNA SEMO'!E38 -> -1754.530681 | F32: =SUMPRODUCT((CSWNAAmounts[Month]=$B32)*(CSWNAAmounts[Region]=C$8)*(CSWNAAmounts[CustClass]="SGS")*CSWNAAmounts[CAWNA]) -> 16131.82375 | G32: =SUMPRODUCT((CSWNAAmounts[Month]=$B32)*(CSWNAAmounts[Region]=D$8)*(CSWNAAmounts[CustClass]="SGS")*CSWNAAmounts[CAWNA]) -> 5198.143844 | H32: =SUMPRODUCT((CSWNAAmounts[Month]=$B32)*(CSWNAAmounts[Region]=E$8)*(CSWNAAmounts[CustClass]="SGS")*CSWNAAmounts[CAWNA]) -> -1754.530681 | I32: 0 | J32: 0 | K32: 0
B33: ='CWNA NEMO'!B39 -> 45717 | C33: ='CWNA NEMO'!E39 -> 8995.960901 | D33: ='CWNA WEMO'!E39 -> 2262.940869 | E33: ='CWNA SEMO'!E39 -> 9877.357476 | F33: =SUMPRODUCT((CSWNAAmounts[Month]=$B33)*(CSWNAAmounts[Region]=C$8)*(CSWNAAmounts[CustClass]="SGS")*CSWNAAmounts[CAWNA]) -> 8995.960901 | G33: =SUMPRODUCT((CSWNAAmounts[Month]=$B33)*(CSWNAAmounts[Region]=D$8)*(CSWNAAmounts[CustClass]="SGS")*CSWNAAmounts[CAWNA]) -> 2262.940869 | H33: =SUMPRODUCT((CSWNAAmounts[Month]=$B33)*(CSWNAAmounts[Region]=E$8)*(CSWNAAmounts[CustClass]="SGS")*CSWNAAmounts[CAWNA]) -> 9877.357476 | I33: 0 | J33: 0 | K33: 0
B34: ='CWNA NEMO'!B40 -> 45748 | C34: ='CWNA NEMO'!E40 -> 9669.624205 | D34: ='CWNA WEMO'!E40 -> 2108.518603 | E34: ='CWNA SEMO'!E40 -> 4729.70026 | F34: =SUMPRODUCT((CSWNAAmounts[Month]=$B34)*(CSWNAAmounts[Region]=C$8)*(CSWNAAmounts[CustClass]="SGS")*CSWNAAmounts[CAWNA]) -> 9669.624205 | G34: =SUMPRODUCT((CSWNAAmounts[Month]=$B34)*(CSWNAAmounts[Region]=D$8)*(CSWNAAmounts[CustClass]="SGS")*CSWNAAmounts[CAWNA]) -> 2108.518603 | H34: =SUMPRODUCT((CSWNAAmounts[Month]=$B34)*(CSWNAAmounts[Region]=E$8)*(CSWNAAmounts[CustClass]="SGS")*CSWNAAmounts[CAWNA]) -> 4729.70026 | I34: 0 | J34: 0 | K34: 0
B35: ='CWNA NEMO'!B41 -> 45778 | C35: ='CWNA NEMO'!E41 -> 50.99856877 | D35: ='CWNA WEMO'!E41 -> -87.35554278 | E35: ='CWNA SEMO'!E41 -> 1131.944009 | F35: =SUMPRODUCT((CSWNAAmounts[Month]=$B35)*(CSWNAAmounts[Region]=C$8)*(CSWNAAmounts[CustClass]="SGS")*CSWNAAmounts[CAWNA]) -> 50.99856877 | G35: =SUMPRODUCT((CSWNAAmounts[Month]=$B35)*(CSWNAAmounts[Region]=D$8)*(CSWNAAmounts[CustClass]="SGS")*CSWNAAmounts[CAWNA]) -> -87.35554278 | H35: =SUMPRODUCT((CSWNAAmounts[Month]=$B35)*(CSWNAAmounts[Region]=E$8)*(CSWNAAmounts[CustClass]="SGS")*CSWNAAmounts[CAWNA]) -> 1131.944009 | I35: 0 | J35: 0 | K35: 0
B36: ='CWNA NEMO'!B42 -> 45809 | C36: ='CWNA NEMO'!E42 -> 7.396012009 | D36: ='CWNA WEMO'!E42 -> 0 | E36: ='CWNA SEMO'!E42 -> 0 | F36: =SUMPRODUCT((CSWNAAmounts[Month]=$B36)*(CSWNAAmounts[Region]=C$8)*(CSWNAAmounts[CustClass]="SGS")*CSWNAAmounts[CAWNA]) -> 7.396012009 | G36: =SUMPRODUCT((CSWNAAmounts[Month]=$B36)*(CSWNAAmounts[Region]=D$8)*(CSWNAAmounts[CustClass]="SGS")*CSWNAAmounts[CAWNA]) -> 0 | H36: =SUMPRODUCT((CSWNAAmounts[Month]=$B36)*(CSWNAAmounts[Region]=E$8)*(CSWNAAmounts[CustClass]="SGS")*CSWNAAmounts[CAWNA]) -> 0 | I36: 0 | J36: 0 | K36: 0
B37: Total | C37: =SUM(C25:C36) -> 39707.5722 | D37: 8553.942899 | E37: 30918.46508 | F37: 39707.5722 | G37: 8553.942899 | H37: 30918.46508 | I37: 0 | J37: 0 | K37: 0
B39: Reconciliation Period Adjustments
B40: CWNA | C40: CWNA Worksheets | E40: ReconPerAdj Table | G40: Difference
B41: Region | C41: Res | D41: SGS | E41: Res | F41: SGS | G41: Res | H41: SGS
B42: NEMO | C42: ='CWNA NEMO'!C24 -> 329759.49 | D42: ='CWNA NEMO'!C44 -> 39707.57 | E42: =SUMPRODUCT((ReconPerAdj[Year]=$C$4)*(ReconPerAdj[Region]=$B42)*(ReconPerAdj[RateName]=$B$40)*(ReconPerAdj[CustClass]=E$41)*ReconPerAdj[ReconcilingPeriodAdj]) -> 329759.49 | F42: =SUMPRODUCT((ReconPerAdj[Year]=$C$4)*(ReconPerAdj[Region]=$B42)*(ReconPerAdj[RateName]=$B$40)*(ReconPerAdj[CustClass]=F$41)*ReconPerAdj[ReconcilingPeriodAdj]) -> 39707.57 | G42: =E42-C42 -> 0 | H42: 0
B43: WEMO | C43: ='CWNA WEMO'!C24 -> 58106.6 | D43: ='CWNA WEMO'!C44 -> 8553.94 | E43: =SUMPRODUCT((ReconPerAdj[Year]=$C$4)*(ReconPerAdj[Region]=$B43)*(ReconPerAdj[RateName]=$B$40)*(ReconPerAdj[CustClass]=E$41)*ReconPerAdj[ReconcilingPeriodAdj]) -> 58106.6 | F43: =SUMPRODUCT((ReconPerAdj[Year]=$C$4)*(ReconPerAdj[Region]=$B43)*(ReconPerAdj[RateName]=$B$40)*(ReconPerAdj[CustClass]=F$41)*ReconPerAdj[ReconcilingPeriodAdj]) -> 8553.94 | G43: 0 | H43: 0
B44: SEMO | C44: ='CWNA SEMO'!C24 -> 394534.23 | D44: ='CWNA SEMO'!C44 -> 30918.47 | E44: =SUMPRODUCT((ReconPerAdj[Year]=$C$4)*(ReconPerAdj[Region]=$B44)*(ReconPerAdj[RateName]=$B$40)*(ReconPerAdj[CustClass]=E$41)*ReconPerAdj[ReconcilingPeriodAdj]) -> 394534.23 | F44: =SUMPRODUCT((ReconPerAdj[Year]=$C$4)*(ReconPerAdj[Region]=$B44)*(ReconPerAdj[RateName]=$B$40)*(ReconPerAdj[CustClass]=F$41)*ReconPerAdj[ReconcilingPeriodAdj]) -> 30918.47 | G44: 0 | H44: 0
B45: ARR | C45: ARR Summary (S2) Worksheet | E45: ReconPerAdj Table | G45: Difference
B46: Region | C46: Res | D46: SGS | E46: Res | F46: SGS | G46: Res | H46: SGS
B47: NEMO | C47: ='ARR Summary (S2)'!C61 -> 30118.4 | D47: ='ARR Summary (S2)'!D61 -> -1928.11 | E47: =SUMPRODUCT((ReconPerAdj[Year]=$C$4)*(ReconPerAdj[Period]="S2")*(ReconPerAdj[Region]=$B47)*(ReconPerAdj[RateName]=$B$45)*(ReconPerAdj[CustClass]=E$46)*ReconPerAdj[ReconcilingPeriodAdj]) -> 30118.4 | F47: =SUMPRODUCT((ReconPerAdj[Year]=$C$4)*(ReconPerAdj[Period]="S2")*(ReconPerAdj[Region]=$B47)*(ReconPerAdj[RateName]=$B$45)*(ReconPerAdj[CustClass]=F$46)*ReconPerAdj[ReconcilingPeriodAdj]) -> -1928.11 | G47: =E47-C47 -> 0 | H47: 0
B48: WEMO | C48: ='ARR Summary (S2)'!E61 -> 6856.66 | D48: ='ARR Summary (S2)'!F61 -> -1153.02 | E48: =SUMPRODUCT((ReconPerAdj[Year]=$C$4)*(ReconPerAdj[Period]="S2")*(ReconPerAdj[Region]=$B48)*(ReconPerAdj[RateName]=$B$45)*(ReconPerAdj[CustClass]=E$46)*ReconPerAdj[ReconcilingPeriodAdj]) -> 6856.66 | F48: =SUMPRODUCT((ReconPerAdj[Year]=$C$4)*(ReconPerAdj[Period]="S2")*(ReconPerAdj[Region]=$B48)*(ReconPerAdj[RateName]=$B$45)*(ReconPerAdj[CustClass]=F$46)*ReconPerAdj[ReconcilingPeriodAdj]) -> -1153.02 | G48: 0 | H48: 0
B49: SEMO | C49: ='ARR Summary (S2)'!G61 -> 40264.48 | D49: ='ARR Summary (S2)'!H61 -> -2926.98 | E49: =SUMPRODUCT((ReconPerAdj[Year]=$C$4)*(ReconPerAdj[Period]="S2")*(ReconPerAdj[Region]=$B49)*(ReconPerAdj[RateName]=$B$45)*(ReconPerAdj[CustClass]=E$46)*ReconPerAdj[ReconcilingPeriodAdj]) -> 40264.48 | F49: =SUMPRODUCT((ReconPerAdj[Year]=$C$4)*(ReconPerAdj[Period]="S2")*(ReconPerAdj[Region]=$B49)*(ReconPerAdj[RateName]=$B$45)*(ReconPerAdj[CustClass]=F$46)*ReconPerAdj[ReconcilingPeriodAdj]) -> -2926.98 | G49: 0 | H49: 0
B50: ARR | C50: ARR Summary (S1) Worksheet | E50: ReconPerAdj Table | G50: Difference
B51: Region | C51: Res | D51: SGS | E51: Res | F51: SGS | G51: Res | H51: SGS
B52: NEMO | C52: ='ARR Summary (S1)'!C73 -> 70935.14 | D52: ='ARR Summary (S1)'!D73 -> 14888.72 | E52: =SUMPRODUCT((ReconPerAdj[Year]=$C$4)*(ReconPerAdj[Period]="S1")*(ReconPerAdj[Region]=$B52)*(ReconPerAdj[RateName]=$B$50)*(ReconPerAdj[CustClass]=E$46)*ReconPerAdj[ReconcilingPeriodAdj]) -> 70935.14 | F52: =SUMPRODUCT((ReconPerAdj[Year]=$C$4)*(ReconPerAdj[Period]="S1")*(ReconPerAdj[Region]=$B52)*(ReconPerAdj[RateName]=$B$50)*(ReconPerAdj[CustClass]=F$46)*ReconPerAdj[ReconcilingPeriodAdj]) -> 14888.72 | G52: =E52-C52 -> 0 | H52: =F52-D52 -> 0
B53: WEMO | C53: ='ARR Summary (S1)'!E73 -> 36590.68 | D53: ='ARR Summary (S1)'!F73 -> 6561.44 | E53: =SUMPRODUCT((ReconPerAdj[Year]=$C$4)*(ReconPerAdj[Period]="S1")*(ReconPerAdj[Region]=$B53)*(ReconPerAdj[RateName]=$B$50)*(ReconPerAdj[CustClass]=E$46)*ReconPerAdj[ReconcilingPeriodAdj]) -> 36590.68 | F53: =SUMPRODUCT((ReconPerAdj[Year]=$C$4)*(ReconPerAdj[Period]="S1")*(ReconPerAdj[Region]=$B53)*(ReconPerAdj[RateName]=$B$50)*(ReconPerAdj[CustClass]=F$46)*ReconPerAdj[ReconcilingPeriodAdj]) -> 6561.44 | G53: 0 | H53: 0
B54: SEMO | C54: ='ARR Summary (S1)'!G73 -> 87855.58 | D54: ='ARR Summary (S1)'!H73 -> 1237.05 | E54: =SUMPRODUCT((ReconPerAdj[Year]=$C$4)*(ReconPerAdj[Period]="S1")*(ReconPerAdj[Region]=$B54)*(ReconPerAdj[RateName]=$B$50)*(ReconPerAdj[CustClass]=E$46)*ReconPerAdj[ReconcilingPeriodAdj]) -> 87855.58 | F54: =SUMPRODUCT((ReconPerAdj[Year]=$C$4)*(ReconPerAdj[Period]="S1")*(ReconPerAdj[Region]=$B54)*(ReconPerAdj[RateName]=$B$50)*(ReconPerAdj[CustClass]=F$46)*ReconPerAdj[ReconcilingPeriodAdj]) -> 1237.05 | G54: 0 | H54: 0
B56: ARR Volumetric True-Ups
B57: ARR | C57: ARR (S1) Worksheets | E57: VolTrueUp Table | G57: Difference
B58: Region | C58: Res | D58: SGS | E58: Res | F58: SGS | G58: Res | H58: SGS
B59: NEMO | C59: ='ARR NEMO (S1)'!C22 -> 88945.59 | D59: ='ARR NEMO (S1)'!C37 -> 21379.61 | E59: =SUMPRODUCT((VolTrueUp[Year]=$C$4)*(VolTrueUp[Period]="S1")*(VolTrueUp[Region]=$B59)*(VolTrueUp[CustClass]=E$63)*VolTrueUp[TrueUp]) -> 88945.59 | F59: =SUMPRODUCT((VolTrueUp[Year]=$C$4)*(VolTrueUp[Period]="S1")*(VolTrueUp[Region]=$B59)*(VolTrueUp[CustClass]=F$63)*VolTrueUp[TrueUp]) -> 21379.61 | G59: =E59-C59 -> 0 | H59: =F59-D59 -> 0
B60: WEMO | C60: ='ARR WEMO (S1)'!C22 -> 18876.59 | D60: ='ARR WEMO (S1)'!C37 -> 4701.11 | E60: =SUMPRODUCT((VolTrueUp[Year]=$C$4)*(VolTrueUp[Period]="S1")*(VolTrueUp[Region]=$B60)*(VolTrueUp[CustClass]=E$63)*VolTrueUp[TrueUp]) -> 18876.59 | F60: =SUMPRODUCT((VolTrueUp[Year]=$C$4)*(VolTrueUp[Period]="S1")*(VolTrueUp[Region]=$B60)*(VolTrueUp[CustClass]=F$63)*VolTrueUp[TrueUp]) -> 4701.11 | G60: 0 | H60: 0
B61: SEMO | C61: ='ARR SEMO (S1)'!C22 -> 88024.11 | D61: ='ARR SEMO (S1)'!C37 -> 2592.91 | E61: =SUMPRODUCT((VolTrueUp[Year]=$C$4)*(VolTrueUp[Period]="S1")*(VolTrueUp[Region]=$B61)*(VolTrueUp[CustClass]=E$63)*VolTrueUp[TrueUp]) -> 88024.11 | F61: =SUMPRODUCT((VolTrueUp[Year]=$C$4)*(VolTrueUp[Period]="S1")*(VolTrueUp[Region]=$B61)*(VolTrueUp[CustClass]=F$63)*VolTrueUp[TrueUp]) -> 2592.91 | G61: 0 | H61: 0
B62: ARR | C62: ARR (S2) Worksheets | E62: VolTrueUp Table | G62: Difference
B63: Region | C63: Res | D63: SGS | E63: Res | F63: SGS | G63: Res | H63: SGS
B64: NEMO | C64: ='ARR NEMO (S2)'!C22 -> -706.04 | D64: ='ARR NEMO (S2)'!C37 -> -185.08 | E64: =SUMPRODUCT((VolTrueUp[Year]=$C$4)*(VolTrueUp[Period]="S2")*(VolTrueUp[Region]=$B64)*(VolTrueUp[CustClass]=E$63)*VolTrueUp[TrueUp]) -> -706.04 | F64: =SUMPRODUCT((VolTrueUp[Year]=$C$4)*(VolTrueUp[Period]="S2")*(VolTrueUp[Region]=$B64)*(VolTrueUp[CustClass]=F$63)*VolTrueUp[TrueUp]) -> -185.08 | G64: =E64-C64 -> 0 | H64: 0
B65: WEMO | C65: ='ARR WEMO (S2)'!C22 -> -47.88 | D65: ='ARR WEMO (S2)'!C37 -> 40.97 | E65: =SUMPRODUCT((VolTrueUp[Year]=$C$4)*(VolTrueUp[Period]="S2")*(VolTrueUp[Region]=$B65)*(VolTrueUp[CustClass]=E$63)*VolTrueUp[TrueUp]) -> -47.88 | F65: =SUMPRODUCT((VolTrueUp[Year]=$C$4)*(VolTrueUp[Period]="S2")*(VolTrueUp[Region]=$B65)*(VolTrueUp[CustClass]=F$63)*VolTrueUp[TrueUp]) -> 40.97 | G65: 0 | H65: 0
B66: SEMO | C66: ='ARR SEMO (S2)'!C22 -> -1518.03 | D66: ='ARR SEMO (S2)'!C37 -> -122.32 | E66: =SUMPRODUCT((VolTrueUp[Year]=$C$4)*(VolTrueUp[Period]="S2")*(VolTrueUp[Region]=$B66)*(VolTrueUp[CustClass]=E$63)*VolTrueUp[TrueUp]) -> -1518.03 | F66: =SUMPRODUCT((VolTrueUp[Year]=$C$4)*(VolTrueUp[Period]="S2")*(VolTrueUp[Region]=$B66)*(VolTrueUp[CustClass]=F$63)*VolTrueUp[TrueUp]) -> -122.32 | G66: 0 | H66: 0
B68: WNAR Rates
B69: CWNA | C69: CWNA Summary Worksht | E69: WNAR Rates Table | G69: Difference
B70: Region | C70: Res | D70: SGS | E70: Res | F70: SGS | G70: Res | H70: SGS
B71: NEMO | C71: ='CWNA Summary'!C31 -> 0.02679 | D71: ='CWNA Summary'!D31 -> 0.01023 | E71: =SUMPRODUCT((WNARRates[Year]=$C$4)*(WNARRates[Region]=$B71)*(WNARRates[CustClass]=E$70)*WNARRates[AdjCSWNA]) -> 0.02679 | F71: =SUMPRODUCT((WNARRates[Year]=$C$4)*(WNARRates[Region]=$B71)*(WNARRates[CustClass]=F$70)*WNARRates[AdjCSWNA]) -> 0.01023 | G71: =E71-C71 -> 0 | H71: 0
B72: WEMO | C72: ='CWNA Summary'!E31 -> 0.02353 | D72: ='CWNA Summary'!F31 -> 0.00943 | E72: =SUMPRODUCT((WNARRates[Year]=$C$4)*(WNARRates[Region]=$B72)*(WNARRates[CustClass]=E$70)*WNARRates[AdjCSWNA]) -> 0.02353 | F72: =SUMPRODUCT((WNARRates[Year]=$C$4)*(WNARRates[Region]=$B72)*(WNARRates[CustClass]=F$70)*WNARRates[AdjCSWNA]) -> 0.00943 | G72: 0 | H72: 0
B73: SEMO | C73: ='CWNA Summary'!G31 -> 0.02296 | D73: ='CWNA Summary'!H31 -> 0.00617 | E73: =SUMPRODUCT((WNARRates[Year]=$C$4)*(WNARRates[Region]=$B73)*(WNARRates[CustClass]=E$70)*WNARRates[AdjCSWNA]) -> 0.02296 | F73: =SUMPRODUCT((WNARRates[Year]=$C$4)*(WNARRates[Region]=$B73)*(WNARRates[CustClass]=F$70)*WNARRates[AdjCSWNA]) -> 0.00617 | G73: 0 | H73: 0
B74: ARR | C74: ARR Summary Worksheet | E74: WNAR Rates Table | G74: Difference
B75: Region | C75: Res | D75: SGS | E75: Res | F75: SGS | G75: Res | H75: SGS
B76: NEMO | C76: ='ARR Summary (S2)'!C86 -> 0.00821 | D76: ='ARR Summary (S2)'!D86 -> 0.00334 | E76: =SUMPRODUCT((WNARRates[Year]=$C$4)*(WNARRates[Region]=$B76)*(WNARRates[CustClass]=E$75)*WNARRates[AdjSRR]) -> 0.00821 | F76: =SUMPRODUCT((WNARRates[Year]=$C$4)*(WNARRates[Region]=$B76)*(WNARRates[CustClass]=F$75)*WNARRates[AdjSRR]) -> 0.00334 | G76: =E76-C76 -> 0 | H76: 0
B77: WEMO | C77: ='ARR Summary (S2)'!E86 -> 0.0176 | D77: ='ARR Summary (S2)'!F86 -> 0.00596 | E77: =SUMPRODUCT((WNARRates[Year]=$C$4)*(WNARRates[Region]=$B77)*(WNARRates[CustClass]=E$75)*WNARRates[AdjSRR]) -> 0.0176 | F77: =SUMPRODUCT((WNARRates[Year]=$C$4)*(WNARRates[Region]=$B77)*(WNARRates[CustClass]=F$75)*WNARRates[AdjSRR]) -> 0.00596 | G77: 0 | H77: 0
B78: SEMO | C78: ='ARR Summary (S2)'!G86 -> 0.00746 | D78: ='ARR Summary (S2)'!H86 -> -0.00034 | E78: =SUMPRODUCT((WNARRates[Year]=$C$4)*(WNARRates[Region]=$B78)*(WNARRates[CustClass]=E$75)*WNARRates[AdjSRR]) -> 0.00746 | F78: =SUMPRODUCT((WNARRates[Year]=$C$4)*(WNARRates[Region]=$B78)*(WNARRates[CustClass]=F$75)*WNARRates[AdjSRR]) -> -0.00034 | G78: 0 | H78: 0

Sheet Rates - Sheets 67.2-67.5 (hidden)
D1: Liberty Utilities (Midstates Natural Gas) Corp.
D2: Weather Normalization Adjustment Rider
D3: Semiannual Adjustment Filing
D4: Tariff Rates
D5: Sheets 67.2 through 67.5
B9: Residential Rates for Northeast and West District (Sheet No. 67.2)
B11: CWNA Table: | H11: Lookup Criteria
B12: Period | C12: Rate First Effective | D12: Months | E12: Rate Ending Effective | F12: CSWNA (Annual) | H12: Region | I12: Cust Class | J12: Rate Name
B13: =DateSet!#REF! ->  | C13: =DateSet!#REF! ->  | D13: 12 | E13: =EOMONTH(C13,11) ->  | F13: =SUMPRODUCT((WNARRates[BeginDate]=C13)*(WNARRates[Region]=H13)*(WNARRates[CustClass]=I13)*WNARRates[AdjCSWNA]) ->  | H13: NEMO | I13: Res | J13: CSWNA
B14: =DateSet!#REF! ->  | C14: =DateSet!#REF! ->  | D14: 12 | E14: =EOMONTH(C14,11) ->  | F14: =SUMPRODUCT((WNARRates[BeginDate]=C14)*(WNARRates[Region]=H14)*(WNARRates[CustClass]=I14)*WNARRates[AdjCSWNA]) ->  | H14: NEMO | I14: Res | J14: CSWNA
B15: =DateSet!#REF! ->  | C15: =DateSet!#REF! ->  | D15: 12 | E15: =EOMONTH(C15,11) ->  | F15: =SUMPRODUCT((WNARRates[BeginDate]=C15)*(WNARRates[Region]=H15)*(WNARRates[CustClass]=I15)*WNARRates[AdjCSWNA]) ->  | H15: NEMO | I15: Res | J15: CSWNA
B17: SRR Table:
B18: Period | C18: Rate First Effective | D18: Months | E18: Rate Ending Effective | F18: SRR (Annual)
B19: =$B$13 ->  | C19: =$C$13 ->  | D19: 12 | E19: =EOMONTH(C19,11) ->  | F19: =SUMPRODUCT((WNARRates[BeginDate]=C19)*(WNARRates[Region]=H19)*(WNARRates[CustClass]=I19)*WNARRates[AdjSRR]) ->  | H19: NEMO | I19: Res | J19: SRR
B20: =$B$14 ->  | C20: =$C$14 ->  | D20: 12 | E20: =EOMONTH(C20,11) ->  | F20: =SUMPRODUCT((WNARRates[BeginDate]=C20)*(WNARRates[Region]=H20)*(WNARRates[CustClass]=I20)*WNARRates[AdjSRR]) ->  | H20: NEMO | I20: Res | J20: SRR
B21: =$B$15 ->  | C21: =$C$15 ->  | D21: 12 | E21: =EOMONTH(C21,11) ->  | F21: =SUMPRODUCT((WNARRates[BeginDate]=C21)*(WNARRates[Region]=H21)*(WNARRates[CustClass]=I21)*WNARRates[AdjSRR]) ->  | H21: NEMO | I21: Res | J21: SRR
B23: WNA Rider Rate:
B24: Period | C24: Rate First Effective | D24: Months | E24: Rate Ending Effective | F24: WNA (Semiannual)
B25: =$B$14 ->  | C25: =$C$14 ->  | D25: 6 | E25: =EOMONTH(C25,D25-1) ->  | F25: =SUMPRODUCT((WNARRates[BeginDate]<=C25)*(WNARRates[EndDate]>=C25)*(WNARRates[Region]=H25)*(WNARRates[CustClass]=I25)*WNARRates[AdjSRR])+SUMPRODUCT((WNARRates[BeginDate]<=C25)*(WNARRates[EndDate]>=C25)*(WNARRates[Region]=H25)*(WNARRates[CustClass]=I25)*WNARRates[AdjCSWNA]) ->  | H25: NEMO | I25: Res | J25: WNA
B26: =$B$15 ->  | C26: =$C$15 ->  | D26: 6 | E26: =EOMONTH(C26,D26-1) ->  | F26: =SUMPRODUCT((WNARRates[BeginDate]<=C26)*(WNARRates[EndDate]>=C26)*(WNARRates[Region]=H26)*(WNARRates[CustClass]=I26)*WNARRates[AdjSRR])+SUMPRODUCT((WNARRates[BeginDate]<=C26)*(WNARRates[EndDate]>=C26)*(WNARRates[Region]=H26)*(WNARRates[CustClass]=I26)*WNARRates[AdjCSWNA]) ->  | H26: NEMO | I26: Res | J26: WNA
B28: Residential Rates for Southeast District (Sheet No. 67.3)
B30: CWNA Table:
B31: Period | C31: Rate First Effective | D31: Months | E31: Rate Ending Effective | F31: CSWNA (Annual)
B32: =$B$13 ->  | C32: =$C$13 ->  | D32: 12 | E32: =EOMONTH(C32,11) ->  | F32: =SUMPRODUCT((WNARRates[BeginDate]=C32)*(WNARRates[Region]=H32)*(WNARRates[CustClass]=I32)*WNARRates[AdjCSWNA]) ->  | H32: SEMO | I32: Res | J32: CSWNA
B33: =$B$14 ->  | C33: =$C$14 ->  | D33: 12 | E33: =EOMONTH(C33,11) ->  | F33: =SUMPRODUCT((WNARRates[BeginDate]=C33)*(WNARRates[Region]=H33)*(WNARRates[CustClass]=I33)*WNARRates[AdjCSWNA]) ->  | H33: SEMO | I33: Res | J33: CSWNA
B34: =$B$15 ->  | C34: =$C$15 ->  | D34: 12 | E34: =EOMONTH(C34,11) ->  | F34: =SUMPRODUCT((WNARRates[BeginDate]=C34)*(WNARRates[Region]=H34)*(WNARRates[CustClass]=I34)*WNARRates[AdjCSWNA]) ->  | H34: SEMO | I34: Res | J34: CSWNA
B36: SRR Table:
B37: Period | C37: Rate First Effective | D37: Months | E37: Rate Ending Effective | F37: SRR (Annual)
B38: =$B$13 ->  | C38: =$C$13 ->  | D38: 12 | E38: =EOMONTH(C38,11) ->  | F38: =SUMPRODUCT((WNARRates[BeginDate]=C38)*(WNARRates[Region]=H38)*(WNARRates[CustClass]=I38)*WNARRates[AdjSRR]) ->  | H38: SEMO | I38: Res | J38: SRR
B39: =$B$14 ->  | C39: =$C$14 ->  | D39: 12 | E39: =EOMONTH(C39,11) ->  | F39: =SUMPRODUCT((WNARRates[BeginDate]=C39)*(WNARRates[Region]=H39)*(WNARRates[CustClass]=I39)*WNARRates[AdjSRR]) ->  | H39: SEMO | I39: Res | J39: SRR
B40: =$B$15 ->  | C40: =$C$15 ->  | D40: 12 | E40: =EOMONTH(C40,11) ->  | F40: =SUMPRODUCT((WNARRates[BeginDate]=C40)*(WNARRates[Region]=H40)*(WNARRates[CustClass]=I40)*WNARRates[AdjSRR]) ->  | H40: SEMO | I40: Res | J40: SRR
B42: WNA Rider Rate:
B43: Period | C43: Rate First Effective | D43: Months | E43: Rate Ending Effective | F43: WNA (Semiannual)
B44: =$B$14 ->  | C44: =$C$14 ->  | D44: 6 | E44: =EOMONTH(C44,D44-1) ->  | F44: =SUMPRODUCT((WNARRates[BeginDate]<=C44)*(WNARRates[EndDate]>=C44)*(WNARRates[Region]=H44)*(WNARRates[CustClass]=I44)*WNARRates[AdjSRR])+SUMPRODUCT((WNARRates[BeginDate]<=C44)*(WNARRates[EndDate]>=C44)*(WNARRates[Region]=H44)*(WNARRates[CustClass]=I44)*WNARRates[AdjCSWNA]) ->  | H44: SEMO | I44: Res | J44: WNA
B45: =$B$15 ->  | C45: =$C$15 ->  | D45: 6 | E45: =EOMONTH(C45,D45-1) ->  | F45: =SUMPRODUCT((WNARRates[BeginDate]<=C45)*(WNARRates[EndDate]>=C45)*(WNARRates[Region]=H45)*(WNARRates[CustClass]=I45)*WNARRates[AdjSRR])+SUMPRODUCT((WNARRates[BeginDate]<=C45)*(WNARRates[EndDate]>=C45)*(WNARRates[Region]=H45)*(WNARRates[CustClass]=I45)*WNARRates[AdjCSWNA]) ->  | H45: SEMO | I45: Res | J45: WNA
B48: SGS Rates for Northeast and West District (Sheet No. 67.4)
B50: CWNA Table:
B51: Period | C51: Rate First Effective | D51: Months | E51: Rate Ending Effective | F51: CSWNA (Annual)
B52: =$B$13 ->  | C52: =$C$13 ->  | D52: 12 | E52: =EOMONTH(C52,11) ->  | F52: =SUMPRODUCT((WNARRates[BeginDate]=C52)*(WNARRates[Region]=H52)*(WNARRates[CustClass]=I52)*WNARRates[AdjCSWNA]) ->  | H52: NEMO | I52: SGS | J52: CSWNA
B53: =$B$14 ->  | C53: =$C$14 ->  | D53: 12 | E53: =EOMONTH(C53,11) ->  | F53: =SUMPRODUCT((WNARRates[BeginDate]=C53)*(WNARRates[Region]=H53)*(WNARRates[CustClass]=I53)*WNARRates[AdjCSWNA]) ->  | H53: NEMO | I53: SGS | J53: CSWNA
B54: =$B$15 ->  | C54: =$C$15 ->  | D54: 12 | E54: =EOMONTH(C54,11) ->  | F54: =SUMPRODUCT((WNARRates[BeginDate]=C54)*(WNARRates[Region]=H54)*(WNARRates[CustClass]=I54)*WNARRates[AdjCSWNA]) ->  | H54: NEMO | I54: SGS | J54: CSWNA
B56: SRR Table:
B57: Period | C57: Rate First Effective | D57: Months | E57: Rate Ending Effective | F57: SRR (Annual)
B58: =$B$13 ->  | C58: =$C$13 ->  | D58: 12 | E58: =EOMONTH(C58,11) ->  | F58: =SUMPRODUCT((WNARRates[BeginDate]=C58)*(WNARRates[Region]=H58)*(WNARRates[CustClass]=I58)*WNARRates[AdjSRR]) ->  | H58: NEMO | I58: SGS | J58: SRR
B59: =$B$14 ->  | C59: =$C$14 ->  | D59: 12 | E59: =EOMONTH(C59,11) ->  | F59: =SUMPRODUCT((WNARRates[BeginDate]=C59)*(WNARRates[Region]=H59)*(WNARRates[CustClass]=I59)*WNARRates[AdjSRR]) ->  | H59: NEMO | I59: SGS | J59: SRR
B60: =$B$15 ->  | C60: =$C$15 ->  | D60: 12 | E60: =EOMONTH(C60,11) ->  | F60: =SUMPRODUCT((WNARRates[BeginDate]=C60)*(WNARRates[Region]=H60)*(WNARRates[CustClass]=I60)*WNARRates[AdjSRR]) ->  | H60: NEMO | I60: SGS | J60: SRR
B62: WNA Rider Rate:
B63: Period | C63: Rate First Effective | D63: Months | E63: Rate Ending Effective | F63: WNA (Semiannual)
B64: =$B$14 ->  | C64: =$C$14 ->  | D64: 6 | E64: =EOMONTH(C64,D64-1) ->  | F64: =SUMPRODUCT((WNARRates[BeginDate]<=C64)*(WNARRates[EndDate]>=C64)*(WNARRates[Region]=H64)*(WNARRates[CustClass]=I64)*WNARRates[AdjSRR])+SUMPRODUCT((WNARRates[BeginDate]<=C64)*(WNARRates[EndDate]>=C64)*(WNARRates[Region]=H64)*(WNARRates[CustClass]=I64)*WNARRates[AdjCSWNA]) ->  | H64: NEMO | I64: SGS | J64: WNA
B65: =$B$15 ->  | C65: =$C$15 ->  | D65: 6 | E65: =EOMONTH(C65,D65-1) ->  | F65: =SUMPRODUCT((WNARRates[BeginDate]<=C65)*(WNARRates[EndDate]>=C65)*(WNARRates[Region]=H65)*(WNARRates[CustClass]=I65)*WNARRates[AdjSRR])+SUMPRODUCT((WNARRates[BeginDate]<=C65)*(WNARRates[EndDate]>=C65)*(WNARRates[Region]=H65)*(WNARRates[CustClass]=I65)*WNARRates[AdjCSWNA]) ->  | H65: NEMO | I65: SGS | J65: WNA
B67: SGS Rates for Southeast District (Sheet No. 67.5)
B69: CWNA Table:
B70: Period | C70: Rate First Effective | D70: Months | E70: Rate Ending Effective | F70: CSWNA (Annual)
B71: =$B$13 ->  | C71: =$C$13 ->  | D71: 12 | E71: =EOMONTH(C71,11) ->  | F71: =SUMPRODUCT((WNARRates[BeginDate]=C71)*(WNARRates[Region]=H71)*(WNARRates[CustClass]=I71)*WNARRates[AdjCSWNA]) ->  | H71: SEMO | I71: SGS | J71: CSWNA
B72: =$B$14 ->  | C72: =$C$14 ->  | D72: 12 | E72: =EOMONTH(C72,11) ->  | F72: =SUMPRODUCT((WNARRates[BeginDate]=C72)*(WNARRates[Region]=H72)*(WNARRates[CustClass]=I72)*WNARRates[AdjCSWNA]) ->  | H72: SEMO | I72: SGS | J72: CSWNA
B73: =$B$15 ->  | C73: =$C$15 ->  | D73: 12 | E73: =EOMONTH(C73,11) ->  | F73: =SUMPRODUCT((WNARRates[BeginDate]=C73)*(WNARRates[Region]=H73)*(WNARRates[CustClass]=I73)*WNARRates[AdjCSWNA]) ->  | H73: SEMO | I73: SGS | J73: CSWNA
B75: SRR Table:
B76: Period | C76: Rate First Effective | D76: Months | E76: Rate Ending Effective | F76: SRR (Annual)
B77: =$B$13 ->  | C77: =$C$13 ->  | D77: 12 | E77: =EOMONTH(C77,11) ->  | F77: =SUMPRODUCT((WNARRates[BeginDate]=C77)*(WNARRates[Region]=H77)*(WNARRates[CustClass]=I77)*WNARRates[AdjSRR]) ->  | H77: SEMO | I77: SGS | J77: SRR
B78: =$B$14 ->  | C78: =$C$14 ->  | D78: 12 | E78: =EOMONTH(C78,11) ->  | F78: =SUMPRODUCT((WNARRates[BeginDate]=C78)*(WNARRates[Region]=H78)*(WNARRates[CustClass]=I78)*WNARRates[AdjSRR]) ->  | H78: SEMO | I78: SGS | J78: SRR
B79: =$B$15 ->  | C79: =$C$15 ->  | D79: 12 | E79: =EOMONTH(C79,11) ->  | F79: =SUMPRODUCT((WNARRates[BeginDate]=C79)*(WNARRates[Region]=H79)*(WNARRates[CustClass]=I79)*WNARRates[AdjSRR]) ->  | H79: SEMO | I79: SGS | J79: SRR
B81: WNA Rider Rate:
B82: Period | C82: Rate First Effective | D82: Months | E82: Rate Ending Effective | F82: WNA (Semiannual)
B83: =$B$14 ->  | C83: =$C$14 ->  | D83: 6 | E83: =EOMONTH(C83,D83-1) ->  | F83: =SUMPRODUCT((WNARRates[BeginDate]<=C83)*(WNARRates[EndDate]>=C83)*(WNARRates[Region]=H83)*(WNARRates[CustClass]=I83)*WNARRates[AdjSRR])+SUMPRODUCT((WNARRates[BeginDate]<=C83)*(WNARRates[EndDate]>=C83)*(WNARRates[Region]=H83)*(WNARRates[CustClass]=I83)*WNARRates[AdjCSWNA]) ->  | H83: SEMO | I83: SGS | J83: WNA
B84: =$B$15 ->  | C84: =$C$15 ->  | D84: 6 | E84: =EOMONTH(C84,D84-1) ->  | F84: =SUMPRODUCT((WNARRates[BeginDate]<=C84)*(WNARRates[EndDate]>=C84)*(WNARRates[Region]=H84)*(WNARRates[CustClass]=I84)*WNARRates[AdjSRR])+SUMPRODUCT((WNARRates[BeginDate]<=C84)*(WNARRates[EndDate]>=C84)*(WNARRates[Region]=H84)*(WNARRates[CustClass]=I84)*WNARRates[AdjCSWNA]) ->  | H84: SEMO | I84: SGS | J84: WNA

Sheet Rate Sheet 67.8
B6: WEATHER NORMALIZATION ADJUSTMENT RIDER (CONT'D)
E8: Effective Date: | F8: 45931
B11: Residential Class
B12: District | D12: Northeast | E12: West | F12: Southeast
B13: Sum of Monthly WNA | C13: a | D13: =SUMPRODUCT((ReconPerAdj[EffDate]=$F$8)*(ReconPerAdj[Region]="NEMO")*(ReconPerAdj[CustClass]="Res")*(ReconPerAdj[RateName]="CWNA")*ReconPerAdj[ReconcilingPeriodAdj]) -> 329759.49 | E13: =SUMPRODUCT((ReconPerAdj[EffDate]=$F$8)*(ReconPerAdj[Region]="WEMO")*(ReconPerAdj[CustClass]="Res")*(ReconPerAdj[RateName]="CWNA")*ReconPerAdj[ReconcilingPeriodAdj]) -> 58106.6 | F13: =SUMPRODUCT((ReconPerAdj[EffDate]=$F$8)*(ReconPerAdj[Region]="SEMO")*(ReconPerAdj[CustClass]="Res")*(ReconPerAdj[RateName]="CWNA")*ReconPerAdj[ReconcilingPeriodAdj]) -> 394534.23
B14: Rate Case Normalized Ccf | C14: b | D14: =SUMPRODUCT((BillDeter[Region]="NEMO")*(BillDeter[CustClass]="Res")*(BillDeter[BeginDate]<=$F$8)*(BillDeter[EndDate]>$F$8)*BillDeter[BillingDeterminants]) -> 12307679 | E14: =SUMPRODUCT((BillDeter[Region]="WEMO")*(BillDeter[CustClass]="Res")*(BillDeter[BeginDate]<=$F$8)*(BillDeter[EndDate]>$F$8)*BillDeter[BillingDeterminants]) -> 2469188 | F14: =SUMPRODUCT((BillDeter[Region]="SEMO")*(BillDeter[CustClass]="Res")*(BillDeter[BeginDate]<=$F$8)*(BillDeter[EndDate]>$F$8)*BillDeter[BillingDeterminants]) -> 17185669
B15: Current Annual WNA rate | C15: c =a/b | D15: =D13/D14 -> 0.02679298753 | E15: =E13/E14 -> 0.02353267552 | F15: 0.02295716448
B16: Annual Reconciliation Rate (ARR) | C16: d | D16: =SUMPRODUCT((WNARRates[BeginDate]=$F$8)*(WNARRates[Region]="NEMO")*(WNARRates[CustClass]="Res")*WNARRates[AdjSRR]) -> 0.00821 | E16: =SUMPRODUCT((WNARRates[BeginDate]=$F$8)*(WNARRates[Region]="WEMO")*(WNARRates[CustClass]="Res")*WNARRates[AdjSRR]) -> 0.0176 | F16: =SUMPRODUCT((WNARRates[BeginDate]=$F$8)*(WNARRates[Region]="SEMO")*(WNARRates[CustClass]="Res")*WNARRates[AdjSRR]) -> 0.00746
B17: WNA Rider Rate | C17: e = c + d | D17: =D15+D16 -> 0.03500298753 | E17: =E15+E16 -> 0.04113267552 | F17: 0.03041716448
B20: Small General Service Class
B21: District | D21: Northeast | E21: West | F21: Southeast
B22: Sum of Monthly WNA | C22: a | D22: =SUMPRODUCT((ReconPerAdj[EffDate]=$F$8)*(ReconPerAdj[Region]="NEMO")*(ReconPerAdj[CustClass]="SGS")*(ReconPerAdj[RateName]="CWNA")*ReconPerAdj[ReconcilingPeriodAdj]) -> 39707.57 | E22: =SUMPRODUCT((ReconPerAdj[EffDate]=$F$8)*(ReconPerAdj[Region]="WEMO")*(ReconPerAdj[CustClass]="SGS")*(ReconPerAdj[RateName]="CWNA")*ReconPerAdj[ReconcilingPeriodAdj]) -> 8553.94 | F22: =SUMPRODUCT((ReconPerAdj[EffDate]=$F$8)*(ReconPerAdj[Region]="SEMO")*(ReconPerAdj[CustClass]="SGS")*(ReconPerAdj[RateName]="CWNA")*ReconPerAdj[ReconcilingPeriodAdj]) -> 30918.47
B23: Rate Case Normalized Ccf | C23: b | D23: =SUMPRODUCT((BillDeter[Region]="NEMO")*(BillDeter[CustClass]="SGS")*(BillDeter[BeginDate]<=$F$8)*(BillDeter[EndDate]>$F$8)*BillDeter[BillingDeterminants]) -> 3880055 | E23: =SUMPRODUCT((BillDeter[Region]="WEMO")*(BillDeter[CustClass]="SGS")*(BillDeter[BeginDate]<=$F$8)*(BillDeter[EndDate]>$F$8)*BillDeter[BillingDeterminants]) -> 907146 | F23: =SUMPRODUCT((BillDeter[Region]="SEMO")*(BillDeter[CustClass]="SGS")*(BillDeter[BeginDate]<=$F$8)*(BillDeter[EndDate]>$F$8)*BillDeter[BillingDeterminants]) -> 5009348
B24: Current Annual WNA rate | C24: c =a/b | D24: =D22/D23 -> 0.01023376473 | E24: =E22/E23 -> 0.009429507488 | F24: =F22/F23 -> 0.00617215454
B25: Annual Reconciliation Rate (ARR) | C25: d | D25: =SUMPRODUCT((WNARRates[BeginDate]=$F$8)*(WNARRates[Region]="NEMO")*(WNARRates[CustClass]="SGS")*WNARRates[AdjSRR]) -> 0.00334 | E25: =SUMPRODUCT((WNARRates[BeginDate]=$F$8)*(WNARRates[Region]="WEMO")*(WNARRates[CustClass]="SGS")*WNARRates[AdjSRR]) -> 0.00596 | F25: =SUMPRODUCT((WNARRates[BeginDate]=$F$8)*(WNARRates[Region]="SEMO")*(WNARRates[CustClass]="SGS")*WNARRates[AdjSRR]) -> -0.00034
B26: WNA Rider Rate | C26: e = c + d | D26: =D24+D25 -> 0.01357376473 | E26: =E24+E25 -> 0.01538950749 | F26: =F24+F25 -> 0.00583215454

Sheet CWNA Summary
B2: Liberty Midstates | E2: Year
B3: WNAR Filing
B4: CWNA Summary
B5: Year | C5: =DateSet!C2 -> 2025
B6: CWNA Analysis | C6: =DateSet!D3 -> 45474
B7: New Rate Effec. | C7: =DateSet!$D$4 -> 45931
B9: Current Period Dollar Adjustment
B10: Customer Class | C10: NEMO | E10: WEMO | G10: SEMO | I10: Notes
B11: Month | C11: Res | D11: SGS | E11: Res | F11: SGS | G11: Res | H11: SGS
B12: =C6 -> 2024-07-01 | C12: =SUMPRODUCT((CSWNAAmounts[Month]=$B12)*(CSWNAAmounts[CustClass]=C$11)*(CSWNAAmounts[Region]=C$10)*CSWNAAmounts[CAWNA]) -> 421.0000318 | D12: =SUMPRODUCT((CSWNAAmounts[Month]=$B12)*(CSWNAAmounts[CustClass]=D$11)*(CSWNAAmounts[Region]=C$10)*CSWNAAmounts[CAWNA]) -> 52.85783979 | E12: =SUMPRODUCT((CSWNAAmounts[Month]=$B12)*(CSWNAAmounts[CustClass]=E$11)*(CSWNAAmounts[Region]=$E$10)*CSWNAAmounts[CAWNA]) -> 86.19779202 | F12: =SUMPRODUCT((CSWNAAmounts[Month]=$B12)*(CSWNAAmounts[CustClass]=F$11)*(CSWNAAmounts[Region]=$E$10)*CSWNAAmounts[CAWNA]) -> 12.22794266 | G12: =SUMPRODUCT((CSWNAAmounts[Month]=$B12)*(CSWNAAmounts[CustClass]=G$11)*(CSWNAAmounts[Region]=$G$10)*CSWNAAmounts[CAWNA]) -> 72.12285888 | H12: =SUMPRODUCT((CSWNAAmounts[Month]=$B12)*(CSWNAAmounts[CustClass]=H$11)*(CSWNAAmounts[Region]=$G$10)*CSWNAAmounts[CAWNA]) -> 6.241063757 | I12: From CSWNAAmounts Table
B13: =EDATE(B12,1) -> 2024-08-01 | C13: =SUMPRODUCT((CSWNAAmounts[Month]=$B13)*(CSWNAAmounts[CustClass]=C$11)*(CSWNAAmounts[Region]=C$10)*CSWNAAmounts[CAWNA]) -> 16311.14175 | D13: =SUMPRODUCT((CSWNAAmounts[Month]=$B13)*(CSWNAAmounts[CustClass]=D$11)*(CSWNAAmounts[Region]=C$10)*CSWNAAmounts[CAWNA]) -> 2101.424098 | E13: =SUMPRODUCT((CSWNAAmounts[Month]=$B13)*(CSWNAAmounts[CustClass]=E$11)*(CSWNAAmounts[Region]=$E$10)*CSWNAAmounts[CAWNA]) -> 3362.384484 | F13: =SUMPRODUCT((CSWNAAmounts[Month]=$B13)*(CSWNAAmounts[CustClass]=F$11)*(CSWNAAmounts[Region]=$E$10)*CSWNAAmounts[CAWNA]) -> 534.3567138 | G13: =SUMPRODUCT((CSWNAAmounts[Month]=$B13)*(CSWNAAmounts[CustClass]=G$11)*(CSWNAAmounts[Region]=$G$10)*CSWNAAmounts[CAWNA]) -> 6336.834388 | H13: =SUMPRODUCT((CSWNAAmounts[Month]=$B13)*(CSWNAAmounts[CustClass]=H$11)*(CSWNAAmounts[Region]=$G$10)*CSWNAAmounts[CAWNA]) -> 582.037348 | I13: From CSWNAAmounts Table
B14: 2024-09-01 | C14: =SUMPRODUCT((CSWNAAmounts[Month]=$B14)*(CSWNAAmounts[CustClass]=C$11)*(CSWNAAmounts[Region]=C$10)*CSWNAAmounts[CAWNA]) -> 39184.31228 | D14: =SUMPRODUCT((CSWNAAmounts[Month]=$B14)*(CSWNAAmounts[CustClass]=D$11)*(CSWNAAmounts[Region]=C$10)*CSWNAAmounts[CAWNA]) -> 4973.569394 | E14: =SUMPRODUCT((CSWNAAmounts[Month]=$B14)*(CSWNAAmounts[CustClass]=E$11)*(CSWNAAmounts[Region]=$E$10)*CSWNAAmounts[CAWNA]) -> 9199.542263 | F14: =SUMPRODUCT((CSWNAAmounts[Month]=$B14)*(CSWNAAmounts[CustClass]=F$11)*(CSWNAAmounts[Region]=$E$10)*CSWNAAmounts[CAWNA]) -> 1350.038495 | G14: =SUMPRODUCT((CSWNAAmounts[Month]=$B14)*(CSWNAAmounts[CustClass]=G$11)*(CSWNAAmounts[Region]=$G$10)*CSWNAAmounts[CAWNA]) -> 33871.06048 | H14: =SUMPRODUCT((CSWNAAmounts[Month]=$B14)*(CSWNAAmounts[CustClass]=H$11)*(CSWNAAmounts[Region]=$G$10)*CSWNAAmounts[CAWNA]) -> 2909.53819 | I14: From CSWNAAmounts Table
B15: 2024-10-01 | C15: =SUMPRODUCT((CSWNAAmounts[Month]=$B15)*(CSWNAAmounts[CustClass]=C$11)*(CSWNAAmounts[Region]=C$10)*CSWNAAmounts[CAWNA]) -> 71757.98016 | D15: =SUMPRODUCT((CSWNAAmounts[Month]=$B15)*(CSWNAAmounts[CustClass]=D$11)*(CSWNAAmounts[Region]=C$10)*CSWNAAmounts[CAWNA]) -> 8759.812177 | E15: =SUMPRODUCT((CSWNAAmounts[Month]=$B15)*(CSWNAAmounts[CustClass]=E$11)*(CSWNAAmounts[Region]=$E$10)*CSWNAAmounts[CAWNA]) -> 13790.11762 | F15: =SUMPRODUCT((CSWNAAmounts[Month]=$B15)*(CSWNAAmounts[CustClass]=F$11)*(CSWNAAmounts[Region]=$E$10)*CSWNAAmounts[CAWNA]) -> 2179.604165 | G15: =SUMPRODUCT((CSWNAAmounts[Month]=$B15)*(CSWNAAmounts[CustClass]=G$11)*(CSWNAAmounts[Region]=$G$10)*CSWNAAmounts[CAWNA]) -> 80520.83895 | H15: =SUMPRODUCT((CSWNAAmounts[Month]=$B15)*(CSWNAAmounts[CustClass]=H$11)*(CSWNAAmounts[Region]=$G$10)*CSWNAAmounts[CAWNA]) -> 6895.236053 | I15: From CSWNAAmounts Table
B16: 2024-11-01 | C16: =SUMPRODUCT((CSWNAAmounts[Month]=$B16)*(CSWNAAmounts[CustClass]=C$11)*(CSWNAAmounts[Region]=C$10)*CSWNAAmounts[CAWNA]) -> 49028.65451 | D16: =SUMPRODUCT((CSWNAAmounts[Month]=$B16)*(CSWNAAmounts[CustClass]=D$11)*(CSWNAAmounts[Region]=C$10)*CSWNAAmounts[CAWNA]) -> 6028.133955 | E16: =SUMPRODUCT((CSWNAAmounts[Month]=$B16)*(CSWNAAmounts[CustClass]=E$11)*(CSWNAAmounts[Region]=$E$10)*CSWNAAmounts[CAWNA]) -> 11145.20759 | F16: =SUMPRODUCT((CSWNAAmounts[Month]=$B16)*(CSWNAAmounts[CustClass]=F$11)*(CSWNAAmounts[Region]=$E$10)*CSWNAAmounts[CAWNA]) -> 1595.712382 | G16: =SUMPRODUCT((CSWNAAmounts[Month]=$B16)*(CSWNAAmounts[CustClass]=G$11)*(CSWNAAmounts[Region]=$G$10)*CSWNAAmounts[CAWNA]) -> 112168.2156 | H16: =SUMPRODUCT((CSWNAAmounts[Month]=$B16)*(CSWNAAmounts[CustClass]=H$11)*(CSWNAAmounts[Region]=$G$10)*CSWNAAmounts[CAWNA]) -> 9567.637476 | I16: From CSWNAAmounts Table
B17: 2024-12-01 | C17: =SUMPRODUCT((CSWNAAmounts[Month]=$B17)*(CSWNAAmounts[CustClass]=C$11)*(CSWNAAmounts[Region]=C$10)*CSWNAAmounts[CAWNA]) -> -60320.82199 | D17: =SUMPRODUCT((CSWNAAmounts[Month]=$B17)*(CSWNAAmounts[CustClass]=D$11)*(CSWNAAmounts[Region]=C$10)*CSWNAAmounts[CAWNA]) -> -14674.43169 | E17: =SUMPRODUCT((CSWNAAmounts[Month]=$B17)*(CSWNAAmounts[CustClass]=E$11)*(CSWNAAmounts[Region]=$E$10)*CSWNAAmounts[CAWNA]) -> -8901.471096 | F17: =SUMPRODUCT((CSWNAAmounts[Month]=$B17)*(CSWNAAmounts[CustClass]=F$11)*(CSWNAAmounts[Region]=$E$10)*CSWNAAmounts[CAWNA]) -> -1624.356105 | G17: =SUMPRODUCT((CSWNAAmounts[Month]=$B17)*(CSWNAAmounts[CustClass]=G$11)*(CSWNAAmounts[Region]=$G$10)*CSWNAAmounts[CAWNA]) -> 3166.286719 | H17: =SUMPRODUCT((CSWNAAmounts[Month]=$B17)*(CSWNAAmounts[CustClass]=H$11)*(CSWNAAmounts[Region]=$G$10)*CSWNAAmounts[CAWNA]) -> 228.7901428 | I17: From CSWNAAmounts Table
B18: 2025-01-01 | C18: =SUMPRODUCT((CSWNAAmounts[Month]=$B18)*(CSWNAAmounts[CustClass]=C$11)*(CSWNAAmounts[Region]=C$10)*CSWNAAmounts[CAWNA]) -> -10816.45383 | D18: =SUMPRODUCT((CSWNAAmounts[Month]=$B18)*(CSWNAAmounts[CustClass]=D$11)*(CSWNAAmounts[Region]=C$10)*CSWNAAmounts[CAWNA]) -> -2389.597012 | E18: =SUMPRODUCT((CSWNAAmounts[Month]=$B18)*(CSWNAAmounts[CustClass]=E$11)*(CSWNAAmounts[Region]=$E$10)*CSWNAAmounts[CAWNA]) -> -29154.9174 | F18: =SUMPRODUCT((CSWNAAmounts[Month]=$B18)*(CSWNAAmounts[CustClass]=F$11)*(CSWNAAmounts[Region]=$E$10)*CSWNAAmounts[CAWNA]) -> -4975.888467 | G18: =SUMPRODUCT((CSWNAAmounts[Month]=$B18)*(CSWNAAmounts[CustClass]=G$11)*(CSWNAAmounts[Region]=$G$10)*CSWNAAmounts[CAWNA]) -> -32032.50698 | H18: =SUMPRODUCT((CSWNAAmounts[Month]=$B18)*(CSWNAAmounts[CustClass]=H$11)*(CSWNAAmounts[Region]=$G$10)*CSWNAAmounts[CAWNA]) -> -3255.486262 | I18: From CSWNAAmounts Table
B19: =EDATE(B18,1) -> 2025-02-01 | C19: =SUMPRODUCT((CSWNAAmounts[Month]=$B19)*(CSWNAAmounts[CustClass]=C$11)*(CSWNAAmounts[Region]=C$10)*CSWNAAmounts[CAWNA]) -> 107190.9738 | D19: =SUMPRODUCT((CSWNAAmounts[Month]=$B19)*(CSWNAAmounts[CustClass]=D$11)*(CSWNAAmounts[Region]=C$10)*CSWNAAmounts[CAWNA]) -> 16131.82375 | E19: =SUMPRODUCT((CSWNAAmounts[Month]=$B19)*(CSWNAAmounts[CustClass]=E$11)*(CSWNAAmounts[Region]=$E$10)*CSWNAAmounts[CAWNA]) -> 32399.40748 | F19: =SUMPRODUCT((CSWNAAmounts[Month]=$B19)*(CSWNAAmounts[CustClass]=F$11)*(CSWNAAmounts[Region]=$E$10)*CSWNAAmounts[CAWNA]) -> 5198.143844 | G19: =SUMPRODUCT((CSWNAAmounts[Month]=$B19)*(CSWNAAmounts[CustClass]=G$11)*(CSWNAAmounts[Region]=$G$10)*CSWNAAmounts[CAWNA]) -> -15046.64274 | H19: =SUMPRODUCT((CSWNAAmounts[Month]=$B19)*(CSWNAAmounts[CustClass]=H$11)*(CSWNAAmounts[Region]=$G$10)*CSWNAAmounts[CAWNA]) -> -1754.530681 | I19: From CSWNAAmounts Table
B20: =EDATE(B19,1) -> 2025-03-01 | C20: =SUMPRODUCT((CSWNAAmounts[Month]=$B20)*(CSWNAAmounts[CustClass]=C$11)*(CSWNAAmounts[Region]=C$10)*CSWNAAmounts[CAWNA]) -> 65373.9541 | D20: =SUMPRODUCT((CSWNAAmounts[Month]=$B20)*(CSWNAAmounts[CustClass]=D$11)*(CSWNAAmounts[Region]=C$10)*CSWNAAmounts[CAWNA]) -> 8995.960901 | E20: =SUMPRODUCT((CSWNAAmounts[Month]=$B20)*(CSWNAAmounts[CustClass]=E$11)*(CSWNAAmounts[Region]=$E$10)*CSWNAAmounts[CAWNA]) -> 13135.34261 | F20: =SUMPRODUCT((CSWNAAmounts[Month]=$B20)*(CSWNAAmounts[CustClass]=F$11)*(CSWNAAmounts[Region]=$E$10)*CSWNAAmounts[CAWNA]) -> 2262.940869 | G20: =SUMPRODUCT((CSWNAAmounts[Month]=$B20)*(CSWNAAmounts[CustClass]=G$11)*(CSWNAAmounts[Region]=$G$10)*CSWNAAmounts[CAWNA]) -> 113498.1456 | H20: =SUMPRODUCT((CSWNAAmounts[Month]=$B20)*(CSWNAAmounts[CustClass]=H$11)*(CSWNAAmounts[Region]=$G$10)*CSWNAAmounts[CAWNA]) -> 9877.357476 | I20: From CSWNAAmounts Table
B21: =EDATE(B20,1) -> 2025-04-01 | C21: =SUMPRODUCT((CSWNAAmounts[Month]=$B21)*(CSWNAAmounts[CustClass]=C$11)*(CSWNAAmounts[Region]=C$10)*CSWNAAmounts[CAWNA]) -> 71749.64542 | D21: =SUMPRODUCT((CSWNAAmounts[Month]=$B21)*(CSWNAAmounts[CustClass]=D$11)*(CSWNAAmounts[Region]=C$10)*CSWNAAmounts[CAWNA]) -> 9669.624205 | E21: =SUMPRODUCT((CSWNAAmounts[Month]=$B21)*(CSWNAAmounts[CustClass]=E$11)*(CSWNAAmounts[Region]=$E$10)*CSWNAAmounts[CAWNA]) -> 19007.14083 | F21: =SUMPRODUCT((CSWNAAmounts[Month]=$B21)*(CSWNAAmounts[CustClass]=F$11)*(CSWNAAmounts[Region]=$E$10)*CSWNAAmounts[CAWNA]) -> 2108.518603 | G21: =SUMPRODUCT((CSWNAAmounts[Month]=$B21)*(CSWNAAmounts[CustClass]=G$11)*(CSWNAAmounts[Region]=$G$10)*CSWNAAmounts[CAWNA]) -> 71746.0201 | H21: =SUMPRODUCT((CSWNAAmounts[Month]=$B21)*(CSWNAAmounts[CustClass]=H$11)*(CSWNAAmounts[Region]=$G$10)*CSWNAAmounts[CAWNA]) -> 4729.70026 | I21: From CSWNAAmounts Table
B22: =EDATE(B21,1) -> 2025-05-01 | C22: =SUMPRODUCT((CSWNAAmounts[Month]=$B22)*(CSWNAAmounts[CustClass]=C$11)*(CSWNAAmounts[Region]=C$10)*CSWNAAmounts[CAWNA]) -> -23461.62167 | D22: =SUMPRODUCT((CSWNAAmounts[Month]=$B22)*(CSWNAAmounts[CustClass]=D$11)*(CSWNAAmounts[Region]=C$10)*CSWNAAmounts[CAWNA]) -> 50.99856877 | E22: =SUMPRODUCT((CSWNAAmounts[Month]=$B22)*(CSWNAAmounts[CustClass]=E$11)*(CSWNAAmounts[Region]=$E$10)*CSWNAAmounts[CAWNA]) -> -6096.052641 | F22: =SUMPRODUCT((CSWNAAmounts[Month]=$B22)*(CSWNAAmounts[CustClass]=F$11)*(CSWNAAmounts[Region]=$E$10)*CSWNAAmounts[CAWNA]) -> -87.35554278 | G22: =SUMPRODUCT((CSWNAAmounts[Month]=$B22)*(CSWNAAmounts[CustClass]=G$11)*(CSWNAAmounts[Region]=$G$10)*CSWNAAmounts[CAWNA]) -> 20184.27928 | H22: =SUMPRODUCT((CSWNAAmounts[Month]=$B22)*(CSWNAAmounts[CustClass]=H$11)*(CSWNAAmounts[Region]=$G$10)*CSWNAAmounts[CAWNA]) -> 1131.944009 | I22: From CSWNAAmounts Table
B23: =EDATE(B22,1) -> 2025-06-01 | C23: =SUMPRODUCT((CSWNAAmounts[Month]=$B23)*(CSWNAAmounts[CustClass]=C$11)*(CSWNAAmounts[Region]=C$10)*CSWNAAmounts[CAWNA]) -> 3340.720755 | D23: =SUMPRODUCT((CSWNAAmounts[Month]=$B23)*(CSWNAAmounts[CustClass]=D$11)*(CSWNAAmounts[Region]=C$10)*CSWNAAmounts[CAWNA]) -> 7.396012009 | E23: =SUMPRODUCT((CSWNAAmounts[Month]=$B23)*(CSWNAAmounts[CustClass]=E$11)*(CSWNAAmounts[Region]=$E$10)*CSWNAAmounts[CAWNA]) -> 133.6961355 | F23: =SUMPRODUCT((CSWNAAmounts[Month]=$B23)*(CSWNAAmounts[CustClass]=F$11)*(CSWNAAmounts[Region]=$E$10)*CSWNAAmounts[CAWNA]) -> 0 | G23: =SUMPRODUCT((CSWNAAmounts[Month]=$B23)*(CSWNAAmounts[CustClass]=G$11)*(CSWNAAmounts[Region]=$G$10)*CSWNAAmounts[CAWNA]) -> 49.58028785 | H23: =SUMPRODUCT((CSWNAAmounts[Month]=$B23)*(CSWNAAmounts[CustClass]=H$11)*(CSWNAAmounts[Region]=$G$10)*CSWNAAmounts[CAWNA]) -> 0 | I23: From CSWNAAmounts Table
B24: Total Adjustment | C24: =SUM(C12:C23) -> 329759.4853 | D24: =SUM(D12:D23) -> 39707.5722 | E24: 58106.59566 | F24: 8553.942899 | G24: 394534.2346 | H24: 30918.46508 | I24: From CSWNAAmounts Table
B26: CWNA Rate Calculation | C26: NEMO | E26: WEMO | G26: SEMO | I26: Notes
C27: Res | D27: SGS | E27: Res | F27: SGS | G27: Res | H27: SGS
B28: Billing Determinants | C28: =SUMPRODUCT((BillDeter[Region]=$C26)*(BillDeter[CustClass]=C27)*(BillDeter[BeginDate]<=$C$7)*(BillDeter[EndDate]>$C$7)*BillDeter[BillingDeterminants]) -> 12307679 | D28: =SUMPRODUCT((BillDeter[Region]=$C26)*(BillDeter[CustClass]=D27)*(BillDeter[BeginDate]<=$C$7)*(BillDeter[EndDate]>$C$7)*BillDeter[BillingDeterminants]) -> 3880055 | E28: =SUMPRODUCT((BillDeter[Region]=$E26)*(BillDeter[CustClass]=E27)*(BillDeter[BeginDate]<=$C$7)*(BillDeter[EndDate]>$C$7)*BillDeter[BillingDeterminants]) -> 2469188 | F28: =SUMPRODUCT((BillDeter[Region]=$E26)*(BillDeter[CustClass]=F27)*(BillDeter[BeginDate]<=$C$7)*(BillDeter[EndDate]>$C$7)*BillDeter[BillingDeterminants]) -> 907146 | G28: =SUMPRODUCT((BillDeter[Region]=$G26)*(BillDeter[CustClass]=G27)*(BillDeter[BeginDate]<=$C$7)*(BillDeter[EndDate]>$C$7)*BillDeter[BillingDeterminants]) -> 17185669 | H28: =SUMPRODUCT((BillDeter[Region]=$G26)*(BillDeter[CustClass]=H27)*(BillDeter[BeginDate]<=$C$7)*(BillDeter[EndDate]>$C$7)*BillDeter[BillingDeterminants]) -> 5009348 | I28: From BillDeter Table
B29: CAWNA Unadjusted | C29: =ROUND(C24/C28,5) -> 0.02679 | D29: 0.01023 | E29: =ROUND(E24/E28,5) -> 0.02353 | F29: 0.00943 | G29: =ROUND(G24/G28,5) -> 0.02296 | H29: =ROUND(H24/H28,5) -> 0.00617
B30: WNA Limit Adjust. | C30: =D46 -> 0 | D30: =E46 -> 0 | E30: 0 | F30: 0 | G30: 0 | H30: 0
B31: CSWNA Adjusted | C31: =C29+C30 -> 0.02679 | D31: =D29+D30 -> 0.01023 | E31: 0.02353 | F31: 0.00943 | G31: 0.02296 | H31: 0.00617
B32: Enter these rates in the CSWNA column of the WNAR Rates table.
B34: New WNA Rate Calculation | D34: NEMO | F34: WEMO | H34: SEMO
B35: Rate | C35: Eff. Date | D35: Res | E35: SGS | F35: Res | G35: SGS | H35: Res | I35: SGS
B36: CAWNA | C36: =$C$7 -> 45931 | D36: =SUMPRODUCT((WNARRates[BeginDate]=$C36)*(WNARRates[Region]=$D$34)*(WNARRates[CustClass]=D$35)*WNARRates[CSWNA]) -> 0.02679 | E36: =SUMPRODUCT((WNARRates[BeginDate]=$C36)*(WNARRates[Region]=$D$34)*(WNARRates[CustClass]=E$35)*WNARRates[CSWNA]) -> 0.01023 | F36: =SUMPRODUCT((WNARRates[BeginDate]=$C36)*(WNARRates[Region]=$F$34)*(WNARRates[CustClass]=F$35)*WNARRates[CSWNA]) -> 0.02353 | G36: =SUMPRODUCT((WNARRates[BeginDate]=$C36)*(WNARRates[Region]=$F$34)*(WNARRates[CustClass]=G$35)*WNARRates[CSWNA]) -> 0.00943 | H36: =SUMPRODUCT((WNARRates[BeginDate]=$C36)*(WNARRates[Region]=$H$34)*(WNARRates[CustClass]=H$35)*WNARRates[CSWNA]) -> 0.02296 | I36: =SUMPRODUCT((WNARRates[BeginDate]=$C36)*(WNARRates[Region]=$H$34)*(WNARRates[CustClass]=I$35)*WNARRates[CSWNA]) -> 0.00617
B37: ARR | C37: =$C$7 -> 45931 | D37: =SUMPRODUCT((WNARRates[BeginDate]=$C37)*(WNARRates[Region]="NEMO")*(WNARRates[CustClass]=D$35)*WNARRates[ARR]) -> 0.00821 | E37: =SUMPRODUCT((WNARRates[BeginDate]=$C37)*(WNARRates[Region]="NEMO")*(WNARRates[CustClass]=E$35)*WNARRates[ARR]) -> 0.00334 | F37: =SUMPRODUCT((WNARRates[BeginDate]=$C37)*(WNARRates[Region]=$F$34)*(WNARRates[CustClass]=F$35)*WNARRates[ARR]) -> 0.0176 | G37: =SUMPRODUCT((WNARRates[BeginDate]=$C37)*(WNARRates[Region]=$F$34)*(WNARRates[CustClass]=G$35)*WNARRates[ARR]) -> 0.00596 | H37: =SUMPRODUCT((WNARRates[BeginDate]=$C37)*(WNARRates[Region]=$H$34)*(WNARRates[CustClass]=H$35)*WNARRates[ARR]) -> 0.00746 | I37: =SUMPRODUCT((WNARRates[BeginDate]=$C37)*(WNARRates[Region]=$H$34)*(WNARRates[CustClass]=I$35)*WNARRates[ARR]) -> -0.00034
B38: Proposed WNA | D38: =SUM(D36:D37) -> 0.035 | E38: 0.01357 | F38: 0.04113 | G38: 0.01539 | H38: 0.03042 | I38: 0.00583
B40: Change Limit Calculations | D40: NEMO | F40: WEMO | H40: SEMO
C41: Eff. Date | D41: Res | E41: SGS | F41: Res | G41: SGS | H41: Res | I41: SGS
B42: Prior Period WNA Rate | C42: =EDATE($C$7,-12) -> 45566 | D42: =SUMPRODUCT((WNARRates[BeginDate]<=$C$42)*(WNARRates[EndDate]>=$C$42)*(WNARRates[Region]=$D$40)*(WNARRates[CustClass]=D41)*WNARRates[Combined]) -> 0.04732 | E42: =SUMPRODUCT((WNARRates[BeginDate]<=$C$42)*(WNARRates[EndDate]>=$C$42)*(WNARRates[Region]=$D$40)*(WNARRates[CustClass]=E41)*WNARRates[Combined]) -> 0.0227 | F42: =SUMPRODUCT((WNARRates[BeginDate]<=$C$42)*(WNARRates[EndDate]>=$C$42)*(WNARRates[Region]=$F$40)*(WNARRates[CustClass]=F41)*WNARRates[Combined]) -> 0.04732 | G42: =SUMPRODUCT((WNARRates[BeginDate]<=$C$42)*(WNARRates[EndDate]>=$C$42)*(WNARRates[Region]=$F$40)*(WNARRates[CustClass]=G41)*WNARRates[Combined]) -> 0.0227 | H42: =SUMPRODUCT((WNARRates[BeginDate]<=$C$42)*(WNARRates[EndDate]>=$C$42)*(WNARRates[Region]=$H$40)*(WNARRates[CustClass]=H41)*WNARRates[Combined]) -> 0.03753 | I42: =SUMPRODUCT((WNARRates[BeginDate]<=$C$42)*(WNARRates[EndDate]>=$C$42)*(WNARRates[Region]=$H$40)*(WNARRates[CustClass]=I41)*WNARRates[Combined]) -> 0.01244
B43: Current WNA Rate | D43: =D38 -> 0.035 | E43: =E38 -> 0.01357 | F43: 0.04113 | G43: 0.01539 | H43: 0.03042 | I43: 0.00583
B44: Change from Prior Period | D44: =D43-D42 -> -0.01232 | E44: =E43-E42 -> -0.00913 | F44: -0.00619 | G44: -0.00731 | H44: -0.00711 | I44: -0.00661
B45: Change Limit | D45: 0.05 | E45: 0.05 | F45: 0.05 | G45: 0.05 | H45: 0.05 | I45: 0.05
B46: Change Limit Adjustment | D46: =IF(D45>D44,0,D45-D44) -> 0 | E46: 0 | F46: 0 | G46: 0 | H46: 0 | I46: 0
B47: Excess Limit Amount | D47: =D46*C28 -> 0 | E47: =E46*D28 -> 0 | F47: 0 | G47: 0 | H47: 0 | I47: 0

Sheet ARR Summary (S2)
B2: Liberty Midstates | E2: Year
B3: WNAR Filing
B4: SRR Summary
B5: Year | C5: =DateSet!C2 -> 2025
B6: Period | C6: S2
B7: Billed Rev. From | C7: 45566
B8: New Rate Effec. | C8: =DateSet!$D$4 -> 45931
B10: Reconciliation Summary | C10: CWNA
B11: Region | C11: NEMO | E11: WEMO | G11: SEMO | I11: Notes
B12: Customer Class | C12: Res | D12: SGS | E12: Res | F12: SGS | G12: Res | H12: SGS
B13: Reconciling Period Adj. | C13: =SUMPRODUCT((ReconPerAdj[EffDate]=$C$7)*(ReconPerAdj[Region]=$C$11)*(ReconPerAdj[CustClass]=C$12)*(ReconPerAdj[RateName]=$C$10)*ReconPerAdj[ReconcilingPeriodAdj]) -> 355585.62 | D13: =SUMPRODUCT((ReconPerAdj[EffDate]=$C$7)*(ReconPerAdj[Region]=$C$11)*(ReconPerAdj[CustClass]=D$12)*(ReconPerAdj[RateName]=$C$10)*ReconPerAdj[ReconcilingPeriodAdj]) -> 42833.95 | E13: =SUMPRODUCT((ReconPerAdj[EffDate]=$C$7)*(ReconPerAdj[Region]=$E$11)*(ReconPerAdj[CustClass]=E$12)*(ReconPerAdj[RateName]=$C$10)*ReconPerAdj[ReconcilingPeriodAdj]) -> 69713.28 | F13: =SUMPRODUCT((ReconPerAdj[EffDate]=$C$7)*(ReconPerAdj[Region]=$E$11)*(ReconPerAdj[CustClass]=F$12)*(ReconPerAdj[RateName]=$C$10)*ReconPerAdj[ReconcilingPeriodAdj]) -> 9610.96 | G13: =SUMPRODUCT((ReconPerAdj[EffDate]=$C$7)*(ReconPerAdj[Region]=$G$11)*(ReconPerAdj[CustClass]=G$12)*(ReconPerAdj[RateName]=$C$10)*ReconPerAdj[ReconcilingPeriodAdj]) -> 449138.43 | H13: =SUMPRODUCT((ReconPerAdj[EffDate]=$C$7)*(ReconPerAdj[Region]=$G$11)*(ReconPerAdj[CustClass]=H$12)*(ReconPerAdj[RateName]=$C$10)*ReconPerAdj[ReconcilingPeriodAdj]) -> 39923.16 | I13: From ReconPerAdj Table
B14: PPA Correction | C14: =SUMPRODUCT((PPA[Year]=$C$5)*(PPA[Period]=$C$6)*(PPA[Region]=$C$11)*(PPA[CustClass]=C$12)*(PPA[RateName]=$C$10)*PPA[Amount]) -> 0 | D14: =SUMPRODUCT((PPA[Year]=$C$5)*(PPA[Period]=$C$6)*(PPA[Region]=$C$11)*(PPA[CustClass]=D$12)*(PPA[RateName]=$C$10)*PPA[Amount]) -> 0 | E14: =SUMPRODUCT((PPA[Year]=$C$5)*(PPA[Period]=$C$6)*(PPA[Region]=$E$11)*(PPA[CustClass]=E$12)*(PPA[RateName]=$C$10)*PPA[Amount]) -> 0 | F14: =SUMPRODUCT((PPA[Year]=$C$5)*(PPA[Period]=$C$6)*(PPA[Region]=$E$11)*(PPA[CustClass]=F$12)*(PPA[RateName]=$C$10)*PPA[Amount]) -> 0 | G14: =SUMPRODUCT((PPA[Year]=$C$5)*(PPA[Period]=$C$6)*(PPA[Region]=$G$11)*(PPA[CustClass]=G$12)*(PPA[RateName]=$C$10)*PPA[Amount]) -> 0 | H14: =SUMPRODUCT((PPA[Year]=$C$5)*(PPA[Period]=$C$6)*(PPA[Region]=$G$11)*(PPA[CustClass]=H$12)*(PPA[RateName]=$C$10)*PPA[Amount]) -> 0 | I14: From PriorPerAdj Table
B15: Net Reconciling Period Adj. | C15: =C13+C14 -> 355585.62 | D15: 42833.95 | E15: 69713.28 | F15: 9610.96 | G15: 449138.43 | H15: 39923.16
B16: Actual Revenues
B17: =C7 -> 2024-10-01 | C17: =-IF($C$6="S1",SUMPRODUCT((WNARevAlloc[MonthFlow]=$B17)*(WNARevAlloc[Region]=$C$11)*(WNARevAlloc[CustClass]=C$12)*WNARevAlloc[AdjCSWNAS1Rev]),SUMPRODUCT((WNARevAlloc[MonthFlow]=$B17)*(WNARevAlloc[Region]=$C$11)*(WNARevAlloc[CustClass]=C$12)*WNARevAlloc[AdjCSWNAS2Rev])) -> -17359.69103 | D17: =-IF($C$6="S1",SUMPRODUCT((WNARevAlloc[MonthFlow]=$B17)*(WNARevAlloc[Region]=$C$11)*(WNARevAlloc[CustClass]=D$12)*WNARevAlloc[AdjCSWNAS1Rev]),SUMPRODUCT((WNARevAlloc[MonthFlow]=$B17)*(WNARevAlloc[Region]=$C$11)*(WNARevAlloc[CustClass]=D$12)*WNARevAlloc[AdjCSWNAS2Rev])) -> -2086.26383 | E17: =-IF($C$6="S1",SUMPRODUCT((WNARevAlloc[MonthFlow]=$B17)*(WNARevAlloc[Region]=$E$11)*(WNARevAlloc[CustClass]=E$12)*WNARevAlloc[AdjCSWNAS1Rev]),SUMPRODUCT((WNARevAlloc[MonthFlow]=$B17)*(WNARevAlloc[Region]=$E$11)*(WNARevAlloc[CustClass]=E$12)*WNARevAlloc[AdjCSWNAS2Rev])) -> -3076.186086 | F17: =-IF($C$6="S1",SUMPRODUCT((WNARevAlloc[MonthFlow]=$B17)*(WNARevAlloc[Region]=$E$11)*(WNARevAlloc[CustClass]=F$12)*WNARevAlloc[AdjCSWNAS1Rev]),SUMPRODUCT((WNARevAlloc[MonthFlow]=$B17)*(WNARevAlloc[Region]=$E$11)*(WNARevAlloc[CustClass]=F$12)*WNARevAlloc[AdjCSWNAS2Rev])) -> -426.8143648 | G17: =-IF($C$6="S1",SUMPRODUCT((WNARevAlloc[MonthFlow]=$B17)*(WNARevAlloc[Region]=$G$11)*(WNARevAlloc[CustClass]=G$12)*WNARevAlloc[AdjCSWNAS1Rev]),SUMPRODUCT((WNARevAlloc[MonthFlow]=$B17)*(WNARevAlloc[Region]=$G$11)*(WNARevAlloc[CustClass]=G$12)*WNARevAlloc[AdjCSWNAS2Rev])) -> -16681.52511 | H17: =-IF($C$6="S1",SUMPRODUCT((WNARevAlloc[MonthFlow]=$B17)*(WNARevAlloc[Region]=$G$11)*(WNARevAlloc[CustClass]=H$12)*WNARevAlloc[AdjCSWNAS1Rev]),SUMPRODUCT((WNARevAlloc[MonthFlow]=$B17)*(WNARevAlloc[Region]=$G$11)*(WNARevAlloc[CustClass]=H$12)*WNARevAlloc[AdjCSWNAS2Rev])) -> -1445.849391 | I17: From WNARevAlloc Table
B18: =EDATE(B17,1) -> 2024-11-01 | C18: =-IF($C$6="S1",SUMPRODUCT((WNARevAlloc[MonthFlow]=$B18)*(WNARevAlloc[Region]=$C$11)*(WNARevAlloc[CustClass]=C$12)*WNARevAlloc[AdjCSWNAS1Rev]),SUMPRODUCT((WNARevAlloc[MonthFlow]=$B18)*(WNARevAlloc[Region]=$C$11)*(WNARevAlloc[CustClass]=C$12)*WNARevAlloc[AdjCSWNAS2Rev])) -> -47637.81122 | D18: =-IF($C$6="S1",SUMPRODUCT((WNARevAlloc[MonthFlow]=$B18)*(WNARevAlloc[Region]=$C$11)*(WNARevAlloc[CustClass]=D$12)*WNARevAlloc[AdjCSWNAS1Rev]),SUMPRODUCT((WNARevAlloc[MonthFlow]=$B18)*(WNARevAlloc[Region]=$C$11)*(WNARevAlloc[CustClass]=D$12)*WNARevAlloc[AdjCSWNAS2Rev])) -> -6150.246304 | E18: =-IF($C$6="S1",SUMPRODUCT((WNARevAlloc[MonthFlow]=$B18)*(WNARevAlloc[Region]=$E$11)*(WNARevAlloc[CustClass]=E$12)*WNARevAlloc[AdjCSWNAS1Rev]),SUMPRODUCT((WNARevAlloc[MonthFlow]=$B18)*(WNARevAlloc[Region]=$E$11)*(WNARevAlloc[CustClass]=E$12)*WNARevAlloc[AdjCSWNAS2Rev])) -> -9892.609914 | F18: =-IF($C$6="S1",SUMPRODUCT((WNARevAlloc[MonthFlow]=$B18)*(WNARevAlloc[Region]=$E$11)*(WNARevAlloc[CustClass]=F$12)*WNARevAlloc[AdjCSWNAS1Rev]),SUMPRODUCT((WNARevAlloc[MonthFlow]=$B18)*(WNARevAlloc[Region]=$E$11)*(WNARevAlloc[CustClass]=F$12)*WNARevAlloc[AdjCSWNAS2Rev])) -> -1496.031394 | G18: =-IF($C$6="S1",SUMPRODUCT((WNARevAlloc[MonthFlow]=$B18)*(WNARevAlloc[Region]=$G$11)*(WNARevAlloc[CustClass]=G$12)*WNARevAlloc[AdjCSWNAS1Rev]),SUMPRODUCT((WNARevAlloc[MonthFlow]=$B18)*(WNARevAlloc[Region]=$G$11)*(WNARevAlloc[CustClass]=G$12)*WNARevAlloc[AdjCSWNAS2Rev])) -> -49663.13588 | H18: =-IF($C$6="S1",SUMPRODUCT((WNARevAlloc[MonthFlow]=$B18)*(WNARevAlloc[Region]=$G$11)*(WNARevAlloc[CustClass]=H$12)*WNARevAlloc[AdjCSWNAS1Rev]),SUMPRODUCT((WNARevAlloc[MonthFlow]=$B18)*(WNARevAlloc[Region]=$G$11)*(WNARevAlloc[CustClass]=H$12)*WNARevAlloc[AdjCSWNAS2Rev])) -> -4527.963075 | I18: From WNARevAlloc Table
B19: =EDATE(B18,1) -> 2024-12-01 | C19: =-IF($C$6="S1",SUMPRODUCT((WNARevAlloc[MonthFlow]=$B19)*(WNARevAlloc[Region]=$C$11)*(WNARevAlloc[CustClass]=C$12)*WNARevAlloc[AdjCSWNAS1Rev]),SUMPRODUCT((WNARevAlloc[MonthFlow]=$B19)*(WNARevAlloc[Region]=$C$11)*(WNARevAlloc[CustClass]=C$12)*WNARevAlloc[AdjCSWNAS2Rev])) -> -72255.40495 | D19: =-IF($C$6="S1",SUMPRODUCT((WNARevAlloc[MonthFlow]=$B19)*(WNARevAlloc[Region]=$C$11)*(WNARevAlloc[CustClass]=D$12)*WNARevAlloc[AdjCSWNAS1Rev]),SUMPRODUCT((WNARevAlloc[MonthFlow]=$B19)*(WNARevAlloc[Region]=$C$11)*(WNARevAlloc[CustClass]=D$12)*WNARevAlloc[AdjCSWNAS2Rev])) -> -9781.231214 | E19: =-IF($C$6="S1",SUMPRODUCT((WNARevAlloc[MonthFlow]=$B19)*(WNARevAlloc[Region]=$E$11)*(WNARevAlloc[CustClass]=E$12)*WNARevAlloc[AdjCSWNAS1Rev]),SUMPRODUCT((WNARevAlloc[MonthFlow]=$B19)*(WNARevAlloc[Region]=$E$11)*(WNARevAlloc[CustClass]=E$12)*WNARevAlloc[AdjCSWNAS2Rev])) -> -13811.94438 | F19: =-IF($C$6="S1",SUMPRODUCT((WNARevAlloc[MonthFlow]=$B19)*(WNARevAlloc[Region]=$E$11)*(WNARevAlloc[CustClass]=F$12)*WNARevAlloc[AdjCSWNAS1Rev]),SUMPRODUCT((WNARevAlloc[MonthFlow]=$B19)*(WNARevAlloc[Region]=$E$11)*(WNARevAlloc[CustClass]=F$12)*WNARevAlloc[AdjCSWNAS2Rev])) -> -2386.924969 | G19: =-IF($C$6="S1",SUMPRODUCT((WNARevAlloc[MonthFlow]=$B19)*(WNARevAlloc[Region]=$G$11)*(WNARevAlloc[CustClass]=G$12)*WNARevAlloc[AdjCSWNAS1Rev]),SUMPRODUCT((WNARevAlloc[MonthFlow]=$B19)*(WNARevAlloc[Region]=$G$11)*(WNARevAlloc[CustClass]=G$12)*WNARevAlloc[AdjCSWNAS2Rev])) -> -83882.30566 | H19: =-IF($C$6="S1",SUMPRODUCT((WNARevAlloc[MonthFlow]=$B19)*(WNARevAlloc[Region]=$G$11)*(WNARevAlloc[CustClass]=H$12)*WNARevAlloc[AdjCSWNAS1Rev]),SUMPRODUCT((WNARevAlloc[MonthFlow]=$B19)*(WNARevAlloc[Region]=$G$11)*(WNARevAlloc[CustClass]=H$12)*WNARevAlloc[AdjCSWNAS2Rev])) -> -8742.134819 | I19: From WNARevAlloc Table
B20: 2025-01-01 | C20: =-IF($C$6="S1",SUMPRODUCT((WNARevAlloc[MonthFlow]=$B20)*(WNARevAlloc[Region]=$C$11)*(WNARevAlloc[CustClass]=C$12)*WNARevAlloc[AdjCSWNAS1Rev]),SUMPRODUCT((WNARevAlloc[MonthFlow]=$B20)*(WNARevAlloc[Region]=$C$11)*(WNARevAlloc[CustClass]=C$12)*WNARevAlloc[AdjCSWNAS2Rev])) -> -82854.17371 | D20: =-IF($C$6="S1",SUMPRODUCT((WNARevAlloc[MonthFlow]=$B20)*(WNARevAlloc[Region]=$C$11)*(WNARevAlloc[CustClass]=D$12)*WNARevAlloc[AdjCSWNAS1Rev]),SUMPRODUCT((WNARevAlloc[MonthFlow]=$B20)*(WNARevAlloc[Region]=$C$11)*(WNARevAlloc[CustClass]=D$12)*WNARevAlloc[AdjCSWNAS2Rev])) -> -11495.77307 | E20: =-IF($C$6="S1",SUMPRODUCT((WNARevAlloc[MonthFlow]=$B20)*(WNARevAlloc[Region]=$E$11)*(WNARevAlloc[CustClass]=E$12)*WNARevAlloc[AdjCSWNAS1Rev]),SUMPRODUCT((WNARevAlloc[MonthFlow]=$B20)*(WNARevAlloc[Region]=$E$11)*(WNARevAlloc[CustClass]=E$12)*WNARevAlloc[AdjCSWNAS2Rev])) -> -17729.71756 | F20: =-IF($C$6="S1",SUMPRODUCT((WNARevAlloc[MonthFlow]=$B20)*(WNARevAlloc[Region]=$E$11)*(WNARevAlloc[CustClass]=F$12)*WNARevAlloc[AdjCSWNAS1Rev]),SUMPRODUCT((WNARevAlloc[MonthFlow]=$B20)*(WNARevAlloc[Region]=$E$11)*(WNARevAlloc[CustClass]=F$12)*WNARevAlloc[AdjCSWNAS2Rev])) -> -2920.821921 | G20: =-IF($C$6="S1",SUMPRODUCT((WNARevAlloc[MonthFlow]=$B20)*(WNARevAlloc[Region]=$G$11)*(WNARevAlloc[CustClass]=G$12)*WNARevAlloc[AdjCSWNAS1Rev]),SUMPRODUCT((WNARevAlloc[MonthFlow]=$B20)*(WNARevAlloc[Region]=$G$11)*(WNARevAlloc[CustClass]=G$12)*WNARevAlloc[AdjCSWNAS2Rev])) -> -102048.0232 | H20: =-IF($C$6="S1",SUMPRODUCT((WNARevAlloc[MonthFlow]=$B20)*(WNARevAlloc[Region]=$G$11)*(WNARevAlloc[CustClass]=H$12)*WNARevAlloc[AdjCSWNAS1Rev]),SUMPRODUCT((WNARevAlloc[MonthFlow]=$B20)*(WNARevAlloc[Region]=$G$11)*(WNARevAlloc[CustClass]=H$12)*WNARevAlloc[AdjCSWNAS2Rev])) -> -11120.82259 | I20: From WNARevAlloc Table
B21: 2025-02-01 | C21: =-IF($C$6="S1",SUMPRODUCT((WNARevAlloc[MonthFlow]=$B21)*(WNARevAlloc[Region]=$C$11)*(WNARevAlloc[CustClass]=C$12)*WNARevAlloc[AdjCSWNAS1Rev]),SUMPRODUCT((WNARevAlloc[MonthFlow]=$B21)*(WNARevAlloc[Region]=$C$11)*(WNARevAlloc[CustClass]=C$12)*WNARevAlloc[AdjCSWNAS2Rev])) -> -44727.51067 | D21: =-IF($C$6="S1",SUMPRODUCT((WNARevAlloc[MonthFlow]=$B21)*(WNARevAlloc[Region]=$C$11)*(WNARevAlloc[CustClass]=D$12)*WNARevAlloc[AdjCSWNAS1Rev]),SUMPRODUCT((WNARevAlloc[MonthFlow]=$B21)*(WNARevAlloc[Region]=$C$11)*(WNARevAlloc[CustClass]=D$12)*WNARevAlloc[AdjCSWNAS2Rev])) -> -6052.741432 | E21: =-IF($C$6="S1",SUMPRODUCT((WNARevAlloc[MonthFlow]=$B21)*(WNARevAlloc[Region]=$E$11)*(WNARevAlloc[CustClass]=E$12)*WNARevAlloc[AdjCSWNAS1Rev]),SUMPRODUCT((WNARevAlloc[MonthFlow]=$B21)*(WNARevAlloc[Region]=$E$11)*(WNARevAlloc[CustClass]=E$12)*WNARevAlloc[AdjCSWNAS2Rev])) -> -8012.626553 | F21: =-IF($C$6="S1",SUMPRODUCT((WNARevAlloc[MonthFlow]=$B21)*(WNARevAlloc[Region]=$E$11)*(WNARevAlloc[CustClass]=F$12)*WNARevAlloc[AdjCSWNAS1Rev]),SUMPRODUCT((WNARevAlloc[MonthFlow]=$B21)*(WNARevAlloc[Region]=$E$11)*(WNARevAlloc[CustClass]=F$12)*WNARevAlloc[AdjCSWNAS2Rev])) -> -1354.422749 | G21: =-IF($C$6="S1",SUMPRODUCT((WNARevAlloc[MonthFlow]=$B21)*(WNARevAlloc[Region]=$G$11)*(WNARevAlloc[CustClass]=G$12)*WNARevAlloc[AdjCSWNAS1Rev]),SUMPRODUCT((WNARevAlloc[MonthFlow]=$B21)*(WNARevAlloc[Region]=$G$11)*(WNARevAlloc[CustClass]=G$12)*WNARevAlloc[AdjCSWNAS2Rev])) -> -74533.96674 | H21: =-IF($C$6="S1",SUMPRODUCT((WNARevAlloc[MonthFlow]=$B21)*(WNARevAlloc[Region]=$G$11)*(WNARevAlloc[CustClass]=H$12)*WNARevAlloc[AdjCSWNAS1Rev]),SUMPRODUCT((WNARevAlloc[MonthFlow]=$B21)*(WNARevAlloc[Region]=$G$11)*(WNARevAlloc[CustClass]=H$12)*WNARevAlloc[AdjCSWNAS2Rev])) -> -8074.750277 | I21: From WNARevAlloc Table
B22: 2025-03-01 | C22: =-IF($C$6="S1",SUMPRODUCT((WNARevAlloc[MonthFlow]=$B22)*(WNARevAlloc[Region]=$C$11)*(WNARevAlloc[CustClass]=C$12)*WNARevAlloc[AdjCSWNAS1Rev]),SUMPRODUCT((WNARevAlloc[MonthFlow]=$B22)*(WNARevAlloc[Region]=$C$11)*(WNARevAlloc[CustClass]=C$12)*WNARevAlloc[AdjCSWNAS2Rev])) -> -27958.9703 | D22: =-IF($C$6="S1",SUMPRODUCT((WNARevAlloc[MonthFlow]=$B22)*(WNARevAlloc[Region]=$C$11)*(WNARevAlloc[CustClass]=D$12)*WNARevAlloc[AdjCSWNAS1Rev]),SUMPRODUCT((WNARevAlloc[MonthFlow]=$B22)*(WNARevAlloc[Region]=$C$11)*(WNARevAlloc[CustClass]=D$12)*WNARevAlloc[AdjCSWNAS2Rev])) -> -3646.494943 | E22: =-IF($C$6="S1",SUMPRODUCT((WNARevAlloc[MonthFlow]=$B22)*(WNARevAlloc[Region]=$E$11)*(WNARevAlloc[CustClass]=E$12)*WNARevAlloc[AdjCSWNAS1Rev]),SUMPRODUCT((WNARevAlloc[MonthFlow]=$B22)*(WNARevAlloc[Region]=$E$11)*(WNARevAlloc[CustClass]=E$12)*WNARevAlloc[AdjCSWNAS2Rev])) -> -4554.619569 | F22: =-IF($C$6="S1",SUMPRODUCT((WNARevAlloc[MonthFlow]=$B22)*(WNARevAlloc[Region]=$E$11)*(WNARevAlloc[CustClass]=F$12)*WNARevAlloc[AdjCSWNAS1Rev]),SUMPRODUCT((WNARevAlloc[MonthFlow]=$B22)*(WNARevAlloc[Region]=$E$11)*(WNARevAlloc[CustClass]=F$12)*WNARevAlloc[AdjCSWNAS2Rev])) -> -767.4260441 | G22: =-IF($C$6="S1",SUMPRODUCT((WNARevAlloc[MonthFlow]=$B22)*(WNARevAlloc[Region]=$G$11)*(WNARevAlloc[CustClass]=G$12)*WNARevAlloc[AdjCSWNAS1Rev]),SUMPRODUCT((WNARevAlloc[MonthFlow]=$B22)*(WNARevAlloc[Region]=$G$11)*(WNARevAlloc[CustClass]=G$12)*WNARevAlloc[AdjCSWNAS2Rev])) -> -29293.71658 | H22: =-IF($C$6="S1",SUMPRODUCT((WNARevAlloc[MonthFlow]=$B22)*(WNARevAlloc[Region]=$G$11)*(WNARevAlloc[CustClass]=H$12)*WNARevAlloc[AdjCSWNAS1Rev]),SUMPRODUCT((WNARevAlloc[MonthFlow]=$B22)*(WNARevAlloc[Region]=$G$11)*(WNARevAlloc[CustClass]=H$12)*WNARevAlloc[AdjCSWNAS2Rev])) -> -2977.173621 | I22: From WNARevAlloc Table
B23: 2025-04-01 | C23: =-IF($C$6="S1",SUMPRODUCT((WNARevAlloc[MonthFlow]=$B23)*(WNARevAlloc[Region]=$C$11)*(WNARevAlloc[CustClass]=C$12)*WNARevAlloc[AdjCSWNAS1Rev]),SUMPRODUCT((WNARevAlloc[MonthFlow]=$B23)*(WNARevAlloc[Region]=$C$11)*(WNARevAlloc[CustClass]=C$12)*WNARevAlloc[AdjCSWNAS2Rev])) -> -10355.91688 | D23: =-IF($C$6="S1",SUMPRODUCT((WNARevAlloc[MonthFlow]=$B23)*(WNARevAlloc[Region]=$C$11)*(WNARevAlloc[CustClass]=D$12)*WNARevAlloc[AdjCSWNAS1Rev]),SUMPRODUCT((WNARevAlloc[MonthFlow]=$B23)*(WNARevAlloc[Region]=$C$11)*(WNARevAlloc[CustClass]=D$12)*WNARevAlloc[AdjCSWNAS2Rev])) -> -1431.968708 | E23: =-IF($C$6="S1",SUMPRODUCT((WNARevAlloc[MonthFlow]=$B23)*(WNARevAlloc[Region]=$E$11)*(WNARevAlloc[CustClass]=E$12)*WNARevAlloc[AdjCSWNAS1Rev]),SUMPRODUCT((WNARevAlloc[MonthFlow]=$B23)*(WNARevAlloc[Region]=$E$11)*(WNARevAlloc[CustClass]=E$12)*WNARevAlloc[AdjCSWNAS2Rev])) -> -1779.635711 | F23: =-IF($C$6="S1",SUMPRODUCT((WNARevAlloc[MonthFlow]=$B23)*(WNARevAlloc[Region]=$E$11)*(WNARevAlloc[CustClass]=F$12)*WNARevAlloc[AdjCSWNAS1Rev]),SUMPRODUCT((WNARevAlloc[MonthFlow]=$B23)*(WNARevAlloc[Region]=$E$11)*(WNARevAlloc[CustClass]=F$12)*WNARevAlloc[AdjCSWNAS2Rev])) -> -261.376141 | G23: =-IF($C$6="S1",SUMPRODUCT((WNARevAlloc[MonthFlow]=$B23)*(WNARevAlloc[Region]=$G$11)*(WNARevAlloc[CustClass]=G$12)*WNARevAlloc[AdjCSWNAS1Rev]),SUMPRODUCT((WNARevAlloc[MonthFlow]=$B23)*(WNARevAlloc[Region]=$G$11)*(WNARevAlloc[CustClass]=G$12)*WNARevAlloc[AdjCSWNAS2Rev])) -> -16958.61428 | H23: =-IF($C$6="S1",SUMPRODUCT((WNARevAlloc[MonthFlow]=$B23)*(WNARevAlloc[Region]=$G$11)*(WNARevAlloc[CustClass]=H$12)*WNARevAlloc[AdjCSWNAS1Rev]),SUMPRODUCT((WNARevAlloc[MonthFlow]=$B23)*(WNARevAlloc[Region]=$G$11)*(WNARevAlloc[CustClass]=H$12)*WNARevAlloc[AdjCSWNAS2Rev])) -> -1375.049625 | I23: From WNARevAlloc Table
B24: 2025-05-01 | C24: =-IF($C$6="S1",SUMPRODUCT((WNARevAlloc[MonthFlow]=$B24)*(WNARevAlloc[Region]=$C$11)*(WNARevAlloc[CustClass]=C$12)*WNARevAlloc[AdjCSWNAS1Rev]),SUMPRODUCT((WNARevAlloc[MonthFlow]=$B24)*(WNARevAlloc[Region]=$C$11)*(WNARevAlloc[CustClass]=C$12)*WNARevAlloc[AdjCSWNAS2Rev])) -> -5576.801236 | D24: =-IF($C$6="S1",SUMPRODUCT((WNARevAlloc[MonthFlow]=$B24)*(WNARevAlloc[Region]=$C$11)*(WNARevAlloc[CustClass]=D$12)*WNARevAlloc[AdjCSWNAS1Rev]),SUMPRODUCT((WNARevAlloc[MonthFlow]=$B24)*(WNARevAlloc[Region]=$C$11)*(WNARevAlloc[CustClass]=D$12)*WNARevAlloc[AdjCSWNAS2Rev])) -> -911.6573744 | E24: =-IF($C$6="S1",SUMPRODUCT((WNARevAlloc[MonthFlow]=$B24)*(WNARevAlloc[Region]=$E$11)*(WNARevAlloc[CustClass]=E$12)*WNARevAlloc[AdjCSWNAS1Rev]),SUMPRODUCT((WNARevAlloc[MonthFlow]=$B24)*(WNARevAlloc[Region]=$E$11)*(WNARevAlloc[CustClass]=E$12)*WNARevAlloc[AdjCSWNAS2Rev])) -> -1164.989085 | F24: =-IF($C$6="S1",SUMPRODUCT((WNARevAlloc[MonthFlow]=$B24)*(WNARevAlloc[Region]=$E$11)*(WNARevAlloc[CustClass]=F$12)*WNARevAlloc[AdjCSWNAS1Rev]),SUMPRODUCT((WNARevAlloc[MonthFlow]=$B24)*(WNARevAlloc[Region]=$E$11)*(WNARevAlloc[CustClass]=F$12)*WNARevAlloc[AdjCSWNAS2Rev])) -> -195.3330044 | G24: =-IF($C$6="S1",SUMPRODUCT((WNARevAlloc[MonthFlow]=$B24)*(WNARevAlloc[Region]=$G$11)*(WNARevAlloc[CustClass]=G$12)*WNARevAlloc[AdjCSWNAS1Rev]),SUMPRODUCT((WNARevAlloc[MonthFlow]=$B24)*(WNARevAlloc[Region]=$G$11)*(WNARevAlloc[CustClass]=G$12)*WNARevAlloc[AdjCSWNAS2Rev])) -> -8915.151718 | H24: =-IF($C$6="S1",SUMPRODUCT((WNARevAlloc[MonthFlow]=$B24)*(WNARevAlloc[Region]=$G$11)*(WNARevAlloc[CustClass]=H$12)*WNARevAlloc[AdjCSWNAS1Rev]),SUMPRODUCT((WNARevAlloc[MonthFlow]=$B24)*(WNARevAlloc[Region]=$G$11)*(WNARevAlloc[CustClass]=H$12)*WNARevAlloc[AdjCSWNAS2Rev])) -> -957.4583441 | I24: From WNARevAlloc Table
B25: 2025-06-01 | C25: =-IF($C$6="S1",SUMPRODUCT((WNARevAlloc[MonthFlow]=$B25)*(WNARevAlloc[Region]=$C$11)*(WNARevAlloc[CustClass]=C$12)*WNARevAlloc[AdjCSWNAS1Rev]),SUMPRODUCT((WNARevAlloc[MonthFlow]=$B25)*(WNARevAlloc[Region]=$C$11)*(WNARevAlloc[CustClass]=C$12)*WNARevAlloc[AdjCSWNAS2Rev])) -> -4119.414571 | D25: =-IF($C$6="S1",SUMPRODUCT((WNARevAlloc[MonthFlow]=$B25)*(WNARevAlloc[Region]=$C$11)*(WNARevAlloc[CustClass]=D$12)*WNARevAlloc[AdjCSWNAS1Rev]),SUMPRODUCT((WNARevAlloc[MonthFlow]=$B25)*(WNARevAlloc[Region]=$C$11)*(WNARevAlloc[CustClass]=D$12)*WNARevAlloc[AdjCSWNAS2Rev])) -> -710.6145551 | E25: =-IF($C$6="S1",SUMPRODUCT((WNARevAlloc[MonthFlow]=$B25)*(WNARevAlloc[Region]=$E$11)*(WNARevAlloc[CustClass]=E$12)*WNARevAlloc[AdjCSWNAS1Rev]),SUMPRODUCT((WNARevAlloc[MonthFlow]=$B25)*(WNARevAlloc[Region]=$E$11)*(WNARevAlloc[CustClass]=E$12)*WNARevAlloc[AdjCSWNAS2Rev])) -> -822.3524303 | F25: =-IF($C$6="S1",SUMPRODUCT((WNARevAlloc[MonthFlow]=$B25)*(WNARevAlloc[Region]=$E$11)*(WNARevAlloc[CustClass]=F$12)*WNARevAlloc[AdjCSWNAS1Rev]),SUMPRODUCT((WNARevAlloc[MonthFlow]=$B25)*(WNARevAlloc[Region]=$E$11)*(WNARevAlloc[CustClass]=F$12)*WNARevAlloc[AdjCSWNAS2Rev])) -> -171.6105657 | G25: =-IF($C$6="S1",SUMPRODUCT((WNARevAlloc[MonthFlow]=$B25)*(WNARevAlloc[Region]=$G$11)*(WNARevAlloc[CustClass]=G$12)*WNARevAlloc[AdjCSWNAS1Rev]),SUMPRODUCT((WNARevAlloc[MonthFlow]=$B25)*(WNARevAlloc[Region]=$G$11)*(WNARevAlloc[CustClass]=G$12)*WNARevAlloc[AdjCSWNAS2Rev])) -> -7148.472862 | H25: =-IF($C$6="S1",SUMPRODUCT((WNARevAlloc[MonthFlow]=$B25)*(WNARevAlloc[Region]=$G$11)*(WNARevAlloc[CustClass]=H$12)*WNARevAlloc[AdjCSWNAS1Rev]),SUMPRODUCT((WNARevAlloc[MonthFlow]=$B25)*(WNARevAlloc[Region]=$G$11)*(WNARevAlloc[CustClass]=H$12)*WNARevAlloc[AdjCSWNAS2Rev])) -> -769.5856967 | I25: From WNARevAlloc Table
B26: Total Actual Revenues | C26: =SUM(C17:C25) -> -312845.6946 | D26: =SUM(D17:D25) -> -42266.99143 | E26: -60844.68128 | F26: -9980.761153 | G26: -389124.9121 | H26: -39990.78744
B27: Projected Revenues
B28: =EDATE(B25,1) -> 2025-07-01 | C28: =-SUMPRODUCT((CustEstRev[MonthFlow]=$B28)*(CustEstRev[Region]=$C$11)*(CustEstRev[CustClass]=C$12)*(CustEstRev[Period]=$C$6)*CustEstRev[CSWNARev]) -> -3975 | D28: =-SUMPRODUCT((CustEstRev[MonthFlow]=$B28)*(CustEstRev[Region]=$C$11)*(CustEstRev[CustClass]=D$12)*(CustEstRev[Period]=$C$6)*CustEstRev[CSWNARev]) -> -725 | E28: =-SUMPRODUCT((CustEstRev[MonthFlow]=$B28)*(CustEstRev[Region]=$E$11)*(CustEstRev[CustClass]=E$12)*(CustEstRev[Period]=$C$6)*CustEstRev[CSWNARev]) -> -740 | F28: =-SUMPRODUCT((CustEstRev[MonthFlow]=$B28)*(CustEstRev[Region]=$E$11)*(CustEstRev[CustClass]=F$12)*(CustEstRev[Period]=$C$6)*CustEstRev[CSWNARev]) -> -147 | G28: =-SUMPRODUCT((CustEstRev[MonthFlow]=$B28)*(CustEstRev[Region]=$G$11)*(CustEstRev[CustClass]=G$12)*(CustEstRev[Period]=$C$6)*CustEstRev[CSWNARev]) -> -7110 | H28: =-SUMPRODUCT((CustEstRev[MonthFlow]=$B28)*(CustEstRev[Region]=$G$11)*(CustEstRev[CustClass]=H$12)*(CustEstRev[Period]=$C$6)*CustEstRev[CSWNARev]) -> -761 | I28: From CustEstRev Table
B29: 2025-08-01 | C29: =-SUMPRODUCT((CustEstRev[MonthFlow]=$B29)*(CustEstRev[Region]=$C$11)*(CustEstRev[CustClass]=C$12)*(CustEstRev[Period]=$C$6)*CustEstRev[CSWNARev]) -> -4622 | D29: =-SUMPRODUCT((CustEstRev[MonthFlow]=$B29)*(CustEstRev[Region]=$C$11)*(CustEstRev[CustClass]=D$12)*(CustEstRev[Period]=$C$6)*CustEstRev[CSWNARev]) -> -863 | E29: =-SUMPRODUCT((CustEstRev[MonthFlow]=$B29)*(CustEstRev[Region]=$E$11)*(CustEstRev[CustClass]=E$12)*(CustEstRev[Period]=$C$6)*CustEstRev[CSWNARev]) -> -868 | F29: =-SUMPRODUCT((CustEstRev[MonthFlow]=$B29)*(CustEstRev[Region]=$E$11)*(CustEstRev[CustClass]=F$12)*(CustEstRev[Period]=$C$6)*CustEstRev[CSWNARev]) -> -233 | G29: =-SUMPRODUCT((CustEstRev[MonthFlow]=$B29)*(CustEstRev[Region]=$G$11)*(CustEstRev[CustClass]=G$12)*(CustEstRev[Period]=$C$6)*CustEstRev[CSWNARev]) -> -7931 | H29: =-SUMPRODUCT((CustEstRev[MonthFlow]=$B29)*(CustEstRev[Region]=$G$11)*(CustEstRev[CustClass]=H$12)*(CustEstRev[Period]=$C$6)*CustEstRev[CSWNARev]) -> -1033 | I29: From CustEstRev Table
B30: 2025-09-01 | C30: =-SUMPRODUCT((CustEstRev[MonthFlow]=$B30)*(CustEstRev[Region]=$C$11)*(CustEstRev[CustClass]=C$12)*(CustEstRev[Period]=$C$6)*CustEstRev[CSWNARev]) -> -5129 | D30: =-SUMPRODUCT((CustEstRev[MonthFlow]=$B30)*(CustEstRev[Region]=$C$11)*(CustEstRev[CustClass]=D$12)*(CustEstRev[Period]=$C$6)*CustEstRev[CSWNARev]) -> -816 | E30: =-SUMPRODUCT((CustEstRev[MonthFlow]=$B30)*(CustEstRev[Region]=$E$11)*(CustEstRev[CustClass]=E$12)*(CustEstRev[Period]=$C$6)*CustEstRev[CSWNARev]) -> -1197 | F30: =-SUMPRODUCT((CustEstRev[MonthFlow]=$B30)*(CustEstRev[Region]=$E$11)*(CustEstRev[CustClass]=F$12)*(CustEstRev[Period]=$C$6)*CustEstRev[CSWNARev]) -> -209 | G30: =-SUMPRODUCT((CustEstRev[MonthFlow]=$B30)*(CustEstRev[Region]=$G$11)*(CustEstRev[CustClass]=G$12)*(CustEstRev[Period]=$C$6)*CustEstRev[CSWNARev]) -> -7962 | H30: =-SUMPRODUCT((CustEstRev[MonthFlow]=$B30)*(CustEstRev[Region]=$G$11)*(CustEstRev[CustClass]=H$12)*(CustEstRev[Period]=$C$6)*CustEstRev[CSWNARev]) -> -851 | I30: From CustEstRev Table
B31: Total Projected Revenues | C31: =SUM(C28:C30) -> -13726 | D31: =SUM(D28:D30) -> -2404 | E31: -2805 | F31: -589 | G31: -23003 | H31: -2645
B32: Total Billings | C32: =C26+C31 -> -326571.6946 | D32: -44670.99143 | E32: -63649.68128 | F32: -10569.76115 | G32: -412127.9121 | H32: -42635.78744
B33: CWNA Net (Over)/Under Recov 1/ | C33: =ROUND(C15+C32,2) -> 29013.93 | D33: -1837.04 | E33: 6063.6 | F33: -958.8 | G33: 37010.52 | H33: -2712.63
B35: Reconciliation Summary | C35: ARR
B36: Region | C36: NEMO | E36: WEMO | G36: SEMO | I36: Notes
B37: Customer Class | C37: Res | D37: SGS | E37: Res | F37: SGS | G37: Res | H37: SGS
B38: Reconciling Period Adj. | C38: =SUMPRODUCT((ReconPerAdj[EffDate]=$C$7)*(ReconPerAdj[Region]=$C$36)*(ReconPerAdj[CustClass]=C$37)*(ReconPerAdj[RateName]=$C$35)*ReconPerAdj[ReconcilingPeriodAdj]) -> 26888.6 | D38: =SUMPRODUCT((ReconPerAdj[EffDate]=$C$7)*(ReconPerAdj[Region]=$C$36)*(ReconPerAdj[CustClass]=D$37)*(ReconPerAdj[RateName]=$C$35)*ReconPerAdj[ReconcilingPeriodAdj]) -> 2585.48 | E38: =SUMPRODUCT((ReconPerAdj[EffDate]=$C$7)*(ReconPerAdj[Region]=$E$36)*(ReconPerAdj[CustClass]=E$37)*(ReconPerAdj[RateName]=$C$35)*ReconPerAdj[ReconcilingPeriodAdj]) -> 5728.79 | F38: =SUMPRODUCT((ReconPerAdj[EffDate]=$C$7)*(ReconPerAdj[Region]=$E$36)*(ReconPerAdj[CustClass]=F$37)*(ReconPerAdj[RateName]=$C$35)*ReconPerAdj[ReconcilingPeriodAdj]) -> 355.68 | G38: =SUMPRODUCT((ReconPerAdj[EffDate]=$C$7)*(ReconPerAdj[Region]=$G$36)*(ReconPerAdj[CustClass]=G$37)*(ReconPerAdj[RateName]=$C$35)*ReconPerAdj[ReconcilingPeriodAdj]) -> 57213.46 | H38: =SUMPRODUCT((ReconPerAdj[EffDate]=$C$7)*(ReconPerAdj[Region]=$G$36)*(ReconPerAdj[CustClass]=H$37)*(ReconPerAdj[RateName]=$C$35)*ReconPerAdj[ReconcilingPeriodAdj]) -> 1325.11 | I38: From ReconPerAdj Table
B39: Volumetric True-Up | C39: =SUMPRODUCT((VolTrueUp[Year]=$C$5)*(VolTrueUp[Period]=$C$6)*(VolTrueUp[Region]=$C36)*(VolTrueUp[CustClass]=C$37)*VolTrueUp[TrueUp]) -> -706.04 | D39: =SUMPRODUCT((VolTrueUp[Year]=$C$5)*(VolTrueUp[Period]=$C$6)*(VolTrueUp[Region]=$C36)*(VolTrueUp[CustClass]=D$37)*VolTrueUp[TrueUp]) -> -185.08 | E39: =SUMPRODUCT((VolTrueUp[Year]=$C$5)*(VolTrueUp[Period]=$C$6)*(VolTrueUp[Region]=$E36)*(VolTrueUp[CustClass]=E$37)*VolTrueUp[TrueUp]) -> -47.88 | F39: =SUMPRODUCT((VolTrueUp[Year]=$C$5)*(VolTrueUp[Period]=$C$6)*(VolTrueUp[Region]=$E36)*(VolTrueUp[CustClass]=F$37)*VolTrueUp[TrueUp]) -> 40.97 | G39: =SUMPRODUCT((VolTrueUp[Year]=$C$5)*(VolTrueUp[Period]=$C$6)*(VolTrueUp[Region]=$G36)*(VolTrueUp[CustClass]=G$37)*VolTrueUp[TrueUp]) -> -1518.03 | H39: =SUMPRODUCT((VolTrueUp[Year]=$C$5)*(VolTrueUp[Period]=$C$6)*(VolTrueUp[Region]=$G36)*(VolTrueUp[CustClass]=H$37)*VolTrueUp[TrueUp]) -> -122.32 | I39: From PriorPerAdj Table
B40: Adj. Amount to be Recovered | C40: =C38+C39 -> 26182.56 | D40: =D38+D39 -> 2400.4 | E40: 5680.91 | F40: 396.65 | G40: 55695.43 | H40: 1202.79
B41: Actual Revenues
B42: =C7 -> 2024-10-01 | C42: =-ROUND(IF($C$6="S1",SUMPRODUCT((WNARevAlloc[MonthFlow]=$B42)*(WNARevAlloc[Region]=$C$36)*(WNARevAlloc[CustClass]=C$37)*WNARevAlloc[AdjSRRS1Rev]),SUMPRODUCT((WNARevAlloc[MonthFlow]=$B42)*(WNARevAlloc[Region]=$C$36)*(WNARevAlloc[CustClass]=C$37)*WNARevAlloc[AdjSRRS2Rev])),2) -> -1319.28 | D42: =-ROUND(IF($C$6="S1",SUMPRODUCT((WNARevAlloc[MonthFlow]=$B42)*(WNARevAlloc[Region]=$C$36)*(WNARevAlloc[CustClass]=D$37)*WNARevAlloc[AdjSRRS1Rev]),SUMPRODUCT((WNARevAlloc[MonthFlow]=$B42)*(WNARevAlloc[Region]=$C$36)*(WNARevAlloc[CustClass]=D$37)*WNARevAlloc[AdjSRRS2Rev])),2) -> -118.3 | E42: =-ROUND(IF($C$6="S1",SUMPRODUCT((WNARevAlloc[MonthFlow]=$B42)*(WNARevAlloc[Region]=$E$36)*(WNARevAlloc[CustClass]=E$37)*WNARevAlloc[AdjSRRS1Rev]),SUMPRODUCT((WNARevAlloc[MonthFlow]=$B42)*(WNARevAlloc[Region]=$E$36)*(WNARevAlloc[CustClass]=E$37)*WNARevAlloc[AdjSRRS2Rev])),2) -> -234.51 | F42: =-ROUND(IF($C$6="S1",SUMPRODUCT((WNARevAlloc[MonthFlow]=$B42)*(WNARevAlloc[Region]=$E$36)*(WNARevAlloc[CustClass]=F$37)*WNARevAlloc[AdjSRRS1Rev]),SUMPRODUCT((WNARevAlloc[MonthFlow]=$B42)*(WNARevAlloc[Region]=$E$36)*(WNARevAlloc[CustClass]=F$37)*WNARevAlloc[AdjSRRS2Rev])),2) -> -24.85 | G42: =-ROUND(IF($C$6="S1",SUMPRODUCT((WNARevAlloc[MonthFlow]=$B42)*(WNARevAlloc[Region]=$G$36)*(WNARevAlloc[CustClass]=G$37)*WNARevAlloc[AdjSRRS1Rev]),SUMPRODUCT((WNARevAlloc[MonthFlow]=$B42)*(WNARevAlloc[Region]=$G$36)*(WNARevAlloc[CustClass]=G$37)*WNARevAlloc[AdjSRRS2Rev])),2) -> -2075.58 | H42: =-ROUND(IF($C$6="S1",SUMPRODUCT((WNARevAlloc[MonthFlow]=$B42)*(WNARevAlloc[Region]=$G$36)*(WNARevAlloc[CustClass]=H$37)*WNARevAlloc[AdjSRRS1Rev]),SUMPRODUCT((WNARevAlloc[MonthFlow]=$B42)*(WNARevAlloc[Region]=$G$36)*(WNARevAlloc[CustClass]=H$37)*WNARevAlloc[AdjSRRS2Rev])),2) -> -47.35 | I42: From WNARevAlloc Table
B43: =EDATE(B42,1) -> 2024-11-01 | C43: =-ROUND(IF($C$6="S1",SUMPRODUCT((WNARevAlloc[MonthFlow]=$B43)*(WNARevAlloc[Region]=$C$36)*(WNARevAlloc[CustClass]=C$37)*WNARevAlloc[AdjSRRS1Rev]),SUMPRODUCT((WNARevAlloc[MonthFlow]=$B43)*(WNARevAlloc[Region]=$C$36)*(WNARevAlloc[CustClass]=C$37)*WNARevAlloc[AdjSRRS2Rev])),2) -> -3656.89 | D43: =-ROUND(IF($C$6="S1",SUMPRODUCT((WNARevAlloc[MonthFlow]=$B43)*(WNARevAlloc[Region]=$C$36)*(WNARevAlloc[CustClass]=D$37)*WNARevAlloc[AdjSRRS1Rev]),SUMPRODUCT((WNARevAlloc[MonthFlow]=$B43)*(WNARevAlloc[Region]=$C$36)*(WNARevAlloc[CustClass]=D$37)*WNARevAlloc[AdjSRRS2Rev])),2) -> -342.87 | E43: =-ROUND(IF($C$6="S1",SUMPRODUCT((WNARevAlloc[MonthFlow]=$B43)*(WNARevAlloc[Region]=$E$36)*(WNARevAlloc[CustClass]=E$37)*WNARevAlloc[AdjSRRS1Rev]),SUMPRODUCT((WNARevAlloc[MonthFlow]=$B43)*(WNARevAlloc[Region]=$E$36)*(WNARevAlloc[CustClass]=E$37)*WNARevAlloc[AdjSRRS2Rev])),2) -> -759.99 | F43: =-ROUND(IF($C$6="S1",SUMPRODUCT((WNARevAlloc[MonthFlow]=$B43)*(WNARevAlloc[Region]=$E$36)*(WNARevAlloc[CustClass]=F$37)*WNARevAlloc[AdjSRRS1Rev]),SUMPRODUCT((WNARevAlloc[MonthFlow]=$B43)*(WNARevAlloc[Region]=$E$36)*(WNARevAlloc[CustClass]=F$37)*WNARevAlloc[AdjSRRS2Rev])),2) -> -83.42 | G43: =-ROUND(IF($C$6="S1",SUMPRODUCT((WNARevAlloc[MonthFlow]=$B43)*(WNARevAlloc[Region]=$G$36)*(WNARevAlloc[CustClass]=G$37)*WNARevAlloc[AdjSRRS1Rev]),SUMPRODUCT((WNARevAlloc[MonthFlow]=$B43)*(WNARevAlloc[Region]=$G$36)*(WNARevAlloc[CustClass]=G$37)*WNARevAlloc[AdjSRRS2Rev])),2) -> -6326.46 | H43: =-ROUND(IF($C$6="S1",SUMPRODUCT((WNARevAlloc[MonthFlow]=$B43)*(WNARevAlloc[Region]=$G$36)*(WNARevAlloc[CustClass]=H$37)*WNARevAlloc[AdjSRRS1Rev]),SUMPRODUCT((WNARevAlloc[MonthFlow]=$B43)*(WNARevAlloc[Region]=$G$36)*(WNARevAlloc[CustClass]=H$37)*WNARevAlloc[AdjSRRS2Rev])),2) -> -150.84 | I43: From WNARevAlloc Table
B44: =EDATE(B43,1) -> 2024-12-01 | C44: =-ROUND(IF($C$6="S1",SUMPRODUCT((WNARevAlloc[MonthFlow]=$B44)*(WNARevAlloc[Region]=$C$36)*(WNARevAlloc[CustClass]=C$37)*WNARevAlloc[AdjSRRS1Rev]),SUMPRODUCT((WNARevAlloc[MonthFlow]=$B44)*(WNARevAlloc[Region]=$C$36)*(WNARevAlloc[CustClass]=C$37)*WNARevAlloc[AdjSRRS2Rev])),2) -> -5561.42 | D44: =-ROUND(IF($C$6="S1",SUMPRODUCT((WNARevAlloc[MonthFlow]=$B44)*(WNARevAlloc[Region]=$C$36)*(WNARevAlloc[CustClass]=D$37)*WNARevAlloc[AdjSRRS1Rev]),SUMPRODUCT((WNARevAlloc[MonthFlow]=$B44)*(WNARevAlloc[Region]=$C$36)*(WNARevAlloc[CustClass]=D$37)*WNARevAlloc[AdjSRRS2Rev])),2) -> -545.27 | E44: =-ROUND(IF($C$6="S1",SUMPRODUCT((WNARevAlloc[MonthFlow]=$B44)*(WNARevAlloc[Region]=$E$36)*(WNARevAlloc[CustClass]=E$37)*WNARevAlloc[AdjSRRS1Rev]),SUMPRODUCT((WNARevAlloc[MonthFlow]=$B44)*(WNARevAlloc[Region]=$E$36)*(WNARevAlloc[CustClass]=E$37)*WNARevAlloc[AdjSRRS2Rev])),2) -> -1061.14 | F44: =-ROUND(IF($C$6="S1",SUMPRODUCT((WNARevAlloc[MonthFlow]=$B44)*(WNARevAlloc[Region]=$E$36)*(WNARevAlloc[CustClass]=F$37)*WNARevAlloc[AdjSRRS1Rev]),SUMPRODUCT((WNARevAlloc[MonthFlow]=$B44)*(WNARevAlloc[Region]=$E$36)*(WNARevAlloc[CustClass]=F$37)*WNARevAlloc[AdjSRRS2Rev])),2) -> -133.01 | G44: =-ROUND(IF($C$6="S1",SUMPRODUCT((WNARevAlloc[MonthFlow]=$B44)*(WNARevAlloc[Region]=$G$36)*(WNARevAlloc[CustClass]=G$37)*WNARevAlloc[AdjSRRS1Rev]),SUMPRODUCT((WNARevAlloc[MonthFlow]=$B44)*(WNARevAlloc[Region]=$G$36)*(WNARevAlloc[CustClass]=G$37)*WNARevAlloc[AdjSRRS2Rev])),2) -> -10679.36 | H44: =-ROUND(IF($C$6="S1",SUMPRODUCT((WNARevAlloc[MonthFlow]=$B44)*(WNARevAlloc[Region]=$G$36)*(WNARevAlloc[CustClass]=H$37)*WNARevAlloc[AdjSRRS1Rev]),SUMPRODUCT((WNARevAlloc[MonthFlow]=$B44)*(WNARevAlloc[Region]=$G$36)*(WNARevAlloc[CustClass]=H$37)*WNARevAlloc[AdjSRRS2Rev])),2) -> -291.14 | I44: From WNARevAlloc Table
B45: 2025-01-01 | C45: =-ROUND(IF($C$6="S1",SUMPRODUCT((WNARevAlloc[MonthFlow]=$B45)*(WNARevAlloc[Region]=$C$36)*(WNARevAlloc[CustClass]=C$37)*WNARevAlloc[AdjSRRS1Rev]),SUMPRODUCT((WNARevAlloc[MonthFlow]=$B45)*(WNARevAlloc[Region]=$C$36)*(WNARevAlloc[CustClass]=C$37)*WNARevAlloc[AdjSRRS2Rev])),2) -> -6364.93 | D45: =-ROUND(IF($C$6="S1",SUMPRODUCT((WNARevAlloc[MonthFlow]=$B45)*(WNARevAlloc[Region]=$C$36)*(WNARevAlloc[CustClass]=D$37)*WNARevAlloc[AdjSRRS1Rev]),SUMPRODUCT((WNARevAlloc[MonthFlow]=$B45)*(WNARevAlloc[Region]=$C$36)*(WNARevAlloc[CustClass]=D$37)*WNARevAlloc[AdjSRRS2Rev])),2) -> -640.98 | E45: =-ROUND(IF($C$6="S1",SUMPRODUCT((WNARevAlloc[MonthFlow]=$B45)*(WNARevAlloc[Region]=$E$36)*(WNARevAlloc[CustClass]=E$37)*WNARevAlloc[AdjSRRS1Rev]),SUMPRODUCT((WNARevAlloc[MonthFlow]=$B45)*(WNARevAlloc[Region]=$E$36)*(WNARevAlloc[CustClass]=E$37)*WNARevAlloc[AdjSRRS2Rev])),2) -> -1361.48 | F45: =-ROUND(IF($C$6="S1",SUMPRODUCT((WNARevAlloc[MonthFlow]=$B45)*(WNARevAlloc[Region]=$E$36)*(WNARevAlloc[CustClass]=F$37)*WNARevAlloc[AdjSRRS1Rev]),SUMPRODUCT((WNARevAlloc[MonthFlow]=$B45)*(WNARevAlloc[Region]=$E$36)*(WNARevAlloc[CustClass]=F$37)*WNARevAlloc[AdjSRRS2Rev])),2) -> -162.76 | G45: =-ROUND(IF($C$6="S1",SUMPRODUCT((WNARevAlloc[MonthFlow]=$B45)*(WNARevAlloc[Region]=$G$36)*(WNARevAlloc[CustClass]=G$37)*WNARevAlloc[AdjSRRS1Rev]),SUMPRODUCT((WNARevAlloc[MonthFlow]=$B45)*(WNARevAlloc[Region]=$G$36)*(WNARevAlloc[CustClass]=G$37)*WNARevAlloc[AdjSRRS2Rev])),2) -> -13003.34 | H45: =-ROUND(IF($C$6="S1",SUMPRODUCT((WNARevAlloc[MonthFlow]=$B45)*(WNARevAlloc[Region]=$G$36)*(WNARevAlloc[CustClass]=H$37)*WNARevAlloc[AdjSRRS1Rev]),SUMPRODUCT((WNARevAlloc[MonthFlow]=$B45)*(WNARevAlloc[Region]=$G$36)*(WNARevAlloc[CustClass]=H$37)*WNARevAlloc[AdjSRRS2Rev])),2) -> -367.36 | I45: From WNARevAlloc Table
B46: 2025-02-01 | C46: =-ROUND(IF($C$6="S1",SUMPRODUCT((WNARevAlloc[MonthFlow]=$B46)*(WNARevAlloc[Region]=$C$36)*(WNARevAlloc[CustClass]=C$37)*WNARevAlloc[AdjSRRS1Rev]),SUMPRODUCT((WNARevAlloc[MonthFlow]=$B46)*(WNARevAlloc[Region]=$C$36)*(WNARevAlloc[CustClass]=C$37)*WNARevAlloc[AdjSRRS2Rev])),2) -> -3434.46 | D46: =-ROUND(IF($C$6="S1",SUMPRODUCT((WNARevAlloc[MonthFlow]=$B46)*(WNARevAlloc[Region]=$C$36)*(WNARevAlloc[CustClass]=D$37)*WNARevAlloc[AdjSRRS1Rev]),SUMPRODUCT((WNARevAlloc[MonthFlow]=$B46)*(WNARevAlloc[Region]=$C$36)*(WNARevAlloc[CustClass]=D$37)*WNARevAlloc[AdjSRRS2Rev])),2) -> -337.22 | E46: =-ROUND(IF($C$6="S1",SUMPRODUCT((WNARevAlloc[MonthFlow]=$B46)*(WNARevAlloc[Region]=$E$36)*(WNARevAlloc[CustClass]=E$37)*WNARevAlloc[AdjSRRS1Rev]),SUMPRODUCT((WNARevAlloc[MonthFlow]=$B46)*(WNARevAlloc[Region]=$E$36)*(WNARevAlloc[CustClass]=E$37)*WNARevAlloc[AdjSRRS2Rev])),2) -> -615.59 | F46: =-ROUND(IF($C$6="S1",SUMPRODUCT((WNARevAlloc[MonthFlow]=$B46)*(WNARevAlloc[Region]=$E$36)*(WNARevAlloc[CustClass]=F$37)*WNARevAlloc[AdjSRRS1Rev]),SUMPRODUCT((WNARevAlloc[MonthFlow]=$B46)*(WNARevAlloc[Region]=$E$36)*(WNARevAlloc[CustClass]=F$37)*WNARevAlloc[AdjSRRS2Rev])),2) -> -75.91 | G46: =-ROUND(IF($C$6="S1",SUMPRODUCT((WNARevAlloc[MonthFlow]=$B46)*(WNARevAlloc[Region]=$G$36)*(WNARevAlloc[CustClass]=G$37)*WNARevAlloc[AdjSRRS1Rev]),SUMPRODUCT((WNARevAlloc[MonthFlow]=$B46)*(WNARevAlloc[Region]=$G$36)*(WNARevAlloc[CustClass]=G$37)*WNARevAlloc[AdjSRRS2Rev])),2) -> -9495.05 | H46: =-ROUND(IF($C$6="S1",SUMPRODUCT((WNARevAlloc[MonthFlow]=$B46)*(WNARevAlloc[Region]=$G$36)*(WNARevAlloc[CustClass]=H$37)*WNARevAlloc[AdjSRRS1Rev]),SUMPRODUCT((WNARevAlloc[MonthFlow]=$B46)*(WNARevAlloc[Region]=$G$36)*(WNARevAlloc[CustClass]=H$37)*WNARevAlloc[AdjSRRS2Rev])),2) -> -268.61 | I46: From WNARevAlloc Table
B47: 2025-03-01 | C47: =-ROUND(IF($C$6="S1",SUMPRODUCT((WNARevAlloc[MonthFlow]=$B47)*(WNARevAlloc[Region]=$C$36)*(WNARevAlloc[CustClass]=C$37)*WNARevAlloc[AdjSRRS1Rev]),SUMPRODUCT((WNARevAlloc[MonthFlow]=$B47)*(WNARevAlloc[Region]=$C$36)*(WNARevAlloc[CustClass]=C$37)*WNARevAlloc[AdjSRRS2Rev])),2) -> -2148.01 | D47: =-ROUND(IF($C$6="S1",SUMPRODUCT((WNARevAlloc[MonthFlow]=$B47)*(WNARevAlloc[Region]=$C$36)*(WNARevAlloc[CustClass]=D$37)*WNARevAlloc[AdjSRRS1Rev]),SUMPRODUCT((WNARevAlloc[MonthFlow]=$B47)*(WNARevAlloc[Region]=$C$36)*(WNARevAlloc[CustClass]=D$37)*WNARevAlloc[AdjSRRS2Rev])),2) -> -203.19 | E47: =-ROUND(IF($C$6="S1",SUMPRODUCT((WNARevAlloc[MonthFlow]=$B47)*(WNARevAlloc[Region]=$E$36)*(WNARevAlloc[CustClass]=E$37)*WNARevAlloc[AdjSRRS1Rev]),SUMPRODUCT((WNARevAlloc[MonthFlow]=$B47)*(WNARevAlloc[Region]=$E$36)*(WNARevAlloc[CustClass]=E$37)*WNARevAlloc[AdjSRRS2Rev])),2) -> -349.92 | F47: =-ROUND(IF($C$6="S1",SUMPRODUCT((WNARevAlloc[MonthFlow]=$B47)*(WNARevAlloc[Region]=$E$36)*(WNARevAlloc[CustClass]=F$37)*WNARevAlloc[AdjSRRS1Rev]),SUMPRODUCT((WNARevAlloc[MonthFlow]=$B47)*(WNARevAlloc[Region]=$E$36)*(WNARevAlloc[CustClass]=F$37)*WNARevAlloc[AdjSRRS2Rev])),2) -> -42.76 | G47: =-ROUND(IF($C$6="S1",SUMPRODUCT((WNARevAlloc[MonthFlow]=$B47)*(WNARevAlloc[Region]=$G$36)*(WNARevAlloc[CustClass]=G$37)*WNARevAlloc[AdjSRRS1Rev]),SUMPRODUCT((WNARevAlloc[MonthFlow]=$B47)*(WNARevAlloc[Region]=$G$36)*(WNARevAlloc[CustClass]=G$37)*WNARevAlloc[AdjSRRS2Rev])),2) -> -3730.33 | H47: =-ROUND(IF($C$6="S1",SUMPRODUCT((WNARevAlloc[MonthFlow]=$B47)*(WNARevAlloc[Region]=$G$36)*(WNARevAlloc[CustClass]=H$37)*WNARevAlloc[AdjSRRS1Rev]),SUMPRODUCT((WNARevAlloc[MonthFlow]=$B47)*(WNARevAlloc[Region]=$G$36)*(WNARevAlloc[CustClass]=H$37)*WNARevAlloc[AdjSRRS2Rev])),2) -> -98.52 | I47: From WNARevAlloc Table
B48: 2025-04-01 | C48: =-ROUND(IF($C$6="S1",SUMPRODUCT((WNARevAlloc[MonthFlow]=$B48)*(WNARevAlloc[Region]=$C$36)*(WNARevAlloc[CustClass]=C$37)*WNARevAlloc[AdjSRRS1Rev]),SUMPRODUCT((WNARevAlloc[MonthFlow]=$B48)*(WNARevAlloc[Region]=$C$36)*(WNARevAlloc[CustClass]=C$37)*WNARevAlloc[AdjSRRS2Rev])),2) -> -793.82 | D48: =-ROUND(IF($C$6="S1",SUMPRODUCT((WNARevAlloc[MonthFlow]=$B48)*(WNARevAlloc[Region]=$C$36)*(WNARevAlloc[CustClass]=D$37)*WNARevAlloc[AdjSRRS1Rev]),SUMPRODUCT((WNARevAlloc[MonthFlow]=$B48)*(WNARevAlloc[Region]=$C$36)*(WNARevAlloc[CustClass]=D$37)*WNARevAlloc[AdjSRRS2Rev])),2) -> -80.24 | E48: =-ROUND(IF($C$6="S1",SUMPRODUCT((WNARevAlloc[MonthFlow]=$B48)*(WNARevAlloc[Region]=$E$36)*(WNARevAlloc[CustClass]=E$37)*WNARevAlloc[AdjSRRS1Rev]),SUMPRODUCT((WNARevAlloc[MonthFlow]=$B48)*(WNARevAlloc[Region]=$E$36)*(WNARevAlloc[CustClass]=E$37)*WNARevAlloc[AdjSRRS2Rev])),2) -> -136.54 | F48: =-ROUND(IF($C$6="S1",SUMPRODUCT((WNARevAlloc[MonthFlow]=$B48)*(WNARevAlloc[Region]=$E$36)*(WNARevAlloc[CustClass]=F$37)*WNARevAlloc[AdjSRRS1Rev]),SUMPRODUCT((WNARevAlloc[MonthFlow]=$B48)*(WNARevAlloc[Region]=$E$36)*(WNARevAlloc[CustClass]=F$37)*WNARevAlloc[AdjSRRS2Rev])),2) -> -14.56 | G48: =-ROUND(IF($C$6="S1",SUMPRODUCT((WNARevAlloc[MonthFlow]=$B48)*(WNARevAlloc[Region]=$G$36)*(WNARevAlloc[CustClass]=G$37)*WNARevAlloc[AdjSRRS1Rev]),SUMPRODUCT((WNARevAlloc[MonthFlow]=$B48)*(WNARevAlloc[Region]=$G$36)*(WNARevAlloc[CustClass]=G$37)*WNARevAlloc[AdjSRRS2Rev])),2) -> -2150.87 | H48: =-ROUND(IF($C$6="S1",SUMPRODUCT((WNARevAlloc[MonthFlow]=$B48)*(WNARevAlloc[Region]=$G$36)*(WNARevAlloc[CustClass]=H$37)*WNARevAlloc[AdjSRRS1Rev]),SUMPRODUCT((WNARevAlloc[MonthFlow]=$B48)*(WNARevAlloc[Region]=$G$36)*(WNARevAlloc[CustClass]=H$37)*WNARevAlloc[AdjSRRS2Rev])),2) -> -48.81 | I48: From WNARevAlloc Table
B49: 2025-05-01 | C49: =-ROUND(IF($C$6="S1",SUMPRODUCT((WNARevAlloc[MonthFlow]=$B49)*(WNARevAlloc[Region]=$C$36)*(WNARevAlloc[CustClass]=C$37)*WNARevAlloc[AdjSRRS1Rev]),SUMPRODUCT((WNARevAlloc[MonthFlow]=$B49)*(WNARevAlloc[Region]=$C$36)*(WNARevAlloc[CustClass]=C$37)*WNARevAlloc[AdjSRRS2Rev])),2) -> -428.22 | D49: =-ROUND(IF($C$6="S1",SUMPRODUCT((WNARevAlloc[MonthFlow]=$B49)*(WNARevAlloc[Region]=$C$36)*(WNARevAlloc[CustClass]=D$37)*WNARevAlloc[AdjSRRS1Rev]),SUMPRODUCT((WNARevAlloc[MonthFlow]=$B49)*(WNARevAlloc[Region]=$C$36)*(WNARevAlloc[CustClass]=D$37)*WNARevAlloc[AdjSRRS2Rev])),2) -> -50.8 | E49: =-ROUND(IF($C$6="S1",SUMPRODUCT((WNARevAlloc[MonthFlow]=$B49)*(WNARevAlloc[Region]=$E$36)*(WNARevAlloc[CustClass]=E$37)*WNARevAlloc[AdjSRRS1Rev]),SUMPRODUCT((WNARevAlloc[MonthFlow]=$B49)*(WNARevAlloc[Region]=$E$36)*(WNARevAlloc[CustClass]=E$37)*WNARevAlloc[AdjSRRS2Rev])),2) -> -89.5 | F49: =-ROUND(IF($C$6="S1",SUMPRODUCT((WNARevAlloc[MonthFlow]=$B49)*(WNARevAlloc[Region]=$E$36)*(WNARevAlloc[CustClass]=F$37)*WNARevAlloc[AdjSRRS1Rev]),SUMPRODUCT((WNARevAlloc[MonthFlow]=$B49)*(WNARevAlloc[Region]=$E$36)*(WNARevAlloc[CustClass]=F$37)*WNARevAlloc[AdjSRRS2Rev])),2) -> -10.88 | G49: =-ROUND(IF($C$6="S1",SUMPRODUCT((WNARevAlloc[MonthFlow]=$B49)*(WNARevAlloc[Region]=$G$36)*(WNARevAlloc[CustClass]=G$37)*WNARevAlloc[AdjSRRS1Rev]),SUMPRODUCT((WNARevAlloc[MonthFlow]=$B49)*(WNARevAlloc[Region]=$G$36)*(WNARevAlloc[CustClass]=G$37)*WNARevAlloc[AdjSRRS2Rev])),2) -> -1137.57 | H49: =-ROUND(IF($C$6="S1",SUMPRODUCT((WNARevAlloc[MonthFlow]=$B49)*(WNARevAlloc[Region]=$G$36)*(WNARevAlloc[CustClass]=H$37)*WNARevAlloc[AdjSRRS1Rev]),SUMPRODUCT((WNARevAlloc[MonthFlow]=$B49)*(WNARevAlloc[Region]=$G$36)*(WNARevAlloc[CustClass]=H$37)*WNARevAlloc[AdjSRRS2Rev])),2) -> -31.88 | I49: From WNARevAlloc Table
B50: 2025-06-01 | C50: =-ROUND(IF($C$6="S1",SUMPRODUCT((WNARevAlloc[MonthFlow]=$B50)*(WNARevAlloc[Region]=$C$36)*(WNARevAlloc[CustClass]=C$37)*WNARevAlloc[AdjSRRS1Rev]),SUMPRODUCT((WNARevAlloc[MonthFlow]=$B50)*(WNARevAlloc[Region]=$C$36)*(WNARevAlloc[CustClass]=C$37)*WNARevAlloc[AdjSRRS2Rev])),2) -> -317.06 | D50: =-ROUND(IF($C$6="S1",SUMPRODUCT((WNARevAlloc[MonthFlow]=$B50)*(WNARevAlloc[Region]=$C$36)*(WNARevAlloc[CustClass]=D$37)*WNARevAlloc[AdjSRRS1Rev]),SUMPRODUCT((WNARevAlloc[MonthFlow]=$B50)*(WNARevAlloc[Region]=$C$36)*(WNARevAlloc[CustClass]=D$37)*WNARevAlloc[AdjSRRS2Rev])),2) -> -39.6 | E50: =-ROUND(IF($C$6="S1",SUMPRODUCT((WNARevAlloc[MonthFlow]=$B50)*(WNARevAlloc[Region]=$E$36)*(WNARevAlloc[CustClass]=E$37)*WNARevAlloc[AdjSRRS1Rev]),SUMPRODUCT((WNARevAlloc[MonthFlow]=$B50)*(WNARevAlloc[Region]=$E$36)*(WNARevAlloc[CustClass]=E$37)*WNARevAlloc[AdjSRRS2Rev])),2) -> -63.18 | F50: =-ROUND(IF($C$6="S1",SUMPRODUCT((WNARevAlloc[MonthFlow]=$B50)*(WNARevAlloc[Region]=$E$36)*(WNARevAlloc[CustClass]=F$37)*WNARevAlloc[AdjSRRS1Rev]),SUMPRODUCT((WNARevAlloc[MonthFlow]=$B50)*(WNARevAlloc[Region]=$E$36)*(WNARevAlloc[CustClass]=F$37)*WNARevAlloc[AdjSRRS2Rev])),2) -> -9.72 | G50: =-ROUND(IF($C$6="S1",SUMPRODUCT((WNARevAlloc[MonthFlow]=$B50)*(WNARevAlloc[Region]=$G$36)*(WNARevAlloc[CustClass]=G$37)*WNARevAlloc[AdjSRRS1Rev]),SUMPRODUCT((WNARevAlloc[MonthFlow]=$B50)*(WNARevAlloc[Region]=$G$36)*(WNARevAlloc[CustClass]=G$37)*WNARevAlloc[AdjSRRS2Rev])),2) -> -910.91 | H50: =-ROUND(IF($C$6="S1",SUMPRODUCT((WNARevAlloc[MonthFlow]=$B50)*(WNARevAlloc[Region]=$G$36)*(WNARevAlloc[CustClass]=H$37)*WNARevAlloc[AdjSRRS1Rev]),SUMPRODUCT((WNARevAlloc[MonthFlow]=$B50)*(WNARevAlloc[Region]=$G$36)*(WNARevAlloc[CustClass]=H$37)*WNARevAlloc[AdjSRRS2Rev])),2) -> -25.63 | I50: From WNARevAlloc Table
B51: Total Actual Revenues | C51: =SUM(C42:C50) -> -24024.09 | D51: =SUM(D42:D50) -> -2358.47 | E51: -4671.85 | F51: -557.87 | G51: -49509.47 | H51: -1330.14
B52: Projected Revenues
B53: =EDATE(B50,1) -> 2025-07-01 | C53: =-ROUND(SUMPRODUCT((CustEstRev[MonthFlow]=$B53)*(CustEstRev[Region]=$C$36)*(CustEstRev[CustClass]=C$37)*(CustEstRev[Period]=$C$6)*CustEstRev[SRRRev]),2) -> -305 | D53: =-ROUND(SUMPRODUCT((CustEstRev[MonthFlow]=$B53)*(CustEstRev[Region]=$C$36)*(CustEstRev[CustClass]=D$37)*(CustEstRev[Period]=$C$6)*CustEstRev[SRRRev]),2) -> -40 | E53: =-ROUND(SUMPRODUCT((CustEstRev[MonthFlow]=$B53)*(CustEstRev[Region]=$E$36)*(CustEstRev[CustClass]=E$37)*(CustEstRev[Period]=$C$6)*CustEstRev[SRRRev]),2) -> -57 | F53: =-ROUND(SUMPRODUCT((CustEstRev[MonthFlow]=$B53)*(CustEstRev[Region]=$E$36)*(CustEstRev[CustClass]=F$37)*(CustEstRev[Period]=$C$6)*CustEstRev[SRRRev]),2) -> -8 | G53: =-ROUND(SUMPRODUCT((CustEstRev[MonthFlow]=$B53)*(CustEstRev[Region]=$G$36)*(CustEstRev[CustClass]=G$37)*(CustEstRev[Period]=$C$6)*CustEstRev[SRRRev]),2) -> -906 | H53: =-ROUND(SUMPRODUCT((CustEstRev[MonthFlow]=$B53)*(CustEstRev[Region]=$G$36)*(CustEstRev[CustClass]=H$37)*(CustEstRev[Period]=$C$6)*CustEstRev[SRRRev]),2) -> -25 | I53: From CustEstRev Table
B54: =EDATE(B53,1) -> 2025-08-01 | C54: =-ROUND(SUMPRODUCT((CustEstRev[MonthFlow]=$B54)*(CustEstRev[Region]=$C$36)*(CustEstRev[CustClass]=C$37)*(CustEstRev[Period]=$C$6)*CustEstRev[SRRRev]),2) -> -355 | D54: =-ROUND(SUMPRODUCT((CustEstRev[MonthFlow]=$B54)*(CustEstRev[Region]=$C$36)*(CustEstRev[CustClass]=D$37)*(CustEstRev[Period]=$C$6)*CustEstRev[SRRRev]),2) -> -48 | E54: =-ROUND(SUMPRODUCT((CustEstRev[MonthFlow]=$B54)*(CustEstRev[Region]=$E$36)*(CustEstRev[CustClass]=E$37)*(CustEstRev[Period]=$C$6)*CustEstRev[SRRRev]),2) -> -67 | F54: =-ROUND(SUMPRODUCT((CustEstRev[MonthFlow]=$B54)*(CustEstRev[Region]=$E$36)*(CustEstRev[CustClass]=F$37)*(CustEstRev[Period]=$C$6)*CustEstRev[SRRRev]),2) -> -13 | G54: =-ROUND(SUMPRODUCT((CustEstRev[MonthFlow]=$B54)*(CustEstRev[Region]=$G$36)*(CustEstRev[CustClass]=G$37)*(CustEstRev[Period]=$C$6)*CustEstRev[SRRRev]),2) -> -1011 | H54: =-ROUND(SUMPRODUCT((CustEstRev[MonthFlow]=$B54)*(CustEstRev[Region]=$G$36)*(CustEstRev[CustClass]=H$37)*(CustEstRev[Period]=$C$6)*CustEstRev[SRRRev]),2) -> -34 | I54: From CustEstRev Table
B55: =EDATE(B54,1) -> 2025-09-01 | C55: =-ROUND(SUMPRODUCT((CustEstRev[MonthFlow]=$B55)*(CustEstRev[Region]=$C$36)*(CustEstRev[CustClass]=C$37)*(CustEstRev[Period]=$C$6)*CustEstRev[SRRRev]),2) -> -394 | D55: =-ROUND(SUMPRODUCT((CustEstRev[MonthFlow]=$B55)*(CustEstRev[Region]=$C$36)*(CustEstRev[CustClass]=D$37)*(CustEstRev[Period]=$C$6)*CustEstRev[SRRRev]),2) -> -45 | E55: =-ROUND(SUMPRODUCT((CustEstRev[MonthFlow]=$B55)*(CustEstRev[Region]=$E$36)*(CustEstRev[CustClass]=E$37)*(CustEstRev[Period]=$C$6)*CustEstRev[SRRRev]),2) -> -92 | F55: =-ROUND(SUMPRODUCT((CustEstRev[MonthFlow]=$B55)*(CustEstRev[Region]=$E$36)*(CustEstRev[CustClass]=F$37)*(CustEstRev[Period]=$C$6)*CustEstRev[SRRRev]),2) -> -12 | G55: =-ROUND(SUMPRODUCT((CustEstRev[MonthFlow]=$B55)*(CustEstRev[Region]=$G$36)*(CustEstRev[CustClass]=G$37)*(CustEstRev[Period]=$C$6)*CustEstRev[SRRRev]),2) -> -1015 | H55: =-ROUND(SUMPRODUCT((CustEstRev[MonthFlow]=$B55)*(CustEstRev[Region]=$G$36)*(CustEstRev[CustClass]=H$37)*(CustEstRev[Period]=$C$6)*CustEstRev[SRRRev]),2) -> -28 | I55: From CustEstRev Table
B56: Total Projected Revenues | C56: =SUM(C53:C55) -> -1054 | D56: -133 | E56: -216 | F56: -33 | G56: -2932 | H56: -87
B57: Total Billings | C57: =C51+C56 -> -25078.09 | D57: -2491.47 | E57: -4887.85 | F57: -590.87 | G57: -52441.47 | H57: -1417.14
B58: Total WNA Recovery | C58: =ROUND(C32+C57,2) -> -351649.78 | D58: =ROUND(D32+D57,2) -> -47162.46 | E58: =ROUND(E32+E57,2) -> -68537.53 | F58: =ROUND(F32+F57,2) -> -11160.63 | G58: =ROUND(G32+G57,2) -> -464569.38 | H58: =ROUND(G32+H57,2) -> -413545.05
B59: SRR Net (Over)/Under Recov 1/ | C59: =ROUND(C57+C40,2) -> 1104.47 | D59: =ROUND(D57+D40,2) -> -91.07 | E59: 793.06 | F59: -194.22 | G59: 3253.96 | H59: -214.35
B60: CWNA Net (Over)/Under Recov 1/ | C60: =C33 -> 29013.93 | D60: -1837.04 | E60: 6063.6 | F60: -958.8 | G60: 37010.52 | H60: -2712.63
B61: Total Net O/U for SRR ReconPerAdj | C61: =C59+C60 -> 30118.4 | D61: =D59+D60 -> -1928.11 | E61: 6856.66 | F61: -1153.02 | G61: 40264.48 | H61: -2926.98
B62: Enter These Amounts in the ReconPerAdj Table
B64: Region | C64: NEMO | E64: WEMO | G64: SEMO
B65: Customer Class | C65: Res | D65: SGS | E65: Res | F65: SGS | G65: Res | H65: SGS
B66: WNA to be Recovered
B67: CSWNA | C67: =C15 -> 355585.62 | D67: 42833.95 | E67: 69713.28 | F67: 9610.96 | G67: 449138.43 | H67: 39923.16
B68: SRR | C68: =C40 -> 26182.56 | D68: =D40 -> 2400.4 | E68: 5680.91 | F68: 396.65 | G68: 55695.43 | H68: 1202.79
B69: Total | C69: =SUM(C67:C68) -> 381768.18 | D69: =SUM(D67:D68) -> 45234.35 | E69: 75394.19 | F69: 10007.61 | G69: 504833.86 | H69: 41125.95
B70: WNA Actually Recovered
B71: CSWNA | C71: =C32 -> -326571.6946 | D71: -44670.99143 | E71: -63649.68128 | F71: -10569.76115 | G71: -412127.9121 | H71: -42635.78744
B72: SRR | C72: =C57 -> -25078.09 | D72: =D57 -> -2491.47 | E72: -4887.85 | F72: -590.87 | G72: -52441.47 | H72: -1417.14
B73: Total | C73: =SUM(C71:C72) -> -351649.7846 | D73: =SUM(D71:D72) -> -47162.46143 | E73: -68537.53128 | F73: -11160.63115 | G73: -464569.3821 | H73: -44052.92744
B74: WNA Net Difference
B75: CSWNA | C75: =C67+C71 -> 29013.92543 | D75: =D67+D71 -> -1837.041434 | E75: 6063.598717 | F75: -958.8011526 | G75: 37010.51794 | H75: -2712.627439
B76: SRR | C76: 1104.47 | D76: =D68+D72 -> -91.07 | E76: 793.06 | F76: -194.22 | G76: 3253.96 | H76: -214.35
B77: Total | C77: =SUM(C75:C76) -> 30118.39543 | D77: =SUM(D75:D76) -> -1928.111434 | E77: 6856.658717 | F77: -1153.021153 | G77: 40264.47794 | H77: -2926.977439
B79: WNA Deferred Balance 1/ | C79: 0 | D79: 0 | E79: 0 | F79: 0 | G79: 0 | H79: 0
B80: SRR Adjustment (S2) | C80: =C77+C79 -> 30118.39543 | D80: =D77+D79 -> -1928.111434 | E80: 6856.658717 | F80: -1153.021153 | G80: 40264.47794 | H80: -2926.977439
B81: SRR Adjustment (S1) | C81: =SUMPRODUCT((ReconPerAdj[Year]=$C$5)*(ReconPerAdj[Period]="S1")*(ReconPerAdj[Region]=$C$64)*(ReconPerAdj[CustClass]=C65)*(ReconPerAdj[RateName]=$C$35)*ReconPerAdj[ReconcilingPeriodAdj]) -> 70935.14 | D81: =SUMPRODUCT((ReconPerAdj[Year]=$C$5)*(ReconPerAdj[Period]="S1")*(ReconPerAdj[Region]=$C$64)*(ReconPerAdj[CustClass]=D65)*(ReconPerAdj[RateName]=$C$35)*ReconPerAdj[ReconcilingPeriodAdj]) -> 14888.72 | E81: =SUMPRODUCT((ReconPerAdj[Year]=$C$5)*(ReconPerAdj[Period]="S1")*(ReconPerAdj[Region]=$E$64)*(ReconPerAdj[CustClass]=E65)*(ReconPerAdj[RateName]=$C$35)*ReconPerAdj[ReconcilingPeriodAdj]) -> 36590.68 | F81: =SUMPRODUCT((ReconPerAdj[Year]=$C$5)*(ReconPerAdj[Period]="S1")*(ReconPerAdj[Region]=$E$64)*(ReconPerAdj[CustClass]=F65)*(ReconPerAdj[RateName]=$C$35)*ReconPerAdj[ReconcilingPeriodAdj]) -> 6561.44 | G81: =SUMPRODUCT((ReconPerAdj[Year]=$C$5)*(ReconPerAdj[Period]="S1")*(ReconPerAdj[Region]=$G$64)*(ReconPerAdj[CustClass]=G65)*(ReconPerAdj[RateName]=$C$35)*ReconPerAdj[ReconcilingPeriodAdj]) -> 87855.58 | H81: =SUMPRODUCT((ReconPerAdj[Year]=$C$5)*(ReconPerAdj[Period]="S1")*(ReconPerAdj[Region]=$G$64)*(ReconPerAdj[CustClass]=H65)*(ReconPerAdj[RateName]=$C$35)*ReconPerAdj[ReconcilingPeriodAdj]) -> 1237.05
B82: Total SRR Adjustment | C82: =SUM(C79:C81) -> 101053.5354 | D82: =SUM(D79:D81) -> 12960.60857 | E82: 43447.33872 | F82: 5408.418847 | G82: 128120.0579 | H82: -1689.927439
B84: Billing Determinants | C84: =SUMPRODUCT((BillDeter[Region]=$C$64)*(BillDeter[CustClass]=C65)*(BillDeter[BeginDate]<=$C$8)*(BillDeter[EndDate]>$C$8)*BillDeter[BillingDeterminants]) -> 12307679 | D84: =SUMPRODUCT((BillDeter[Region]=$C$64)*(BillDeter[CustClass]=D65)*(BillDeter[BeginDate]<=$C$8)*(BillDeter[EndDate]>$C$8)*BillDeter[BillingDeterminants]) -> 3880055 | E84: =SUMPRODUCT((BillDeter[Region]=$E$64)*(BillDeter[CustClass]=E65)*(BillDeter[BeginDate]<=$C$8)*(BillDeter[EndDate]>$C$8)*BillDeter[BillingDeterminants]) -> 2469188 | F84: =SUMPRODUCT((BillDeter[Region]=$E$64)*(BillDeter[CustClass]=F65)*(BillDeter[BeginDate]<=$C$8)*(BillDeter[EndDate]>$C$8)*BillDeter[BillingDeterminants]) -> 907146 | G84: =SUMPRODUCT((BillDeter[Region]=$G$64)*(BillDeter[CustClass]=G65)*(BillDeter[BeginDate]<=$C$8)*(BillDeter[EndDate]>$C$8)*BillDeter[BillingDeterminants]) -> 17185669 | H84: =SUMPRODUCT((BillDeter[Region]=$G$64)*(BillDeter[CustClass]=H65)*(BillDeter[BeginDate]<=$C$8)*(BillDeter[EndDate]>$C$8)*BillDeter[BillingDeterminants]) -> 5009348
B86: Rate | C86: =ROUND(C82/C84,5) -> 0.00821 | D86: =ROUND(D82/D84,5) -> 0.00334 | E86: 0.0176 | F86: 0.00596 | G86: 0.00746 | H86: -0.00034
B87: Enter these rates in the ARR column of the WNAR Rates table.
B89: 1/ Negative amount = Due Customer, Positive amount = Due Company

Sheet ARR Summary (S1)
B2: Liberty Midstates | E2: Year
B3: WNAR Filing
B4: SRR Summary
B5: Year | C5: =DateSet!C2 -> 2025
B6: Period | C6: S1
B7: Billed Rev. From | C7: 45383
B8: New Rate Effec. | C8: =DateSet!$D$4 -> 45931
B10: Reconciliation Summary | C10: CWNA
B11: Customer Class | C11: NEMO | E11: WEMO | G11: SEMO | I11: Notes
B12: Region | C12: Res | D12: SGS | E12: Res | F12: SGS | G12: Res | H12: SGS
B13: Reconciling Period Adj. | C13: =SUMPRODUCT((ReconPerAdj[EffDate]=$C$7)*(ReconPerAdj[Region]=$C$11)*(ReconPerAdj[CustClass]=C$12)*(ReconPerAdj[RateName]=$C$10)*ReconPerAdj[ReconcilingPeriodAdj]) -> 121749.34 | D13: =SUMPRODUCT((ReconPerAdj[EffDate]=$C$7)*(ReconPerAdj[Region]=$C$11)*(ReconPerAdj[CustClass]=D$12)*(ReconPerAdj[RateName]=$C$10)*ReconPerAdj[ReconcilingPeriodAdj]) -> 14875.48 | E13: =SUMPRODUCT((ReconPerAdj[EffDate]=$C$7)*(ReconPerAdj[Region]=$E$11)*(ReconPerAdj[CustClass]=E$12)*(ReconPerAdj[RateName]=$C$10)*ReconPerAdj[ReconcilingPeriodAdj]) -> 28635.34 | F13: =SUMPRODUCT((ReconPerAdj[EffDate]=$C$7)*(ReconPerAdj[Region]=$E$11)*(ReconPerAdj[CustClass]=F$12)*(ReconPerAdj[RateName]=$C$10)*ReconPerAdj[ReconcilingPeriodAdj]) -> 3951.49 | G13: =SUMPRODUCT((ReconPerAdj[EffDate]=$C$7)*(ReconPerAdj[Region]=$G$11)*(ReconPerAdj[CustClass]=G$12)*(ReconPerAdj[RateName]=$C$10)*ReconPerAdj[ReconcilingPeriodAdj]) -> 101832.27 | H13: =SUMPRODUCT((ReconPerAdj[EffDate]=$C$7)*(ReconPerAdj[Region]=$G$11)*(ReconPerAdj[CustClass]=H$12)*(ReconPerAdj[RateName]=$C$10)*ReconPerAdj[ReconcilingPeriodAdj]) -> 9271.54 | I13: From ReconPerAdj Table
B14: PPA Correction | C14: =SUMPRODUCT((PPA[Year]=$C$5)*(PPA[Period]=$C$6)*(PPA[Region]=$C$11)*(PPA[CustClass]=C$12)*(PPA[RateName]=$C$10)*PPA[Amount]) -> 0 | D14: =SUMPRODUCT((PPA[Year]=$C$5)*(PPA[Period]=$C$6)*(PPA[Region]=$C$11)*(PPA[CustClass]=D$12)*(PPA[RateName]=$C$10)*PPA[Amount]) -> 0 | E14: =SUMPRODUCT((PPA[Year]=$C$5)*(PPA[Period]=$C$6)*(PPA[Region]=$E$11)*(PPA[CustClass]=E$12)*(PPA[RateName]=$C$10)*PPA[Amount]) -> 0 | F14: =SUMPRODUCT((PPA[Year]=$C$5)*(PPA[Period]=$C$6)*(PPA[Region]=$E$11)*(PPA[CustClass]=F$12)*(PPA[RateName]=$C$10)*PPA[Amount]) -> 0 | G14: =SUMPRODUCT((PPA[Year]=$C$5)*(PPA[Period]=$C$6)*(PPA[Region]=$G$11)*(PPA[CustClass]=G$12)*(PPA[RateName]=$C$10)*PPA[Amount]) -> 0 | H14: =SUMPRODUCT((PPA[Year]=$C$5)*(PPA[Period]=$C$6)*(PPA[Region]=$G$11)*(PPA[CustClass]=H$12)*(PPA[RateName]=$C$10)*PPA[Amount]) -> 0 | I14: From PriorPerAdj Table
B15: Net Reconciling Period Adj. | C15: =C13+C14 -> 121749.34 | D15: 14875.48 | E15: =E13+E14 -> 28635.34 | F15: 3951.49 | G15: 101832.27 | H15: 9271.54
B16: Actual Revenues
B17: =C7 -> 2024-04-01 | C17: =-IF($C$6="S1",SUMPRODUCT((WNARevAlloc[MonthFlow]=$B17)*(WNARevAlloc[Region]=$C$11)*(WNARevAlloc[CustClass]=C$12)*WNARevAlloc[AdjCSWNAS1Rev]),SUMPRODUCT((WNARevAlloc[MonthFlow]=$B17)*(WNARevAlloc[Region]=$C$11)*(WNARevAlloc[CustClass]=C$12)*WNARevAlloc[AdjCSWNAS2Rev])) -> -3566.377409 | D17: =-IF($C$6="S1",SUMPRODUCT((WNARevAlloc[MonthFlow]=$B17)*(WNARevAlloc[Region]=$C$11)*(WNARevAlloc[CustClass]=D$12)*WNARevAlloc[AdjCSWNAS1Rev]),SUMPRODUCT((WNARevAlloc[MonthFlow]=$B17)*(WNARevAlloc[Region]=$C$11)*(WNARevAlloc[CustClass]=D$12)*WNARevAlloc[AdjCSWNAS2Rev])) -> -417.9024164 | E17: =-IF($C$6="S1",SUMPRODUCT((WNARevAlloc[MonthFlow]=$B17)*(WNARevAlloc[Region]=$E$11)*(WNARevAlloc[CustClass]=E$12)*WNARevAlloc[AdjCSWNAS1Rev]),SUMPRODUCT((WNARevAlloc[MonthFlow]=$B17)*(WNARevAlloc[Region]=$E$11)*(WNARevAlloc[CustClass]=E$12)*WNARevAlloc[AdjCSWNAS2Rev])) -> -616.8413591 | F17: =-IF($C$6="S1",SUMPRODUCT((WNARevAlloc[MonthFlow]=$B17)*(WNARevAlloc[Region]=$E$11)*(WNARevAlloc[CustClass]=F$12)*WNARevAlloc[AdjCSWNAS1Rev]),SUMPRODUCT((WNARevAlloc[MonthFlow]=$B17)*(WNARevAlloc[Region]=$E$11)*(WNARevAlloc[CustClass]=F$12)*WNARevAlloc[AdjCSWNAS2Rev])) -> -84.25320765 | G17: =-IF($C$6="S1",SUMPRODUCT((WNARevAlloc[MonthFlow]=$B17)*(WNARevAlloc[Region]=$G$11)*(WNARevAlloc[CustClass]=G$12)*WNARevAlloc[AdjCSWNAS1Rev]),SUMPRODUCT((WNARevAlloc[MonthFlow]=$B17)*(WNARevAlloc[Region]=$G$11)*(WNARevAlloc[CustClass]=G$12)*WNARevAlloc[AdjCSWNAS2Rev])) -> -3521.652898 | H17: =-IF($C$6="S1",SUMPRODUCT((WNARevAlloc[MonthFlow]=$B17)*(WNARevAlloc[Region]=$G$11)*(WNARevAlloc[CustClass]=H$12)*WNARevAlloc[AdjCSWNAS1Rev]),SUMPRODUCT((WNARevAlloc[MonthFlow]=$B17)*(WNARevAlloc[Region]=$G$11)*(WNARevAlloc[CustClass]=H$12)*WNARevAlloc[AdjCSWNAS2Rev])) -> -335.6379137 | I17: From WNARevAlloc Table
B18: =EDATE(B17,1) -> 2024-05-01 | C18: =-IF($C$6="S1",SUMPRODUCT((WNARevAlloc[MonthFlow]=$B18)*(WNARevAlloc[Region]=$C$11)*(WNARevAlloc[CustClass]=C$12)*WNARevAlloc[AdjCSWNAS1Rev]),SUMPRODUCT((WNARevAlloc[MonthFlow]=$B18)*(WNARevAlloc[Region]=$C$11)*(WNARevAlloc[CustClass]=C$12)*WNARevAlloc[AdjCSWNAS2Rev])) -> -1703.38407 | D18: =-IF($C$6="S1",SUMPRODUCT((WNARevAlloc[MonthFlow]=$B18)*(WNARevAlloc[Region]=$C$11)*(WNARevAlloc[CustClass]=D$12)*WNARevAlloc[AdjCSWNAS1Rev]),SUMPRODUCT((WNARevAlloc[MonthFlow]=$B18)*(WNARevAlloc[Region]=$C$11)*(WNARevAlloc[CustClass]=D$12)*WNARevAlloc[AdjCSWNAS2Rev])) -> -277.0520977 | E18: =-IF($C$6="S1",SUMPRODUCT((WNARevAlloc[MonthFlow]=$B18)*(WNARevAlloc[Region]=$E$11)*(WNARevAlloc[CustClass]=E$12)*WNARevAlloc[AdjCSWNAS1Rev]),SUMPRODUCT((WNARevAlloc[MonthFlow]=$B18)*(WNARevAlloc[Region]=$E$11)*(WNARevAlloc[CustClass]=E$12)*WNARevAlloc[AdjCSWNAS2Rev])) -> -345.7747232 | F18: =-IF($C$6="S1",SUMPRODUCT((WNARevAlloc[MonthFlow]=$B18)*(WNARevAlloc[Region]=$E$11)*(WNARevAlloc[CustClass]=F$12)*WNARevAlloc[AdjCSWNAS1Rev]),SUMPRODUCT((WNARevAlloc[MonthFlow]=$B18)*(WNARevAlloc[Region]=$E$11)*(WNARevAlloc[CustClass]=F$12)*WNARevAlloc[AdjCSWNAS2Rev])) -> -58.13247477 | G18: =-IF($C$6="S1",SUMPRODUCT((WNARevAlloc[MonthFlow]=$B18)*(WNARevAlloc[Region]=$G$11)*(WNARevAlloc[CustClass]=G$12)*WNARevAlloc[AdjCSWNAS1Rev]),SUMPRODUCT((WNARevAlloc[MonthFlow]=$B18)*(WNARevAlloc[Region]=$G$11)*(WNARevAlloc[CustClass]=G$12)*WNARevAlloc[AdjCSWNAS2Rev])) -> -1970.11467 | H18: =-IF($C$6="S1",SUMPRODUCT((WNARevAlloc[MonthFlow]=$B18)*(WNARevAlloc[Region]=$G$11)*(WNARevAlloc[CustClass]=H$12)*WNARevAlloc[AdjCSWNAS1Rev]),SUMPRODUCT((WNARevAlloc[MonthFlow]=$B18)*(WNARevAlloc[Region]=$G$11)*(WNARevAlloc[CustClass]=H$12)*WNARevAlloc[AdjCSWNAS2Rev])) -> -201.9869803 | I18: From WNARevAlloc Table
B19: =EDATE(B18,1) -> 2024-06-01 | C19: =-IF($C$6="S1",SUMPRODUCT((WNARevAlloc[MonthFlow]=$B19)*(WNARevAlloc[Region]=$C$11)*(WNARevAlloc[CustClass]=C$12)*WNARevAlloc[AdjCSWNAS1Rev]),SUMPRODUCT((WNARevAlloc[MonthFlow]=$B19)*(WNARevAlloc[Region]=$C$11)*(WNARevAlloc[CustClass]=C$12)*WNARevAlloc[AdjCSWNAS2Rev])) -> -1278.494516 | D19: =-IF($C$6="S1",SUMPRODUCT((WNARevAlloc[MonthFlow]=$B19)*(WNARevAlloc[Region]=$C$11)*(WNARevAlloc[CustClass]=D$12)*WNARevAlloc[AdjCSWNAS1Rev]),SUMPRODUCT((WNARevAlloc[MonthFlow]=$B19)*(WNARevAlloc[Region]=$C$11)*(WNARevAlloc[CustClass]=D$12)*WNARevAlloc[AdjCSWNAS2Rev])) -> -212.2841619 | E19: =-IF($C$6="S1",SUMPRODUCT((WNARevAlloc[MonthFlow]=$B19)*(WNARevAlloc[Region]=$E$11)*(WNARevAlloc[CustClass]=E$12)*WNARevAlloc[AdjCSWNAS1Rev]),SUMPRODUCT((WNARevAlloc[MonthFlow]=$B19)*(WNARevAlloc[Region]=$E$11)*(WNARevAlloc[CustClass]=E$12)*WNARevAlloc[AdjCSWNAS2Rev])) -> -262.8949766 | F19: =-IF($C$6="S1",SUMPRODUCT((WNARevAlloc[MonthFlow]=$B19)*(WNARevAlloc[Region]=$E$11)*(WNARevAlloc[CustClass]=F$12)*WNARevAlloc[AdjCSWNAS1Rev]),SUMPRODUCT((WNARevAlloc[MonthFlow]=$B19)*(WNARevAlloc[Region]=$E$11)*(WNARevAlloc[CustClass]=F$12)*WNARevAlloc[AdjCSWNAS2Rev])) -> -42.83402099 | G19: =-IF($C$6="S1",SUMPRODUCT((WNARevAlloc[MonthFlow]=$B19)*(WNARevAlloc[Region]=$G$11)*(WNARevAlloc[CustClass]=G$12)*WNARevAlloc[AdjCSWNAS1Rev]),SUMPRODUCT((WNARevAlloc[MonthFlow]=$B19)*(WNARevAlloc[Region]=$G$11)*(WNARevAlloc[CustClass]=G$12)*WNARevAlloc[AdjCSWNAS2Rev])) -> -1425.668171 | H19: =-IF($C$6="S1",SUMPRODUCT((WNARevAlloc[MonthFlow]=$B19)*(WNARevAlloc[Region]=$G$11)*(WNARevAlloc[CustClass]=H$12)*WNARevAlloc[AdjCSWNAS1Rev]),SUMPRODUCT((WNARevAlloc[MonthFlow]=$B19)*(WNARevAlloc[Region]=$G$11)*(WNARevAlloc[CustClass]=H$12)*WNARevAlloc[AdjCSWNAS2Rev])) -> -157.4542395 | I19: From WNARevAlloc Table
B20: 2024-07-01 | C20: =-IF($C$6="S1",SUMPRODUCT((WNARevAlloc[MonthFlow]=$B20)*(WNARevAlloc[Region]=$C$11)*(WNARevAlloc[CustClass]=C$12)*WNARevAlloc[AdjCSWNAS1Rev]),SUMPRODUCT((WNARevAlloc[MonthFlow]=$B20)*(WNARevAlloc[Region]=$C$11)*(WNARevAlloc[CustClass]=C$12)*WNARevAlloc[AdjCSWNAS2Rev])) -> -1386.714689 | D20: =-IF($C$6="S1",SUMPRODUCT((WNARevAlloc[MonthFlow]=$B20)*(WNARevAlloc[Region]=$C$11)*(WNARevAlloc[CustClass]=D$12)*WNARevAlloc[AdjCSWNAS1Rev]),SUMPRODUCT((WNARevAlloc[MonthFlow]=$B20)*(WNARevAlloc[Region]=$C$11)*(WNARevAlloc[CustClass]=D$12)*WNARevAlloc[AdjCSWNAS2Rev])) -> -254.7293043 | E20: =-IF($C$6="S1",SUMPRODUCT((WNARevAlloc[MonthFlow]=$B20)*(WNARevAlloc[Region]=$E$11)*(WNARevAlloc[CustClass]=E$12)*WNARevAlloc[AdjCSWNAS1Rev]),SUMPRODUCT((WNARevAlloc[MonthFlow]=$B20)*(WNARevAlloc[Region]=$E$11)*(WNARevAlloc[CustClass]=E$12)*WNARevAlloc[AdjCSWNAS2Rev])) -> -261.9130585 | F20: =-IF($C$6="S1",SUMPRODUCT((WNARevAlloc[MonthFlow]=$B20)*(WNARevAlloc[Region]=$E$11)*(WNARevAlloc[CustClass]=F$12)*WNARevAlloc[AdjCSWNAS1Rev]),SUMPRODUCT((WNARevAlloc[MonthFlow]=$B20)*(WNARevAlloc[Region]=$E$11)*(WNARevAlloc[CustClass]=F$12)*WNARevAlloc[AdjCSWNAS2Rev])) -> -52.79 | G20: =-IF($C$6="S1",SUMPRODUCT((WNARevAlloc[MonthFlow]=$B20)*(WNARevAlloc[Region]=$G$11)*(WNARevAlloc[CustClass]=G$12)*WNARevAlloc[AdjCSWNAS1Rev]),SUMPRODUCT((WNARevAlloc[MonthFlow]=$B20)*(WNARevAlloc[Region]=$G$11)*(WNARevAlloc[CustClass]=G$12)*WNARevAlloc[AdjCSWNAS2Rev])) -> -1588.806389 | H20: =-IF($C$6="S1",SUMPRODUCT((WNARevAlloc[MonthFlow]=$B20)*(WNARevAlloc[Region]=$G$11)*(WNARevAlloc[CustClass]=H$12)*WNARevAlloc[AdjCSWNAS1Rev]),SUMPRODUCT((WNARevAlloc[MonthFlow]=$B20)*(WNARevAlloc[Region]=$G$11)*(WNARevAlloc[CustClass]=H$12)*WNARevAlloc[AdjCSWNAS2Rev])) -> -179.4720175 | I20: From WNARevAlloc Table
B21: 2024-08-01 | C21: =-IF($C$6="S1",SUMPRODUCT((WNARevAlloc[MonthFlow]=$B21)*(WNARevAlloc[Region]=$C$11)*(WNARevAlloc[CustClass]=C$12)*WNARevAlloc[AdjCSWNAS1Rev]),SUMPRODUCT((WNARevAlloc[MonthFlow]=$B21)*(WNARevAlloc[Region]=$C$11)*(WNARevAlloc[CustClass]=C$12)*WNARevAlloc[AdjCSWNAS2Rev])) -> -1475.211445 | D21: =-IF($C$6="S1",SUMPRODUCT((WNARevAlloc[MonthFlow]=$B21)*(WNARevAlloc[Region]=$C$11)*(WNARevAlloc[CustClass]=D$12)*WNARevAlloc[AdjCSWNAS1Rev]),SUMPRODUCT((WNARevAlloc[MonthFlow]=$B21)*(WNARevAlloc[Region]=$C$11)*(WNARevAlloc[CustClass]=D$12)*WNARevAlloc[AdjCSWNAS2Rev])) -> -243.7295211 | E21: =-IF($C$6="S1",SUMPRODUCT((WNARevAlloc[MonthFlow]=$B21)*(WNARevAlloc[Region]=$E$11)*(WNARevAlloc[CustClass]=E$12)*WNARevAlloc[AdjCSWNAS1Rev]),SUMPRODUCT((WNARevAlloc[MonthFlow]=$B21)*(WNARevAlloc[Region]=$E$11)*(WNARevAlloc[CustClass]=E$12)*WNARevAlloc[AdjCSWNAS2Rev])) -> -304.6773313 | F21: =-IF($C$6="S1",SUMPRODUCT((WNARevAlloc[MonthFlow]=$B21)*(WNARevAlloc[Region]=$E$11)*(WNARevAlloc[CustClass]=F$12)*WNARevAlloc[AdjCSWNAS1Rev]),SUMPRODUCT((WNARevAlloc[MonthFlow]=$B21)*(WNARevAlloc[Region]=$E$11)*(WNARevAlloc[CustClass]=F$12)*WNARevAlloc[AdjCSWNAS2Rev])) -> -42.03771572 | G21: =-IF($C$6="S1",SUMPRODUCT((WNARevAlloc[MonthFlow]=$B21)*(WNARevAlloc[Region]=$G$11)*(WNARevAlloc[CustClass]=G$12)*WNARevAlloc[AdjCSWNAS1Rev]),SUMPRODUCT((WNARevAlloc[MonthFlow]=$B21)*(WNARevAlloc[Region]=$G$11)*(WNARevAlloc[CustClass]=G$12)*WNARevAlloc[AdjCSWNAS2Rev])) -> -1638.670553 | H21: =-IF($C$6="S1",SUMPRODUCT((WNARevAlloc[MonthFlow]=$B21)*(WNARevAlloc[Region]=$G$11)*(WNARevAlloc[CustClass]=H$12)*WNARevAlloc[AdjCSWNAS1Rev]),SUMPRODUCT((WNARevAlloc[MonthFlow]=$B21)*(WNARevAlloc[Region]=$G$11)*(WNARevAlloc[CustClass]=H$12)*WNARevAlloc[AdjCSWNAS2Rev])) -> -176.6214276 | I21: From WNARevAlloc Table
B22: 2024-09-01 | C22: =-IF($C$6="S1",SUMPRODUCT((WNARevAlloc[MonthFlow]=$B22)*(WNARevAlloc[Region]=$C$11)*(WNARevAlloc[CustClass]=C$12)*WNARevAlloc[AdjCSWNAS1Rev]),SUMPRODUCT((WNARevAlloc[MonthFlow]=$B22)*(WNARevAlloc[Region]=$C$11)*(WNARevAlloc[CustClass]=C$12)*WNARevAlloc[AdjCSWNAS2Rev])) -> -1685.68558 | D22: =-IF($C$6="S1",SUMPRODUCT((WNARevAlloc[MonthFlow]=$B22)*(WNARevAlloc[Region]=$C$11)*(WNARevAlloc[CustClass]=D$12)*WNARevAlloc[AdjCSWNAS1Rev]),SUMPRODUCT((WNARevAlloc[MonthFlow]=$B22)*(WNARevAlloc[Region]=$C$11)*(WNARevAlloc[CustClass]=D$12)*WNARevAlloc[AdjCSWNAS2Rev])) -> -286.7657304 | E22: =-IF($C$6="S1",SUMPRODUCT((WNARevAlloc[MonthFlow]=$B22)*(WNARevAlloc[Region]=$E$11)*(WNARevAlloc[CustClass]=E$12)*WNARevAlloc[AdjCSWNAS1Rev]),SUMPRODUCT((WNARevAlloc[MonthFlow]=$B22)*(WNARevAlloc[Region]=$E$11)*(WNARevAlloc[CustClass]=E$12)*WNARevAlloc[AdjCSWNAS2Rev])) -> -405.2952955 | F22: =-IF($C$6="S1",SUMPRODUCT((WNARevAlloc[MonthFlow]=$B22)*(WNARevAlloc[Region]=$E$11)*(WNARevAlloc[CustClass]=F$12)*WNARevAlloc[AdjCSWNAS1Rev]),SUMPRODUCT((WNARevAlloc[MonthFlow]=$B22)*(WNARevAlloc[Region]=$E$11)*(WNARevAlloc[CustClass]=F$12)*WNARevAlloc[AdjCSWNAS2Rev])) -> -68.22920255 | G22: =-IF($C$6="S1",SUMPRODUCT((WNARevAlloc[MonthFlow]=$B22)*(WNARevAlloc[Region]=$G$11)*(WNARevAlloc[CustClass]=G$12)*WNARevAlloc[AdjCSWNAS1Rev]),SUMPRODUCT((WNARevAlloc[MonthFlow]=$B22)*(WNARevAlloc[Region]=$G$11)*(WNARevAlloc[CustClass]=G$12)*WNARevAlloc[AdjCSWNAS2Rev])) -> -1776.891046 | H22: =-IF($C$6="S1",SUMPRODUCT((WNARevAlloc[MonthFlow]=$B22)*(WNARevAlloc[Region]=$G$11)*(WNARevAlloc[CustClass]=H$12)*WNARevAlloc[AdjCSWNAS1Rev]),SUMPRODUCT((WNARevAlloc[MonthFlow]=$B22)*(WNARevAlloc[Region]=$G$11)*(WNARevAlloc[CustClass]=H$12)*WNARevAlloc[AdjCSWNAS2Rev])) -> -188.5246465 | I22: From WNARevAlloc Table
B23: 2024-10-01 | C23: =-IF($C$6="S1",SUMPRODUCT((WNARevAlloc[MonthFlow]=$B23)*(WNARevAlloc[Region]=$C$11)*(WNARevAlloc[CustClass]=C$12)*WNARevAlloc[AdjCSWNAS1Rev]),SUMPRODUCT((WNARevAlloc[MonthFlow]=$B23)*(WNARevAlloc[Region]=$C$11)*(WNARevAlloc[CustClass]=C$12)*WNARevAlloc[AdjCSWNAS2Rev])) -> -6037.861438 | D23: =-IF($C$6="S1",SUMPRODUCT((WNARevAlloc[MonthFlow]=$B23)*(WNARevAlloc[Region]=$C$11)*(WNARevAlloc[CustClass]=D$12)*WNARevAlloc[AdjCSWNAS1Rev]),SUMPRODUCT((WNARevAlloc[MonthFlow]=$B23)*(WNARevAlloc[Region]=$C$11)*(WNARevAlloc[CustClass]=D$12)*WNARevAlloc[AdjCSWNAS2Rev])) -> -732.2967865 | E23: =-IF($C$6="S1",SUMPRODUCT((WNARevAlloc[MonthFlow]=$B23)*(WNARevAlloc[Region]=$E$11)*(WNARevAlloc[CustClass]=E$12)*WNARevAlloc[AdjCSWNAS1Rev]),SUMPRODUCT((WNARevAlloc[MonthFlow]=$B23)*(WNARevAlloc[Region]=$E$11)*(WNARevAlloc[CustClass]=E$12)*WNARevAlloc[AdjCSWNAS2Rev])) -> -1075.478815 | F23: =-IF($C$6="S1",SUMPRODUCT((WNARevAlloc[MonthFlow]=$B23)*(WNARevAlloc[Region]=$E$11)*(WNARevAlloc[CustClass]=F$12)*WNARevAlloc[AdjCSWNAS1Rev]),SUMPRODUCT((WNARevAlloc[MonthFlow]=$B23)*(WNARevAlloc[Region]=$E$11)*(WNARevAlloc[CustClass]=F$12)*WNARevAlloc[AdjCSWNAS2Rev])) -> -141.2507456 | G23: =-IF($C$6="S1",SUMPRODUCT((WNARevAlloc[MonthFlow]=$B23)*(WNARevAlloc[Region]=$G$11)*(WNARevAlloc[CustClass]=G$12)*WNARevAlloc[AdjCSWNAS1Rev]),SUMPRODUCT((WNARevAlloc[MonthFlow]=$B23)*(WNARevAlloc[Region]=$G$11)*(WNARevAlloc[CustClass]=G$12)*WNARevAlloc[AdjCSWNAS2Rev])) -> -3708.285473 | H23: =-IF($C$6="S1",SUMPRODUCT((WNARevAlloc[MonthFlow]=$B23)*(WNARevAlloc[Region]=$G$11)*(WNARevAlloc[CustClass]=H$12)*WNARevAlloc[AdjCSWNAS1Rev]),SUMPRODUCT((WNARevAlloc[MonthFlow]=$B23)*(WNARevAlloc[Region]=$G$11)*(WNARevAlloc[CustClass]=H$12)*WNARevAlloc[AdjCSWNAS2Rev])) -> -330.3629473 | I23: From WNARevAlloc Table
B24: 2024-11-01 | C24: =-IF($C$6="S1",SUMPRODUCT((WNARevAlloc[MonthFlow]=$B24)*(WNARevAlloc[Region]=$C$11)*(WNARevAlloc[CustClass]=C$12)*WNARevAlloc[AdjCSWNAS1Rev]),SUMPRODUCT((WNARevAlloc[MonthFlow]=$B24)*(WNARevAlloc[Region]=$C$11)*(WNARevAlloc[CustClass]=C$12)*WNARevAlloc[AdjCSWNAS2Rev])) -> -16831.14157 | D24: =-IF($C$6="S1",SUMPRODUCT((WNARevAlloc[MonthFlow]=$B24)*(WNARevAlloc[Region]=$C$11)*(WNARevAlloc[CustClass]=D$12)*WNARevAlloc[AdjCSWNAS1Rev]),SUMPRODUCT((WNARevAlloc[MonthFlow]=$B24)*(WNARevAlloc[Region]=$C$11)*(WNARevAlloc[CustClass]=D$12)*WNARevAlloc[AdjCSWNAS2Rev])) -> -2209.616466 | E24: =-IF($C$6="S1",SUMPRODUCT((WNARevAlloc[MonthFlow]=$B24)*(WNARevAlloc[Region]=$E$11)*(WNARevAlloc[CustClass]=E$12)*WNARevAlloc[AdjCSWNAS1Rev]),SUMPRODUCT((WNARevAlloc[MonthFlow]=$B24)*(WNARevAlloc[Region]=$E$11)*(WNARevAlloc[CustClass]=E$12)*WNARevAlloc[AdjCSWNAS2Rev])) -> -3498.784447 | F24: =-IF($C$6="S1",SUMPRODUCT((WNARevAlloc[MonthFlow]=$B24)*(WNARevAlloc[Region]=$E$11)*(WNARevAlloc[CustClass]=F$12)*WNARevAlloc[AdjCSWNAS1Rev]),SUMPRODUCT((WNARevAlloc[MonthFlow]=$B24)*(WNARevAlloc[Region]=$E$11)*(WNARevAlloc[CustClass]=F$12)*WNARevAlloc[AdjCSWNAS2Rev])) -> -537.7256211 | G24: =-IF($C$6="S1",SUMPRODUCT((WNARevAlloc[MonthFlow]=$B24)*(WNARevAlloc[Region]=$G$11)*(WNARevAlloc[CustClass]=G$12)*WNARevAlloc[AdjCSWNAS1Rev]),SUMPRODUCT((WNARevAlloc[MonthFlow]=$B24)*(WNARevAlloc[Region]=$G$11)*(WNARevAlloc[CustClass]=G$12)*WNARevAlloc[AdjCSWNAS2Rev])) -> -11268.45398 | H24: =-IF($C$6="S1",SUMPRODUCT((WNARevAlloc[MonthFlow]=$B24)*(WNARevAlloc[Region]=$G$11)*(WNARevAlloc[CustClass]=H$12)*WNARevAlloc[AdjCSWNAS1Rev]),SUMPRODUCT((WNARevAlloc[MonthFlow]=$B24)*(WNARevAlloc[Region]=$G$11)*(WNARevAlloc[CustClass]=H$12)*WNARevAlloc[AdjCSWNAS2Rev])) -> -1050.989334 | I24: From WNARevAlloc Table
B25: 2024-12-01 | C25: =-IF($C$6="S1",SUMPRODUCT((WNARevAlloc[MonthFlow]=$B25)*(WNARevAlloc[Region]=$C$11)*(WNARevAlloc[CustClass]=C$12)*WNARevAlloc[AdjCSWNAS1Rev]),SUMPRODUCT((WNARevAlloc[MonthFlow]=$B25)*(WNARevAlloc[Region]=$C$11)*(WNARevAlloc[CustClass]=C$12)*WNARevAlloc[AdjCSWNAS2Rev])) -> -25663.96932 | D25: =-IF($C$6="S1",SUMPRODUCT((WNARevAlloc[MonthFlow]=$B25)*(WNARevAlloc[Region]=$C$11)*(WNARevAlloc[CustClass]=D$12)*WNARevAlloc[AdjCSWNAS1Rev]),SUMPRODUCT((WNARevAlloc[MonthFlow]=$B25)*(WNARevAlloc[Region]=$C$11)*(WNARevAlloc[CustClass]=D$12)*WNARevAlloc[AdjCSWNAS2Rev])) -> -3512.628143 | E25: =-IF($C$6="S1",SUMPRODUCT((WNARevAlloc[MonthFlow]=$B25)*(WNARevAlloc[Region]=$E$11)*(WNARevAlloc[CustClass]=E$12)*WNARevAlloc[AdjCSWNAS1Rev]),SUMPRODUCT((WNARevAlloc[MonthFlow]=$B25)*(WNARevAlloc[Region]=$E$11)*(WNARevAlloc[CustClass]=E$12)*WNARevAlloc[AdjCSWNAS2Rev])) -> -4884.659645 | F25: =-IF($C$6="S1",SUMPRODUCT((WNARevAlloc[MonthFlow]=$B25)*(WNARevAlloc[Region]=$E$11)*(WNARevAlloc[CustClass]=F$12)*WNARevAlloc[AdjCSWNAS1Rev]),SUMPRODUCT((WNARevAlloc[MonthFlow]=$B25)*(WNARevAlloc[Region]=$E$11)*(WNARevAlloc[CustClass]=F$12)*WNARevAlloc[AdjCSWNAS2Rev])) -> -857.351815 | G25: =-IF($C$6="S1",SUMPRODUCT((WNARevAlloc[MonthFlow]=$B25)*(WNARevAlloc[Region]=$G$11)*(WNARevAlloc[CustClass]=G$12)*WNARevAlloc[AdjCSWNAS1Rev]),SUMPRODUCT((WNARevAlloc[MonthFlow]=$B25)*(WNARevAlloc[Region]=$G$11)*(WNARevAlloc[CustClass]=G$12)*WNARevAlloc[AdjCSWNAS2Rev])) -> -19019.54647 | H25: =-IF($C$6="S1",SUMPRODUCT((WNARevAlloc[MonthFlow]=$B25)*(WNARevAlloc[Region]=$G$11)*(WNARevAlloc[CustClass]=H$12)*WNARevAlloc[AdjCSWNAS1Rev]),SUMPRODUCT((WNARevAlloc[MonthFlow]=$B25)*(WNARevAlloc[Region]=$G$11)*(WNARevAlloc[CustClass]=H$12)*WNARevAlloc[AdjCSWNAS2Rev])) -> -2029.343282 | I25: From WNARevAlloc Table
B26: =EDATE(B25,1) -> 2025-01-01 | C26: =-IF($C$6="S1",SUMPRODUCT((WNARevAlloc[MonthFlow]=$B26)*(WNARevAlloc[Region]=$C$11)*(WNARevAlloc[CustClass]=C$12)*WNARevAlloc[AdjCSWNAS1Rev]),SUMPRODUCT((WNARevAlloc[MonthFlow]=$B26)*(WNARevAlloc[Region]=$C$11)*(WNARevAlloc[CustClass]=C$12)*WNARevAlloc[AdjCSWNAS2Rev])) -> -29298.2593 | D26: =-IF($C$6="S1",SUMPRODUCT((WNARevAlloc[MonthFlow]=$B26)*(WNARevAlloc[Region]=$C$11)*(WNARevAlloc[CustClass]=D$12)*WNARevAlloc[AdjCSWNAS1Rev]),SUMPRODUCT((WNARevAlloc[MonthFlow]=$B26)*(WNARevAlloc[Region]=$C$11)*(WNARevAlloc[CustClass]=D$12)*WNARevAlloc[AdjCSWNAS2Rev])) -> -4129.117054 | E26: =-IF($C$6="S1",SUMPRODUCT((WNARevAlloc[MonthFlow]=$B26)*(WNARevAlloc[Region]=$E$11)*(WNARevAlloc[CustClass]=E$12)*WNARevAlloc[AdjCSWNAS1Rev]),SUMPRODUCT((WNARevAlloc[MonthFlow]=$B26)*(WNARevAlloc[Region]=$E$11)*(WNARevAlloc[CustClass]=E$12)*WNARevAlloc[AdjCSWNAS2Rev])) -> -6270.191792 | F26: =-IF($C$6="S1",SUMPRODUCT((WNARevAlloc[MonthFlow]=$B26)*(WNARevAlloc[Region]=$E$11)*(WNARevAlloc[CustClass]=F$12)*WNARevAlloc[AdjCSWNAS1Rev]),SUMPRODUCT((WNARevAlloc[MonthFlow]=$B26)*(WNARevAlloc[Region]=$E$11)*(WNARevAlloc[CustClass]=F$12)*WNARevAlloc[AdjCSWNAS2Rev])) -> -1049.120524 | G26: =-IF($C$6="S1",SUMPRODUCT((WNARevAlloc[MonthFlow]=$B26)*(WNARevAlloc[Region]=$G$11)*(WNARevAlloc[CustClass]=G$12)*WNARevAlloc[AdjCSWNAS1Rev]),SUMPRODUCT((WNARevAlloc[MonthFlow]=$B26)*(WNARevAlloc[Region]=$G$11)*(WNARevAlloc[CustClass]=G$12)*WNARevAlloc[AdjCSWNAS2Rev])) -> -23156.44564 | H26: =-IF($C$6="S1",SUMPRODUCT((WNARevAlloc[MonthFlow]=$B26)*(WNARevAlloc[Region]=$G$11)*(WNARevAlloc[CustClass]=H$12)*WNARevAlloc[AdjCSWNAS1Rev]),SUMPRODUCT((WNARevAlloc[MonthFlow]=$B26)*(WNARevAlloc[Region]=$G$11)*(WNARevAlloc[CustClass]=H$12)*WNARevAlloc[AdjCSWNAS2Rev])) -> -2567.054941 | I26: From WNARevAlloc Table
B27: 2025-02-01 | C27: =-IF($C$6="S1",SUMPRODUCT((WNARevAlloc[MonthFlow]=$B27)*(WNARevAlloc[Region]=$C$11)*(WNARevAlloc[CustClass]=C$12)*WNARevAlloc[AdjCSWNAS1Rev]),SUMPRODUCT((WNARevAlloc[MonthFlow]=$B27)*(WNARevAlloc[Region]=$C$11)*(WNARevAlloc[CustClass]=C$12)*WNARevAlloc[AdjCSWNAS2Rev])) -> -15808.45376 | D27: =-IF($C$6="S1",SUMPRODUCT((WNARevAlloc[MonthFlow]=$B27)*(WNARevAlloc[Region]=$C$11)*(WNARevAlloc[CustClass]=D$12)*WNARevAlloc[AdjCSWNAS1Rev]),SUMPRODUCT((WNARevAlloc[MonthFlow]=$B27)*(WNARevAlloc[Region]=$C$11)*(WNARevAlloc[CustClass]=D$12)*WNARevAlloc[AdjCSWNAS2Rev])) -> -2173.668383 | E27: =-IF($C$6="S1",SUMPRODUCT((WNARevAlloc[MonthFlow]=$B27)*(WNARevAlloc[Region]=$E$11)*(WNARevAlloc[CustClass]=E$12)*WNARevAlloc[AdjCSWNAS1Rev]),SUMPRODUCT((WNARevAlloc[MonthFlow]=$B27)*(WNARevAlloc[Region]=$E$11)*(WNARevAlloc[CustClass]=E$12)*WNARevAlloc[AdjCSWNAS2Rev])) -> -2833.703388 | F27: =-IF($C$6="S1",SUMPRODUCT((WNARevAlloc[MonthFlow]=$B27)*(WNARevAlloc[Region]=$E$11)*(WNARevAlloc[CustClass]=F$12)*WNARevAlloc[AdjCSWNAS1Rev]),SUMPRODUCT((WNARevAlloc[MonthFlow]=$B27)*(WNARevAlloc[Region]=$E$11)*(WNARevAlloc[CustClass]=F$12)*WNARevAlloc[AdjCSWNAS2Rev])) -> -489.1531819 | G27: =-IF($C$6="S1",SUMPRODUCT((WNARevAlloc[MonthFlow]=$B27)*(WNARevAlloc[Region]=$G$11)*(WNARevAlloc[CustClass]=G$12)*WNARevAlloc[AdjCSWNAS1Rev]),SUMPRODUCT((WNARevAlloc[MonthFlow]=$B27)*(WNARevAlloc[Region]=$G$11)*(WNARevAlloc[CustClass]=G$12)*WNARevAlloc[AdjCSWNAS2Rev])) -> -16907.83179 | H27: =-IF($C$6="S1",SUMPRODUCT((WNARevAlloc[MonthFlow]=$B27)*(WNARevAlloc[Region]=$G$11)*(WNARevAlloc[CustClass]=H$12)*WNARevAlloc[AdjCSWNAS1Rev]),SUMPRODUCT((WNARevAlloc[MonthFlow]=$B27)*(WNARevAlloc[Region]=$G$11)*(WNARevAlloc[CustClass]=H$12)*WNARevAlloc[AdjCSWNAS2Rev])) -> -1873.685959 | I27: From WNARevAlloc Table
B28: 2025-03-01 | C28: =-IF($C$6="S1",SUMPRODUCT((WNARevAlloc[MonthFlow]=$B28)*(WNARevAlloc[Region]=$C$11)*(WNARevAlloc[CustClass]=C$12)*WNARevAlloc[AdjCSWNAS1Rev]),SUMPRODUCT((WNARevAlloc[MonthFlow]=$B28)*(WNARevAlloc[Region]=$C$11)*(WNARevAlloc[CustClass]=C$12)*WNARevAlloc[AdjCSWNAS2Rev])) -> -9887.822466 | D28: =-IF($C$6="S1",SUMPRODUCT((WNARevAlloc[MonthFlow]=$B28)*(WNARevAlloc[Region]=$C$11)*(WNARevAlloc[CustClass]=D$12)*WNARevAlloc[AdjCSWNAS1Rev]),SUMPRODUCT((WNARevAlloc[MonthFlow]=$B28)*(WNARevAlloc[Region]=$C$11)*(WNARevAlloc[CustClass]=D$12)*WNARevAlloc[AdjCSWNAS2Rev])) -> -1309.772656 | E28: =-IF($C$6="S1",SUMPRODUCT((WNARevAlloc[MonthFlow]=$B28)*(WNARevAlloc[Region]=$E$11)*(WNARevAlloc[CustClass]=E$12)*WNARevAlloc[AdjCSWNAS1Rev]),SUMPRODUCT((WNARevAlloc[MonthFlow]=$B28)*(WNARevAlloc[Region]=$E$11)*(WNARevAlloc[CustClass]=E$12)*WNARevAlloc[AdjCSWNAS2Rev])) -> -1610.762815 | F28: =-IF($C$6="S1",SUMPRODUCT((WNARevAlloc[MonthFlow]=$B28)*(WNARevAlloc[Region]=$E$11)*(WNARevAlloc[CustClass]=F$12)*WNARevAlloc[AdjCSWNAS1Rev]),SUMPRODUCT((WNARevAlloc[MonthFlow]=$B28)*(WNARevAlloc[Region]=$E$11)*(WNARevAlloc[CustClass]=F$12)*WNARevAlloc[AdjCSWNAS2Rev])) -> -275.6492643 | G28: =-IF($C$6="S1",SUMPRODUCT((WNARevAlloc[MonthFlow]=$B28)*(WNARevAlloc[Region]=$G$11)*(WNARevAlloc[CustClass]=G$12)*WNARevAlloc[AdjCSWNAS1Rev]),SUMPRODUCT((WNARevAlloc[MonthFlow]=$B28)*(WNARevAlloc[Region]=$G$11)*(WNARevAlloc[CustClass]=G$12)*WNARevAlloc[AdjCSWNAS2Rev])) -> -6643.668747 | H28: =-IF($C$6="S1",SUMPRODUCT((WNARevAlloc[MonthFlow]=$B28)*(WNARevAlloc[Region]=$G$11)*(WNARevAlloc[CustClass]=H$12)*WNARevAlloc[AdjCSWNAS1Rev]),SUMPRODUCT((WNARevAlloc[MonthFlow]=$B28)*(WNARevAlloc[Region]=$G$11)*(WNARevAlloc[CustClass]=H$12)*WNARevAlloc[AdjCSWNAS2Rev])) -> -686.7488938 | I28: From WNARevAlloc Table
B29: 2025-04-01 | C29: =-IF($C$6="S1",SUMPRODUCT((WNARevAlloc[MonthFlow]=$B29)*(WNARevAlloc[Region]=$C$11)*(WNARevAlloc[CustClass]=C$12)*WNARevAlloc[AdjCSWNAS1Rev]),SUMPRODUCT((WNARevAlloc[MonthFlow]=$B29)*(WNARevAlloc[Region]=$C$11)*(WNARevAlloc[CustClass]=C$12)*WNARevAlloc[AdjCSWNAS2Rev])) -> -3660.302635 | D29: =-IF($C$6="S1",SUMPRODUCT((WNARevAlloc[MonthFlow]=$B29)*(WNARevAlloc[Region]=$C$11)*(WNARevAlloc[CustClass]=D$12)*WNARevAlloc[AdjCSWNAS1Rev]),SUMPRODUCT((WNARevAlloc[MonthFlow]=$B29)*(WNARevAlloc[Region]=$C$11)*(WNARevAlloc[CustClass]=D$12)*WNARevAlloc[AdjCSWNAS2Rev])) -> -516.1472442 | E29: =-IF($C$6="S1",SUMPRODUCT((WNARevAlloc[MonthFlow]=$B29)*(WNARevAlloc[Region]=$E$11)*(WNARevAlloc[CustClass]=E$12)*WNARevAlloc[AdjCSWNAS1Rev]),SUMPRODUCT((WNARevAlloc[MonthFlow]=$B29)*(WNARevAlloc[Region]=$E$11)*(WNARevAlloc[CustClass]=E$12)*WNARevAlloc[AdjCSWNAS2Rev])) -> -628.6251932 | F29: =-IF($C$6="S1",SUMPRODUCT((WNARevAlloc[MonthFlow]=$B29)*(WNARevAlloc[Region]=$E$11)*(WNARevAlloc[CustClass]=F$12)*WNARevAlloc[AdjCSWNAS1Rev]),SUMPRODUCT((WNARevAlloc[MonthFlow]=$B29)*(WNARevAlloc[Region]=$E$11)*(WNARevAlloc[CustClass]=F$12)*WNARevAlloc[AdjCSWNAS2Rev])) -> -93.88284581 | G29: =-IF($C$6="S1",SUMPRODUCT((WNARevAlloc[MonthFlow]=$B29)*(WNARevAlloc[Region]=$G$11)*(WNARevAlloc[CustClass]=G$12)*WNARevAlloc[AdjCSWNAS1Rev]),SUMPRODUCT((WNARevAlloc[MonthFlow]=$B29)*(WNARevAlloc[Region]=$G$11)*(WNARevAlloc[CustClass]=G$12)*WNARevAlloc[AdjCSWNAS2Rev])) -> -3834.781808 | H29: =-IF($C$6="S1",SUMPRODUCT((WNARevAlloc[MonthFlow]=$B29)*(WNARevAlloc[Region]=$G$11)*(WNARevAlloc[CustClass]=H$12)*WNARevAlloc[AdjCSWNAS1Rev]),SUMPRODUCT((WNARevAlloc[MonthFlow]=$B29)*(WNARevAlloc[Region]=$G$11)*(WNARevAlloc[CustClass]=H$12)*WNARevAlloc[AdjCSWNAS2Rev])) -> -340.4952879 | I29: From WNARevAlloc Table
B30: 2025-05-01 | C30: =-IF($C$6="S1",SUMPRODUCT((WNARevAlloc[MonthFlow]=$B30)*(WNARevAlloc[Region]=$C$11)*(WNARevAlloc[CustClass]=C$12)*WNARevAlloc[AdjCSWNAS1Rev]),SUMPRODUCT((WNARevAlloc[MonthFlow]=$B30)*(WNARevAlloc[Region]=$C$11)*(WNARevAlloc[CustClass]=C$12)*WNARevAlloc[AdjCSWNAS2Rev])) -> -1970.969681 | D30: =-IF($C$6="S1",SUMPRODUCT((WNARevAlloc[MonthFlow]=$B30)*(WNARevAlloc[Region]=$C$11)*(WNARevAlloc[CustClass]=D$12)*WNARevAlloc[AdjCSWNAS1Rev]),SUMPRODUCT((WNARevAlloc[MonthFlow]=$B30)*(WNARevAlloc[Region]=$C$11)*(WNARevAlloc[CustClass]=D$12)*WNARevAlloc[AdjCSWNAS2Rev])) -> -327.4552467 | E30: =-IF($C$6="S1",SUMPRODUCT((WNARevAlloc[MonthFlow]=$B30)*(WNARevAlloc[Region]=$E$11)*(WNARevAlloc[CustClass]=E$12)*WNARevAlloc[AdjCSWNAS1Rev]),SUMPRODUCT((WNARevAlloc[MonthFlow]=$B30)*(WNARevAlloc[Region]=$E$11)*(WNARevAlloc[CustClass]=E$12)*WNARevAlloc[AdjCSWNAS2Rev])) -> -412.0039159 | F30: =-IF($C$6="S1",SUMPRODUCT((WNARevAlloc[MonthFlow]=$B30)*(WNARevAlloc[Region]=$E$11)*(WNARevAlloc[CustClass]=F$12)*WNARevAlloc[AdjCSWNAS1Rev]),SUMPRODUCT((WNARevAlloc[MonthFlow]=$B30)*(WNARevAlloc[Region]=$E$11)*(WNARevAlloc[CustClass]=F$12)*WNARevAlloc[AdjCSWNAS2Rev])) -> -70.16102643 | G30: =-IF($C$6="S1",SUMPRODUCT((WNARevAlloc[MonthFlow]=$B30)*(WNARevAlloc[Region]=$G$11)*(WNARevAlloc[CustClass]=G$12)*WNARevAlloc[AdjCSWNAS1Rev]),SUMPRODUCT((WNARevAlloc[MonthFlow]=$B30)*(WNARevAlloc[Region]=$G$11)*(WNARevAlloc[CustClass]=G$12)*WNARevAlloc[AdjCSWNAS2Rev])) -> -2025.148811 | H30: =-IF($C$6="S1",SUMPRODUCT((WNARevAlloc[MonthFlow]=$B30)*(WNARevAlloc[Region]=$G$11)*(WNARevAlloc[CustClass]=H$12)*WNARevAlloc[AdjCSWNAS1Rev]),SUMPRODUCT((WNARevAlloc[MonthFlow]=$B30)*(WNARevAlloc[Region]=$G$11)*(WNARevAlloc[CustClass]=H$12)*WNARevAlloc[AdjCSWNAS2Rev])) -> -222.2503698 | I30: From WNARevAlloc Table
B31: 2025-06-01 | C31: =-IF($C$6="S1",SUMPRODUCT((WNARevAlloc[MonthFlow]=$B31)*(WNARevAlloc[Region]=$C$11)*(WNARevAlloc[CustClass]=C$12)*WNARevAlloc[AdjCSWNAS1Rev]),SUMPRODUCT((WNARevAlloc[MonthFlow]=$B31)*(WNARevAlloc[Region]=$C$11)*(WNARevAlloc[CustClass]=C$12)*WNARevAlloc[AdjCSWNAS2Rev])) -> -1466.987231 | D31: =-IF($C$6="S1",SUMPRODUCT((WNARevAlloc[MonthFlow]=$B31)*(WNARevAlloc[Region]=$C$11)*(WNARevAlloc[CustClass]=D$12)*WNARevAlloc[AdjCSWNAS1Rev]),SUMPRODUCT((WNARevAlloc[MonthFlow]=$B31)*(WNARevAlloc[Region]=$C$11)*(WNARevAlloc[CustClass]=D$12)*WNARevAlloc[AdjCSWNAS2Rev])) -> -255.2433304 | E31: =-IF($C$6="S1",SUMPRODUCT((WNARevAlloc[MonthFlow]=$B31)*(WNARevAlloc[Region]=$E$11)*(WNARevAlloc[CustClass]=E$12)*WNARevAlloc[AdjCSWNAS1Rev]),SUMPRODUCT((WNARevAlloc[MonthFlow]=$B31)*(WNARevAlloc[Region]=$E$11)*(WNARevAlloc[CustClass]=E$12)*WNARevAlloc[AdjCSWNAS2Rev])) -> -290.8288377 | F31: =-IF($C$6="S1",SUMPRODUCT((WNARevAlloc[MonthFlow]=$B31)*(WNARevAlloc[Region]=$E$11)*(WNARevAlloc[CustClass]=F$12)*WNARevAlloc[AdjCSWNAS1Rev]),SUMPRODUCT((WNARevAlloc[MonthFlow]=$B31)*(WNARevAlloc[Region]=$E$11)*(WNARevAlloc[CustClass]=F$12)*WNARevAlloc[AdjCSWNAS2Rev])) -> -59.75758045 | G31: =-IF($C$6="S1",SUMPRODUCT((WNARevAlloc[MonthFlow]=$B31)*(WNARevAlloc[Region]=$G$11)*(WNARevAlloc[CustClass]=G$12)*WNARevAlloc[AdjCSWNAS1Rev]),SUMPRODUCT((WNARevAlloc[MonthFlow]=$B31)*(WNARevAlloc[Region]=$G$11)*(WNARevAlloc[CustClass]=G$12)*WNARevAlloc[AdjCSWNAS2Rev])) -> -1622.106619 | H31: =-IF($C$6="S1",SUMPRODUCT((WNARevAlloc[MonthFlow]=$B31)*(WNARevAlloc[Region]=$G$11)*(WNARevAlloc[CustClass]=H$12)*WNARevAlloc[AdjCSWNAS1Rev]),SUMPRODUCT((WNARevAlloc[MonthFlow]=$B31)*(WNARevAlloc[Region]=$G$11)*(WNARevAlloc[CustClass]=H$12)*WNARevAlloc[AdjCSWNAS2Rev])) -> -178.662675 | I31: From WNARevAlloc Table
B32: Total Actual Revenues | C32: =SUM(C17:C31) -> -121721.6351 | D32: =SUM(D17:D31) -> -16858.40854 | E32: -23702.43559 | F32: -3922.329227 | G32: -100108.0731 | H32: -10519.29091
B33: Projected Revenues
B34: =EDATE(B31,1) -> 2025-07-01 | C34: =-SUMPRODUCT((CustEstRev[MonthFlow]=$B34)*(CustEstRev[Region]=$C$11)*(CustEstRev[CustClass]=C$12)*(CustEstRev[Period]=$C$6)*CustEstRev[CSWNARev]) -> -1406 | D34: =-SUMPRODUCT((CustEstRev[MonthFlow]=$B34)*(CustEstRev[Region]=$C$11)*(CustEstRev[CustClass]=D$12)*(CustEstRev[Period]=$C$6)*CustEstRev[CSWNARev]) -> -260 | E34: =-SUMPRODUCT((CustEstRev[MonthFlow]=$B34)*(CustEstRev[Region]=$E$11)*(CustEstRev[CustClass]=E$12)*(CustEstRev[Period]=$C$6)*CustEstRev[CSWNARev]) -> -262 | F34: =-SUMPRODUCT((CustEstRev[MonthFlow]=$B34)*(CustEstRev[Region]=$E$11)*(CustEstRev[CustClass]=F$12)*(CustEstRev[Period]=$C$6)*CustEstRev[CSWNARev]) -> -53 | G34: =-SUMPRODUCT((CustEstRev[MonthFlow]=$B34)*(CustEstRev[Region]=$G$11)*(CustEstRev[CustClass]=G$12)*(CustEstRev[Period]=$C$6)*CustEstRev[CSWNARev]) -> -1613 | H34: =-SUMPRODUCT((CustEstRev[MonthFlow]=$B34)*(CustEstRev[Region]=$G$11)*(CustEstRev[CustClass]=H$12)*(CustEstRev[Period]=$C$6)*CustEstRev[CSWNARev]) -> -177 | I34: From CustEstRev Table
B35: =EDATE(B34,1) -> 2025-08-01 | C35: =-SUMPRODUCT((CustEstRev[MonthFlow]=$B35)*(CustEstRev[Region]=$C$11)*(CustEstRev[CustClass]=C$12)*(CustEstRev[Period]=$C$6)*CustEstRev[CSWNARev]) -> -1635 | D35: =-SUMPRODUCT((CustEstRev[MonthFlow]=$B35)*(CustEstRev[Region]=$C$11)*(CustEstRev[CustClass]=D$12)*(CustEstRev[Period]=$C$6)*CustEstRev[CSWNARev]) -> -310 | E35: =-SUMPRODUCT((CustEstRev[MonthFlow]=$B35)*(CustEstRev[Region]=$E$11)*(CustEstRev[CustClass]=E$12)*(CustEstRev[Period]=$C$6)*CustEstRev[CSWNARev]) -> -307 | F35: =-SUMPRODUCT((CustEstRev[MonthFlow]=$B35)*(CustEstRev[Region]=$E$11)*(CustEstRev[CustClass]=F$12)*(CustEstRev[Period]=$C$6)*CustEstRev[CSWNARev]) -> -84 | G35: =-SUMPRODUCT((CustEstRev[MonthFlow]=$B35)*(CustEstRev[Region]=$G$11)*(CustEstRev[CustClass]=G$12)*(CustEstRev[Period]=$C$6)*CustEstRev[CSWNARev]) -> -1800 | H35: =-SUMPRODUCT((CustEstRev[MonthFlow]=$B35)*(CustEstRev[Region]=$G$11)*(CustEstRev[CustClass]=H$12)*(CustEstRev[Period]=$C$6)*CustEstRev[CSWNARev]) -> -240 | I35: From CustEstRev Table
B36: =EDATE(B35,1) -> 2025-09-01 | C36: =-SUMPRODUCT((CustEstRev[MonthFlow]=$B36)*(CustEstRev[Region]=$C$11)*(CustEstRev[CustClass]=C$12)*(CustEstRev[Period]=$C$6)*CustEstRev[CSWNARev]) -> -1814 | D36: =-SUMPRODUCT((CustEstRev[MonthFlow]=$B36)*(CustEstRev[Region]=$C$11)*(CustEstRev[CustClass]=D$12)*(CustEstRev[Period]=$C$6)*CustEstRev[CSWNARev]) -> -293 | E36: =-SUMPRODUCT((CustEstRev[MonthFlow]=$B36)*(CustEstRev[Region]=$E$11)*(CustEstRev[CustClass]=E$12)*(CustEstRev[Period]=$C$6)*CustEstRev[CSWNARev]) -> -423 | F36: =-SUMPRODUCT((CustEstRev[MonthFlow]=$B36)*(CustEstRev[Region]=$E$11)*(CustEstRev[CustClass]=F$12)*(CustEstRev[Period]=$C$6)*CustEstRev[CSWNARev]) -> -75 | G36: =-SUMPRODUCT((CustEstRev[MonthFlow]=$B36)*(CustEstRev[Region]=$G$11)*(CustEstRev[CustClass]=G$12)*(CustEstRev[Period]=$C$6)*CustEstRev[CSWNARev]) -> -1807 | H36: =-SUMPRODUCT((CustEstRev[MonthFlow]=$B36)*(CustEstRev[Region]=$G$11)*(CustEstRev[CustClass]=H$12)*(CustEstRev[Period]=$C$6)*CustEstRev[CSWNARev]) -> -198 | I36: From CustEstRev Table
B37: Total Projected Revenues | C37: =SUM(C34:C36) -> -4855 | D37: =SUM(D34:D36) -> -863 | E37: -992 | F37: -212 | G37: -5220 | H37: -615
B38: Total Billings | C38: =C32+C37 -> -126576.6351 | D38: =D32+D37 -> -17721.40854 | E38: -24694.43559 | F38: -4134.329227 | G38: -105328.0731 | H38: -11134.29091
B39: CWNA Net (Over)/Under Recov 1/ | C39: =ROUND(C15+C38,2) -> -4827.3 | D39: =ROUND(D15+D38,2) -> -2845.93 | E39: 3940.9 | F39: -182.84 | G39: -3495.8 | H39: -1862.75
B41: Reconciliation Summary | C41: ARR
B42: Customer Class | C42: NEMO | E42: WEMO | G42: SEMO | I42: Notes
B43: Region | C43: Res | D43: SGS | E43: Res | F43: SGS | G43: Res | H43: SGS
B44: Reconciling Period Adj. | C44: =SUMPRODUCT((ReconPerAdj[EffDate]=$C$7)*(ReconPerAdj[Region]=$C$42)*(ReconPerAdj[CustClass]=C$43)*(ReconPerAdj[RateName]=$C$41)*ReconPerAdj[ReconcilingPeriodAdj]) -> 1048.1 | D44: =SUMPRODUCT((ReconPerAdj[EffDate]=$C$7)*(ReconPerAdj[Region]=$C$42)*(ReconPerAdj[CustClass]=D$43)*(ReconPerAdj[RateName]=$C$41)*ReconPerAdj[ReconcilingPeriodAdj]) -> 10290.04 | E44: =SUMPRODUCT((ReconPerAdj[EffDate]=$C$7)*(ReconPerAdj[Region]=$E$42)*(ReconPerAdj[CustClass]=E$43)*(ReconPerAdj[RateName]=$C$41)*ReconPerAdj[ReconcilingPeriodAdj]) -> 16534.12 | F44: =SUMPRODUCT((ReconPerAdj[EffDate]=$C$7)*(ReconPerAdj[Region]=$E$42)*(ReconPerAdj[CustClass]=F$43)*(ReconPerAdj[RateName]=$C$41)*ReconPerAdj[ReconcilingPeriodAdj]) -> 5150.91 | G44: =SUMPRODUCT((ReconPerAdj[EffDate]=$C$7)*(ReconPerAdj[Region]=$G$42)*(ReconPerAdj[CustClass]=G$43)*(ReconPerAdj[RateName]=$C$41)*ReconPerAdj[ReconcilingPeriodAdj]) -> -33967.48 | H44: =SUMPRODUCT((ReconPerAdj[EffDate]=$C$7)*(ReconPerAdj[Region]=$G$42)*(ReconPerAdj[CustClass]=H$43)*(ReconPerAdj[RateName]=$C$41)*ReconPerAdj[ReconcilingPeriodAdj]) -> -1882.91 | I44: From ReconPerAdj Table
B45: Volumetric True-Up | C45: =SUMPRODUCT((VolTrueUp[Year]=$C$5)*(VolTrueUp[Period]=$C$6)*(VolTrueUp[Region]=$C42)*(VolTrueUp[CustClass]=C$43)*VolTrueUp[TrueUp]) -> 88945.59 | D45: =SUMPRODUCT((VolTrueUp[Year]=$C$5)*(VolTrueUp[Period]=$C$6)*(VolTrueUp[Region]=$C42)*(VolTrueUp[CustClass]=D$43)*VolTrueUp[TrueUp]) -> 21379.61 | E45: =SUMPRODUCT((VolTrueUp[Year]=$C$5)*(VolTrueUp[Period]=$C$6)*(VolTrueUp[Region]=$E42)*(VolTrueUp[CustClass]=E$43)*VolTrueUp[TrueUp]) -> 18876.59 | F45: =SUMPRODUCT((VolTrueUp[Year]=$C$5)*(VolTrueUp[Period]=$C$6)*(VolTrueUp[Region]=$E42)*(VolTrueUp[CustClass]=F$43)*VolTrueUp[TrueUp]) -> 4701.11 | G45: =SUMPRODUCT((VolTrueUp[Year]=$C$5)*(VolTrueUp[Period]=$C$6)*(VolTrueUp[Region]=$G42)*(VolTrueUp[CustClass]=G$43)*VolTrueUp[TrueUp]) -> 88024.11 | H45: =SUMPRODUCT((VolTrueUp[Year]=$C$5)*(VolTrueUp[Period]=$C$6)*(VolTrueUp[Region]=$G42)*(VolTrueUp[CustClass]=H$43)*VolTrueUp[TrueUp]) -> 2592.91 | I45: From VolTrueUp Table
B46: Adj. Amount to be Recovered | C46: =C44+C45 -> 89993.69 | D46: =D44+D45 -> 31669.65 | E46: 35410.71 | F46: 9852.02 | G46: 54056.63 | H46: 710
B47: Actual Revenues
B48: =C7 -> 2024-04-01 | C48: =-ROUND(IF($C$6="S1",SUMPRODUCT((WNARevAlloc[MonthFlow]=$B48)*(WNARevAlloc[Region]=$C$42)*(WNARevAlloc[CustClass]=C$43)*WNARevAlloc[AdjSRRS1Rev]),SUMPRODUCT((WNARevAlloc[MonthFlow]=$B48)*(WNARevAlloc[Region]=$C$42)*(WNARevAlloc[CustClass]=C$43)*WNARevAlloc[AdjSRRS2Rev])),2) -> -390.43 | D48: =-ROUND(IF($C$6="S1",SUMPRODUCT((WNARevAlloc[MonthFlow]=$B48)*(WNARevAlloc[Region]=$C$42)*(WNARevAlloc[CustClass]=D$43)*WNARevAlloc[AdjSRRS1Rev]),SUMPRODUCT((WNARevAlloc[MonthFlow]=$B48)*(WNARevAlloc[Region]=$C$42)*(WNARevAlloc[CustClass]=D$43)*WNARevAlloc[AdjSRRS2Rev])),2) -> -28.38 | E48: =-ROUND(IF($C$6="S1",SUMPRODUCT((WNARevAlloc[MonthFlow]=$B48)*(WNARevAlloc[Region]=$E$42)*(WNARevAlloc[CustClass]=E$43)*WNARevAlloc[AdjSRRS1Rev]),SUMPRODUCT((WNARevAlloc[MonthFlow]=$B48)*(WNARevAlloc[Region]=$E$42)*(WNARevAlloc[CustClass]=E$43)*WNARevAlloc[AdjSRRS2Rev])),2) -> -7.77 | F48: =-ROUND(IF($C$6="S1",SUMPRODUCT((WNARevAlloc[MonthFlow]=$B48)*(WNARevAlloc[Region]=$E$42)*(WNARevAlloc[CustClass]=F$43)*WNARevAlloc[AdjSRRS1Rev]),SUMPRODUCT((WNARevAlloc[MonthFlow]=$B48)*(WNARevAlloc[Region]=$E$42)*(WNARevAlloc[CustClass]=F$43)*WNARevAlloc[AdjSRRS2Rev])),2) -> 20.71 | G48: =-ROUND(IF($C$6="S1",SUMPRODUCT((WNARevAlloc[MonthFlow]=$B48)*(WNARevAlloc[Region]=$G$42)*(WNARevAlloc[CustClass]=G$43)*WNARevAlloc[AdjSRRS1Rev]),SUMPRODUCT((WNARevAlloc[MonthFlow]=$B48)*(WNARevAlloc[Region]=$G$42)*(WNARevAlloc[CustClass]=G$43)*WNARevAlloc[AdjSRRS2Rev])),2) -> 1728.84 | H48: =-ROUND(IF($C$6="S1",SUMPRODUCT((WNARevAlloc[MonthFlow]=$B48)*(WNARevAlloc[Region]=$G$42)*(WNARevAlloc[CustClass]=H$43)*WNARevAlloc[AdjSRRS1Rev]),SUMPRODUCT((WNARevAlloc[MonthFlow]=$B48)*(WNARevAlloc[Region]=$G$42)*(WNARevAlloc[CustClass]=H$43)*WNARevAlloc[AdjSRRS2Rev])),2) -> 109.04 | I48: From WNARevAlloc Table
B49: =EDATE(B48,1) -> 2024-05-01 | C49: =-ROUND(IF($C$6="S1",SUMPRODUCT((WNARevAlloc[MonthFlow]=$B49)*(WNARevAlloc[Region]=$C$42)*(WNARevAlloc[CustClass]=C$43)*WNARevAlloc[AdjSRRS1Rev]),SUMPRODUCT((WNARevAlloc[MonthFlow]=$B49)*(WNARevAlloc[Region]=$C$42)*(WNARevAlloc[CustClass]=C$43)*WNARevAlloc[AdjSRRS2Rev])),2) -> -172.43 | D49: =-ROUND(IF($C$6="S1",SUMPRODUCT((WNARevAlloc[MonthFlow]=$B49)*(WNARevAlloc[Region]=$C$42)*(WNARevAlloc[CustClass]=D$43)*WNARevAlloc[AdjSRRS1Rev]),SUMPRODUCT((WNARevAlloc[MonthFlow]=$B49)*(WNARevAlloc[Region]=$C$42)*(WNARevAlloc[CustClass]=D$43)*WNARevAlloc[AdjSRRS2Rev])),2) -> -224.9 | E49: =-ROUND(IF($C$6="S1",SUMPRODUCT((WNARevAlloc[MonthFlow]=$B49)*(WNARevAlloc[Region]=$E$42)*(WNARevAlloc[CustClass]=E$43)*WNARevAlloc[AdjSRRS1Rev]),SUMPRODUCT((WNARevAlloc[MonthFlow]=$B49)*(WNARevAlloc[Region]=$E$42)*(WNARevAlloc[CustClass]=E$43)*WNARevAlloc[AdjSRRS2Rev])),2) -> -44.52 | F49: =-ROUND(IF($C$6="S1",SUMPRODUCT((WNARevAlloc[MonthFlow]=$B49)*(WNARevAlloc[Region]=$E$42)*(WNARevAlloc[CustClass]=F$43)*WNARevAlloc[AdjSRRS1Rev]),SUMPRODUCT((WNARevAlloc[MonthFlow]=$B49)*(WNARevAlloc[Region]=$E$42)*(WNARevAlloc[CustClass]=F$43)*WNARevAlloc[AdjSRRS2Rev])),2) -> -1.97 | G49: =-ROUND(IF($C$6="S1",SUMPRODUCT((WNARevAlloc[MonthFlow]=$B49)*(WNARevAlloc[Region]=$G$42)*(WNARevAlloc[CustClass]=G$43)*WNARevAlloc[AdjSRRS1Rev]),SUMPRODUCT((WNARevAlloc[MonthFlow]=$B49)*(WNARevAlloc[Region]=$G$42)*(WNARevAlloc[CustClass]=G$43)*WNARevAlloc[AdjSRRS2Rev])),2) -> 693.22 | H49: =-ROUND(IF($C$6="S1",SUMPRODUCT((WNARevAlloc[MonthFlow]=$B49)*(WNARevAlloc[Region]=$G$42)*(WNARevAlloc[CustClass]=H$43)*WNARevAlloc[AdjSRRS1Rev]),SUMPRODUCT((WNARevAlloc[MonthFlow]=$B49)*(WNARevAlloc[Region]=$G$42)*(WNARevAlloc[CustClass]=H$43)*WNARevAlloc[AdjSRRS2Rev])),2) -> 37.6 | I49: From WNARevAlloc Table
B50: =EDATE(B49,1) -> 2024-06-01 | C50: =-ROUND(IF($C$6="S1",SUMPRODUCT((WNARevAlloc[MonthFlow]=$B50)*(WNARevAlloc[Region]=$C$42)*(WNARevAlloc[CustClass]=C$43)*WNARevAlloc[AdjSRRS1Rev]),SUMPRODUCT((WNARevAlloc[MonthFlow]=$B50)*(WNARevAlloc[Region]=$C$42)*(WNARevAlloc[CustClass]=C$43)*WNARevAlloc[AdjSRRS2Rev])),2) -> -151.52 | D50: =-ROUND(IF($C$6="S1",SUMPRODUCT((WNARevAlloc[MonthFlow]=$B50)*(WNARevAlloc[Region]=$C$42)*(WNARevAlloc[CustClass]=D$43)*WNARevAlloc[AdjSRRS1Rev]),SUMPRODUCT((WNARevAlloc[MonthFlow]=$B50)*(WNARevAlloc[Region]=$C$42)*(WNARevAlloc[CustClass]=D$43)*WNARevAlloc[AdjSRRS2Rev])),2) -> -162.72 | E50: =-ROUND(IF($C$6="S1",SUMPRODUCT((WNARevAlloc[MonthFlow]=$B50)*(WNARevAlloc[Region]=$E$42)*(WNARevAlloc[CustClass]=E$43)*WNARevAlloc[AdjSRRS1Rev]),SUMPRODUCT((WNARevAlloc[MonthFlow]=$B50)*(WNARevAlloc[Region]=$E$42)*(WNARevAlloc[CustClass]=E$43)*WNARevAlloc[AdjSRRS2Rev])),2) -> -30.61 | F50: =-ROUND(IF($C$6="S1",SUMPRODUCT((WNARevAlloc[MonthFlow]=$B50)*(WNARevAlloc[Region]=$E$42)*(WNARevAlloc[CustClass]=F$43)*WNARevAlloc[AdjSRRS1Rev]),SUMPRODUCT((WNARevAlloc[MonthFlow]=$B50)*(WNARevAlloc[Region]=$E$42)*(WNARevAlloc[CustClass]=F$43)*WNARevAlloc[AdjSRRS2Rev])),2) -> -52.06 | G50: =-ROUND(IF($C$6="S1",SUMPRODUCT((WNARevAlloc[MonthFlow]=$B50)*(WNARevAlloc[Region]=$G$42)*(WNARevAlloc[CustClass]=G$43)*WNARevAlloc[AdjSRRS1Rev]),SUMPRODUCT((WNARevAlloc[MonthFlow]=$B50)*(WNARevAlloc[Region]=$G$42)*(WNARevAlloc[CustClass]=G$43)*WNARevAlloc[AdjSRRS2Rev])),2) -> 390.27 | H50: =-ROUND(IF($C$6="S1",SUMPRODUCT((WNARevAlloc[MonthFlow]=$B50)*(WNARevAlloc[Region]=$G$42)*(WNARevAlloc[CustClass]=H$43)*WNARevAlloc[AdjSRRS1Rev]),SUMPRODUCT((WNARevAlloc[MonthFlow]=$B50)*(WNARevAlloc[Region]=$G$42)*(WNARevAlloc[CustClass]=H$43)*WNARevAlloc[AdjSRRS2Rev])),2) -> 30.79 | I50: From WNARevAlloc Table
B51: 2024-07-01 | C51: =-ROUND(IF($C$6="S1",SUMPRODUCT((WNARevAlloc[MonthFlow]=$B51)*(WNARevAlloc[Region]=$C$42)*(WNARevAlloc[CustClass]=C$43)*WNARevAlloc[AdjSRRS1Rev]),SUMPRODUCT((WNARevAlloc[MonthFlow]=$B51)*(WNARevAlloc[Region]=$C$42)*(WNARevAlloc[CustClass]=C$43)*WNARevAlloc[AdjSRRS2Rev])),2) -> -136.13 | D51: =-ROUND(IF($C$6="S1",SUMPRODUCT((WNARevAlloc[MonthFlow]=$B51)*(WNARevAlloc[Region]=$C$42)*(WNARevAlloc[CustClass]=D$43)*WNARevAlloc[AdjSRRS1Rev]),SUMPRODUCT((WNARevAlloc[MonthFlow]=$B51)*(WNARevAlloc[Region]=$C$42)*(WNARevAlloc[CustClass]=D$43)*WNARevAlloc[AdjSRRS2Rev])),2) -> -196.26 | E51: =-ROUND(IF($C$6="S1",SUMPRODUCT((WNARevAlloc[MonthFlow]=$B51)*(WNARevAlloc[Region]=$E$42)*(WNARevAlloc[CustClass]=E$43)*WNARevAlloc[AdjSRRS1Rev]),SUMPRODUCT((WNARevAlloc[MonthFlow]=$B51)*(WNARevAlloc[Region]=$E$42)*(WNARevAlloc[CustClass]=E$43)*WNARevAlloc[AdjSRRS2Rev])),2) -> -30.64 | F51: =-ROUND(IF($C$6="S1",SUMPRODUCT((WNARevAlloc[MonthFlow]=$B51)*(WNARevAlloc[Region]=$E$42)*(WNARevAlloc[CustClass]=F$43)*WNARevAlloc[AdjSRRS1Rev]),SUMPRODUCT((WNARevAlloc[MonthFlow]=$B51)*(WNARevAlloc[Region]=$E$42)*(WNARevAlloc[CustClass]=F$43)*WNARevAlloc[AdjSRRS2Rev])),2) -> -43.27 | G51: =-ROUND(IF($C$6="S1",SUMPRODUCT((WNARevAlloc[MonthFlow]=$B51)*(WNARevAlloc[Region]=$G$42)*(WNARevAlloc[CustClass]=G$43)*WNARevAlloc[AdjSRRS1Rev]),SUMPRODUCT((WNARevAlloc[MonthFlow]=$B51)*(WNARevAlloc[Region]=$G$42)*(WNARevAlloc[CustClass]=G$43)*WNARevAlloc[AdjSRRS2Rev])),2) -> 655.85 | H51: =-ROUND(IF($C$6="S1",SUMPRODUCT((WNARevAlloc[MonthFlow]=$B51)*(WNARevAlloc[Region]=$G$42)*(WNARevAlloc[CustClass]=H$43)*WNARevAlloc[AdjSRRS1Rev]),SUMPRODUCT((WNARevAlloc[MonthFlow]=$B51)*(WNARevAlloc[Region]=$G$42)*(WNARevAlloc[CustClass]=H$43)*WNARevAlloc[AdjSRRS2Rev])),2) -> 31.94 | I51: From WNARevAlloc Table
B52: 2024-08-01 | C52: =-ROUND(IF($C$6="S1",SUMPRODUCT((WNARevAlloc[MonthFlow]=$B52)*(WNARevAlloc[Region]=$C$42)*(WNARevAlloc[CustClass]=C$43)*WNARevAlloc[AdjSRRS1Rev]),SUMPRODUCT((WNARevAlloc[MonthFlow]=$B52)*(WNARevAlloc[Region]=$C$42)*(WNARevAlloc[CustClass]=C$43)*WNARevAlloc[AdjSRRS2Rev])),2) -> 42.11 | D52: =-ROUND(IF($C$6="S1",SUMPRODUCT((WNARevAlloc[MonthFlow]=$B52)*(WNARevAlloc[Region]=$C$42)*(WNARevAlloc[CustClass]=D$43)*WNARevAlloc[AdjSRRS1Rev]),SUMPRODUCT((WNARevAlloc[MonthFlow]=$B52)*(WNARevAlloc[Region]=$C$42)*(WNARevAlloc[CustClass]=D$43)*WNARevAlloc[AdjSRRS2Rev])),2) -> -50.9 | E52: =-ROUND(IF($C$6="S1",SUMPRODUCT((WNARevAlloc[MonthFlow]=$B52)*(WNARevAlloc[Region]=$E$42)*(WNARevAlloc[CustClass]=E$43)*WNARevAlloc[AdjSRRS1Rev]),SUMPRODUCT((WNARevAlloc[MonthFlow]=$B52)*(WNARevAlloc[Region]=$E$42)*(WNARevAlloc[CustClass]=E$43)*WNARevAlloc[AdjSRRS2Rev])),2) -> -32.27 | F52: =-ROUND(IF($C$6="S1",SUMPRODUCT((WNARevAlloc[MonthFlow]=$B52)*(WNARevAlloc[Region]=$E$42)*(WNARevAlloc[CustClass]=F$43)*WNARevAlloc[AdjSRRS1Rev]),SUMPRODUCT((WNARevAlloc[MonthFlow]=$B52)*(WNARevAlloc[Region]=$E$42)*(WNARevAlloc[CustClass]=F$43)*WNARevAlloc[AdjSRRS2Rev])),2) -> 60.32 | G52: =-ROUND(IF($C$6="S1",SUMPRODUCT((WNARevAlloc[MonthFlow]=$B52)*(WNARevAlloc[Region]=$G$42)*(WNARevAlloc[CustClass]=G$43)*WNARevAlloc[AdjSRRS1Rev]),SUMPRODUCT((WNARevAlloc[MonthFlow]=$B52)*(WNARevAlloc[Region]=$G$42)*(WNARevAlloc[CustClass]=G$43)*WNARevAlloc[AdjSRRS2Rev])),2) -> 1281.41 | H52: =-ROUND(IF($C$6="S1",SUMPRODUCT((WNARevAlloc[MonthFlow]=$B52)*(WNARevAlloc[Region]=$G$42)*(WNARevAlloc[CustClass]=H$43)*WNARevAlloc[AdjSRRS1Rev]),SUMPRODUCT((WNARevAlloc[MonthFlow]=$B52)*(WNARevAlloc[Region]=$G$42)*(WNARevAlloc[CustClass]=H$43)*WNARevAlloc[AdjSRRS2Rev])),2) -> 120.66 | I52: From WNARevAlloc Table
B53: 2024-09-01 | C53: =-ROUND(IF($C$6="S1",SUMPRODUCT((WNARevAlloc[MonthFlow]=$B53)*(WNARevAlloc[Region]=$C$42)*(WNARevAlloc[CustClass]=C$43)*WNARevAlloc[AdjSRRS1Rev]),SUMPRODUCT((WNARevAlloc[MonthFlow]=$B53)*(WNARevAlloc[Region]=$C$42)*(WNARevAlloc[CustClass]=C$43)*WNARevAlloc[AdjSRRS2Rev])),2) -> -26.5 | D53: =-ROUND(IF($C$6="S1",SUMPRODUCT((WNARevAlloc[MonthFlow]=$B53)*(WNARevAlloc[Region]=$C$42)*(WNARevAlloc[CustClass]=D$43)*WNARevAlloc[AdjSRRS1Rev]),SUMPRODUCT((WNARevAlloc[MonthFlow]=$B53)*(WNARevAlloc[Region]=$C$42)*(WNARevAlloc[CustClass]=D$43)*WNARevAlloc[AdjSRRS2Rev])),2) -> -220.74 | E53: =-ROUND(IF($C$6="S1",SUMPRODUCT((WNARevAlloc[MonthFlow]=$B53)*(WNARevAlloc[Region]=$E$42)*(WNARevAlloc[CustClass]=E$43)*WNARevAlloc[AdjSRRS1Rev]),SUMPRODUCT((WNARevAlloc[MonthFlow]=$B53)*(WNARevAlloc[Region]=$E$42)*(WNARevAlloc[CustClass]=E$43)*WNARevAlloc[AdjSRRS2Rev])),2) -> -22.74 | F53: =-ROUND(IF($C$6="S1",SUMPRODUCT((WNARevAlloc[MonthFlow]=$B53)*(WNARevAlloc[Region]=$E$42)*(WNARevAlloc[CustClass]=F$43)*WNARevAlloc[AdjSRRS1Rev]),SUMPRODUCT((WNARevAlloc[MonthFlow]=$B53)*(WNARevAlloc[Region]=$E$42)*(WNARevAlloc[CustClass]=F$43)*WNARevAlloc[AdjSRRS2Rev])),2) -> -40.05 | G53: =-ROUND(IF($C$6="S1",SUMPRODUCT((WNARevAlloc[MonthFlow]=$B53)*(WNARevAlloc[Region]=$G$42)*(WNARevAlloc[CustClass]=G$43)*WNARevAlloc[AdjSRRS1Rev]),SUMPRODUCT((WNARevAlloc[MonthFlow]=$B53)*(WNARevAlloc[Region]=$G$42)*(WNARevAlloc[CustClass]=G$43)*WNARevAlloc[AdjSRRS2Rev])),2) -> 787.53 | H53: =-ROUND(IF($C$6="S1",SUMPRODUCT((WNARevAlloc[MonthFlow]=$B53)*(WNARevAlloc[Region]=$G$42)*(WNARevAlloc[CustClass]=H$43)*WNARevAlloc[AdjSRRS1Rev]),SUMPRODUCT((WNARevAlloc[MonthFlow]=$B53)*(WNARevAlloc[Region]=$G$42)*(WNARevAlloc[CustClass]=H$43)*WNARevAlloc[AdjSRRS2Rev])),2) -> 49.24 | I53: From WNARevAlloc Table
B54: 2024-10-01 | C54: =-ROUND(IF($C$6="S1",SUMPRODUCT((WNARevAlloc[MonthFlow]=$B54)*(WNARevAlloc[Region]=$C$42)*(WNARevAlloc[CustClass]=C$43)*WNARevAlloc[AdjSRRS1Rev]),SUMPRODUCT((WNARevAlloc[MonthFlow]=$B54)*(WNARevAlloc[Region]=$C$42)*(WNARevAlloc[CustClass]=C$43)*WNARevAlloc[AdjSRRS2Rev])),2) -> -450.55 | D54: =-ROUND(IF($C$6="S1",SUMPRODUCT((WNARevAlloc[MonthFlow]=$B54)*(WNARevAlloc[Region]=$C$42)*(WNARevAlloc[CustClass]=D$43)*WNARevAlloc[AdjSRRS1Rev]),SUMPRODUCT((WNARevAlloc[MonthFlow]=$B54)*(WNARevAlloc[Region]=$C$42)*(WNARevAlloc[CustClass]=D$43)*WNARevAlloc[AdjSRRS2Rev])),2) -> -528.76 | E54: =-ROUND(IF($C$6="S1",SUMPRODUCT((WNARevAlloc[MonthFlow]=$B54)*(WNARevAlloc[Region]=$E$42)*(WNARevAlloc[CustClass]=E$43)*WNARevAlloc[AdjSRRS1Rev]),SUMPRODUCT((WNARevAlloc[MonthFlow]=$B54)*(WNARevAlloc[Region]=$E$42)*(WNARevAlloc[CustClass]=E$43)*WNARevAlloc[AdjSRRS2Rev])),2) -> -93.33 | F54: =-ROUND(IF($C$6="S1",SUMPRODUCT((WNARevAlloc[MonthFlow]=$B54)*(WNARevAlloc[Region]=$E$42)*(WNARevAlloc[CustClass]=F$43)*WNARevAlloc[AdjSRRS1Rev]),SUMPRODUCT((WNARevAlloc[MonthFlow]=$B54)*(WNARevAlloc[Region]=$E$42)*(WNARevAlloc[CustClass]=F$43)*WNARevAlloc[AdjSRRS2Rev])),2) -> -71.28 | G54: =-ROUND(IF($C$6="S1",SUMPRODUCT((WNARevAlloc[MonthFlow]=$B54)*(WNARevAlloc[Region]=$G$42)*(WNARevAlloc[CustClass]=G$43)*WNARevAlloc[AdjSRRS1Rev]),SUMPRODUCT((WNARevAlloc[MonthFlow]=$B54)*(WNARevAlloc[Region]=$G$42)*(WNARevAlloc[CustClass]=G$43)*WNARevAlloc[AdjSRRS2Rev])),2) -> 1660.89 | H54: =-ROUND(IF($C$6="S1",SUMPRODUCT((WNARevAlloc[MonthFlow]=$B54)*(WNARevAlloc[Region]=$G$42)*(WNARevAlloc[CustClass]=H$43)*WNARevAlloc[AdjSRRS1Rev]),SUMPRODUCT((WNARevAlloc[MonthFlow]=$B54)*(WNARevAlloc[Region]=$G$42)*(WNARevAlloc[CustClass]=H$43)*WNARevAlloc[AdjSRRS2Rev])),2) -> 75.45 | I54: From WNARevAlloc Table
B55: 2024-11-01 | C55: =-ROUND(IF($C$6="S1",SUMPRODUCT((WNARevAlloc[MonthFlow]=$B55)*(WNARevAlloc[Region]=$C$42)*(WNARevAlloc[CustClass]=C$43)*WNARevAlloc[AdjSRRS1Rev]),SUMPRODUCT((WNARevAlloc[MonthFlow]=$B55)*(WNARevAlloc[Region]=$C$42)*(WNARevAlloc[CustClass]=C$43)*WNARevAlloc[AdjSRRS2Rev])),2) -> -1923.02 | D55: =-ROUND(IF($C$6="S1",SUMPRODUCT((WNARevAlloc[MonthFlow]=$B55)*(WNARevAlloc[Region]=$C$42)*(WNARevAlloc[CustClass]=D$43)*WNARevAlloc[AdjSRRS1Rev]),SUMPRODUCT((WNARevAlloc[MonthFlow]=$B55)*(WNARevAlloc[Region]=$C$42)*(WNARevAlloc[CustClass]=D$43)*WNARevAlloc[AdjSRRS2Rev])),2) -> -1809.89 | E55: =-ROUND(IF($C$6="S1",SUMPRODUCT((WNARevAlloc[MonthFlow]=$B55)*(WNARevAlloc[Region]=$E$42)*(WNARevAlloc[CustClass]=E$43)*WNARevAlloc[AdjSRRS1Rev]),SUMPRODUCT((WNARevAlloc[MonthFlow]=$B55)*(WNARevAlloc[Region]=$E$42)*(WNARevAlloc[CustClass]=E$43)*WNARevAlloc[AdjSRRS2Rev])),2) -> -409.27 | F55: =-ROUND(IF($C$6="S1",SUMPRODUCT((WNARevAlloc[MonthFlow]=$B55)*(WNARevAlloc[Region]=$E$42)*(WNARevAlloc[CustClass]=F$43)*WNARevAlloc[AdjSRRS1Rev]),SUMPRODUCT((WNARevAlloc[MonthFlow]=$B55)*(WNARevAlloc[Region]=$E$42)*(WNARevAlloc[CustClass]=F$43)*WNARevAlloc[AdjSRRS2Rev])),2) -> -440.78 | G55: =-ROUND(IF($C$6="S1",SUMPRODUCT((WNARevAlloc[MonthFlow]=$B55)*(WNARevAlloc[Region]=$G$42)*(WNARevAlloc[CustClass]=G$43)*WNARevAlloc[AdjSRRS1Rev]),SUMPRODUCT((WNARevAlloc[MonthFlow]=$B55)*(WNARevAlloc[Region]=$G$42)*(WNARevAlloc[CustClass]=G$43)*WNARevAlloc[AdjSRRS2Rev])),2) -> 3763.6 | H55: =-ROUND(IF($C$6="S1",SUMPRODUCT((WNARevAlloc[MonthFlow]=$B55)*(WNARevAlloc[Region]=$G$42)*(WNARevAlloc[CustClass]=H$43)*WNARevAlloc[AdjSRRS1Rev]),SUMPRODUCT((WNARevAlloc[MonthFlow]=$B55)*(WNARevAlloc[Region]=$G$42)*(WNARevAlloc[CustClass]=H$43)*WNARevAlloc[AdjSRRS2Rev])),2) -> 212.86 | I55: From WNARevAlloc Table
B56: 2024-12-01 | C56: =-ROUND(IF($C$6="S1",SUMPRODUCT((WNARevAlloc[MonthFlow]=$B56)*(WNARevAlloc[Region]=$C$42)*(WNARevAlloc[CustClass]=C$43)*WNARevAlloc[AdjSRRS1Rev]),SUMPRODUCT((WNARevAlloc[MonthFlow]=$B56)*(WNARevAlloc[Region]=$C$42)*(WNARevAlloc[CustClass]=C$43)*WNARevAlloc[AdjSRRS2Rev])),2) -> -3231.79 | D56: =-ROUND(IF($C$6="S1",SUMPRODUCT((WNARevAlloc[MonthFlow]=$B56)*(WNARevAlloc[Region]=$C$42)*(WNARevAlloc[CustClass]=D$43)*WNARevAlloc[AdjSRRS1Rev]),SUMPRODUCT((WNARevAlloc[MonthFlow]=$B56)*(WNARevAlloc[Region]=$C$42)*(WNARevAlloc[CustClass]=D$43)*WNARevAlloc[AdjSRRS2Rev])),2) -> -2874.17 | E56: =-ROUND(IF($C$6="S1",SUMPRODUCT((WNARevAlloc[MonthFlow]=$B56)*(WNARevAlloc[Region]=$E$42)*(WNARevAlloc[CustClass]=E$43)*WNARevAlloc[AdjSRRS1Rev]),SUMPRODUCT((WNARevAlloc[MonthFlow]=$B56)*(WNARevAlloc[Region]=$E$42)*(WNARevAlloc[CustClass]=E$43)*WNARevAlloc[AdjSRRS2Rev])),2) -> -571.38 | F56: =-ROUND(IF($C$6="S1",SUMPRODUCT((WNARevAlloc[MonthFlow]=$B56)*(WNARevAlloc[Region]=$E$42)*(WNARevAlloc[CustClass]=F$43)*WNARevAlloc[AdjSRRS1Rev]),SUMPRODUCT((WNARevAlloc[MonthFlow]=$B56)*(WNARevAlloc[Region]=$E$42)*(WNARevAlloc[CustClass]=F$43)*WNARevAlloc[AdjSRRS2Rev])),2) -> -702.78 | G56: =-ROUND(IF($C$6="S1",SUMPRODUCT((WNARevAlloc[MonthFlow]=$B56)*(WNARevAlloc[Region]=$G$42)*(WNARevAlloc[CustClass]=G$43)*WNARevAlloc[AdjSRRS1Rev]),SUMPRODUCT((WNARevAlloc[MonthFlow]=$B56)*(WNARevAlloc[Region]=$G$42)*(WNARevAlloc[CustClass]=G$43)*WNARevAlloc[AdjSRRS2Rev])),2) -> 6419.85 | H56: =-ROUND(IF($C$6="S1",SUMPRODUCT((WNARevAlloc[MonthFlow]=$B56)*(WNARevAlloc[Region]=$G$42)*(WNARevAlloc[CustClass]=H$43)*WNARevAlloc[AdjSRRS1Rev]),SUMPRODUCT((WNARevAlloc[MonthFlow]=$B56)*(WNARevAlloc[Region]=$G$42)*(WNARevAlloc[CustClass]=H$43)*WNARevAlloc[AdjSRRS2Rev])),2) -> 410.81 | I56: From WNARevAlloc Table
B57: =EDATE(B56,1) -> 2025-01-01 | C57: =-ROUND(IF($C$6="S1",SUMPRODUCT((WNARevAlloc[MonthFlow]=$B57)*(WNARevAlloc[Region]=$C$42)*(WNARevAlloc[CustClass]=C$43)*WNARevAlloc[AdjSRRS1Rev]),SUMPRODUCT((WNARevAlloc[MonthFlow]=$B57)*(WNARevAlloc[Region]=$C$42)*(WNARevAlloc[CustClass]=C$43)*WNARevAlloc[AdjSRRS2Rev])),2) -> -3418.14 | D57: =-ROUND(IF($C$6="S1",SUMPRODUCT((WNARevAlloc[MonthFlow]=$B57)*(WNARevAlloc[Region]=$C$42)*(WNARevAlloc[CustClass]=D$43)*WNARevAlloc[AdjSRRS1Rev]),SUMPRODUCT((WNARevAlloc[MonthFlow]=$B57)*(WNARevAlloc[Region]=$C$42)*(WNARevAlloc[CustClass]=D$43)*WNARevAlloc[AdjSRRS2Rev])),2) -> -3378.25 | E57: =-ROUND(IF($C$6="S1",SUMPRODUCT((WNARevAlloc[MonthFlow]=$B57)*(WNARevAlloc[Region]=$E$42)*(WNARevAlloc[CustClass]=E$43)*WNARevAlloc[AdjSRRS1Rev]),SUMPRODUCT((WNARevAlloc[MonthFlow]=$B57)*(WNARevAlloc[Region]=$E$42)*(WNARevAlloc[CustClass]=E$43)*WNARevAlloc[AdjSRRS2Rev])),2) -> -728.22 | F57: =-ROUND(IF($C$6="S1",SUMPRODUCT((WNARevAlloc[MonthFlow]=$B57)*(WNARevAlloc[Region]=$E$42)*(WNARevAlloc[CustClass]=F$43)*WNARevAlloc[AdjSRRS1Rev]),SUMPRODUCT((WNARevAlloc[MonthFlow]=$B57)*(WNARevAlloc[Region]=$E$42)*(WNARevAlloc[CustClass]=F$43)*WNARevAlloc[AdjSRRS2Rev])),2) -> -859.97 | G57: =-ROUND(IF($C$6="S1",SUMPRODUCT((WNARevAlloc[MonthFlow]=$B57)*(WNARevAlloc[Region]=$G$42)*(WNARevAlloc[CustClass]=G$43)*WNARevAlloc[AdjSRRS1Rev]),SUMPRODUCT((WNARevAlloc[MonthFlow]=$B57)*(WNARevAlloc[Region]=$G$42)*(WNARevAlloc[CustClass]=G$43)*WNARevAlloc[AdjSRRS2Rev])),2) -> 7719.12 | H57: =-ROUND(IF($C$6="S1",SUMPRODUCT((WNARevAlloc[MonthFlow]=$B57)*(WNARevAlloc[Region]=$G$42)*(WNARevAlloc[CustClass]=H$43)*WNARevAlloc[AdjSRRS1Rev]),SUMPRODUCT((WNARevAlloc[MonthFlow]=$B57)*(WNARevAlloc[Region]=$G$42)*(WNARevAlloc[CustClass]=H$43)*WNARevAlloc[AdjSRRS2Rev])),2) -> 544.38 | I57: From WNARevAlloc Table
B58: 2025-02-01 | C58: =-ROUND(IF($C$6="S1",SUMPRODUCT((WNARevAlloc[MonthFlow]=$B58)*(WNARevAlloc[Region]=$C$42)*(WNARevAlloc[CustClass]=C$43)*WNARevAlloc[AdjSRRS1Rev]),SUMPRODUCT((WNARevAlloc[MonthFlow]=$B58)*(WNARevAlloc[Region]=$C$42)*(WNARevAlloc[CustClass]=C$43)*WNARevAlloc[AdjSRRS2Rev])),2) -> -1821.49 | D58: =-ROUND(IF($C$6="S1",SUMPRODUCT((WNARevAlloc[MonthFlow]=$B58)*(WNARevAlloc[Region]=$C$42)*(WNARevAlloc[CustClass]=D$43)*WNARevAlloc[AdjSRRS1Rev]),SUMPRODUCT((WNARevAlloc[MonthFlow]=$B58)*(WNARevAlloc[Region]=$C$42)*(WNARevAlloc[CustClass]=D$43)*WNARevAlloc[AdjSRRS2Rev])),2) -> -1781.77 | E58: =-ROUND(IF($C$6="S1",SUMPRODUCT((WNARevAlloc[MonthFlow]=$B58)*(WNARevAlloc[Region]=$E$42)*(WNARevAlloc[CustClass]=E$43)*WNARevAlloc[AdjSRRS1Rev]),SUMPRODUCT((WNARevAlloc[MonthFlow]=$B58)*(WNARevAlloc[Region]=$E$42)*(WNARevAlloc[CustClass]=E$43)*WNARevAlloc[AdjSRRS2Rev])),2) -> -331.47 | F58: =-ROUND(IF($C$6="S1",SUMPRODUCT((WNARevAlloc[MonthFlow]=$B58)*(WNARevAlloc[Region]=$E$42)*(WNARevAlloc[CustClass]=F$43)*WNARevAlloc[AdjSRRS1Rev]),SUMPRODUCT((WNARevAlloc[MonthFlow]=$B58)*(WNARevAlloc[Region]=$E$42)*(WNARevAlloc[CustClass]=F$43)*WNARevAlloc[AdjSRRS2Rev])),2) -> -400 | G58: =-ROUND(IF($C$6="S1",SUMPRODUCT((WNARevAlloc[MonthFlow]=$B58)*(WNARevAlloc[Region]=$G$42)*(WNARevAlloc[CustClass]=G$43)*WNARevAlloc[AdjSRRS1Rev]),SUMPRODUCT((WNARevAlloc[MonthFlow]=$B58)*(WNARevAlloc[Region]=$G$42)*(WNARevAlloc[CustClass]=G$43)*WNARevAlloc[AdjSRRS2Rev])),2) -> 5662.9 | H58: =-ROUND(IF($C$6="S1",SUMPRODUCT((WNARevAlloc[MonthFlow]=$B58)*(WNARevAlloc[Region]=$G$42)*(WNARevAlloc[CustClass]=H$43)*WNARevAlloc[AdjSRRS1Rev]),SUMPRODUCT((WNARevAlloc[MonthFlow]=$B58)*(WNARevAlloc[Region]=$G$42)*(WNARevAlloc[CustClass]=H$43)*WNARevAlloc[AdjSRRS2Rev])),2) -> 380.87 | I58: From WNARevAlloc Table
B59: 2025-03-01 | C59: =-ROUND(IF($C$6="S1",SUMPRODUCT((WNARevAlloc[MonthFlow]=$B59)*(WNARevAlloc[Region]=$C$42)*(WNARevAlloc[CustClass]=C$43)*WNARevAlloc[AdjSRRS1Rev]),SUMPRODUCT((WNARevAlloc[MonthFlow]=$B59)*(WNARevAlloc[Region]=$C$42)*(WNARevAlloc[CustClass]=C$43)*WNARevAlloc[AdjSRRS2Rev])),2) -> -1156.62 | D59: =-ROUND(IF($C$6="S1",SUMPRODUCT((WNARevAlloc[MonthFlow]=$B59)*(WNARevAlloc[Region]=$C$42)*(WNARevAlloc[CustClass]=D$43)*WNARevAlloc[AdjSRRS1Rev]),SUMPRODUCT((WNARevAlloc[MonthFlow]=$B59)*(WNARevAlloc[Region]=$C$42)*(WNARevAlloc[CustClass]=D$43)*WNARevAlloc[AdjSRRS2Rev])),2) -> -1073.63 | E59: =-ROUND(IF($C$6="S1",SUMPRODUCT((WNARevAlloc[MonthFlow]=$B59)*(WNARevAlloc[Region]=$E$42)*(WNARevAlloc[CustClass]=E$43)*WNARevAlloc[AdjSRRS1Rev]),SUMPRODUCT((WNARevAlloc[MonthFlow]=$B59)*(WNARevAlloc[Region]=$E$42)*(WNARevAlloc[CustClass]=E$43)*WNARevAlloc[AdjSRRS2Rev])),2) -> -188.42 | F59: =-ROUND(IF($C$6="S1",SUMPRODUCT((WNARevAlloc[MonthFlow]=$B59)*(WNARevAlloc[Region]=$E$42)*(WNARevAlloc[CustClass]=F$43)*WNARevAlloc[AdjSRRS1Rev]),SUMPRODUCT((WNARevAlloc[MonthFlow]=$B59)*(WNARevAlloc[Region]=$E$42)*(WNARevAlloc[CustClass]=F$43)*WNARevAlloc[AdjSRRS2Rev])),2) -> -225.95 | G59: =-ROUND(IF($C$6="S1",SUMPRODUCT((WNARevAlloc[MonthFlow]=$B59)*(WNARevAlloc[Region]=$G$42)*(WNARevAlloc[CustClass]=G$43)*WNARevAlloc[AdjSRRS1Rev]),SUMPRODUCT((WNARevAlloc[MonthFlow]=$B59)*(WNARevAlloc[Region]=$G$42)*(WNARevAlloc[CustClass]=G$43)*WNARevAlloc[AdjSRRS2Rev])),2) -> 2234.19 | H59: =-ROUND(IF($C$6="S1",SUMPRODUCT((WNARevAlloc[MonthFlow]=$B59)*(WNARevAlloc[Region]=$G$42)*(WNARevAlloc[CustClass]=H$43)*WNARevAlloc[AdjSRRS1Rev]),SUMPRODUCT((WNARevAlloc[MonthFlow]=$B59)*(WNARevAlloc[Region]=$G$42)*(WNARevAlloc[CustClass]=H$43)*WNARevAlloc[AdjSRRS2Rev])),2) -> 145.99 | I59: From WNARevAlloc Table
B60: 2025-04-01 | C60: =-ROUND(IF($C$6="S1",SUMPRODUCT((WNARevAlloc[MonthFlow]=$B60)*(WNARevAlloc[Region]=$C$42)*(WNARevAlloc[CustClass]=C$43)*WNARevAlloc[AdjSRRS1Rev]),SUMPRODUCT((WNARevAlloc[MonthFlow]=$B60)*(WNARevAlloc[Region]=$C$42)*(WNARevAlloc[CustClass]=C$43)*WNARevAlloc[AdjSRRS2Rev])),2) -> -410.95 | D60: =-ROUND(IF($C$6="S1",SUMPRODUCT((WNARevAlloc[MonthFlow]=$B60)*(WNARevAlloc[Region]=$C$42)*(WNARevAlloc[CustClass]=D$43)*WNARevAlloc[AdjSRRS1Rev]),SUMPRODUCT((WNARevAlloc[MonthFlow]=$B60)*(WNARevAlloc[Region]=$C$42)*(WNARevAlloc[CustClass]=D$43)*WNARevAlloc[AdjSRRS2Rev])),2) -> -419.99 | E60: =-ROUND(IF($C$6="S1",SUMPRODUCT((WNARevAlloc[MonthFlow]=$B60)*(WNARevAlloc[Region]=$E$42)*(WNARevAlloc[CustClass]=E$43)*WNARevAlloc[AdjSRRS1Rev]),SUMPRODUCT((WNARevAlloc[MonthFlow]=$B60)*(WNARevAlloc[Region]=$E$42)*(WNARevAlloc[CustClass]=E$43)*WNARevAlloc[AdjSRRS2Rev])),2) -> -71.08 | F60: =-ROUND(IF($C$6="S1",SUMPRODUCT((WNARevAlloc[MonthFlow]=$B60)*(WNARevAlloc[Region]=$E$42)*(WNARevAlloc[CustClass]=F$43)*WNARevAlloc[AdjSRRS1Rev]),SUMPRODUCT((WNARevAlloc[MonthFlow]=$B60)*(WNARevAlloc[Region]=$E$42)*(WNARevAlloc[CustClass]=F$43)*WNARevAlloc[AdjSRRS2Rev])),2) -> -76.96 | G60: =-ROUND(IF($C$6="S1",SUMPRODUCT((WNARevAlloc[MonthFlow]=$B60)*(WNARevAlloc[Region]=$G$42)*(WNARevAlloc[CustClass]=G$43)*WNARevAlloc[AdjSRRS1Rev]),SUMPRODUCT((WNARevAlloc[MonthFlow]=$B60)*(WNARevAlloc[Region]=$G$42)*(WNARevAlloc[CustClass]=G$43)*WNARevAlloc[AdjSRRS2Rev])),2) -> 1353.23 | H60: =-ROUND(IF($C$6="S1",SUMPRODUCT((WNARevAlloc[MonthFlow]=$B60)*(WNARevAlloc[Region]=$G$42)*(WNARevAlloc[CustClass]=H$43)*WNARevAlloc[AdjSRRS1Rev]),SUMPRODUCT((WNARevAlloc[MonthFlow]=$B60)*(WNARevAlloc[Region]=$G$42)*(WNARevAlloc[CustClass]=H$43)*WNARevAlloc[AdjSRRS2Rev])),2) -> 34.01 | I60: From WNARevAlloc Table
B61: 2025-05-01 | C61: =-ROUND(IF($C$6="S1",SUMPRODUCT((WNARevAlloc[MonthFlow]=$B61)*(WNARevAlloc[Region]=$C$42)*(WNARevAlloc[CustClass]=C$43)*WNARevAlloc[AdjSRRS1Rev]),SUMPRODUCT((WNARevAlloc[MonthFlow]=$B61)*(WNARevAlloc[Region]=$C$42)*(WNARevAlloc[CustClass]=C$43)*WNARevAlloc[AdjSRRS2Rev])),2) -> -226.93 | D61: =-ROUND(IF($C$6="S1",SUMPRODUCT((WNARevAlloc[MonthFlow]=$B61)*(WNARevAlloc[Region]=$C$42)*(WNARevAlloc[CustClass]=D$43)*WNARevAlloc[AdjSRRS1Rev]),SUMPRODUCT((WNARevAlloc[MonthFlow]=$B61)*(WNARevAlloc[Region]=$C$42)*(WNARevAlloc[CustClass]=D$43)*WNARevAlloc[AdjSRRS2Rev])),2) -> -268.42 | E61: =-ROUND(IF($C$6="S1",SUMPRODUCT((WNARevAlloc[MonthFlow]=$B61)*(WNARevAlloc[Region]=$E$42)*(WNARevAlloc[CustClass]=E$43)*WNARevAlloc[AdjSRRS1Rev]),SUMPRODUCT((WNARevAlloc[MonthFlow]=$B61)*(WNARevAlloc[Region]=$E$42)*(WNARevAlloc[CustClass]=E$43)*WNARevAlloc[AdjSRRS2Rev])),2) -> -48.19 | F61: =-ROUND(IF($C$6="S1",SUMPRODUCT((WNARevAlloc[MonthFlow]=$B61)*(WNARevAlloc[Region]=$E$42)*(WNARevAlloc[CustClass]=F$43)*WNARevAlloc[AdjSRRS1Rev]),SUMPRODUCT((WNARevAlloc[MonthFlow]=$B61)*(WNARevAlloc[Region]=$E$42)*(WNARevAlloc[CustClass]=F$43)*WNARevAlloc[AdjSRRS2Rev])),2) -> -57.51 | G61: =-ROUND(IF($C$6="S1",SUMPRODUCT((WNARevAlloc[MonthFlow]=$B61)*(WNARevAlloc[Region]=$G$42)*(WNARevAlloc[CustClass]=G$43)*WNARevAlloc[AdjSRRS1Rev]),SUMPRODUCT((WNARevAlloc[MonthFlow]=$B61)*(WNARevAlloc[Region]=$G$42)*(WNARevAlloc[CustClass]=G$43)*WNARevAlloc[AdjSRRS2Rev])),2) -> 663.15 | H61: =-ROUND(IF($C$6="S1",SUMPRODUCT((WNARevAlloc[MonthFlow]=$B61)*(WNARevAlloc[Region]=$G$42)*(WNARevAlloc[CustClass]=H$43)*WNARevAlloc[AdjSRRS1Rev]),SUMPRODUCT((WNARevAlloc[MonthFlow]=$B61)*(WNARevAlloc[Region]=$G$42)*(WNARevAlloc[CustClass]=H$43)*WNARevAlloc[AdjSRRS2Rev])),2) -> 45.01 | I61: From WNARevAlloc Table
B62: 2025-06-01 | C62: =-ROUND(IF($C$6="S1",SUMPRODUCT((WNARevAlloc[MonthFlow]=$B62)*(WNARevAlloc[Region]=$C$42)*(WNARevAlloc[CustClass]=C$43)*WNARevAlloc[AdjSRRS1Rev]),SUMPRODUCT((WNARevAlloc[MonthFlow]=$B62)*(WNARevAlloc[Region]=$C$42)*(WNARevAlloc[CustClass]=C$43)*WNARevAlloc[AdjSRRS2Rev])),2) -> -189.86 | D62: =-ROUND(IF($C$6="S1",SUMPRODUCT((WNARevAlloc[MonthFlow]=$B62)*(WNARevAlloc[Region]=$C$42)*(WNARevAlloc[CustClass]=D$43)*WNARevAlloc[AdjSRRS1Rev]),SUMPRODUCT((WNARevAlloc[MonthFlow]=$B62)*(WNARevAlloc[Region]=$C$42)*(WNARevAlloc[CustClass]=D$43)*WNARevAlloc[AdjSRRS2Rev])),2) -> -209.22 | E62: =-ROUND(IF($C$6="S1",SUMPRODUCT((WNARevAlloc[MonthFlow]=$B62)*(WNARevAlloc[Region]=$E$42)*(WNARevAlloc[CustClass]=E$43)*WNARevAlloc[AdjSRRS1Rev]),SUMPRODUCT((WNARevAlloc[MonthFlow]=$B62)*(WNARevAlloc[Region]=$E$42)*(WNARevAlloc[CustClass]=E$43)*WNARevAlloc[AdjSRRS2Rev])),2) -> -34.02 | F62: =-ROUND(IF($C$6="S1",SUMPRODUCT((WNARevAlloc[MonthFlow]=$B62)*(WNARevAlloc[Region]=$E$42)*(WNARevAlloc[CustClass]=F$43)*WNARevAlloc[AdjSRRS1Rev]),SUMPRODUCT((WNARevAlloc[MonthFlow]=$B62)*(WNARevAlloc[Region]=$E$42)*(WNARevAlloc[CustClass]=F$43)*WNARevAlloc[AdjSRRS2Rev])),2) -> -42.19 | G62: =-ROUND(IF($C$6="S1",SUMPRODUCT((WNARevAlloc[MonthFlow]=$B62)*(WNARevAlloc[Region]=$G$42)*(WNARevAlloc[CustClass]=G$43)*WNARevAlloc[AdjSRRS1Rev]),SUMPRODUCT((WNARevAlloc[MonthFlow]=$B62)*(WNARevAlloc[Region]=$G$42)*(WNARevAlloc[CustClass]=G$43)*WNARevAlloc[AdjSRRS2Rev])),2) -> 540.7 | H62: =-ROUND(IF($C$6="S1",SUMPRODUCT((WNARevAlloc[MonthFlow]=$B62)*(WNARevAlloc[Region]=$G$42)*(WNARevAlloc[CustClass]=H$43)*WNARevAlloc[AdjSRRS1Rev]),SUMPRODUCT((WNARevAlloc[MonthFlow]=$B62)*(WNARevAlloc[Region]=$G$42)*(WNARevAlloc[CustClass]=H$43)*WNARevAlloc[AdjSRRS2Rev])),2) -> 36.15 | I62: From WNARevAlloc Table
B63: Total Actual Revenues | C63: =SUM(C48:C62) -> -13664.25 | D63: =SUM(D48:D62) -> -13228 | E63: -2643.93 | F63: -2933.74 | G63: 35554.75 | H63: 2264.8
B64: Projected Revenues
B65: =EDATE(B62,1) -> 2025-07-01 | C65: =-ROUND(SUMPRODUCT((CustEstRev[MonthFlow]=$B65)*(CustEstRev[Region]=$C$42)*(CustEstRev[CustClass]=C$43)*(CustEstRev[Period]=$C$6)*CustEstRev[SRRRev]),2) -> -164 | D65: =-ROUND(SUMPRODUCT((CustEstRev[MonthFlow]=$B65)*(CustEstRev[Region]=$C$42)*(CustEstRev[CustClass]=D$43)*(CustEstRev[Period]=$C$6)*CustEstRev[SRRRev]),2) -> -213 | E65: =-ROUND(SUMPRODUCT((CustEstRev[MonthFlow]=$B65)*(CustEstRev[Region]=$E$42)*(CustEstRev[CustClass]=E$43)*(CustEstRev[Period]=$C$6)*CustEstRev[SRRRev]),2) -> -31 | F65: =-ROUND(SUMPRODUCT((CustEstRev[MonthFlow]=$B65)*(CustEstRev[Region]=$E$42)*(CustEstRev[CustClass]=F$43)*(CustEstRev[Period]=$C$6)*CustEstRev[SRRRev]),2) -> -43 | G65: =-ROUND(SUMPRODUCT((CustEstRev[MonthFlow]=$B65)*(CustEstRev[Region]=$G$42)*(CustEstRev[CustClass]=G$43)*(CustEstRev[Period]=$C$6)*CustEstRev[SRRRev]),2) -> 538 | H65: =-ROUND(SUMPRODUCT((CustEstRev[MonthFlow]=$B65)*(CustEstRev[Region]=$G$42)*(CustEstRev[CustClass]=H$43)*(CustEstRev[Period]=$C$6)*CustEstRev[SRRRev]),2) -> 36 | I65: From CustEstRev Table
B66: =EDATE(B65,1) -> 2025-08-01 | C66: =-ROUND(SUMPRODUCT((CustEstRev[MonthFlow]=$B66)*(CustEstRev[Region]=$C$42)*(CustEstRev[CustClass]=C$43)*(CustEstRev[Period]=$C$6)*CustEstRev[SRRRev]),2) -> -191 | D66: =-ROUND(SUMPRODUCT((CustEstRev[MonthFlow]=$B66)*(CustEstRev[Region]=$C$42)*(CustEstRev[CustClass]=D$43)*(CustEstRev[Period]=$C$6)*CustEstRev[SRRRev]),2) -> -254 | E66: =-ROUND(SUMPRODUCT((CustEstRev[MonthFlow]=$B66)*(CustEstRev[Region]=$E$42)*(CustEstRev[CustClass]=E$43)*(CustEstRev[Period]=$C$6)*CustEstRev[SRRRev]),2) -> -36 | F66: =-ROUND(SUMPRODUCT((CustEstRev[MonthFlow]=$B66)*(CustEstRev[Region]=$E$42)*(CustEstRev[CustClass]=F$43)*(CustEstRev[Period]=$C$6)*CustEstRev[SRRRev]),2) -> -69 | G66: =-ROUND(SUMPRODUCT((CustEstRev[MonthFlow]=$B66)*(CustEstRev[Region]=$G$42)*(CustEstRev[CustClass]=G$43)*(CustEstRev[Period]=$C$6)*CustEstRev[SRRRev]),2) -> 600 | H66: =-ROUND(SUMPRODUCT((CustEstRev[MonthFlow]=$B66)*(CustEstRev[Region]=$G$42)*(CustEstRev[CustClass]=H$43)*(CustEstRev[Period]=$C$6)*CustEstRev[SRRRev]),2) -> 49 | I66: From CustEstRev Table
B67: =EDATE(B66,1) -> 2025-09-01 | C67: =-ROUND(SUMPRODUCT((CustEstRev[MonthFlow]=$B67)*(CustEstRev[Region]=$C$42)*(CustEstRev[CustClass]=C$43)*(CustEstRev[Period]=$C$6)*CustEstRev[SRRRev]),2) -> -212 | D67: =-ROUND(SUMPRODUCT((CustEstRev[MonthFlow]=$B67)*(CustEstRev[Region]=$C$42)*(CustEstRev[CustClass]=D$43)*(CustEstRev[Period]=$C$6)*CustEstRev[SRRRev]),2) -> -240 | E67: =-ROUND(SUMPRODUCT((CustEstRev[MonthFlow]=$B67)*(CustEstRev[Region]=$E$42)*(CustEstRev[CustClass]=E$43)*(CustEstRev[Period]=$C$6)*CustEstRev[SRRRev]),2) -> -50 | F67: =-ROUND(SUMPRODUCT((CustEstRev[MonthFlow]=$B67)*(CustEstRev[Region]=$E$42)*(CustEstRev[CustClass]=F$43)*(CustEstRev[Period]=$C$6)*CustEstRev[SRRRev]),2) -> -62 | G67: =-ROUND(SUMPRODUCT((CustEstRev[MonthFlow]=$B67)*(CustEstRev[Region]=$G$42)*(CustEstRev[CustClass]=G$43)*(CustEstRev[Period]=$C$6)*CustEstRev[SRRRev]),2) -> 602 | H67: =-ROUND(SUMPRODUCT((CustEstRev[MonthFlow]=$B67)*(CustEstRev[Region]=$G$42)*(CustEstRev[CustClass]=H$43)*(CustEstRev[Period]=$C$6)*CustEstRev[SRRRev]),2) -> 40 | I67: From CustEstRev Table
B68: Total Projected Revenues | C68: =SUM(C65:C67) -> -567 | D68: =SUM(D65:D67) -> -707 | E68: -117 | F68: -174 | G68: 1740 | H68: 125
B69: Total Billings | C69: =C63+C68 -> -14231.25 | D69: =D63+D68 -> -13935 | E69: -2760.93 | F69: -3107.74 | G69: 37294.75 | H69: 2389.8
B70: Total WNA Recovery | C70: =ROUND(C38+C69,2) -> -140807.89 | D70: =ROUND(D38+D69,2) -> -31656.41 | E70: -27455.37 | F70: -7242.07 | G70: -68033.32 | H70: -8744.49
B71: SRR Net (Over)/Under Recov 1/ | C71: =ROUND(C69+C46,2) -> 75762.44 | D71: =ROUND(D69+D46,2) -> 17734.65 | E71: 32649.78 | F71: 6744.28 | G71: 91351.38 | H71: 3099.8
B72: CWNA Net (Over)/Under Recov 1/ | C72: =C39 -> -4827.3 | D72: -2845.93 | E72: 3940.9 | F72: -182.84 | G72: -3495.8 | H72: -1862.75
B73: Total Net O/U for SRR ReconPerAdj | C73: =C71+C72 -> 70935.14 | D73: =D71+D72 -> 14888.72 | E73: 36590.68 | F73: 6561.44 | G73: 87855.58 | H73: 1237.05
B74: Enter These Amounts in the ReconPerAdj Table
B76: 1/ Negative amount = Due Customer, Positive amount = Due Company

Sheet ARR SEMO (S1)
B2: Liberty Midstates | F2: Year | I2: Rate Sched | J2: SAP Rate Cat. | K2: Territory | L2: Cust. Class
B3: Semi-Annual Reconciliation Rate | I3: 62-GRF | J3: =INDEX(RateSched[SAPRateCategory],MATCH($I3,RateSched[RateSched],0)) -> SMGR_RFS | K3: =INDEX(RateSched[Territory],MATCH($I3,RateSched[RateSched],0)) -> SEMO | L3: =INDEX(RateSched[CustClassShort],MATCH($I3,RateSched[RateSched],0)) -> Res
B4: Region | C4: SEMO | I4: 62-GCSF | J4: =INDEX(RateSched[SAPRateCategory],MATCH($I4,RateSched[RateSched],0)) -> SMGC_SFGS | K4: =INDEX(RateSched[Territory],MATCH($I4,RateSched[RateSched],0)) -> SEMO | L4: =INDEX(RateSched[CustClassShort],MATCH($I4,RateSched[RateSched],0)) -> SGS
B5: Year | C5: =DateSet!C2 -> 2025
B6: Period | C6: S1
B7: Analysis Start | C7: 2024-01-01
B9: SAP Rate Category | C9: SMGR_RFS | D9: Res
B10: Residential | C10: True-Up Period | F10: Actual Period* | U10: Projected Period
B11: Month | C11: =C7 -> 45292 | D11: =EDATE(C11,1) -> 45323 | E11: =EDATE(D11,1) -> 45352 | F11: 45383 | G11: 45413 | H11: 45444 | I11: 45474 | J11: 45505 | K11: 45536 | L11: 45566 | M11: 45597 | N11: =EDATE(M11,1) -> 45627 | O11: =EDATE(N11,1) -> 45658 | P11: =EDATE(O11,1) -> 45689 | Q11: =EDATE(P11,1) -> 45717 | R11: =EDATE(Q11,1) -> 45748 | S11: =EDATE(R11,1) -> 45778 | T11: =EDATE(S11,1) -> 45809 | U11: 45839 | V11: 45870 | W11: 45901
B12: Est. Volume | C12: =SUMPRODUCT((CustEstVol[MonthFlow]=C11)*(CustEstVol[SAPRateCategory]=$C9)*CustEstVol[NormVol]) -> 3437383 | D12: =SUMPRODUCT((CustEstVol[MonthFlow]=D11)*(CustEstVol[SAPRateCategory]=$C9)*CustEstVol[NormVol]) -> 2885041 | E12: =SUMPRODUCT((CustEstVol[MonthFlow]=E11)*(CustEstVol[SAPRateCategory]=$C9)*CustEstVol[NormVol]) -> 2268398 | U12: =SUMPRODUCT((CustEstVol[MonthFlow]=U11)*(CustEstVol[SAPRateCategory]=$C9)*CustEstVol[NormVol]) -> 242241 | V12: =SUMPRODUCT((CustEstVol[MonthFlow]=V11)*(CustEstVol[SAPRateCategory]=$C9)*CustEstVol[NormVol]) -> 270213 | W12: =SUMPRODUCT((CustEstVol[MonthFlow]=W11)*(CustEstVol[SAPRateCategory]=$C9)*CustEstVol[NormVol]) -> 271292
B13: Actual Volume | C13: =SUMPRODUCT((WNARevAlloc[MonthFlow]=C11)*(WNARevAlloc[SAPRateCategory]=$C9)*WNARevAlloc[Consumption]) -> 2945578.239 | D13: =SUMPRODUCT((WNARevAlloc[MonthFlow]=D11)*(WNARevAlloc[SAPRateCategory]=$C9)*WNARevAlloc[Consumption]) -> 1584049.601 | E13: =SUMPRODUCT((WNARevAlloc[MonthFlow]=E11)*(WNARevAlloc[SAPRateCategory]=$C9)*WNARevAlloc[Consumption]) -> 1129011.804 | F13: =SUMPRODUCT((WNARevAlloc[MonthFlow]=F11)*(WNARevAlloc[SAPRateCategory]=$C9)*WNARevAlloc[Consumption]) -> 547373.525 | G13: =SUMPRODUCT((WNARevAlloc[MonthFlow]=G11)*(WNARevAlloc[SAPRateCategory]=$C9)*WNARevAlloc[Consumption]) -> 296746.396 | H13: =SUMPRODUCT((WNARevAlloc[MonthFlow]=H11)*(WNARevAlloc[SAPRateCategory]=$C9)*WNARevAlloc[Consumption]) -> 210535.028 | I13: =SUMPRODUCT((WNARevAlloc[MonthFlow]=I11)*(WNARevAlloc[SAPRateCategory]=$C9)*WNARevAlloc[Consumption]) -> 242241.33 | J13: =SUMPRODUCT((WNARevAlloc[MonthFlow]=J11)*(WNARevAlloc[SAPRateCategory]=$C9)*WNARevAlloc[Consumption]) -> 270213.386 | K13: =SUMPRODUCT((WNARevAlloc[MonthFlow]=K11)*(WNARevAlloc[SAPRateCategory]=$C9)*WNARevAlloc[Consumption]) -> 271291.763 | L13: =SUMPRODUCT((WNARevAlloc[MonthFlow]=L11)*(WNARevAlloc[SAPRateCategory]=$C9)*WNARevAlloc[Consumption]) -> 570656.767 | M13: =SUMPRODUCT((WNARevAlloc[MonthFlow]=M11)*(WNARevAlloc[SAPRateCategory]=$C9)*WNARevAlloc[Consumption]) -> 1692211.562 | T13: =SUMPRODUCT((WNARevAlloc[MonthFlow]=T11)*(WNARevAlloc[SAPRateCategory]=$C9)*WNARevAlloc[Consumption]) -> 242963.23
B14: Vol True-Up | C14: =C13-C12 -> -491804.761 | D14: =D13-D12 -> -1300991.399 | E14: =E13-E12 -> -1139386.196
B15: ="WNAR "&$C$6&" Rates in Effect" -> WNAR S1 Rates in Effect
B16: CSWNA | C16: =SUMPRODUCT((WNARRates[BeginDate]<=C$11)*(WNARRates[EndDate]>=C$11)*(WNARRates[Region]=$C$4)*(WNARRates[CustClass]=$D$9)*(WNARRates[Period]=$C$6)*WNARRates[CSWNA]) -> -5e-05 | D16: =SUMPRODUCT((WNARRates[BeginDate]<=D$11)*(WNARRates[EndDate]>=D$11)*(WNARRates[Region]=$C$4)*(WNARRates[CustClass]=$D$9)*(WNARRates[Period]=$C$6)*WNARRates[CSWNA]) -> -5e-05 | E16: =SUMPRODUCT((WNARRates[BeginDate]<=E$11)*(WNARRates[EndDate]>=E$11)*(WNARRates[Region]=$C$4)*(WNARRates[CustClass]=$D$9)*(WNARRates[Period]=$C$6)*WNARRates[CSWNA]) -> -5e-05 | F16: =SUMPRODUCT((WNARRates[BeginDate]<=F$11)*(WNARRates[EndDate]>=F$11)*(WNARRates[Region]=$C$4)*(WNARRates[CustClass]=$D$9)*(WNARRates[Period]=$C$6)*WNARRates[AdjCSWNA]) -> 0.00666 | G16: =SUMPRODUCT((WNARRates[BeginDate]<=G$11)*(WNARRates[EndDate]>=G$11)*(WNARRates[Region]=$C$4)*(WNARRates[CustClass]=$D$9)*(WNARRates[Period]=$C$6)*WNARRates[AdjCSWNA]) -> 0.00666 | H16: =SUMPRODUCT((WNARRates[BeginDate]<=H$11)*(WNARRates[EndDate]>=H$11)*(WNARRates[Region]=$C$4)*(WNARRates[CustClass]=$D$9)*(WNARRates[Period]=$C$6)*WNARRates[AdjCSWNA]) -> 0.00666 | I16: =SUMPRODUCT((WNARRates[BeginDate]<=I$11)*(WNARRates[EndDate]>=I$11)*(WNARRates[Region]=$C$4)*(WNARRates[CustClass]=$D$9)*(WNARRates[Period]=$C$6)*WNARRates[AdjCSWNA]) -> 0.00666 | J16: =SUMPRODUCT((WNARRates[BeginDate]<=J$11)*(WNARRates[EndDate]>=J$11)*(WNARRates[Region]=$C$4)*(WNARRates[CustClass]=$D$9)*(WNARRates[Period]=$C$6)*WNARRates[AdjCSWNA]) -> 0.00666 | K16: =SUMPRODUCT((WNARRates[BeginDate]<=K$11)*(WNARRates[EndDate]>=K$11)*(WNARRates[Region]=$C$4)*(WNARRates[CustClass]=$D$9)*(WNARRates[Period]=$C$6)*WNARRates[AdjCSWNA]) -> 0.00666 | L16: =SUMPRODUCT((WNARRates[BeginDate]<=L$11)*(WNARRates[EndDate]>=L$11)*(WNARRates[Region]=$C$4)*(WNARRates[CustClass]=$D$9)*(WNARRates[Period]=$C$6)*WNARRates[AdjCSWNA]) -> 0.00666 | M16: =SUMPRODUCT((WNARRates[BeginDate]<=M$11)*(WNARRates[EndDate]>=M$11)*(WNARRates[Region]=$C$4)*(WNARRates[CustClass]=$D$9)*(WNARRates[Period]=$C$6)*WNARRates[AdjCSWNA]) -> 0.00666 | N16: =SUMPRODUCT((WNARRates[BeginDate]<=N$11)*(WNARRates[EndDate]>=N$11)*(WNARRates[Region]=$C$4)*(WNARRates[CustClass]=$D$9)*(WNARRates[Period]=$C$6)*WNARRates[AdjCSWNA]) -> 0.00666 | O16: =SUMPRODUCT((WNARRates[BeginDate]<=O$11)*(WNARRates[EndDate]>=O$11)*(WNARRates[Region]=$C$4)*(WNARRates[CustClass]=$D$9)*(WNARRates[Period]=$C$6)*WNARRates[AdjCSWNA]) -> 0.00666 | P16: =SUMPRODUCT((WNARRates[BeginDate]<=P$11)*(WNARRates[EndDate]>=P$11)*(WNARRates[Region]=$C$4)*(WNARRates[CustClass]=$D$9)*(WNARRates[Period]=$C$6)*WNARRates[AdjCSWNA]) -> 0.00666 | Q16: =SUMPRODUCT((WNARRates[BeginDate]<=Q$11)*(WNARRates[EndDate]>=Q$11)*(WNARRates[Region]=$C$4)*(WNARRates[CustClass]=$D$9)*(WNARRates[Period]=$C$6)*WNARRates[AdjCSWNA]) -> 0.00666 | R16: =SUMPRODUCT((WNARRates[BeginDate]<=R$11)*(WNARRates[EndDate]>=R$11)*(WNARRates[Region]=$C$4)*(WNARRates[CustClass]=$D$9)*(WNARRates[Period]=$C$6)*WNARRates[AdjCSWNA]) -> 0.00666 | S16: =SUMPRODUCT((WNARRates[BeginDate]<=S$11)*(WNARRates[EndDate]>=S$11)*(WNARRates[Region]=$C$4)*(WNARRates[CustClass]=$D$9)*(WNARRates[Period]=$C$6)*WNARRates[AdjCSWNA]) -> 0.00666 | T16: =SUMPRODUCT((WNARRates[BeginDate]<=T$11)*(WNARRates[EndDate]>=T$11)*(WNARRates[Region]=$C$4)*(WNARRates[CustClass]=$D$9)*(WNARRates[Period]=$C$6)*WNARRates[AdjCSWNA]) -> 0.00666 | U16: =SUMPRODUCT((WNARRates[BeginDate]<=U$11)*(WNARRates[EndDate]>=U$11)*(WNARRates[Region]=$C$4)*(WNARRates[CustClass]=$D$9)*(WNARRates[Period]=$C$6)*WNARRates[AdjCSWNA]) -> 0.00666 | V16: =SUMPRODUCT((WNARRates[BeginDate]<=V$11)*(WNARRates[EndDate]>=V$11)*(WNARRates[Region]=$C$4)*(WNARRates[CustClass]=$D$9)*(WNARRates[Period]=$C$6)*WNARRates[AdjCSWNA]) -> 0.00666 | W16: =SUMPRODUCT((WNARRates[BeginDate]<=W$11)*(WNARRates[EndDate]>=W$11)*(WNARRates[Region]=$C$4)*(WNARRates[CustClass]=$D$9)*(WNARRates[Period]=$C$6)*WNARRates[AdjCSWNA]) -> 0.00666
B17: SRR | C17: =SUMPRODUCT((WNARRates[BeginDate]<=C$11)*(WNARRates[EndDate]>=C$11)*(WNARRates[Region]=$C$4)*(WNARRates[CustClass]=$D$9)*(WNARRates[Period]=$C$6)*WNARRates[ARR]) -> -0.02997 | D17: =SUMPRODUCT((WNARRates[BeginDate]<=D$11)*(WNARRates[EndDate]>=D$11)*(WNARRates[Region]=$C$4)*(WNARRates[CustClass]=$D$9)*(WNARRates[Period]=$C$6)*WNARRates[ARR]) -> -0.02997 | E17: =SUMPRODUCT((WNARRates[BeginDate]<=E$11)*(WNARRates[EndDate]>=E$11)*(WNARRates[Region]=$C$4)*(WNARRates[CustClass]=$D$9)*(WNARRates[Period]=$C$6)*WNARRates[ARR]) -> -0.02997 | F17: =SUMPRODUCT((WNARRates[BeginDate]<=F$11)*(WNARRates[EndDate]>=F$11)*(WNARRates[Region]=$C$4)*(WNARRates[CustClass]=$D$9)*(WNARRates[Period]=$C$6)*WNARRates[AdjSRR]) -> -0.00222 | G17: =SUMPRODUCT((WNARRates[BeginDate]<=G$11)*(WNARRates[EndDate]>=G$11)*(WNARRates[Region]=$C$4)*(WNARRates[CustClass]=$D$9)*(WNARRates[Period]=$C$6)*WNARRates[AdjSRR]) -> -0.00222 | H17: =SUMPRODUCT((WNARRates[BeginDate]<=H$11)*(WNARRates[EndDate]>=H$11)*(WNARRates[Region]=$C$4)*(WNARRates[CustClass]=$D$9)*(WNARRates[Period]=$C$6)*WNARRates[AdjSRR]) -> -0.00222 | I17: =SUMPRODUCT((WNARRates[BeginDate]<=I$11)*(WNARRates[EndDate]>=I$11)*(WNARRates[Region]=$C$4)*(WNARRates[CustClass]=$D$9)*(WNARRates[Period]=$C$6)*WNARRates[AdjSRR]) -> -0.00222 | J17: =SUMPRODUCT((WNARRates[BeginDate]<=J$11)*(WNARRates[EndDate]>=J$11)*(WNARRates[Region]=$C$4)*(WNARRates[CustClass]=$D$9)*(WNARRates[Period]=$C$6)*WNARRates[AdjSRR]) -> -0.00222 | K17: =SUMPRODUCT((WNARRates[BeginDate]<=K$11)*(WNARRates[EndDate]>=K$11)*(WNARRates[Region]=$C$4)*(WNARRates[CustClass]=$D$9)*(WNARRates[Period]=$C$6)*WNARRates[AdjSRR]) -> -0.00222 | L17: =SUMPRODUCT((WNARRates[BeginDate]<=L$11)*(WNARRates[EndDate]>=L$11)*(WNARRates[Region]=$C$4)*(WNARRates[CustClass]=$D$9)*(WNARRates[Period]=$C$6)*WNARRates[AdjSRR]) -> -0.00222 | M17: =SUMPRODUCT((WNARRates[BeginDate]<=M$11)*(WNARRates[EndDate]>=M$11)*(WNARRates[Region]=$C$4)*(WNARRates[CustClass]=$D$9)*(WNARRates[Period]=$C$6)*WNARRates[AdjSRR]) -> -0.00222 | N17: =SUMPRODUCT((WNARRates[BeginDate]<=N$11)*(WNARRates[EndDate]>=N$11)*(WNARRates[Region]=$C$4)*(WNARRates[CustClass]=$D$9)*(WNARRates[Period]=$C$6)*WNARRates[AdjSRR]) -> -0.00222 | O17: =SUMPRODUCT((WNARRates[BeginDate]<=O$11)*(WNARRates[EndDate]>=O$11)*(WNARRates[Region]=$C$4)*(WNARRates[CustClass]=$D$9)*(WNARRates[Period]=$C$6)*WNARRates[AdjSRR]) -> -0.00222 | P17: =SUMPRODUCT((WNARRates[BeginDate]<=P$11)*(WNARRates[EndDate]>=P$11)*(WNARRates[Region]=$C$4)*(WNARRates[CustClass]=$D$9)*(WNARRates[Period]=$C$6)*WNARRates[AdjSRR]) -> -0.00222 | Q17: =SUMPRODUCT((WNARRates[BeginDate]<=Q$11)*(WNARRates[EndDate]>=Q$11)*(WNARRates[Region]=$C$4)*(WNARRates[CustClass]=$D$9)*(WNARRates[Period]=$C$6)*WNARRates[AdjSRR]) -> -0.00222 | R17: =SUMPRODUCT((WNARRates[BeginDate]<=R$11)*(WNARRates[EndDate]>=R$11)*(WNARRates[Region]=$C$4)*(WNARRates[CustClass]=$D$9)*(WNARRates[Period]=$C$6)*WNARRates[AdjSRR]) -> -0.00222 | S17: =SUMPRODUCT((WNARRates[BeginDate]<=S$11)*(WNARRates[EndDate]>=S$11)*(WNARRates[Region]=$C$4)*(WNARRates[CustClass]=$D$9)*(WNARRates[Period]=$C$6)*WNARRates[AdjSRR]) -> -0.00222 | T17: =SUMPRODUCT((WNARRates[BeginDate]<=T$11)*(WNARRates[EndDate]>=T$11)*(WNARRates[Region]=$C$4)*(WNARRates[CustClass]=$D$9)*(WNARRates[Period]=$C$6)*WNARRates[AdjSRR]) -> -0.00222 | U17: =SUMPRODUCT((WNARRates[BeginDate]<=U$11)*(WNARRates[EndDate]>=U$11)*(WNARRates[Region]=$C$4)*(WNARRates[CustClass]=$D$9)*(WNARRates[Period]=$C$6)*WNARRates[AdjSRR]) -> -0.00222 | V17: =SUMPRODUCT((WNARRates[BeginDate]<=V$11)*(WNARRates[EndDate]>=V$11)*(WNARRates[Region]=$C$4)*(WNARRates[CustClass]=$D$9)*(WNARRates[Period]=$C$6)*WNARRates[AdjSRR]) -> -0.00222 | W17: =SUMPRODUCT((WNARRates[BeginDate]<=W$11)*(WNARRates[EndDate]>=W$11)*(WNARRates[Region]=$C$4)*(WNARRates[CustClass]=$D$9)*(WNARRates[Period]=$C$6)*WNARRates[AdjSRR]) -> -0.00222
B18: Total | C18: =SUM(C16:C17) -> -0.03002 | D18: =SUM(D16:D17) -> -0.03002 | E18: -0.03002 | F18: 0.00444 | G18: 0.00444 | H18: 0.00444 | I18: 0.00444 | J18: 0.00444 | K18: 0.00444 | L18: 0.00444 | M18: 0.00444 | N18: =SUM(N16:N17) -> 0.00444 | O18: 0.00444 | P18: 0.00444 | Q18: 0.00444 | R18: 0.00444 | S18: 0.00444 | T18: 0.00444
B19: CSWNA and SRR Revenue for Period
B20: CSWNA $ | F20: =IF($C$6="S1",SUMPRODUCT((WNARevAlloc[MonthFlow]=F$11)*(WNARevAlloc[Region]=$C$4)*(WNARevAlloc[CustClass]=$D$9)*WNARevAlloc[AdjCSWNAS1Rev]),SUMPRODUCT((WNARevAlloc[MonthFlow]=F$11)*(WNARevAlloc[Region]=$C$4)*(WNARevAlloc[CustClass]=$D$9)*WNARevAlloc[AdjCSWNAS2Rev])) -> 3521.652898 | G20: =IF($C$6="S1",SUMPRODUCT((WNARevAlloc[MonthFlow]=G$11)*(WNARevAlloc[Region]=$C$4)*(WNARevAlloc[CustClass]=$D$9)*WNARevAlloc[AdjCSWNAS1Rev]),SUMPRODUCT((WNARevAlloc[MonthFlow]=G$11)*(WNARevAlloc[Region]=$C$4)*(WNARevAlloc[CustClass]=$D$9)*WNARevAlloc[AdjCSWNAS2Rev])) -> 1970.11467 | H20: =IF($C$6="S1",SUMPRODUCT((WNARevAlloc[MonthFlow]=H$11)*(WNARevAlloc[Region]=$C$4)*(WNARevAlloc[CustClass]=$D$9)*WNARevAlloc[AdjCSWNAS1Rev]),SUMPRODUCT((WNARevAlloc[MonthFlow]=H$11)*(WNARevAlloc[Region]=$C$4)*(WNARevAlloc[CustClass]=$D$9)*WNARevAlloc[AdjCSWNAS2Rev])) -> 1425.668171 | I20: =IF($C$6="S1",SUMPRODUCT((WNARevAlloc[MonthFlow]=I$11)*(WNARevAlloc[Region]=$C$4)*(WNARevAlloc[CustClass]=$D$9)*WNARevAlloc[AdjCSWNAS1Rev]),SUMPRODUCT((WNARevAlloc[MonthFlow]=I$11)*(WNARevAlloc[Region]=$C$4)*(WNARevAlloc[CustClass]=$D$9)*WNARevAlloc[AdjCSWNAS2Rev])) -> 1588.806389 | J20: =IF($C$6="S1",SUMPRODUCT((WNARevAlloc[MonthFlow]=J$11)*(WNARevAlloc[Region]=$C$4)*(WNARevAlloc[CustClass]=$D$9)*WNARevAlloc[AdjCSWNAS1Rev]),SUMPRODUCT((WNARevAlloc[MonthFlow]=J$11)*(WNARevAlloc[Region]=$C$4)*(WNARevAlloc[CustClass]=$D$9)*WNARevAlloc[AdjCSWNAS2Rev])) -> 1638.670553 | K20: =IF($C$6="S1",SUMPRODUCT((WNARevAlloc[MonthFlow]=K$11)*(WNARevAlloc[Region]=$C$4)*(WNARevAlloc[CustClass]=$D$9)*WNARevAlloc[AdjCSWNAS1Rev]),SUMPRODUCT((WNARevAlloc[MonthFlow]=K$11)*(WNARevAlloc[Region]=$C$4)*(WNARevAlloc[CustClass]=$D$9)*WNARevAlloc[AdjCSWNAS2Rev])) -> 1776.891046 | L20: =IF($C$6="S1",SUMPRODUCT((WNARevAlloc[MonthFlow]=L$11)*(WNARevAlloc[Region]=$C$4)*(WNARevAlloc[CustClass]=$D$9)*WNARevAlloc[AdjCSWNAS1Rev]),SUMPRODUCT((WNARevAlloc[MonthFlow]=L$11)*(WNARevAlloc[Region]=$C$4)*(WNARevAlloc[CustClass]=$D$9)*WNARevAlloc[AdjCSWNAS2Rev])) -> 3708.285473 | M20: =IF($C$6="S1",SUMPRODUCT((WNARevAlloc[MonthFlow]=M$11)*(WNARevAlloc[Region]=$C$4)*(WNARevAlloc[CustClass]=$D$9)*WNARevAlloc[AdjCSWNAS1Rev]),SUMPRODUCT((WNARevAlloc[MonthFlow]=M$11)*(WNARevAlloc[Region]=$C$4)*(WNARevAlloc[CustClass]=$D$9)*WNARevAlloc[AdjCSWNAS2Rev])) -> 11268.45398 | N20: =IF($C$6="S1",SUMPRODUCT((WNARevAlloc[MonthFlow]=N$11)*(WNARevAlloc[Region]=$C$4)*(WNARevAlloc[CustClass]=$D$9)*WNARevAlloc[AdjCSWNAS1Rev]),SUMPRODUCT((WNARevAlloc[MonthFlow]=N$11)*(WNARevAlloc[Region]=$C$4)*(WNARevAlloc[CustClass]=$D$9)*WNARevAlloc[AdjCSWNAS2Rev])) -> 19019.54647 | O20: =IF($C$6="S1",SUMPRODUCT((WNARevAlloc[MonthFlow]=O$11)*(WNARevAlloc[Region]=$C$4)*(WNARevAlloc[CustClass]=$D$9)*WNARevAlloc[AdjCSWNAS1Rev]),SUMPRODUCT((WNARevAlloc[MonthFlow]=O$11)*(WNARevAlloc[Region]=$C$4)*(WNARevAlloc[CustClass]=$D$9)*WNARevAlloc[AdjCSWNAS2Rev])) -> 23156.44564 | P20: =IF($C$6="S1",SUMPRODUCT((WNARevAlloc[MonthFlow]=P$11)*(WNARevAlloc[Region]=$C$4)*(WNARevAlloc[CustClass]=$D$9)*WNARevAlloc[AdjCSWNAS1Rev]),SUMPRODUCT((WNARevAlloc[MonthFlow]=P$11)*(WNARevAlloc[Region]=$C$4)*(WNARevAlloc[CustClass]=$D$9)*WNARevAlloc[AdjCSWNAS2Rev])) -> 16907.83179 | Q20: =IF($C$6="S1",SUMPRODUCT((WNARevAlloc[MonthFlow]=Q$11)*(WNARevAlloc[Region]=$C$4)*(WNARevAlloc[CustClass]=$D$9)*WNARevAlloc[AdjCSWNAS1Rev]),SUMPRODUCT((WNARevAlloc[MonthFlow]=Q$11)*(WNARevAlloc[Region]=$C$4)*(WNARevAlloc[CustClass]=$D$9)*WNARevAlloc[AdjCSWNAS2Rev])) -> 6643.668747 | R20: =IF($C$6="S1",SUMPRODUCT((WNARevAlloc[MonthFlow]=R$11)*(WNARevAlloc[Region]=$C$4)*(WNARevAlloc[CustClass]=$D$9)*WNARevAlloc[AdjCSWNAS1Rev]),SUMPRODUCT((WNARevAlloc[MonthFlow]=R$11)*(WNARevAlloc[Region]=$C$4)*(WNARevAlloc[CustClass]=$D$9)*WNARevAlloc[AdjCSWNAS2Rev])) -> 3834.781808 | S20: =IF($C$6="S1",SUMPRODUCT((WNARevAlloc[MonthFlow]=S$11)*(WNARevAlloc[Region]=$C$4)*(WNARevAlloc[CustClass]=$D$9)*WNARevAlloc[AdjCSWNAS1Rev]),SUMPRODUCT((WNARevAlloc[MonthFlow]=S$11)*(WNARevAlloc[Region]=$C$4)*(WNARevAlloc[CustClass]=$D$9)*WNARevAlloc[AdjCSWNAS2Rev])) -> 2025.148811 | T20: =IF($C$6="S1",SUMPRODUCT((WNARevAlloc[MonthFlow]=T$11)*(WNARevAlloc[Region]=$C$4)*(WNARevAlloc[CustClass]=$D$9)*WNARevAlloc[AdjCSWNAS1Rev]),SUMPRODUCT((WNARevAlloc[MonthFlow]=T$11)*(WNARevAlloc[Region]=$C$4)*(WNARevAlloc[CustClass]=$D$9)*WNARevAlloc[AdjCSWNAS2Rev])) -> 1622.106619 | U20: =ROUND(U$12*U16,0) -> 1613 | V20: 1800 | W20: 1807
B21: SRR $ | C21: =ROUND(C14*C18,2) -> 14763.98 | D21: =ROUND(D14*D18,2) -> 39055.76 | E21: =ROUND(E14*E18,2) -> 34204.37 | F21: =IF($C$6="S1",SUMPRODUCT((WNARevAlloc[MonthFlow]=F$11)*(WNARevAlloc[Region]=$C$4)*(WNARevAlloc[CustClass]=$D$9)*WNARevAlloc[AdjSRRS1Rev]),SUMPRODUCT((WNARevAlloc[MonthFlow]=F$11)*(WNARevAlloc[Region]=$C$4)*(WNARevAlloc[CustClass]=$D$9)*WNARevAlloc[AdjSRRS2Rev])) -> -1728.837784 | G21: =IF($C$6="S1",SUMPRODUCT((WNARevAlloc[MonthFlow]=G$11)*(WNARevAlloc[Region]=$C$4)*(WNARevAlloc[CustClass]=$D$9)*WNARevAlloc[AdjSRRS1Rev]),SUMPRODUCT((WNARevAlloc[MonthFlow]=G$11)*(WNARevAlloc[Region]=$C$4)*(WNARevAlloc[CustClass]=$D$9)*WNARevAlloc[AdjSRRS2Rev])) -> -693.2156283 | H21: =IF($C$6="S1",SUMPRODUCT((WNARevAlloc[MonthFlow]=H$11)*(WNARevAlloc[Region]=$C$4)*(WNARevAlloc[CustClass]=$D$9)*WNARevAlloc[AdjSRRS1Rev]),SUMPRODUCT((WNARevAlloc[MonthFlow]=H$11)*(WNARevAlloc[Region]=$C$4)*(WNARevAlloc[CustClass]=$D$9)*WNARevAlloc[AdjSRRS2Rev])) -> -390.2725324 | I21: =IF($C$6="S1",SUMPRODUCT((WNARevAlloc[MonthFlow]=I$11)*(WNARevAlloc[Region]=$C$4)*(WNARevAlloc[CustClass]=$D$9)*WNARevAlloc[AdjSRRS1Rev]),SUMPRODUCT((WNARevAlloc[MonthFlow]=I$11)*(WNARevAlloc[Region]=$C$4)*(WNARevAlloc[CustClass]=$D$9)*WNARevAlloc[AdjSRRS2Rev])) -> -655.8470133 | J21: =IF($C$6="S1",SUMPRODUCT((WNARevAlloc[MonthFlow]=J$11)*(WNARevAlloc[Region]=$C$4)*(WNARevAlloc[CustClass]=$D$9)*WNARevAlloc[AdjSRRS1Rev]),SUMPRODUCT((WNARevAlloc[MonthFlow]=J$11)*(WNARevAlloc[Region]=$C$4)*(WNARevAlloc[CustClass]=$D$9)*WNARevAlloc[AdjSRRS2Rev])) -> -1281.406527 | K21: =IF($C$6="S1",SUMPRODUCT((WNARevAlloc[MonthFlow]=K$11)*(WNARevAlloc[Region]=$C$4)*(WNARevAlloc[CustClass]=$D$9)*WNARevAlloc[AdjSRRS1Rev]),SUMPRODUCT((WNARevAlloc[MonthFlow]=K$11)*(WNARevAlloc[Region]=$C$4)*(WNARevAlloc[CustClass]=$D$9)*WNARevAlloc[AdjSRRS2Rev])) -> -787.5324508 | L21: =IF($C$6="S1",SUMPRODUCT((WNARevAlloc[MonthFlow]=L$11)*(WNARevAlloc[Region]=$C$4)*(WNARevAlloc[CustClass]=$D$9)*WNARevAlloc[AdjSRRS1Rev]),SUMPRODUCT((WNARevAlloc[MonthFlow]=L$11)*(WNARevAlloc[Region]=$C$4)*(WNARevAlloc[CustClass]=$D$9)*WNARevAlloc[AdjSRRS2Rev])) -> -1660.893144 | M21: =IF($C$6="S1",SUMPRODUCT((WNARevAlloc[MonthFlow]=M$11)*(WNARevAlloc[Region]=$C$4)*(WNARevAlloc[CustClass]=$D$9)*WNARevAlloc[AdjSRRS1Rev]),SUMPRODUCT((WNARevAlloc[MonthFlow]=M$11)*(WNARevAlloc[Region]=$C$4)*(WNARevAlloc[CustClass]=$D$9)*WNARevAlloc[AdjSRRS2Rev])) -> -3763.596316 | N21: =IF($C$6="S1",SUMPRODUCT((WNARevAlloc[MonthFlow]=N$11)*(WNARevAlloc[Region]=$C$4)*(WNARevAlloc[CustClass]=$D$9)*WNARevAlloc[AdjSRRS1Rev]),SUMPRODUCT((WNARevAlloc[MonthFlow]=N$11)*(WNARevAlloc[Region]=$C$4)*(WNARevAlloc[CustClass]=$D$9)*WNARevAlloc[AdjSRRS2Rev])) -> -6419.853736 | O21: =IF($C$6="S1",SUMPRODUCT((WNARevAlloc[MonthFlow]=O$11)*(WNARevAlloc[Region]=$C$4)*(WNARevAlloc[CustClass]=$D$9)*WNARevAlloc[AdjSRRS1Rev]),SUMPRODUCT((WNARevAlloc[MonthFlow]=O$11)*(WNARevAlloc[Region]=$C$4)*(WNARevAlloc[CustClass]=$D$9)*WNARevAlloc[AdjSRRS2Rev])) -> -7719.118721 | P21: =IF($C$6="S1",SUMPRODUCT((WNARevAlloc[MonthFlow]=P$11)*(WNARevAlloc[Region]=$C$4)*(WNARevAlloc[CustClass]=$D$9)*WNARevAlloc[AdjSRRS1Rev]),SUMPRODUCT((WNARevAlloc[MonthFlow]=P$11)*(WNARevAlloc[Region]=$C$4)*(WNARevAlloc[CustClass]=$D$9)*WNARevAlloc[AdjSRRS2Rev])) -> -5662.895509 | Q21: =IF($C$6="S1",SUMPRODUCT((WNARevAlloc[MonthFlow]=Q$11)*(WNARevAlloc[Region]=$C$4)*(WNARevAlloc[CustClass]=$D$9)*WNARevAlloc[AdjSRRS1Rev]),SUMPRODUCT((WNARevAlloc[MonthFlow]=Q$11)*(WNARevAlloc[Region]=$C$4)*(WNARevAlloc[CustClass]=$D$9)*WNARevAlloc[AdjSRRS2Rev])) -> -2234.194087 | R21: =IF($C$6="S1",SUMPRODUCT((WNARevAlloc[MonthFlow]=R$11)*(WNARevAlloc[Region]=$C$4)*(WNARevAlloc[CustClass]=$D$9)*WNARevAlloc[AdjSRRS1Rev]),SUMPRODUCT((WNARevAlloc[MonthFlow]=R$11)*(WNARevAlloc[Region]=$C$4)*(WNARevAlloc[CustClass]=$D$9)*WNARevAlloc[AdjSRRS2Rev])) -> -1353.22891 | S21: =IF($C$6="S1",SUMPRODUCT((WNARevAlloc[MonthFlow]=S$11)*(WNARevAlloc[Region]=$C$4)*(WNARevAlloc[CustClass]=$D$9)*WNARevAlloc[AdjSRRS1Rev]),SUMPRODUCT((WNARevAlloc[MonthFlow]=S$11)*(WNARevAlloc[Region]=$C$4)*(WNARevAlloc[CustClass]=$D$9)*WNARevAlloc[AdjSRRS2Rev])) -> -663.1520597 | T21: =IF($C$6="S1",SUMPRODUCT((WNARevAlloc[MonthFlow]=T$11)*(WNARevAlloc[Region]=$C$4)*(WNARevAlloc[CustClass]=$D$9)*WNARevAlloc[AdjSRRS1Rev]),SUMPRODUCT((WNARevAlloc[MonthFlow]=T$11)*(WNARevAlloc[Region]=$C$4)*(WNARevAlloc[CustClass]=$D$9)*WNARevAlloc[AdjSRRS2Rev])) -> -540.7022062 | U21: -538 | V21: -600 | W21: -602
B22: Total True-Up | C22: =SUM(C21:E21) -> 88024.11 | D22: Enter in VolTrueUp Table
B24: SAP Rate Category | C24: SMGC_SFGS | D24: SGS
B25: Small Comm. | C25: True-Up Period | F25: Actual Period* | U25: Projected Period
B26: Month | C26: =C7 -> 45292 | D26: =EDATE(C26,1) -> 45323 | E26: =EDATE(D26,1) -> 45352 | F26: 45383 | G26: 45413 | H26: 45444 | I26: 45474 | J26: 45505 | K26: 45536 | L26: 45566 | M26: 45597 | N26: =EDATE(M26,1) -> 45627 | O26: =EDATE(N26,1) -> 45658 | P26: =EDATE(O26,1) -> 45689 | Q26: =EDATE(P26,1) -> 45717 | R26: =EDATE(Q26,1) -> 45748 | S26: =EDATE(R26,1) -> 45778 | T26: =EDATE(S26,1) -> 45809 | U26: 45839 | V26: 45870 | W26: 45901
B27: Est. Volume | C27: =SUMPRODUCT((CustEstVol[MonthFlow]=C26)*(CustEstVol[SAPRateCategory]=$C24)*CustEstVol[NormVol]) -> 1024543 | D27: =SUMPRODUCT((CustEstVol[MonthFlow]=D26)*(CustEstVol[SAPRateCategory]=$C24)*CustEstVol[NormVol]) -> 828989 | E27: =SUMPRODUCT((CustEstVol[MonthFlow]=E26)*(CustEstVol[SAPRateCategory]=$C24)*CustEstVol[NormVol]) -> 617967 | U27: =SUMPRODUCT((CustEstVol[MonthFlow]=U26)*(CustEstVol[SAPRateCategory]=$C24)*CustEstVol[NormVol]) -> 74491 | V27: =SUMPRODUCT((CustEstVol[MonthFlow]=V26)*(CustEstVol[SAPRateCategory]=$C24)*CustEstVol[NormVol]) -> 101192 | W27: =SUMPRODUCT((CustEstVol[MonthFlow]=W26)*(CustEstVol[SAPRateCategory]=$C24)*CustEstVol[NormVol]) -> 83358
B28: Actual Volume | C28: =SUMPRODUCT((WNARevAlloc[MonthFlow]=C26)*(WNARevAlloc[SAPRateCategory]=$C24)*WNARevAlloc[Consumption]) -> 845268.129 | D28: =SUMPRODUCT((WNARevAlloc[MonthFlow]=D26)*(WNARevAlloc[SAPRateCategory]=$C24)*WNARevAlloc[Consumption]) -> 522311.887 | E28: =SUMPRODUCT((WNARevAlloc[MonthFlow]=E26)*(WNARevAlloc[SAPRateCategory]=$C24)*WNARevAlloc[Consumption]) -> 298669.672 | F28: =SUMPRODUCT((WNARevAlloc[MonthFlow]=F26)*(WNARevAlloc[SAPRateCategory]=$C24)*WNARevAlloc[Consumption]) -> 154412.281 | G28: =SUMPRODUCT((WNARevAlloc[MonthFlow]=G26)*(WNARevAlloc[SAPRateCategory]=$C24)*WNARevAlloc[Consumption]) -> 84313.713 | H28: =SUMPRODUCT((WNARevAlloc[MonthFlow]=H26)*(WNARevAlloc[SAPRateCategory]=$C24)*WNARevAlloc[Consumption]) -> 66217.41 | I28: =SUMPRODUCT((WNARevAlloc[MonthFlow]=I26)*(WNARevAlloc[SAPRateCategory]=$C24)*WNARevAlloc[Consumption]) -> 74491.135 | J28: =SUMPRODUCT((WNARevAlloc[MonthFlow]=J26)*(WNARevAlloc[SAPRateCategory]=$C24)*WNARevAlloc[Consumption]) -> 101191.98 | K28: =SUMPRODUCT((WNARevAlloc[MonthFlow]=K26)*(WNARevAlloc[SAPRateCategory]=$C24)*WNARevAlloc[Consumption]) -> 83357.971 | L28: =SUMPRODUCT((WNARevAlloc[MonthFlow]=L26)*(WNARevAlloc[SAPRateCategory]=$C24)*WNARevAlloc[Consumption]) -> 142178.981 | M28: =SUMPRODUCT((WNARevAlloc[MonthFlow]=M26)*(WNARevAlloc[SAPRateCategory]=$C24)*WNARevAlloc[Consumption]) -> 443475.768 | N28: =SUMPRODUCT((WNARevAlloc[MonthFlow]=N26)*(WNARevAlloc[SAPRateCategory]=$C24)*WNARevAlloc[Consumption]) -> 856212.443 | O28: =SUMPRODUCT((WNARevAlloc[MonthFlow]=O26)*(WNARevAlloc[SAPRateCategory]=$C24)*WNARevAlloc[Consumption]) -> 1090802.238 | P28: =SUMPRODUCT((WNARevAlloc[MonthFlow]=P26)*(WNARevAlloc[SAPRateCategory]=$C24)*WNARevAlloc[Consumption]) -> 791028.541 | Q28: =SUMPRODUCT((WNARevAlloc[MonthFlow]=Q26)*(WNARevAlloc[SAPRateCategory]=$C24)*WNARevAlloc[Consumption]) -> 292515.565 | R28: =SUMPRODUCT((WNARevAlloc[MonthFlow]=R26)*(WNARevAlloc[SAPRateCategory]=$C24)*WNARevAlloc[Consumption]) -> 132172.073 | S28: =SUMPRODUCT((WNARevAlloc[MonthFlow]=S26)*(WNARevAlloc[SAPRateCategory]=$C24)*WNARevAlloc[Consumption]) -> 93879.872 | T28: =SUMPRODUCT((WNARevAlloc[MonthFlow]=T26)*(WNARevAlloc[SAPRateCategory]=$C24)*WNARevAlloc[Consumption]) -> 75425.801
B29: Vol True-Up | C29: =C28-C27 -> -179274.871 | D29: =D28-D27 -> -306677.113 | E29: =E28-E27 -> -319297.328
B30: ="WNAR "&$C$6&" Rates in Effect" -> WNAR S1 Rates in Effect
B31: CSWNA | C31: =SUMPRODUCT((WNARRates[BeginDate]<=C$26)*(WNARRates[EndDate]>=C$26)*(WNARRates[Region]=$C$4)*(WNARRates[CustClass]=$D$24)*(WNARRates[Period]=$C$6)*WNARRates[CSWNA]) -> -1e-05 | D31: =SUMPRODUCT((WNARRates[BeginDate]<=D$26)*(WNARRates[EndDate]>=D$26)*(WNARRates[Region]=$C$4)*(WNARRates[CustClass]=$D$24)*(WNARRates[Period]=$C$6)*WNARRates[CSWNA]) -> -1e-05 | E31: =SUMPRODUCT((WNARRates[BeginDate]<=E$26)*(WNARRates[EndDate]>=E$26)*(WNARRates[Region]=$C$4)*(WNARRates[CustClass]=$D$24)*(WNARRates[Period]=$C$6)*WNARRates[CSWNA]) -> -1e-05 | F31: =SUMPRODUCT((WNARRates[BeginDate]<=F$26)*(WNARRates[EndDate]>=F$26)*(WNARRates[Region]=$C$4)*(WNARRates[CustClass]=$D$24)*(WNARRates[Period]=$C$6)*WNARRates[AdjCSWNA]) -> 0.00237 | G31: =SUMPRODUCT((WNARRates[BeginDate]<=G$26)*(WNARRates[EndDate]>=G$26)*(WNARRates[Region]=$C$4)*(WNARRates[CustClass]=$D$24)*(WNARRates[Period]=$C$6)*WNARRates[AdjCSWNA]) -> 0.00237 | H31: =SUMPRODUCT((WNARRates[BeginDate]<=H$26)*(WNARRates[EndDate]>=H$26)*(WNARRates[Region]=$C$4)*(WNARRates[CustClass]=$D$24)*(WNARRates[Period]=$C$6)*WNARRates[AdjCSWNA]) -> 0.00237 | I31: =SUMPRODUCT((WNARRates[BeginDate]<=I$26)*(WNARRates[EndDate]>=I$26)*(WNARRates[Region]=$C$4)*(WNARRates[CustClass]=$D$24)*(WNARRates[Period]=$C$6)*WNARRates[AdjCSWNA]) -> 0.00237 | J31: =SUMPRODUCT((WNARRates[BeginDate]<=J$26)*(WNARRates[EndDate]>=J$26)*(WNARRates[Region]=$C$4)*(WNARRates[CustClass]=$D$24)*(WNARRates[Period]=$C$6)*WNARRates[AdjCSWNA]) -> 0.00237 | K31: =SUMPRODUCT((WNARRates[BeginDate]<=K$26)*(WNARRates[EndDate]>=K$26)*(WNARRates[Region]=$C$4)*(WNARRates[CustClass]=$D$24)*(WNARRates[Period]=$C$6)*WNARRates[AdjCSWNA]) -> 0.00237 | L31: =SUMPRODUCT((WNARRates[BeginDate]<=L$26)*(WNARRates[EndDate]>=L$26)*(WNARRates[Region]=$C$4)*(WNARRates[CustClass]=$D$24)*(WNARRates[Period]=$C$6)*WNARRates[AdjCSWNA]) -> 0.00237 | M31: =SUMPRODUCT((WNARRates[BeginDate]<=M$26)*(WNARRates[EndDate]>=M$26)*(WNARRates[Region]=$C$4)*(WNARRates[CustClass]=$D$24)*(WNARRates[Period]=$C$6)*WNARRates[AdjCSWNA]) -> 0.00237 | N31: =SUMPRODUCT((WNARRates[BeginDate]<=N$26)*(WNARRates[EndDate]>=N$26)*(WNARRates[Region]=$C$4)*(WNARRates[CustClass]=$D$24)*(WNARRates[Period]=$C$6)*WNARRates[AdjCSWNA]) -> 0.00237 | O31: =SUMPRODUCT((WNARRates[BeginDate]<=O$26)*(WNARRates[EndDate]>=O$26)*(WNARRates[Region]=$C$4)*(WNARRates[CustClass]=$D$24)*(WNARRates[Period]=$C$6)*WNARRates[AdjCSWNA]) -> 0.00237 | P31: =SUMPRODUCT((WNARRates[BeginDate]<=P$26)*(WNARRates[EndDate]>=P$26)*(WNARRates[Region]=$C$4)*(WNARRates[CustClass]=$D$24)*(WNARRates[Period]=$C$6)*WNARRates[AdjCSWNA]) -> 0.00237 | Q31: =SUMPRODUCT((WNARRates[BeginDate]<=Q$26)*(WNARRates[EndDate]>=Q$26)*(WNARRates[Region]=$C$4)*(WNARRates[CustClass]=$D$24)*(WNARRates[Period]=$C$6)*WNARRates[AdjCSWNA]) -> 0.00237 | R31: =SUMPRODUCT((WNARRates[BeginDate]<=R$26)*(WNARRates[EndDate]>=R$26)*(WNARRates[Region]=$C$4)*(WNARRates[CustClass]=$D$24)*(WNARRates[Period]=$C$6)*WNARRates[AdjCSWNA]) -> 0.00237 | S31: =SUMPRODUCT((WNARRates[BeginDate]<=S$26)*(WNARRates[EndDate]>=S$26)*(WNARRates[Region]=$C$4)*(WNARRates[CustClass]=$D$24)*(WNARRates[Period]=$C$6)*WNARRates[AdjCSWNA]) -> 0.00237 | T31: =SUMPRODUCT((WNARRates[BeginDate]<=T$26)*(WNARRates[EndDate]>=T$26)*(WNARRates[Region]=$C$4)*(WNARRates[CustClass]=$D$24)*(WNARRates[Period]=$C$6)*WNARRates[AdjCSWNA]) -> 0.00237 | U31: =SUMPRODUCT((WNARRates[BeginDate]<=U$26)*(WNARRates[EndDate]>=U$26)*(WNARRates[Region]=$C$4)*(WNARRates[CustClass]=$D$24)*(WNARRates[Period]=$C$6)*WNARRates[AdjCSWNA]) -> 0.00237 | V31: =SUMPRODUCT((WNARRates[BeginDate]<=V$26)*(WNARRates[EndDate]>=V$26)*(WNARRates[Region]=$C$4)*(WNARRates[CustClass]=$D$24)*(WNARRates[Period]=$C$6)*WNARRates[AdjCSWNA]) -> 0.00237 | W31: =SUMPRODUCT((WNARRates[BeginDate]<=W$26)*(WNARRates[EndDate]>=W$26)*(WNARRates[Region]=$C$4)*(WNARRates[CustClass]=$D$24)*(WNARRates[Period]=$C$6)*WNARRates[AdjCSWNA]) -> 0.00237
B32: SRR | C32: =SUMPRODUCT((WNARRates[BeginDate]<=C$26)*(WNARRates[EndDate]>=C$26)*(WNARRates[Region]=$C$4)*(WNARRates[CustClass]=$D$24)*(WNARRates[Period]=$C$6)*WNARRates[ARR]) -> -0.00321 | D32: =SUMPRODUCT((WNARRates[BeginDate]<=D$26)*(WNARRates[EndDate]>=D$26)*(WNARRates[Region]=$C$4)*(WNARRates[CustClass]=$D$24)*(WNARRates[Period]=$C$6)*WNARRates[ARR]) -> -0.00321 | E32: =SUMPRODUCT((WNARRates[BeginDate]<=E$26)*(WNARRates[EndDate]>=E$26)*(WNARRates[Region]=$C$4)*(WNARRates[CustClass]=$D$24)*(WNARRates[Period]=$C$6)*WNARRates[ARR]) -> -0.00321 | F32: =SUMPRODUCT((WNARRates[BeginDate]<=F$26)*(WNARRates[EndDate]>=F$26)*(WNARRates[Region]=$C$4)*(WNARRates[CustClass]=$D$24)*(WNARRates[Period]=$C$6)*WNARRates[AdjSRR]) -> -0.00048 | G32: =SUMPRODUCT((WNARRates[BeginDate]<=G$26)*(WNARRates[EndDate]>=G$26)*(WNARRates[Region]=$C$4)*(WNARRates[CustClass]=$D$24)*(WNARRates[Period]=$C$6)*WNARRates[AdjSRR]) -> -0.00048 | H32: =SUMPRODUCT((WNARRates[BeginDate]<=H$26)*(WNARRates[EndDate]>=H$26)*(WNARRates[Region]=$C$4)*(WNARRates[CustClass]=$D$24)*(WNARRates[Period]=$C$6)*WNARRates[AdjSRR]) -> -0.00048 | I32: =SUMPRODUCT((WNARRates[BeginDate]<=I$26)*(WNARRates[EndDate]>=I$26)*(WNARRates[Region]=$C$4)*(WNARRates[CustClass]=$D$24)*(WNARRates[Period]=$C$6)*WNARRates[AdjSRR]) -> -0.00048 | J32: =SUMPRODUCT((WNARRates[BeginDate]<=J$26)*(WNARRates[EndDate]>=J$26)*(WNARRates[Region]=$C$4)*(WNARRates[CustClass]=$D$24)*(WNARRates[Period]=$C$6)*WNARRates[AdjSRR]) -> -0.00048 | K32: =SUMPRODUCT((WNARRates[BeginDate]<=K$26)*(WNARRates[EndDate]>=K$26)*(WNARRates[Region]=$C$4)*(WNARRates[CustClass]=$D$24)*(WNARRates[Period]=$C$6)*WNARRates[AdjSRR]) -> -0.00048 | L32: =SUMPRODUCT((WNARRates[BeginDate]<=L$26)*(WNARRates[EndDate]>=L$26)*(WNARRates[Region]=$C$4)*(WNARRates[CustClass]=$D$24)*(WNARRates[Period]=$C$6)*WNARRates[AdjSRR]) -> -0.00048 | M32: =SUMPRODUCT((WNARRates[BeginDate]<=M$26)*(WNARRates[EndDate]>=M$26)*(WNARRates[Region]=$C$4)*(WNARRates[CustClass]=$D$24)*(WNARRates[Period]=$C$6)*WNARRates[AdjSRR]) -> -0.00048 | N32: =SUMPRODUCT((WNARRates[BeginDate]<=N$26)*(WNARRates[EndDate]>=N$26)*(WNARRates[Region]=$C$4)*(WNARRates[CustClass]=$D$24)*(WNARRates[Period]=$C$6)*WNARRates[AdjSRR]) -> -0.00048 | O32: =SUMPRODUCT((WNARRates[BeginDate]<=O$26)*(WNARRates[EndDate]>=O$26)*(WNARRates[Region]=$C$4)*(WNARRates[CustClass]=$D$24)*(WNARRates[Period]=$C$6)*WNARRates[AdjSRR]) -> -0.00048 | P32: =SUMPRODUCT((WNARRates[BeginDate]<=P$26)*(WNARRates[EndDate]>=P$26)*(WNARRates[Region]=$C$4)*(WNARRates[CustClass]=$D$24)*(WNARRates[Period]=$C$6)*WNARRates[AdjSRR]) -> -0.00048 | Q32: =SUMPRODUCT((WNARRates[BeginDate]<=Q$26)*(WNARRates[EndDate]>=Q$26)*(WNARRates[Region]=$C$4)*(WNARRates[CustClass]=$D$24)*(WNARRates[Period]=$C$6)*WNARRates[AdjSRR]) -> -0.00048 | R32: =SUMPRODUCT((WNARRates[BeginDate]<=R$26)*(WNARRates[EndDate]>=R$26)*(WNARRates[Region]=$C$4)*(WNARRates[CustClass]=$D$24)*(WNARRates[Period]=$C$6)*WNARRates[AdjSRR]) -> -0.00048 | S32: =SUMPRODUCT((WNARRates[BeginDate]<=S$26)*(WNARRates[EndDate]>=S$26)*(WNARRates[Region]=$C$4)*(WNARRates[CustClass]=$D$24)*(WNARRates[Period]=$C$6)*WNARRates[AdjSRR]) -> -0.00048 | T32: =SUMPRODUCT((WNARRates[BeginDate]<=T$26)*(WNARRates[EndDate]>=T$26)*(WNARRates[Region]=$C$4)*(WNARRates[CustClass]=$D$24)*(WNARRates[Period]=$C$6)*WNARRates[AdjSRR]) -> -0.00048 | U32: =SUMPRODUCT((WNARRates[BeginDate]<=U$26)*(WNARRates[EndDate]>=U$26)*(WNARRates[Region]=$C$4)*(WNARRates[CustClass]=$D$24)*(WNARRates[Period]=$C$6)*WNARRates[AdjSRR]) -> -0.00048 | V32: =SUMPRODUCT((WNARRates[BeginDate]<=V$26)*(WNARRates[EndDate]>=V$26)*(WNARRates[Region]=$C$4)*(WNARRates[CustClass]=$D$24)*(WNARRates[Period]=$C$6)*WNARRates[AdjSRR]) -> -0.00048 | W32: =SUMPRODUCT((WNARRates[BeginDate]<=W$26)*(WNARRates[EndDate]>=W$26)*(WNARRates[Region]=$C$4)*(WNARRates[CustClass]=$D$24)*(WNARRates[Period]=$C$6)*WNARRates[AdjSRR]) -> -0.00048
B33: Total | C33: =SUM(C31:C32) -> -0.00322 | D33: =SUM(D31:D32) -> -0.00322 | E33: -0.00322 | F33: 0.00189 | G33: 0.00189 | H33: 0.00189 | I33: 0.00189 | J33: 0.00189 | K33: 0.00189 | L33: 0.00189 | M33: 0.00189 | N33: =SUM(N31:N32) -> 0.00189 | O33: 0.00189 | P33: 0.00189 | Q33: 0.00189 | R33: 0.00189 | S33: 0.00189 | T33: 0.00189
B34: CSWNA and SRR Revenue for Period
B35: CSWNA $ | F35: =IF($C$6="S1",SUMPRODUCT((WNARevAlloc[MonthFlow]=F$11)*(WNARevAlloc[Region]=$C$4)*(WNARevAlloc[CustClass]=$D$24)*WNARevAlloc[AdjCSWNAS1Rev]),SUMPRODUCT((WNARevAlloc[MonthFlow]=F$11)*(WNARevAlloc[Region]=$C$4)*(WNARevAlloc[CustClass]=$D$24)*WNARevAlloc[AdjCSWNAS2Rev])) -> 335.6379137 | G35: =IF($C$6="S1",SUMPRODUCT((WNARevAlloc[MonthFlow]=G$11)*(WNARevAlloc[Region]=$C$4)*(WNARevAlloc[CustClass]=$D$24)*WNARevAlloc[AdjCSWNAS1Rev]),SUMPRODUCT((WNARevAlloc[MonthFlow]=G$11)*(WNARevAlloc[Region]=$C$4)*(WNARevAlloc[CustClass]=$D$24)*WNARevAlloc[AdjCSWNAS2Rev])) -> 201.9869803 | H35: =IF($C$6="S1",SUMPRODUCT((WNARevAlloc[MonthFlow]=H$11)*(WNARevAlloc[Region]=$C$4)*(WNARevAlloc[CustClass]=$D$24)*WNARevAlloc[AdjCSWNAS1Rev]),SUMPRODUCT((WNARevAlloc[MonthFlow]=H$11)*(WNARevAlloc[Region]=$C$4)*(WNARevAlloc[CustClass]=$D$24)*WNARevAlloc[AdjCSWNAS2Rev])) -> 157.4542395 | I35: =IF($C$6="S1",SUMPRODUCT((WNARevAlloc[MonthFlow]=I$11)*(WNARevAlloc[Region]=$C$4)*(WNARevAlloc[CustClass]=$D$24)*WNARevAlloc[AdjCSWNAS1Rev]),SUMPRODUCT((WNARevAlloc[MonthFlow]=I$11)*(WNARevAlloc[Region]=$C$4)*(WNARevAlloc[CustClass]=$D$24)*WNARevAlloc[AdjCSWNAS2Rev])) -> 179.4720175 | J35: =IF($C$6="S1",SUMPRODUCT((WNARevAlloc[MonthFlow]=J$11)*(WNARevAlloc[Region]=$C$4)*(WNARevAlloc[CustClass]=$D$24)*WNARevAlloc[AdjCSWNAS1Rev]),SUMPRODUCT((WNARevAlloc[MonthFlow]=J$11)*(WNARevAlloc[Region]=$C$4)*(WNARevAlloc[CustClass]=$D$24)*WNARevAlloc[AdjCSWNAS2Rev])) -> 176.6214276 | K35: =IF($C$6="S1",SUMPRODUCT((WNARevAlloc[MonthFlow]=K$11)*(WNARevAlloc[Region]=$C$4)*(WNARevAlloc[CustClass]=$D$24)*WNARevAlloc[AdjCSWNAS1Rev]),SUMPRODUCT((WNARevAlloc[MonthFlow]=K$11)*(WNARevAlloc[Region]=$C$4)*(WNARevAlloc[CustClass]=$D$24)*WNARevAlloc[AdjCSWNAS2Rev])) -> 188.5246465 | L35: =IF($C$6="S1",SUMPRODUCT((WNARevAlloc[MonthFlow]=L$11)*(WNARevAlloc[Region]=$C$4)*(WNARevAlloc[CustClass]=$D$24)*WNARevAlloc[AdjCSWNAS1Rev]),SUMPRODUCT((WNARevAlloc[MonthFlow]=L$11)*(WNARevAlloc[Region]=$C$4)*(WNARevAlloc[CustClass]=$D$24)*WNARevAlloc[AdjCSWNAS2Rev])) -> 330.3629473 | M35: =IF($C$6="S1",SUMPRODUCT((WNARevAlloc[MonthFlow]=M$11)*(WNARevAlloc[Region]=$C$4)*(WNARevAlloc[CustClass]=$D$24)*WNARevAlloc[AdjCSWNAS1Rev]),SUMPRODUCT((WNARevAlloc[MonthFlow]=M$11)*(WNARevAlloc[Region]=$C$4)*(WNARevAlloc[CustClass]=$D$24)*WNARevAlloc[AdjCSWNAS2Rev])) -> 1050.989334 | N35: =IF($C$6="S1",SUMPRODUCT((WNARevAlloc[MonthFlow]=N$11)*(WNARevAlloc[Region]=$C$4)*(WNARevAlloc[CustClass]=$D$24)*WNARevAlloc[AdjCSWNAS1Rev]),SUMPRODUCT((WNARevAlloc[MonthFlow]=N$11)*(WNARevAlloc[Region]=$C$4)*(WNARevAlloc[CustClass]=$D$24)*WNARevAlloc[AdjCSWNAS2Rev])) -> 2029.343282 | O35: =IF($C$6="S1",SUMPRODUCT((WNARevAlloc[MonthFlow]=O$11)*(WNARevAlloc[Region]=$C$4)*(WNARevAlloc[CustClass]=$D$24)*WNARevAlloc[AdjCSWNAS1Rev]),SUMPRODUCT((WNARevAlloc[MonthFlow]=O$11)*(WNARevAlloc[Region]=$C$4)*(WNARevAlloc[CustClass]=$D$24)*WNARevAlloc[AdjCSWNAS2Rev])) -> 2567.054941 | P35: =IF($C$6="S1",SUMPRODUCT((WNARevAlloc[MonthFlow]=P$11)*(WNARevAlloc[Region]=$C$4)*(WNARevAlloc[CustClass]=$D$24)*WNARevAlloc[AdjCSWNAS1Rev]),SUMPRODUCT((WNARevAlloc[MonthFlow]=P$11)*(WNARevAlloc[Region]=$C$4)*(WNARevAlloc[CustClass]=$D$24)*WNARevAlloc[AdjCSWNAS2Rev])) -> 1873.685959 | Q35: =IF($C$6="S1",SUMPRODUCT((WNARevAlloc[MonthFlow]=Q$11)*(WNARevAlloc[Region]=$C$4)*(WNARevAlloc[CustClass]=$D$24)*WNARevAlloc[AdjCSWNAS1Rev]),SUMPRODUCT((WNARevAlloc[MonthFlow]=Q$11)*(WNARevAlloc[Region]=$C$4)*(WNARevAlloc[CustClass]=$D$24)*WNARevAlloc[AdjCSWNAS2Rev])) -> 686.7488938 | R35: =IF($C$6="S1",SUMPRODUCT((WNARevAlloc[MonthFlow]=R$11)*(WNARevAlloc[Region]=$C$4)*(WNARevAlloc[CustClass]=$D$24)*WNARevAlloc[AdjCSWNAS1Rev]),SUMPRODUCT((WNARevAlloc[MonthFlow]=R$11)*(WNARevAlloc[Region]=$C$4)*(WNARevAlloc[CustClass]=$D$24)*WNARevAlloc[AdjCSWNAS2Rev])) -> 340.4952879 | S35: =IF($C$6="S1",SUMPRODUCT((WNARevAlloc[MonthFlow]=S$11)*(WNARevAlloc[Region]=$C$4)*(WNARevAlloc[CustClass]=$D$24)*WNARevAlloc[AdjCSWNAS1Rev]),SUMPRODUCT((WNARevAlloc[MonthFlow]=S$11)*(WNARevAlloc[Region]=$C$4)*(WNARevAlloc[CustClass]=$D$24)*WNARevAlloc[AdjCSWNAS2Rev])) -> 222.2503698 | T35: =IF($C$6="S1",SUMPRODUCT((WNARevAlloc[MonthFlow]=T$11)*(WNARevAlloc[Region]=$C$4)*(WNARevAlloc[CustClass]=$D$24)*WNARevAlloc[AdjCSWNAS1Rev]),SUMPRODUCT((WNARevAlloc[MonthFlow]=T$11)*(WNARevAlloc[Region]=$C$4)*(WNARevAlloc[CustClass]=$D$24)*WNARevAlloc[AdjCSWNAS2Rev])) -> 178.662675 | U35: =ROUND(U$27*U31,0) -> 177 | V35: 240 | W35: 198
B36: SRR $ | C36: =ROUND(C29*C33,2) -> 577.27 | D36: =ROUND(D29*D33,2) -> 987.5 | E36: =ROUND(E29*E33,2) -> 1028.14 | F36: =IF($C$6="S1",SUMPRODUCT((WNARevAlloc[MonthFlow]=F$11)*(WNARevAlloc[Region]=$C$4)*(WNARevAlloc[CustClass]=$D$24)*WNARevAlloc[AdjSRRS1Rev]),SUMPRODUCT((WNARevAlloc[MonthFlow]=F$11)*(WNARevAlloc[Region]=$C$4)*(WNARevAlloc[CustClass]=$D$24)*WNARevAlloc[AdjSRRS2Rev])) -> -109.0402573 | G36: =IF($C$6="S1",SUMPRODUCT((WNARevAlloc[MonthFlow]=G$11)*(WNARevAlloc[Region]=$C$4)*(WNARevAlloc[CustClass]=$D$24)*WNARevAlloc[AdjSRRS1Rev]),SUMPRODUCT((WNARevAlloc[MonthFlow]=G$11)*(WNARevAlloc[Region]=$C$4)*(WNARevAlloc[CustClass]=$D$24)*WNARevAlloc[AdjSRRS2Rev])) -> -37.59598401 | H36: =IF($C$6="S1",SUMPRODUCT((WNARevAlloc[MonthFlow]=H$11)*(WNARevAlloc[Region]=$C$4)*(WNARevAlloc[CustClass]=$D$24)*WNARevAlloc[AdjSRRS1Rev]),SUMPRODUCT((WNARevAlloc[MonthFlow]=H$11)*(WNARevAlloc[Region]=$C$4)*(WNARevAlloc[CustClass]=$D$24)*WNARevAlloc[AdjSRRS2Rev])) -> -30.79311072 | I36: =IF($C$6="S1",SUMPRODUCT((WNARevAlloc[MonthFlow]=I$11)*(WNARevAlloc[Region]=$C$4)*(WNARevAlloc[CustClass]=$D$24)*WNARevAlloc[AdjSRRS1Rev]),SUMPRODUCT((WNARevAlloc[MonthFlow]=I$11)*(WNARevAlloc[Region]=$C$4)*(WNARevAlloc[CustClass]=$D$24)*WNARevAlloc[AdjSRRS2Rev])) -> -31.93963604 | J36: =IF($C$6="S1",SUMPRODUCT((WNARevAlloc[MonthFlow]=J$11)*(WNARevAlloc[Region]=$C$4)*(WNARevAlloc[CustClass]=$D$24)*WNARevAlloc[AdjSRRS1Rev]),SUMPRODUCT((WNARevAlloc[MonthFlow]=J$11)*(WNARevAlloc[Region]=$C$4)*(WNARevAlloc[CustClass]=$D$24)*WNARevAlloc[AdjSRRS2Rev])) -> -120.6649019 | K36: =IF($C$6="S1",SUMPRODUCT((WNARevAlloc[MonthFlow]=K$11)*(WNARevAlloc[Region]=$C$4)*(WNARevAlloc[CustClass]=$D$24)*WNARevAlloc[AdjSRRS1Rev]),SUMPRODUCT((WNARevAlloc[MonthFlow]=K$11)*(WNARevAlloc[Region]=$C$4)*(WNARevAlloc[CustClass]=$D$24)*WNARevAlloc[AdjSRRS2Rev])) -> -49.24058187 | L36: =IF($C$6="S1",SUMPRODUCT((WNARevAlloc[MonthFlow]=L$11)*(WNARevAlloc[Region]=$C$4)*(WNARevAlloc[CustClass]=$D$24)*WNARevAlloc[AdjSRRS1Rev]),SUMPRODUCT((WNARevAlloc[MonthFlow]=L$11)*(WNARevAlloc[Region]=$C$4)*(WNARevAlloc[CustClass]=$D$24)*WNARevAlloc[AdjSRRS2Rev])) -> -75.45459804 | M36: =IF($C$6="S1",SUMPRODUCT((WNARevAlloc[MonthFlow]=M$11)*(WNARevAlloc[Region]=$C$4)*(WNARevAlloc[CustClass]=$D$24)*WNARevAlloc[AdjSRRS1Rev]),SUMPRODUCT((WNARevAlloc[MonthFlow]=M$11)*(WNARevAlloc[Region]=$C$4)*(WNARevAlloc[CustClass]=$D$24)*WNARevAlloc[AdjSRRS2Rev])) -> -212.8585993 | N36: =IF($C$6="S1",SUMPRODUCT((WNARevAlloc[MonthFlow]=N$11)*(WNARevAlloc[Region]=$C$4)*(WNARevAlloc[CustClass]=$D$24)*WNARevAlloc[AdjSRRS1Rev]),SUMPRODUCT((WNARevAlloc[MonthFlow]=N$11)*(WNARevAlloc[Region]=$C$4)*(WNARevAlloc[CustClass]=$D$24)*WNARevAlloc[AdjSRRS2Rev])) -> -410.8106682 | O36: =IF($C$6="S1",SUMPRODUCT((WNARevAlloc[MonthFlow]=O$11)*(WNARevAlloc[Region]=$C$4)*(WNARevAlloc[CustClass]=$D$24)*WNARevAlloc[AdjSRRS1Rev]),SUMPRODUCT((WNARevAlloc[MonthFlow]=O$11)*(WNARevAlloc[Region]=$C$4)*(WNARevAlloc[CustClass]=$D$24)*WNARevAlloc[AdjSRRS2Rev])) -> -544.3793311 | P36: =IF($C$6="S1",SUMPRODUCT((WNARevAlloc[MonthFlow]=P$11)*(WNARevAlloc[Region]=$C$4)*(WNARevAlloc[CustClass]=$D$24)*WNARevAlloc[AdjSRRS1Rev]),SUMPRODUCT((WNARevAlloc[MonthFlow]=P$11)*(WNARevAlloc[Region]=$C$4)*(WNARevAlloc[CustClass]=$D$24)*WNARevAlloc[AdjSRRS2Rev])) -> -380.8674421 | Q36: =IF($C$6="S1",SUMPRODUCT((WNARevAlloc[MonthFlow]=Q$11)*(WNARevAlloc[Region]=$C$4)*(WNARevAlloc[CustClass]=$D$24)*WNARevAlloc[AdjSRRS1Rev]),SUMPRODUCT((WNARevAlloc[MonthFlow]=Q$11)*(WNARevAlloc[Region]=$C$4)*(WNARevAlloc[CustClass]=$D$24)*WNARevAlloc[AdjSRRS2Rev])) -> -145.9865339 | R36: =IF($C$6="S1",SUMPRODUCT((WNARevAlloc[MonthFlow]=R$11)*(WNARevAlloc[Region]=$C$4)*(WNARevAlloc[CustClass]=$D$24)*WNARevAlloc[AdjSRRS1Rev]),SUMPRODUCT((WNARevAlloc[MonthFlow]=R$11)*(WNARevAlloc[Region]=$C$4)*(WNARevAlloc[CustClass]=$D$24)*WNARevAlloc[AdjSRRS2Rev])) -> -34.01399847 | S36: =IF($C$6="S1",SUMPRODUCT((WNARevAlloc[MonthFlow]=S$11)*(WNARevAlloc[Region]=$C$4)*(WNARevAlloc[CustClass]=$D$24)*WNARevAlloc[AdjSRRS1Rev]),SUMPRODUCT((WNARevAlloc[MonthFlow]=S$11)*(WNARevAlloc[Region]=$C$4)*(WNARevAlloc[CustClass]=$D$24)*WNARevAlloc[AdjSRRS2Rev])) -> -45.01273312 | T36: =IF($C$6="S1",SUMPRODUCT((WNARevAlloc[MonthFlow]=T$11)*(WNARevAlloc[Region]=$C$4)*(WNARevAlloc[CustClass]=$D$24)*WNARevAlloc[AdjSRRS1Rev]),SUMPRODUCT((WNARevAlloc[MonthFlow]=T$11)*(WNARevAlloc[Region]=$C$4)*(WNARevAlloc[CustClass]=$D$24)*WNARevAlloc[AdjSRRS2Rev])) -> -36.1492881 | U36: -36 | V36: -49 | W36: -40
B37: Total True-Up | C37: =SUM(C36:E36) -> 2592.91 | D37: Enter in VolTrueUp Table
B39: * Actual Period revenues were calculated using actual rates, and then adjusted for actual revenues billed.
B40: (See worksheet WNARRevAlloc)

Sheet ARR WEMO (S1)
B2: Liberty Midstates | F2: Year | I2: Rate Sched | J2: SAP Rate Cat. | K2: Territory | L2: Cust. Class
B3: Semi-Annual Reconciliation Rate | I3: 61-GRF | J3: =INDEX(RateSched[SAPRateCategory],MATCH($I3,RateSched[RateSched],0)) -> WMGR_RFS | K3: =INDEX(RateSched[Territory],MATCH($I3,RateSched[RateSched],0)) -> WEMO | L3: =INDEX(RateSched[CustClassShort],MATCH($I3,RateSched[RateSched],0)) -> Res
B4: Region | C4: WEMO | I4: 61-GCSF | J4: =INDEX(RateSched[SAPRateCategory],MATCH($I4,RateSched[RateSched],0)) -> WMGC_SFGS | K4: =INDEX(RateSched[Territory],MATCH($I4,RateSched[RateSched],0)) -> WEMO | L4: =INDEX(RateSched[CustClassShort],MATCH($I4,RateSched[RateSched],0)) -> SGS
B5: Year | C5: =DateSet!C2 -> 2025
B6: Period | C6: S1
B7: Analysis Start | C7: 2024-01-01
B9: SAP Rate Category | C9: WMGR_RFS | D9: Res
B10: Residential | C10: True-Up Period | F10: Actual Period* | U10: Projected Period
B11: Month | C11: =C7 -> 45292 | D11: =EDATE(C11,1) -> 45323 | E11: =EDATE(D11,1) -> 45352 | F11: 45383 | G11: 45413 | H11: 45444 | I11: 45474 | J11: 45505 | K11: 45536 | L11: 45566 | M11: 45597 | N11: 45627 | O11: =EDATE(N11,1) -> 45658 | P11: =EDATE(O11,1) -> 45689 | Q11: =EDATE(P11,1) -> 45717 | R11: =EDATE(Q11,1) -> 45748 | S11: =EDATE(R11,1) -> 45778 | T11: =EDATE(S11,1) -> 45809 | U11: =EDATE(T11,1) -> 45839 | V11: =EDATE(U11,1) -> 45870 | W11: =EDATE(V11,1) -> 45901
B12: Est. Volume | C12: =SUMPRODUCT((CustEstVol[MonthFlow]=C$11)*(CustEstVol[SAPRateCategory]=$C$9)*CustEstVol[NormVol]) -> 487541 | D12: =SUMPRODUCT((CustEstVol[MonthFlow]=D$11)*(CustEstVol[SAPRateCategory]=$C$9)*CustEstVol[NormVol]) -> 410704 | E12: =SUMPRODUCT((CustEstVol[MonthFlow]=E$11)*(CustEstVol[SAPRateCategory]=$C$9)*CustEstVol[NormVol]) -> 325270 | U12: =SUMPRODUCT((CustEstVol[MonthFlow]=U$11)*(CustEstVol[SAPRateCategory]=$C$9)*CustEstVol[NormVol]) -> 23008 | V12: =SUMPRODUCT((CustEstVol[MonthFlow]=V$11)*(CustEstVol[SAPRateCategory]=$C$9)*CustEstVol[NormVol]) -> 27010 | W12: =SUMPRODUCT((CustEstVol[MonthFlow]=W$11)*(CustEstVol[SAPRateCategory]=$C$9)*CustEstVol[NormVol]) -> 37247
B13: Actual Volume | C13: =SUMPRODUCT((WNARevAlloc[MonthFlow]=C11)*(WNARevAlloc[SAPRateCategory]=$C9)*WNARevAlloc[Consumption]) -> 354613.566 | D13: =SUMPRODUCT((WNARevAlloc[MonthFlow]=D11)*(WNARevAlloc[SAPRateCategory]=$C9)*WNARevAlloc[Consumption]) -> 185358.277 | E13: =SUMPRODUCT((WNARevAlloc[MonthFlow]=E11)*(WNARevAlloc[SAPRateCategory]=$C9)*WNARevAlloc[Consumption]) -> 139705.809 | F13: =SUMPRODUCT((WNARevAlloc[MonthFlow]=F11)*(WNARevAlloc[SAPRateCategory]=$C9)*WNARevAlloc[Consumption]) -> 58445.678 | G13: =SUMPRODUCT((WNARevAlloc[MonthFlow]=G11)*(WNARevAlloc[SAPRateCategory]=$C9)*WNARevAlloc[Consumption]) -> 30125.093 | H13: =SUMPRODUCT((WNARevAlloc[MonthFlow]=H11)*(WNARevAlloc[SAPRateCategory]=$C9)*WNARevAlloc[Consumption]) -> 23126.301 | I13: =SUMPRODUCT((WNARevAlloc[MonthFlow]=I11)*(WNARevAlloc[SAPRateCategory]=$C9)*WNARevAlloc[Consumption]) -> 23008.062 | J13: =SUMPRODUCT((WNARevAlloc[MonthFlow]=J11)*(WNARevAlloc[SAPRateCategory]=$C9)*WNARevAlloc[Consumption]) -> 27009.54 | K13: =SUMPRODUCT((WNARevAlloc[MonthFlow]=K11)*(WNARevAlloc[SAPRateCategory]=$C9)*WNARevAlloc[Consumption]) -> 37247.467 | L13: =SUMPRODUCT((WNARevAlloc[MonthFlow]=L11)*(WNARevAlloc[SAPRateCategory]=$C9)*WNARevAlloc[Consumption]) -> 96717.761 | M13: =SUMPRODUCT((WNARevAlloc[MonthFlow]=M11)*(WNARevAlloc[SAPRateCategory]=$C9)*WNARevAlloc[Consumption]) -> 307715.114 | N13: =SUMPRODUCT((WNARevAlloc[MonthFlow]=N11)*(WNARevAlloc[SAPRateCategory]=$C9)*WNARevAlloc[Consumption]) -> 429603.01 | O13: =SUMPRODUCT((WNARevAlloc[MonthFlow]=O11)*(WNARevAlloc[SAPRateCategory]=$C9)*WNARevAlloc[Consumption]) -> 551807.787 | P13: =SUMPRODUCT((WNARevAlloc[MonthFlow]=P11)*(WNARevAlloc[SAPRateCategory]=$C9)*WNARevAlloc[Consumption]) -> 249223.15 | Q13: =SUMPRODUCT((WNARevAlloc[MonthFlow]=Q11)*(WNARevAlloc[SAPRateCategory]=$C9)*WNARevAlloc[Consumption]) -> 141666.766 | R13: =SUMPRODUCT((WNARevAlloc[MonthFlow]=R11)*(WNARevAlloc[SAPRateCategory]=$C9)*WNARevAlloc[Consumption]) -> 55457.61 | S13: =SUMPRODUCT((WNARevAlloc[MonthFlow]=S11)*(WNARevAlloc[SAPRateCategory]=$C9)*WNARevAlloc[Consumption]) -> 36221.6 | T13: =SUMPRODUCT((WNARevAlloc[MonthFlow]=T11)*(WNARevAlloc[SAPRateCategory]=$C9)*WNARevAlloc[Consumption]) -> 25566.659
B14: Vol True-Up | C14: =C13-C12 -> -132927.434 | D14: =D13-D12 -> -225345.723 | E14: =E13-E12 -> -185564.191
B15: ="WNAR "&$C$6&" Rates in Effect" -> WNAR S1 Rates in Effect
B16: CSWNA | C16: =SUMPRODUCT((WNARRates[BeginDate]<=C$11)*(WNARRates[EndDate]>=C$11)*(WNARRates[Region]=$C$4)*(WNARRates[CustClass]=$D$9)*(WNARRates[Period]=$C$6)*WNARRates[CSWNA]) -> -0.00792 | D16: =SUMPRODUCT((WNARRates[BeginDate]<=D$11)*(WNARRates[EndDate]>=D$11)*(WNARRates[Region]=$C$4)*(WNARRates[CustClass]=$D$9)*(WNARRates[Period]=$C$6)*WNARRates[CSWNA]) -> -0.00792 | E16: =SUMPRODUCT((WNARRates[BeginDate]<=E$11)*(WNARRates[EndDate]>=E$11)*(WNARRates[Region]=$C$4)*(WNARRates[CustClass]=$D$9)*(WNARRates[Period]=$C$6)*WNARRates[CSWNA]) -> -0.00792 | F16: =SUMPRODUCT((WNARRates[BeginDate]<=F$11)*(WNARRates[EndDate]>=F$11)*(WNARRates[Region]=$C$4)*(WNARRates[CustClass]=$D$9)*(WNARRates[Period]=$C$6)*WNARRates[AdjCSWNA]) -> 0.01137 | G16: =SUMPRODUCT((WNARRates[BeginDate]<=G$11)*(WNARRates[EndDate]>=G$11)*(WNARRates[Region]=$C$4)*(WNARRates[CustClass]=$D$9)*(WNARRates[Period]=$C$6)*WNARRates[AdjCSWNA]) -> 0.01137 | H16: =SUMPRODUCT((WNARRates[BeginDate]<=H$11)*(WNARRates[EndDate]>=H$11)*(WNARRates[Region]=$C$4)*(WNARRates[CustClass]=$D$9)*(WNARRates[Period]=$C$6)*WNARRates[AdjCSWNA]) -> 0.01137 | I16: =SUMPRODUCT((WNARRates[BeginDate]<=I$11)*(WNARRates[EndDate]>=I$11)*(WNARRates[Region]=$C$4)*(WNARRates[CustClass]=$D$9)*(WNARRates[Period]=$C$6)*WNARRates[AdjCSWNA]) -> 0.01137 | J16: =SUMPRODUCT((WNARRates[BeginDate]<=J$11)*(WNARRates[EndDate]>=J$11)*(WNARRates[Region]=$C$4)*(WNARRates[CustClass]=$D$9)*(WNARRates[Period]=$C$6)*WNARRates[AdjCSWNA]) -> 0.01137 | K16: =SUMPRODUCT((WNARRates[BeginDate]<=K$11)*(WNARRates[EndDate]>=K$11)*(WNARRates[Region]=$C$4)*(WNARRates[CustClass]=$D$9)*(WNARRates[Period]=$C$6)*WNARRates[AdjCSWNA]) -> 0.01137 | L16: =SUMPRODUCT((WNARRates[BeginDate]<=L$11)*(WNARRates[EndDate]>=L$11)*(WNARRates[Region]=$C$4)*(WNARRates[CustClass]=$D$9)*(WNARRates[Period]=$C$6)*WNARRates[AdjCSWNA]) -> 0.01137 | M16: =SUMPRODUCT((WNARRates[BeginDate]<=M$11)*(WNARRates[EndDate]>=M$11)*(WNARRates[Region]=$C$4)*(WNARRates[CustClass]=$D$9)*(WNARRates[Period]=$C$6)*WNARRates[AdjCSWNA]) -> 0.01137 | N16: =SUMPRODUCT((WNARRates[BeginDate]<=N$11)*(WNARRates[EndDate]>=N$11)*(WNARRates[Region]=$C$4)*(WNARRates[CustClass]=$D$9)*(WNARRates[Period]=$C$6)*WNARRates[AdjCSWNA]) -> 0.01137 | O16: =SUMPRODUCT((WNARRates[BeginDate]<=O$11)*(WNARRates[EndDate]>=O$11)*(WNARRates[Region]=$C$4)*(WNARRates[CustClass]=$D$9)*(WNARRates[Period]=$C$6)*WNARRates[AdjCSWNA]) -> 0.01137 | P16: =SUMPRODUCT((WNARRates[BeginDate]<=P$11)*(WNARRates[EndDate]>=P$11)*(WNARRates[Region]=$C$4)*(WNARRates[CustClass]=$D$9)*(WNARRates[Period]=$C$6)*WNARRates[AdjCSWNA]) -> 0.01137 | Q16: =SUMPRODUCT((WNARRates[BeginDate]<=Q$11)*(WNARRates[EndDate]>=Q$11)*(WNARRates[Region]=$C$4)*(WNARRates[CustClass]=$D$9)*(WNARRates[Period]=$C$6)*WNARRates[AdjCSWNA]) -> 0.01137 | R16: =SUMPRODUCT((WNARRates[BeginDate]<=R$11)*(WNARRates[EndDate]>=R$11)*(WNARRates[Region]=$C$4)*(WNARRates[CustClass]=$D$9)*(WNARRates[Period]=$C$6)*WNARRates[AdjCSWNA]) -> 0.01137 | S16: =SUMPRODUCT((WNARRates[BeginDate]<=S$11)*(WNARRates[EndDate]>=S$11)*(WNARRates[Region]=$C$4)*(WNARRates[CustClass]=$D$9)*(WNARRates[Period]=$C$6)*WNARRates[AdjCSWNA]) -> 0.01137 | T16: =SUMPRODUCT((WNARRates[BeginDate]<=T$11)*(WNARRates[EndDate]>=T$11)*(WNARRates[Region]=$C$4)*(WNARRates[CustClass]=$D$9)*(WNARRates[Period]=$C$6)*WNARRates[AdjCSWNA]) -> 0.01137 | U16: =SUMPRODUCT((WNARRates[BeginDate]<=U$11)*(WNARRates[EndDate]>=U$11)*(WNARRates[Region]=$C$4)*(WNARRates[CustClass]=$D$9)*(WNARRates[Period]=$C$6)*WNARRates[AdjCSWNA]) -> 0.01137 | V16: =SUMPRODUCT((WNARRates[BeginDate]<=V$11)*(WNARRates[EndDate]>=V$11)*(WNARRates[Region]=$C$4)*(WNARRates[CustClass]=$D$9)*(WNARRates[Period]=$C$6)*WNARRates[AdjCSWNA]) -> 0.01137 | W16: =SUMPRODUCT((WNARRates[BeginDate]<=W$11)*(WNARRates[EndDate]>=W$11)*(WNARRates[Region]=$C$4)*(WNARRates[CustClass]=$D$9)*(WNARRates[Period]=$C$6)*WNARRates[AdjCSWNA]) -> 0.01137
B17: SRR | C17: =SUMPRODUCT((WNARRates[BeginDate]<=C$11)*(WNARRates[EndDate]>=C$11)*(WNARRates[Region]=$C$4)*(WNARRates[CustClass]=$D$9)*(WNARRates[Period]=$C$6)*WNARRates[ARR]) -> -0.02679 | D17: =SUMPRODUCT((WNARRates[BeginDate]<=D$11)*(WNARRates[EndDate]>=D$11)*(WNARRates[Region]=$C$4)*(WNARRates[CustClass]=$D$9)*(WNARRates[Period]=$C$6)*WNARRates[ARR]) -> -0.02679 | E17: =SUMPRODUCT((WNARRates[BeginDate]<=E$11)*(WNARRates[EndDate]>=E$11)*(WNARRates[Region]=$C$4)*(WNARRates[CustClass]=$D$9)*(WNARRates[Period]=$C$6)*WNARRates[ARR]) -> -0.02679 | F17: =SUMPRODUCT((WNARRates[BeginDate]<=F$11)*(WNARRates[EndDate]>=F$11)*(WNARRates[Region]=$C$4)*(WNARRates[CustClass]=$D$9)*(WNARRates[Period]=$C$6)*WNARRates[AdjSRR]) -> 0.00133 | G17: =SUMPRODUCT((WNARRates[BeginDate]<=G$11)*(WNARRates[EndDate]>=G$11)*(WNARRates[Region]=$C$4)*(WNARRates[CustClass]=$D$9)*(WNARRates[Period]=$C$6)*WNARRates[AdjSRR]) -> 0.00133 | H17: =SUMPRODUCT((WNARRates[BeginDate]<=H$11)*(WNARRates[EndDate]>=H$11)*(WNARRates[Region]=$C$4)*(WNARRates[CustClass]=$D$9)*(WNARRates[Period]=$C$6)*WNARRates[AdjSRR]) -> 0.00133 | I17: =SUMPRODUCT((WNARRates[BeginDate]<=I$11)*(WNARRates[EndDate]>=I$11)*(WNARRates[Region]=$C$4)*(WNARRates[CustClass]=$D$9)*(WNARRates[Period]=$C$6)*WNARRates[AdjSRR]) -> 0.00133 | J17: =SUMPRODUCT((WNARRates[BeginDate]<=J$11)*(WNARRates[EndDate]>=J$11)*(WNARRates[Region]=$C$4)*(WNARRates[CustClass]=$D$9)*(WNARRates[Period]=$C$6)*WNARRates[AdjSRR]) -> 0.00133 | K17: =SUMPRODUCT((WNARRates[BeginDate]<=K$11)*(WNARRates[EndDate]>=K$11)*(WNARRates[Region]=$C$4)*(WNARRates[CustClass]=$D$9)*(WNARRates[Period]=$C$6)*WNARRates[AdjSRR]) -> 0.00133 | L17: =SUMPRODUCT((WNARRates[BeginDate]<=L$11)*(WNARRates[EndDate]>=L$11)*(WNARRates[Region]=$C$4)*(WNARRates[CustClass]=$D$9)*(WNARRates[Period]=$C$6)*WNARRates[AdjSRR]) -> 0.00133 | M17: =SUMPRODUCT((WNARRates[BeginDate]<=M$11)*(WNARRates[EndDate]>=M$11)*(WNARRates[Region]=$C$4)*(WNARRates[CustClass]=$D$9)*(WNARRates[Period]=$C$6)*WNARRates[AdjSRR]) -> 0.00133 | N17: =SUMPRODUCT((WNARRates[BeginDate]<=N$11)*(WNARRates[EndDate]>=N$11)*(WNARRates[Region]=$C$4)*(WNARRates[CustClass]=$D$9)*(WNARRates[Period]=$C$6)*WNARRates[AdjSRR]) -> 0.00133 | O17: =SUMPRODUCT((WNARRates[BeginDate]<=O$11)*(WNARRates[EndDate]>=O$11)*(WNARRates[Region]=$C$4)*(WNARRates[CustClass]=$D$9)*(WNARRates[Period]=$C$6)*WNARRates[AdjSRR]) -> 0.00133 | P17: =SUMPRODUCT((WNARRates[BeginDate]<=P$11)*(WNARRates[EndDate]>=P$11)*(WNARRates[Region]=$C$4)*(WNARRates[CustClass]=$D$9)*(WNARRates[Period]=$C$6)*WNARRates[AdjSRR]) -> 0.00133 | Q17: =SUMPRODUCT((WNARRates[BeginDate]<=Q$11)*(WNARRates[EndDate]>=Q$11)*(WNARRates[Region]=$C$4)*(WNARRates[CustClass]=$D$9)*(WNARRates[Period]=$C$6)*WNARRates[AdjSRR]) -> 0.00133 | R17: =SUMPRODUCT((WNARRates[BeginDate]<=R$11)*(WNARRates[EndDate]>=R$11)*(WNARRates[Region]=$C$4)*(WNARRates[CustClass]=$D$9)*(WNARRates[Period]=$C$6)*WNARRates[AdjSRR]) -> 0.00133 | S17: =SUMPRODUCT((WNARRates[BeginDate]<=S$11)*(WNARRates[EndDate]>=S$11)*(WNARRates[Region]=$C$4)*(WNARRates[CustClass]=$D$9)*(WNARRates[Period]=$C$6)*WNARRates[AdjSRR]) -> 0.00133 | T17: =SUMPRODUCT((WNARRates[BeginDate]<=T$11)*(WNARRates[EndDate]>=T$11)*(WNARRates[Region]=$C$4)*(WNARRates[CustClass]=$D$9)*(WNARRates[Period]=$C$6)*WNARRates[AdjSRR]) -> 0.00133 | U17: =SUMPRODUCT((WNARRates[BeginDate]<=U$11)*(WNARRates[EndDate]>=U$11)*(WNARRates[Region]=$C$4)*(WNARRates[CustClass]=$D$9)*(WNARRates[Period]=$C$6)*WNARRates[AdjSRR]) -> 0.00133 | V17: =SUMPRODUCT((WNARRates[BeginDate]<=V$11)*(WNARRates[EndDate]>=V$11)*(WNARRates[Region]=$C$4)*(WNARRates[CustClass]=$D$9)*(WNARRates[Period]=$C$6)*WNARRates[AdjSRR]) -> 0.00133 | W17: =SUMPRODUCT((WNARRates[BeginDate]<=W$11)*(WNARRates[EndDate]>=W$11)*(WNARRates[Region]=$C$4)*(WNARRates[CustClass]=$D$9)*(WNARRates[Period]=$C$6)*WNARRates[AdjSRR]) -> 0.00133
B18: Total | C18: =SUM(C16:C17) -> -0.03471 | D18: =SUM(D16:D17) -> -0.03471 | E18: =SUM(E16:E17) -> -0.03471
B19: CSWNA and SRR Revenue for Period
B20: CSWNA $ | F20: =IF($C$6="S1",SUMPRODUCT((WNARevAlloc[MonthFlow]=F$11)*(WNARevAlloc[Region]=$C$4)*(WNARevAlloc[CustClass]=$D$9)*WNARevAlloc[AdjCSWNAS1Rev]),SUMPRODUCT((WNARevAlloc[MonthFlow]=F$11)*(WNARevAlloc[Region]=$C$4)*(WNARevAlloc[CustClass]=$D$9)*WNARevAlloc[AdjCSWNAS2Rev])) -> 616.8413591 | G20: =IF($C$6="S1",SUMPRODUCT((WNARevAlloc[MonthFlow]=G$11)*(WNARevAlloc[Region]=$C$4)*(WNARevAlloc[CustClass]=$D$9)*WNARevAlloc[AdjCSWNAS1Rev]),SUMPRODUCT((WNARevAlloc[MonthFlow]=G$11)*(WNARevAlloc[Region]=$C$4)*(WNARevAlloc[CustClass]=$D$9)*WNARevAlloc[AdjCSWNAS2Rev])) -> 345.7747232 | H20: =IF($C$6="S1",SUMPRODUCT((WNARevAlloc[MonthFlow]=H$11)*(WNARevAlloc[Region]=$C$4)*(WNARevAlloc[CustClass]=$D$9)*WNARevAlloc[AdjCSWNAS1Rev]),SUMPRODUCT((WNARevAlloc[MonthFlow]=H$11)*(WNARevAlloc[Region]=$C$4)*(WNARevAlloc[CustClass]=$D$9)*WNARevAlloc[AdjCSWNAS2Rev])) -> 262.8949766 | I20: =IF($C$6="S1",SUMPRODUCT((WNARevAlloc[MonthFlow]=I$11)*(WNARevAlloc[Region]=$C$4)*(WNARevAlloc[CustClass]=$D$9)*WNARevAlloc[AdjCSWNAS1Rev]),SUMPRODUCT((WNARevAlloc[MonthFlow]=I$11)*(WNARevAlloc[Region]=$C$4)*(WNARevAlloc[CustClass]=$D$9)*WNARevAlloc[AdjCSWNAS2Rev])) -> 261.9130585 | J20: =IF($C$6="S1",SUMPRODUCT((WNARevAlloc[MonthFlow]=J$11)*(WNARevAlloc[Region]=$C$4)*(WNARevAlloc[CustClass]=$D$9)*WNARevAlloc[AdjCSWNAS1Rev]),SUMPRODUCT((WNARevAlloc[MonthFlow]=J$11)*(WNARevAlloc[Region]=$C$4)*(WNARevAlloc[CustClass]=$D$9)*WNARevAlloc[AdjCSWNAS2Rev])) -> 304.6773313 | K20: =IF($C$6="S1",SUMPRODUCT((WNARevAlloc[MonthFlow]=K$11)*(WNARevAlloc[Region]=$C$4)*(WNARevAlloc[CustClass]=$D$9)*WNARevAlloc[AdjCSWNAS1Rev]),SUMPRODUCT((WNARevAlloc[MonthFlow]=K$11)*(WNARevAlloc[Region]=$C$4)*(WNARevAlloc[CustClass]=$D$9)*WNARevAlloc[AdjCSWNAS2Rev])) -> 405.2952955 | L20: =IF($C$6="S1",SUMPRODUCT((WNARevAlloc[MonthFlow]=L$11)*(WNARevAlloc[Region]=$C$4)*(WNARevAlloc[CustClass]=$D$9)*WNARevAlloc[AdjCSWNAS1Rev]),SUMPRODUCT((WNARevAlloc[MonthFlow]=L$11)*(WNARevAlloc[Region]=$C$4)*(WNARevAlloc[CustClass]=$D$9)*WNARevAlloc[AdjCSWNAS2Rev])) -> 1075.478815 | M20: =IF($C$6="S1",SUMPRODUCT((WNARevAlloc[MonthFlow]=M$11)*(WNARevAlloc[Region]=$C$4)*(WNARevAlloc[CustClass]=$D$9)*WNARevAlloc[AdjCSWNAS1Rev]),SUMPRODUCT((WNARevAlloc[MonthFlow]=M$11)*(WNARevAlloc[Region]=$C$4)*(WNARevAlloc[CustClass]=$D$9)*WNARevAlloc[AdjCSWNAS2Rev])) -> 3498.784447 | N20: =IF($C$6="S1",SUMPRODUCT((WNARevAlloc[MonthFlow]=N$11)*(WNARevAlloc[Region]=$C$4)*(WNARevAlloc[CustClass]=$D$9)*WNARevAlloc[AdjCSWNAS1Rev]),SUMPRODUCT((WNARevAlloc[MonthFlow]=N$11)*(WNARevAlloc[Region]=$C$4)*(WNARevAlloc[CustClass]=$D$9)*WNARevAlloc[AdjCSWNAS2Rev])) -> 4884.659645 | O20: =IF($C$6="S1",SUMPRODUCT((WNARevAlloc[MonthFlow]=O$11)*(WNARevAlloc[Region]=$C$4)*(WNARevAlloc[CustClass]=$D$9)*WNARevAlloc[AdjCSWNAS1Rev]),SUMPRODUCT((WNARevAlloc[MonthFlow]=O$11)*(WNARevAlloc[Region]=$C$4)*(WNARevAlloc[CustClass]=$D$9)*WNARevAlloc[AdjCSWNAS2Rev])) -> 6270.191792 | P20: =IF($C$6="S1",SUMPRODUCT((WNARevAlloc[MonthFlow]=P$11)*(WNARevAlloc[Region]=$C$4)*(WNARevAlloc[CustClass]=$D$9)*WNARevAlloc[AdjCSWNAS1Rev]),SUMPRODUCT((WNARevAlloc[MonthFlow]=P$11)*(WNARevAlloc[Region]=$C$4)*(WNARevAlloc[CustClass]=$D$9)*WNARevAlloc[AdjCSWNAS2Rev])) -> 2833.703388 | Q20: =IF($C$6="S1",SUMPRODUCT((WNARevAlloc[MonthFlow]=Q$11)*(WNARevAlloc[Region]=$C$4)*(WNARevAlloc[CustClass]=$D$9)*WNARevAlloc[AdjCSWNAS1Rev]),SUMPRODUCT((WNARevAlloc[MonthFlow]=Q$11)*(WNARevAlloc[Region]=$C$4)*(WNARevAlloc[CustClass]=$D$9)*WNARevAlloc[AdjCSWNAS2Rev])) -> 1610.762815 | R20: =IF($C$6="S1",SUMPRODUCT((WNARevAlloc[MonthFlow]=R$11)*(WNARevAlloc[Region]=$C$4)*(WNARevAlloc[CustClass]=$D$9)*WNARevAlloc[AdjCSWNAS1Rev]),SUMPRODUCT((WNARevAlloc[MonthFlow]=R$11)*(WNARevAlloc[Region]=$C$4)*(WNARevAlloc[CustClass]=$D$9)*WNARevAlloc[AdjCSWNAS2Rev])) -> 628.6251932 | S20: =IF($C$6="S1",SUMPRODUCT((WNARevAlloc[MonthFlow]=S$11)*(WNARevAlloc[Region]=$C$4)*(WNARevAlloc[CustClass]=$D$9)*WNARevAlloc[AdjCSWNAS1Rev]),SUMPRODUCT((WNARevAlloc[MonthFlow]=S$11)*(WNARevAlloc[Region]=$C$4)*(WNARevAlloc[CustClass]=$D$9)*WNARevAlloc[AdjCSWNAS2Rev])) -> 412.0039159 | T20: =IF($C$6="S1",SUMPRODUCT((WNARevAlloc[MonthFlow]=T$11)*(WNARevAlloc[Region]=$C$4)*(WNARevAlloc[CustClass]=$D$9)*WNARevAlloc[AdjCSWNAS1Rev]),SUMPRODUCT((WNARevAlloc[MonthFlow]=T$11)*(WNARevAlloc[Region]=$C$4)*(WNARevAlloc[CustClass]=$D$9)*WNARevAlloc[AdjCSWNAS2Rev])) -> 290.8288377 | U20: =ROUND(U$12*U16,0) -> 262 | V20: 307 | W20: 423
B21: SRR $ | C21: =ROUND(C14*C18,2) -> 4613.91 | D21: =ROUND(D14*D18,2) -> 7821.75 | E21: =ROUND(E14*E18,2) -> 6440.93 | F21: =IF($C$6="S1",SUMPRODUCT((WNARevAlloc[MonthFlow]=F$11)*(WNARevAlloc[Region]=$C$4)*(WNARevAlloc[CustClass]=$D$9)*WNARevAlloc[AdjSRRS1Rev]),SUMPRODUCT((WNARevAlloc[MonthFlow]=F$11)*(WNARevAlloc[Region]=$C$4)*(WNARevAlloc[CustClass]=$D$9)*WNARevAlloc[AdjSRRS2Rev])) -> 7.774665508 | G21: =IF($C$6="S1",SUMPRODUCT((WNARevAlloc[MonthFlow]=G$11)*(WNARevAlloc[Region]=$C$4)*(WNARevAlloc[CustClass]=$D$9)*WNARevAlloc[AdjSRRS1Rev]),SUMPRODUCT((WNARevAlloc[MonthFlow]=G$11)*(WNARevAlloc[Region]=$C$4)*(WNARevAlloc[CustClass]=$D$9)*WNARevAlloc[AdjSRRS2Rev])) -> 44.52466362 | H21: =IF($C$6="S1",SUMPRODUCT((WNARevAlloc[MonthFlow]=H$11)*(WNARevAlloc[Region]=$C$4)*(WNARevAlloc[CustClass]=$D$9)*WNARevAlloc[AdjSRRS1Rev]),SUMPRODUCT((WNARevAlloc[MonthFlow]=H$11)*(WNARevAlloc[Region]=$C$4)*(WNARevAlloc[CustClass]=$D$9)*WNARevAlloc[AdjSRRS2Rev])) -> 30.60676879 | I21: =IF($C$6="S1",SUMPRODUCT((WNARevAlloc[MonthFlow]=I$11)*(WNARevAlloc[Region]=$C$4)*(WNARevAlloc[CustClass]=$D$9)*WNARevAlloc[AdjSRRS1Rev]),SUMPRODUCT((WNARevAlloc[MonthFlow]=I$11)*(WNARevAlloc[Region]=$C$4)*(WNARevAlloc[CustClass]=$D$9)*WNARevAlloc[AdjSRRS2Rev])) -> 30.63714757 | J21: =IF($C$6="S1",SUMPRODUCT((WNARevAlloc[MonthFlow]=J$11)*(WNARevAlloc[Region]=$C$4)*(WNARevAlloc[CustClass]=$D$9)*WNARevAlloc[AdjSRRS1Rev]),SUMPRODUCT((WNARevAlloc[MonthFlow]=J$11)*(WNARevAlloc[Region]=$C$4)*(WNARevAlloc[CustClass]=$D$9)*WNARevAlloc[AdjSRRS2Rev])) -> 32.26548291 | K21: =IF($C$6="S1",SUMPRODUCT((WNARevAlloc[MonthFlow]=K$11)*(WNARevAlloc[Region]=$C$4)*(WNARevAlloc[CustClass]=$D$9)*WNARevAlloc[AdjSRRS1Rev]),SUMPRODUCT((WNARevAlloc[MonthFlow]=K$11)*(WNARevAlloc[Region]=$C$4)*(WNARevAlloc[CustClass]=$D$9)*WNARevAlloc[AdjSRRS2Rev])) -> 22.74270957 | L21: =IF($C$6="S1",SUMPRODUCT((WNARevAlloc[MonthFlow]=L$11)*(WNARevAlloc[Region]=$C$4)*(WNARevAlloc[CustClass]=$D$9)*WNARevAlloc[AdjSRRS1Rev]),SUMPRODUCT((WNARevAlloc[MonthFlow]=L$11)*(WNARevAlloc[Region]=$C$4)*(WNARevAlloc[CustClass]=$D$9)*WNARevAlloc[AdjSRRS2Rev])) -> 93.32700062 | M21: =IF($C$6="S1",SUMPRODUCT((WNARevAlloc[MonthFlow]=M$11)*(WNARevAlloc[Region]=$C$4)*(WNARevAlloc[CustClass]=$D$9)*WNARevAlloc[AdjSRRS1Rev]),SUMPRODUCT((WNARevAlloc[MonthFlow]=M$11)*(WNARevAlloc[Region]=$C$4)*(WNARevAlloc[CustClass]=$D$9)*WNARevAlloc[AdjSRRS2Rev])) -> 409.2685413 | N21: =IF($C$6="S1",SUMPRODUCT((WNARevAlloc[MonthFlow]=N$11)*(WNARevAlloc[Region]=$C$4)*(WNARevAlloc[CustClass]=$D$9)*WNARevAlloc[AdjSRRS1Rev]),SUMPRODUCT((WNARevAlloc[MonthFlow]=N$11)*(WNARevAlloc[Region]=$C$4)*(WNARevAlloc[CustClass]=$D$9)*WNARevAlloc[AdjSRRS2Rev])) -> 571.3805917 | O21: =IF($C$6="S1",SUMPRODUCT((WNARevAlloc[MonthFlow]=O$11)*(WNARevAlloc[Region]=$C$4)*(WNARevAlloc[CustClass]=$D$9)*WNARevAlloc[AdjSRRS1Rev]),SUMPRODUCT((WNARevAlloc[MonthFlow]=O$11)*(WNARevAlloc[Region]=$C$4)*(WNARevAlloc[CustClass]=$D$9)*WNARevAlloc[AdjSRRS2Rev])) -> 728.2239407 | P21: =IF($C$6="S1",SUMPRODUCT((WNARevAlloc[MonthFlow]=P$11)*(WNARevAlloc[Region]=$C$4)*(WNARevAlloc[CustClass]=$D$9)*WNARevAlloc[AdjSRRS1Rev]),SUMPRODUCT((WNARevAlloc[MonthFlow]=P$11)*(WNARevAlloc[Region]=$C$4)*(WNARevAlloc[CustClass]=$D$9)*WNARevAlloc[AdjSRRS2Rev])) -> 331.4710207 | Q21: =IF($C$6="S1",SUMPRODUCT((WNARevAlloc[MonthFlow]=Q$11)*(WNARevAlloc[Region]=$C$4)*(WNARevAlloc[CustClass]=$D$9)*WNARevAlloc[AdjSRRS1Rev]),SUMPRODUCT((WNARevAlloc[MonthFlow]=Q$11)*(WNARevAlloc[Region]=$C$4)*(WNARevAlloc[CustClass]=$D$9)*WNARevAlloc[AdjSRRS2Rev])) -> 188.4181657 | R21: =IF($C$6="S1",SUMPRODUCT((WNARevAlloc[MonthFlow]=R$11)*(WNARevAlloc[Region]=$C$4)*(WNARevAlloc[CustClass]=$D$9)*WNARevAlloc[AdjSRRS1Rev]),SUMPRODUCT((WNARevAlloc[MonthFlow]=R$11)*(WNARevAlloc[Region]=$C$4)*(WNARevAlloc[CustClass]=$D$9)*WNARevAlloc[AdjSRRS2Rev])) -> 71.07523776 | S21: =IF($C$6="S1",SUMPRODUCT((WNARevAlloc[MonthFlow]=S$11)*(WNARevAlloc[Region]=$C$4)*(WNARevAlloc[CustClass]=$D$9)*WNARevAlloc[AdjSRRS1Rev]),SUMPRODUCT((WNARevAlloc[MonthFlow]=S$11)*(WNARevAlloc[Region]=$C$4)*(WNARevAlloc[CustClass]=$D$9)*WNARevAlloc[AdjSRRS2Rev])) -> 48.1939497 | T21: =IF($C$6="S1",SUMPRODUCT((WNARevAlloc[MonthFlow]=T$11)*(WNARevAlloc[Region]=$C$4)*(WNARevAlloc[CustClass]=$D$9)*WNARevAlloc[AdjSRRS1Rev]),SUMPRODUCT((WNARevAlloc[MonthFlow]=T$11)*(WNARevAlloc[Region]=$C$4)*(WNARevAlloc[CustClass]=$D$9)*WNARevAlloc[AdjSRRS2Rev])) -> 34.01955621 | U21: 31 | V21: 36 | W21: 50
B22: Total True-Up | C22: =SUM(C21:E21) -> 18876.59 | D22: Enter in VolTrueUp Table
B24: SAP Rate Category | C24: WMGC_SFGS | D24: SGS
B25: Small Comm. | C25: True-Up Period | F25: Actual Period* | U25: Projected Period
B26: Month | C26: =C7 -> 45292 | D26: =EDATE(C26,1) -> 45323 | E26: =EDATE(D26,1) -> 45352 | F26: 45383 | G26: 45413 | H26: 45444 | I26: 45474 | J26: 45505 | K26: 45536 | L26: 45566 | M26: 45597 | N26: 45627 | O26: =EDATE(N26,1) -> 45658 | P26: =EDATE(O26,1) -> 45689 | Q26: =EDATE(P26,1) -> 45717 | R26: =EDATE(Q26,1) -> 45748 | S26: =EDATE(R26,1) -> 45778 | T26: =EDATE(S26,1) -> 45809 | U26: =EDATE(T26,1) -> 45839 | V26: =EDATE(U26,1) -> 45870 | W26: =EDATE(V26,1) -> 45901
B27: Est. Volume | C27: =SUMPRODUCT((CustEstVol[MonthFlow]=C$26)*(CustEstVol[SAPRateCategory]=$C$24)*CustEstVol[NormVol]) -> 174753 | D27: =SUMPRODUCT((CustEstVol[MonthFlow]=D$26)*(CustEstVol[SAPRateCategory]=$C$24)*CustEstVol[NormVol]) -> 151587 | E27: =SUMPRODUCT((CustEstVol[MonthFlow]=E$26)*(CustEstVol[SAPRateCategory]=$C$24)*CustEstVol[NormVol]) -> 114780 | U27: =SUMPRODUCT((CustEstVol[MonthFlow]=U$26)*(CustEstVol[SAPRateCategory]=$C$24)*CustEstVol[NormVol]) -> 11078 | V27: =SUMPRODUCT((CustEstVol[MonthFlow]=V$26)*(CustEstVol[SAPRateCategory]=$C$24)*CustEstVol[NormVol]) -> 17566 | W27: =SUMPRODUCT((CustEstVol[MonthFlow]=W$26)*(CustEstVol[SAPRateCategory]=$C$24)*CustEstVol[NormVol]) -> 15765
B28: Actual Volume | C28: =SUMPRODUCT((WNARevAlloc[MonthFlow]=C26)*(WNARevAlloc[SAPRateCategory]=$C24)*WNARevAlloc[Consumption]) -> 123886.68 | D28: =SUMPRODUCT((WNARevAlloc[MonthFlow]=D26)*(WNARevAlloc[SAPRateCategory]=$C24)*WNARevAlloc[Consumption]) -> 74748.464 | E28: =SUMPRODUCT((WNARevAlloc[MonthFlow]=E26)*(WNARevAlloc[SAPRateCategory]=$C24)*WNARevAlloc[Consumption]) -> 50288.907 | F28: =SUMPRODUCT((WNARevAlloc[MonthFlow]=F26)*(WNARevAlloc[SAPRateCategory]=$C24)*WNARevAlloc[Consumption]) -> 25960.473 | G28: =SUMPRODUCT((WNARevAlloc[MonthFlow]=G26)*(WNARevAlloc[SAPRateCategory]=$C24)*WNARevAlloc[Consumption]) -> 16408.224 | H28: =SUMPRODUCT((WNARevAlloc[MonthFlow]=H26)*(WNARevAlloc[SAPRateCategory]=$C24)*WNARevAlloc[Consumption]) -> 7423.434 | I28: =SUMPRODUCT((WNARevAlloc[MonthFlow]=I26)*(WNARevAlloc[SAPRateCategory]=$C24)*WNARevAlloc[Consumption]) -> 11077.552 | J28: =SUMPRODUCT((WNARevAlloc[MonthFlow]=J26)*(WNARevAlloc[SAPRateCategory]=$C24)*WNARevAlloc[Consumption]) -> 17565.867 | K28: =SUMPRODUCT((WNARevAlloc[MonthFlow]=K26)*(WNARevAlloc[SAPRateCategory]=$C24)*WNARevAlloc[Consumption]) -> 15764.77 | L28: =SUMPRODUCT((WNARevAlloc[MonthFlow]=L26)*(WNARevAlloc[SAPRateCategory]=$C24)*WNARevAlloc[Consumption]) -> 33718.975 | M28: =SUMPRODUCT((WNARevAlloc[MonthFlow]=M26)*(WNARevAlloc[SAPRateCategory]=$C24)*WNARevAlloc[Consumption]) -> 112725.113 | N28: =SUMPRODUCT((WNARevAlloc[MonthFlow]=N26)*(WNARevAlloc[SAPRateCategory]=$C24)*WNARevAlloc[Consumption]) -> 179738.753 | O28: =SUMPRODUCT((WNARevAlloc[MonthFlow]=O26)*(WNARevAlloc[SAPRateCategory]=$C24)*WNARevAlloc[Consumption]) -> 219935.669 | P28: =SUMPRODUCT((WNARevAlloc[MonthFlow]=P26)*(WNARevAlloc[SAPRateCategory]=$C24)*WNARevAlloc[Consumption]) -> 102636.211 | Q28: =SUMPRODUCT((WNARevAlloc[MonthFlow]=Q26)*(WNARevAlloc[SAPRateCategory]=$C24)*WNARevAlloc[Consumption]) -> 57788.338 | R28: =SUMPRODUCT((WNARevAlloc[MonthFlow]=R26)*(WNARevAlloc[SAPRateCategory]=$C24)*WNARevAlloc[Consumption]) -> 19679.273 | S28: =SUMPRODUCT((WNARevAlloc[MonthFlow]=S26)*(WNARevAlloc[SAPRateCategory]=$C24)*WNARevAlloc[Consumption]) -> 14710.845 | T28: =SUMPRODUCT((WNARevAlloc[MonthFlow]=T26)*(WNARevAlloc[SAPRateCategory]=$C24)*WNARevAlloc[Consumption]) -> 13176.075
B29: Vol True-Up | C29: =C28-C27 -> -50866.32 | D29: =D28-D27 -> -76838.536 | E29: =E28-E27 -> -64491.093
B30: ="WNAR "&$C$6&" Rates in Effect" -> WNAR S1 Rates in Effect
B31: CSWNA | C31: =SUMPRODUCT((WNARRates[BeginDate]<=C$26)*(WNARRates[EndDate]>=C$26)*(WNARRates[Region]=$C$4)*(WNARRates[CustClass]=$D$24)*(WNARRates[Period]=$C$6)*WNARRates[CSWNA]) -> -0.00333 | D31: =SUMPRODUCT((WNARRates[BeginDate]<=D$26)*(WNARRates[EndDate]>=D$26)*(WNARRates[Region]=$C$4)*(WNARRates[CustClass]=$D$24)*(WNARRates[Period]=$C$6)*WNARRates[CSWNA]) -> -0.00333 | E31: =SUMPRODUCT((WNARRates[BeginDate]<=E$26)*(WNARRates[EndDate]>=E$26)*(WNARRates[Region]=$C$4)*(WNARRates[CustClass]=$D$24)*(WNARRates[Period]=$C$6)*WNARRates[CSWNA]) -> -0.00333 | F31: =SUMPRODUCT((WNARRates[BeginDate]<=F$26)*(WNARRates[EndDate]>=F$26)*(WNARRates[Region]=$C$4)*(WNARRates[CustClass]=$D$24)*(WNARRates[Period]=$C$6)*WNARRates[AdjCSWNA]) -> 0.00477 | G31: =SUMPRODUCT((WNARRates[BeginDate]<=G$26)*(WNARRates[EndDate]>=G$26)*(WNARRates[Region]=$C$4)*(WNARRates[CustClass]=$D$24)*(WNARRates[Period]=$C$6)*WNARRates[AdjCSWNA]) -> 0.00477 | H31: =SUMPRODUCT((WNARRates[BeginDate]<=H$26)*(WNARRates[EndDate]>=H$26)*(WNARRates[Region]=$C$4)*(WNARRates[CustClass]=$D$24)*(WNARRates[Period]=$C$6)*WNARRates[AdjCSWNA]) -> 0.00477 | I31: =SUMPRODUCT((WNARRates[BeginDate]<=I$26)*(WNARRates[EndDate]>=I$26)*(WNARRates[Region]=$C$4)*(WNARRates[CustClass]=$D$24)*(WNARRates[Period]=$C$6)*WNARRates[AdjCSWNA]) -> 0.00477 | J31: =SUMPRODUCT((WNARRates[BeginDate]<=J$26)*(WNARRates[EndDate]>=J$26)*(WNARRates[Region]=$C$4)*(WNARRates[CustClass]=$D$24)*(WNARRates[Period]=$C$6)*WNARRates[AdjCSWNA]) -> 0.00477 | K31: =SUMPRODUCT((WNARRates[BeginDate]<=K$26)*(WNARRates[EndDate]>=K$26)*(WNARRates[Region]=$C$4)*(WNARRates[CustClass]=$D$24)*(WNARRates[Period]=$C$6)*WNARRates[AdjCSWNA]) -> 0.00477 | L31: =SUMPRODUCT((WNARRates[BeginDate]<=L$26)*(WNARRates[EndDate]>=L$26)*(WNARRates[Region]=$C$4)*(WNARRates[CustClass]=$D$24)*(WNARRates[Period]=$C$6)*WNARRates[AdjCSWNA]) -> 0.00477 | M31: =SUMPRODUCT((WNARRates[BeginDate]<=M$26)*(WNARRates[EndDate]>=M$26)*(WNARRates[Region]=$C$4)*(WNARRates[CustClass]=$D$24)*(WNARRates[Period]=$C$6)*WNARRates[AdjCSWNA]) -> 0.00477 | N31: =SUMPRODUCT((WNARRates[BeginDate]<=N$26)*(WNARRates[EndDate]>=N$26)*(WNARRates[Region]=$C$4)*(WNARRates[CustClass]=$D$24)*(WNARRates[Period]=$C$6)*WNARRates[AdjCSWNA]) -> 0.00477 | O31: =SUMPRODUCT((WNARRates[BeginDate]<=O$26)*(WNARRates[EndDate]>=O$26)*(WNARRates[Region]=$C$4)*(WNARRates[CustClass]=$D$24)*(WNARRates[Period]=$C$6)*WNARRates[AdjCSWNA]) -> 0.00477 | P31: =SUMPRODUCT((WNARRates[BeginDate]<=P$26)*(WNARRates[EndDate]>=P$26)*(WNARRates[Region]=$C$4)*(WNARRates[CustClass]=$D$24)*(WNARRates[Period]=$C$6)*WNARRates[AdjCSWNA]) -> 0.00477 | Q31: =SUMPRODUCT((WNARRates[BeginDate]<=Q$26)*(WNARRates[EndDate]>=Q$26)*(WNARRates[Region]=$C$4)*(WNARRates[CustClass]=$D$24)*(WNARRates[Period]=$C$6)*WNARRates[AdjCSWNA]) -> 0.00477 | R31: =SUMPRODUCT((WNARRates[BeginDate]<=R$26)*(WNARRates[EndDate]>=R$26)*(WNARRates[Region]=$C$4)*(WNARRates[CustClass]=$D$24)*(WNARRates[Period]=$C$6)*WNARRates[AdjCSWNA]) -> 0.00477 | S31: =SUMPRODUCT((WNARRates[BeginDate]<=S$26)*(WNARRates[EndDate]>=S$26)*(WNARRates[Region]=$C$4)*(WNARRates[CustClass]=$D$24)*(WNARRates[Period]=$C$6)*WNARRates[AdjCSWNA]) -> 0.00477 | T31: =SUMPRODUCT((WNARRates[BeginDate]<=T$26)*(WNARRates[EndDate]>=T$26)*(WNARRates[Region]=$C$4)*(WNARRates[CustClass]=$D$24)*(WNARRates[Period]=$C$6)*WNARRates[AdjCSWNA]) -> 0.00477 | U31: =SUMPRODUCT((WNARRates[BeginDate]<=U$26)*(WNARRates[EndDate]>=U$26)*(WNARRates[Region]=$C$4)*(WNARRates[CustClass]=$D$24)*(WNARRates[Period]=$C$6)*WNARRates[AdjCSWNA]) -> 0.00477 | V31: =SUMPRODUCT((WNARRates[BeginDate]<=V$26)*(WNARRates[EndDate]>=V$26)*(WNARRates[Region]=$C$4)*(WNARRates[CustClass]=$D$24)*(WNARRates[Period]=$C$6)*WNARRates[AdjCSWNA]) -> 0.00477 | W31: =SUMPRODUCT((WNARRates[BeginDate]<=W$26)*(WNARRates[EndDate]>=W$26)*(WNARRates[Region]=$C$4)*(WNARRates[CustClass]=$D$24)*(WNARRates[Period]=$C$6)*WNARRates[AdjCSWNA]) -> 0.00477
B32: SRR | C32: =SUMPRODUCT((WNARRates[BeginDate]<=C$26)*(WNARRates[EndDate]>=C$26)*(WNARRates[Region]=$C$4)*(WNARRates[CustClass]=$D$24)*(WNARRates[Period]=$C$6)*WNARRates[ARR]) -> -0.02113 | D32: =SUMPRODUCT((WNARRates[BeginDate]<=D$26)*(WNARRates[EndDate]>=D$26)*(WNARRates[Region]=$C$4)*(WNARRates[CustClass]=$D$24)*(WNARRates[Period]=$C$6)*WNARRates[ARR]) -> -0.02113 | E32: =SUMPRODUCT((WNARRates[BeginDate]<=E$26)*(WNARRates[EndDate]>=E$26)*(WNARRates[Region]=$C$4)*(WNARRates[CustClass]=$D$24)*(WNARRates[Period]=$C$6)*WNARRates[ARR]) -> -0.02113 | F32: =SUMPRODUCT((WNARRates[BeginDate]<=F$26)*(WNARRates[EndDate]>=F$26)*(WNARRates[Region]=$C$4)*(WNARRates[CustClass]=$D$24)*(WNARRates[Period]=$C$6)*WNARRates[AdjSRR]) -> 0.00391 | G32: =SUMPRODUCT((WNARRates[BeginDate]<=G$26)*(WNARRates[EndDate]>=G$26)*(WNARRates[Region]=$C$4)*(WNARRates[CustClass]=$D$24)*(WNARRates[Period]=$C$6)*WNARRates[AdjSRR]) -> 0.00391 | H32: =SUMPRODUCT((WNARRates[BeginDate]<=H$26)*(WNARRates[EndDate]>=H$26)*(WNARRates[Region]=$C$4)*(WNARRates[CustClass]=$D$24)*(WNARRates[Period]=$C$6)*WNARRates[AdjSRR]) -> 0.00391 | I32: =SUMPRODUCT((WNARRates[BeginDate]<=I$26)*(WNARRates[EndDate]>=I$26)*(WNARRates[Region]=$C$4)*(WNARRates[CustClass]=$D$24)*(WNARRates[Period]=$C$6)*WNARRates[AdjSRR]) -> 0.00391 | J32: =SUMPRODUCT((WNARRates[BeginDate]<=J$26)*(WNARRates[EndDate]>=J$26)*(WNARRates[Region]=$C$4)*(WNARRates[CustClass]=$D$24)*(WNARRates[Period]=$C$6)*WNARRates[AdjSRR]) -> 0.00391 | K32: =SUMPRODUCT((WNARRates[BeginDate]<=K$26)*(WNARRates[EndDate]>=K$26)*(WNARRates[Region]=$C$4)*(WNARRates[CustClass]=$D$24)*(WNARRates[Period]=$C$6)*WNARRates[AdjSRR]) -> 0.00391 | L32: =SUMPRODUCT((WNARRates[BeginDate]<=L$26)*(WNARRates[EndDate]>=L$26)*(WNARRates[Region]=$C$4)*(WNARRates[CustClass]=$D$24)*(WNARRates[Period]=$C$6)*WNARRates[AdjSRR]) -> 0.00391 | M32: =SUMPRODUCT((WNARRates[BeginDate]<=M$26)*(WNARRates[EndDate]>=M$26)*(WNARRates[Region]=$C$4)*(WNARRates[CustClass]=$D$24)*(WNARRates[Period]=$C$6)*WNARRates[AdjSRR]) -> 0.00391 | N32: =SUMPRODUCT((WNARRates[BeginDate]<=N$26)*(WNARRates[EndDate]>=N$26)*(WNARRates[Region]=$C$4)*(WNARRates[CustClass]=$D$24)*(WNARRates[Period]=$C$6)*WNARRates[AdjSRR]) -> 0.00391 | O32: =SUMPRODUCT((WNARRates[BeginDate]<=O$26)*(WNARRates[EndDate]>=O$26)*(WNARRates[Region]=$C$4)*(WNARRates[CustClass]=$D$24)*(WNARRates[Period]=$C$6)*WNARRates[AdjSRR]) -> 0.00391 | P32: =SUMPRODUCT((WNARRates[BeginDate]<=P$26)*(WNARRates[EndDate]>=P$26)*(WNARRates[Region]=$C$4)*(WNARRates[CustClass]=$D$24)*(WNARRates[Period]=$C$6)*WNARRates[AdjSRR]) -> 0.00391 | Q32: =SUMPRODUCT((WNARRates[BeginDate]<=Q$26)*(WNARRates[EndDate]>=Q$26)*(WNARRates[Region]=$C$4)*(WNARRates[CustClass]=$D$24)*(WNARRates[Period]=$C$6)*WNARRates[AdjSRR]) -> 0.00391 | R32: =SUMPRODUCT((WNARRates[BeginDate]<=R$26)*(WNARRates[EndDate]>=R$26)*(WNARRates[Region]=$C$4)*(WNARRates[CustClass]=$D$24)*(WNARRates[Period]=$C$6)*WNARRates[AdjSRR]) -> 0.00391 | S32: =SUMPRODUCT((WNARRates[BeginDate]<=S$26)*(WNARRates[EndDate]>=S$26)*(WNARRates[Region]=$C$4)*(WNARRates[CustClass]=$D$24)*(WNARRates[Period]=$C$6)*WNARRates[AdjSRR]) -> 0.00391 | T32: =SUMPRODUCT((WNARRates[BeginDate]<=T$26)*(WNARRates[EndDate]>=T$26)*(WNARRates[Region]=$C$4)*(WNARRates[CustClass]=$D$24)*(WNARRates[Period]=$C$6)*WNARRates[AdjSRR]) -> 0.00391 | U32: =SUMPRODUCT((WNARRates[BeginDate]<=U$26)*(WNARRates[EndDate]>=U$26)*(WNARRates[Region]=$C$4)*(WNARRates[CustClass]=$D$24)*(WNARRates[Period]=$C$6)*WNARRates[AdjSRR]) -> 0.00391 | V32: =SUMPRODUCT((WNARRates[BeginDate]<=V$26)*(WNARRates[EndDate]>=V$26)*(WNARRates[Region]=$C$4)*(WNARRates[CustClass]=$D$24)*(WNARRates[Period]=$C$6)*WNARRates[AdjSRR]) -> 0.00391 | W32: =SUMPRODUCT((WNARRates[BeginDate]<=W$26)*(WNARRates[EndDate]>=W$26)*(WNARRates[Region]=$C$4)*(WNARRates[CustClass]=$D$24)*(WNARRates[Period]=$C$6)*WNARRates[AdjSRR]) -> 0.00391
B33: Total | C33: =SUM(C31:C32) -> -0.02446 | D33: =SUM(D31:D32) -> -0.02446 | E33: =SUM(E31:E32) -> -0.02446
B34: CSWNA and SRR Revenue for Period
B35: CSWNA $ | F35: =IF($C$6="S1",SUMPRODUCT((WNARevAlloc[MonthFlow]=F$11)*(WNARevAlloc[Region]=$C$4)*(WNARevAlloc[CustClass]=$D$24)*WNARevAlloc[AdjCSWNAS1Rev]),SUMPRODUCT((WNARevAlloc[MonthFlow]=F$11)*(WNARevAlloc[Region]=$C$4)*(WNARevAlloc[CustClass]=$D$24)*WNARevAlloc[AdjCSWNAS2Rev])) -> 84.25320765 | G35: =IF($C$6="S1",SUMPRODUCT((WNARevAlloc[MonthFlow]=G$11)*(WNARevAlloc[Region]=$C$4)*(WNARevAlloc[CustClass]=$D$24)*WNARevAlloc[AdjCSWNAS1Rev]),SUMPRODUCT((WNARevAlloc[MonthFlow]=G$11)*(WNARevAlloc[Region]=$C$4)*(WNARevAlloc[CustClass]=$D$24)*WNARevAlloc[AdjCSWNAS2Rev])) -> 58.13247477 | H35: =IF($C$6="S1",SUMPRODUCT((WNARevAlloc[MonthFlow]=H$11)*(WNARevAlloc[Region]=$C$4)*(WNARevAlloc[CustClass]=$D$24)*WNARevAlloc[AdjCSWNAS1Rev]),SUMPRODUCT((WNARevAlloc[MonthFlow]=H$11)*(WNARevAlloc[Region]=$C$4)*(WNARevAlloc[CustClass]=$D$24)*WNARevAlloc[AdjCSWNAS2Rev])) -> 42.83402099 | I35: =IF($C$6="S1",SUMPRODUCT((WNARevAlloc[MonthFlow]=I$11)*(WNARevAlloc[Region]=$C$4)*(WNARevAlloc[CustClass]=$D$24)*WNARevAlloc[AdjCSWNAS1Rev]),SUMPRODUCT((WNARevAlloc[MonthFlow]=I$11)*(WNARevAlloc[Region]=$C$4)*(WNARevAlloc[CustClass]=$D$24)*WNARevAlloc[AdjCSWNAS2Rev])) -> 52.79 | J35: =IF($C$6="S1",SUMPRODUCT((WNARevAlloc[MonthFlow]=J$11)*(WNARevAlloc[Region]=$C$4)*(WNARevAlloc[CustClass]=$D$24)*WNARevAlloc[AdjCSWNAS1Rev]),SUMPRODUCT((WNARevAlloc[MonthFlow]=J$11)*(WNARevAlloc[Region]=$C$4)*(WNARevAlloc[CustClass]=$D$24)*WNARevAlloc[AdjCSWNAS2Rev])) -> 42.03771572 | K35: =IF($C$6="S1",SUMPRODUCT((WNARevAlloc[MonthFlow]=K$11)*(WNARevAlloc[Region]=$C$4)*(WNARevAlloc[CustClass]=$D$24)*WNARevAlloc[AdjCSWNAS1Rev]),SUMPRODUCT((WNARevAlloc[MonthFlow]=K$11)*(WNARevAlloc[Region]=$C$4)*(WNARevAlloc[CustClass]=$D$24)*WNARevAlloc[AdjCSWNAS2Rev])) -> 68.22920255 | L35: =IF($C$6="S1",SUMPRODUCT((WNARevAlloc[MonthFlow]=L$11)*(WNARevAlloc[Region]=$C$4)*(WNARevAlloc[CustClass]=$D$24)*WNARevAlloc[AdjCSWNAS1Rev]),SUMPRODUCT((WNARevAlloc[MonthFlow]=L$11)*(WNARevAlloc[Region]=$C$4)*(WNARevAlloc[CustClass]=$D$24)*WNARevAlloc[AdjCSWNAS2Rev])) -> 141.2507456 | M35: =IF($C$6="S1",SUMPRODUCT((WNARevAlloc[MonthFlow]=M$11)*(WNARevAlloc[Region]=$C$4)*(WNARevAlloc[CustClass]=$D$24)*WNARevAlloc[AdjCSWNAS1Rev]),SUMPRODUCT((WNARevAlloc[MonthFlow]=M$11)*(WNARevAlloc[Region]=$C$4)*(WNARevAlloc[CustClass]=$D$24)*WNARevAlloc[AdjCSWNAS2Rev])) -> 537.7256211 | N35: =IF($C$6="S1",SUMPRODUCT((WNARevAlloc[MonthFlow]=N$11)*(WNARevAlloc[Region]=$C$4)*(WNARevAlloc[CustClass]=$D$24)*WNARevAlloc[AdjCSWNAS1Rev]),SUMPRODUCT((WNARevAlloc[MonthFlow]=N$11)*(WNARevAlloc[Region]=$C$4)*(WNARevAlloc[CustClass]=$D$24)*WNARevAlloc[AdjCSWNAS2Rev])) -> 857.351815 | O35: =IF($C$6="S1",SUMPRODUCT((WNARevAlloc[MonthFlow]=O$11)*(WNARevAlloc[Region]=$C$4)*(WNARevAlloc[CustClass]=$D$24)*WNARevAlloc[AdjCSWNAS1Rev]),SUMPRODUCT((WNARevAlloc[MonthFlow]=O$11)*(WNARevAlloc[Region]=$C$4)*(WNARevAlloc[CustClass]=$D$24)*WNARevAlloc[AdjCSWNAS2Rev])) -> 1049.120524 | P35: =IF($C$6="S1",SUMPRODUCT((WNARevAlloc[MonthFlow]=P$11)*(WNARevAlloc[Region]=$C$4)*(WNARevAlloc[CustClass]=$D$24)*WNARevAlloc[AdjCSWNAS1Rev]),SUMPRODUCT((WNARevAlloc[MonthFlow]=P$11)*(WNARevAlloc[Region]=$C$4)*(WNARevAlloc[CustClass]=$D$24)*WNARevAlloc[AdjCSWNAS2Rev])) -> 489.1531819 | Q35: =IF($C$6="S1",SUMPRODUCT((WNARevAlloc[MonthFlow]=Q$11)*(WNARevAlloc[Region]=$C$4)*(WNARevAlloc[CustClass]=$D$24)*WNARevAlloc[AdjCSWNAS1Rev]),SUMPRODUCT((WNARevAlloc[MonthFlow]=Q$11)*(WNARevAlloc[Region]=$C$4)*(WNARevAlloc[CustClass]=$D$24)*WNARevAlloc[AdjCSWNAS2Rev])) -> 275.6492643 | R35: =IF($C$6="S1",SUMPRODUCT((WNARevAlloc[MonthFlow]=R$11)*(WNARevAlloc[Region]=$C$4)*(WNARevAlloc[CustClass]=$D$24)*WNARevAlloc[AdjCSWNAS1Rev]),SUMPRODUCT((WNARevAlloc[MonthFlow]=R$11)*(WNARevAlloc[Region]=$C$4)*(WNARevAlloc[CustClass]=$D$24)*WNARevAlloc[AdjCSWNAS2Rev])) -> 93.88284581 | S35: =IF($C$6="S1",SUMPRODUCT((WNARevAlloc[MonthFlow]=S$11)*(WNARevAlloc[Region]=$C$4)*(WNARevAlloc[CustClass]=$D$24)*WNARevAlloc[AdjCSWNAS1Rev]),SUMPRODUCT((WNARevAlloc[MonthFlow]=S$11)*(WNARevAlloc[Region]=$C$4)*(WNARevAlloc[CustClass]=$D$24)*WNARevAlloc[AdjCSWNAS2Rev])) -> 70.16102643 | T35: =IF($C$6="S1",SUMPRODUCT((WNARevAlloc[MonthFlow]=T$11)*(WNARevAlloc[Region]=$C$4)*(WNARevAlloc[CustClass]=$D$24)*WNARevAlloc[AdjCSWNAS1Rev]),SUMPRODUCT((WNARevAlloc[MonthFlow]=T$11)*(WNARevAlloc[Region]=$C$4)*(WNARevAlloc[CustClass]=$D$24)*WNARevAlloc[AdjCSWNAS2Rev])) -> 59.75758045 | U35: =ROUND(U$27*U31,0) -> 53 | V35: 84 | W35: 75
B36: SRR $ | C36: =ROUND(C29*C33,2) -> 1244.19 | D36: =ROUND(D29*D33,2) -> 1879.47 | E36: =ROUND(E29*E33,2) -> 1577.45 | F36: =IF($C$6="S1",SUMPRODUCT((WNARevAlloc[MonthFlow]=F$11)*(WNARevAlloc[Region]=$C$4)*(WNARevAlloc[CustClass]=$D$24)*WNARevAlloc[AdjSRRS1Rev]),SUMPRODUCT((WNARevAlloc[MonthFlow]=F$11)*(WNARevAlloc[Region]=$C$4)*(WNARevAlloc[CustClass]=$D$24)*WNARevAlloc[AdjSRRS2Rev])) -> -20.71100509 | G36: =IF($C$6="S1",SUMPRODUCT((WNARevAlloc[MonthFlow]=G$11)*(WNARevAlloc[Region]=$C$4)*(WNARevAlloc[CustClass]=$D$24)*WNARevAlloc[AdjSRRS1Rev]),SUMPRODUCT((WNARevAlloc[MonthFlow]=G$11)*(WNARevAlloc[Region]=$C$4)*(WNARevAlloc[CustClass]=$D$24)*WNARevAlloc[AdjSRRS2Rev])) -> 1.968208822 | H36: =IF($C$6="S1",SUMPRODUCT((WNARevAlloc[MonthFlow]=H$11)*(WNARevAlloc[Region]=$C$4)*(WNARevAlloc[CustClass]=$D$24)*WNARevAlloc[AdjSRRS1Rev]),SUMPRODUCT((WNARevAlloc[MonthFlow]=H$11)*(WNARevAlloc[Region]=$C$4)*(WNARevAlloc[CustClass]=$D$24)*WNARevAlloc[AdjSRRS2Rev])) -> 52.06041761 | I36: =IF($C$6="S1",SUMPRODUCT((WNARevAlloc[MonthFlow]=I$11)*(WNARevAlloc[Region]=$C$4)*(WNARevAlloc[CustClass]=$D$24)*WNARevAlloc[AdjSRRS1Rev]),SUMPRODUCT((WNARevAlloc[MonthFlow]=I$11)*(WNARevAlloc[Region]=$C$4)*(WNARevAlloc[CustClass]=$D$24)*WNARevAlloc[AdjSRRS2Rev])) -> 43.27230608 | J36: =IF($C$6="S1",SUMPRODUCT((WNARevAlloc[MonthFlow]=J$11)*(WNARevAlloc[Region]=$C$4)*(WNARevAlloc[CustClass]=$D$24)*WNARevAlloc[AdjSRRS1Rev]),SUMPRODUCT((WNARevAlloc[MonthFlow]=J$11)*(WNARevAlloc[Region]=$C$4)*(WNARevAlloc[CustClass]=$D$24)*WNARevAlloc[AdjSRRS2Rev])) -> -60.31873953 | K36: =IF($C$6="S1",SUMPRODUCT((WNARevAlloc[MonthFlow]=K$11)*(WNARevAlloc[Region]=$C$4)*(WNARevAlloc[CustClass]=$D$24)*WNARevAlloc[AdjSRRS1Rev]),SUMPRODUCT((WNARevAlloc[MonthFlow]=K$11)*(WNARevAlloc[Region]=$C$4)*(WNARevAlloc[CustClass]=$D$24)*WNARevAlloc[AdjSRRS2Rev])) -> 40.04867847 | L36: =IF($C$6="S1",SUMPRODUCT((WNARevAlloc[MonthFlow]=L$11)*(WNARevAlloc[Region]=$C$4)*(WNARevAlloc[CustClass]=$D$24)*WNARevAlloc[AdjSRRS1Rev]),SUMPRODUCT((WNARevAlloc[MonthFlow]=L$11)*(WNARevAlloc[Region]=$C$4)*(WNARevAlloc[CustClass]=$D$24)*WNARevAlloc[AdjSRRS2Rev])) -> 71.2831884 | M36: =IF($C$6="S1",SUMPRODUCT((WNARevAlloc[MonthFlow]=M$11)*(WNARevAlloc[Region]=$C$4)*(WNARevAlloc[CustClass]=$D$24)*WNARevAlloc[AdjSRRS1Rev]),SUMPRODUCT((WNARevAlloc[MonthFlow]=M$11)*(WNARevAlloc[Region]=$C$4)*(WNARevAlloc[CustClass]=$D$24)*WNARevAlloc[AdjSRRS2Rev])) -> 440.7771863 | N36: =IF($C$6="S1",SUMPRODUCT((WNARevAlloc[MonthFlow]=N$11)*(WNARevAlloc[Region]=$C$4)*(WNARevAlloc[CustClass]=$D$24)*WNARevAlloc[AdjSRRS1Rev]),SUMPRODUCT((WNARevAlloc[MonthFlow]=N$11)*(WNARevAlloc[Region]=$C$4)*(WNARevAlloc[CustClass]=$D$24)*WNARevAlloc[AdjSRRS2Rev])) -> 702.7768546 | O36: =IF($C$6="S1",SUMPRODUCT((WNARevAlloc[MonthFlow]=O$11)*(WNARevAlloc[Region]=$C$4)*(WNARevAlloc[CustClass]=$D$24)*WNARevAlloc[AdjSRRS1Rev]),SUMPRODUCT((WNARevAlloc[MonthFlow]=O$11)*(WNARevAlloc[Region]=$C$4)*(WNARevAlloc[CustClass]=$D$24)*WNARevAlloc[AdjSRRS2Rev])) -> 859.9709119 | P36: =IF($C$6="S1",SUMPRODUCT((WNARevAlloc[MonthFlow]=P$11)*(WNARevAlloc[Region]=$C$4)*(WNARevAlloc[CustClass]=$D$24)*WNARevAlloc[AdjSRRS1Rev]),SUMPRODUCT((WNARevAlloc[MonthFlow]=P$11)*(WNARevAlloc[Region]=$C$4)*(WNARevAlloc[CustClass]=$D$24)*WNARevAlloc[AdjSRRS2Rev])) -> 400.0044017 | Q36: =IF($C$6="S1",SUMPRODUCT((WNARevAlloc[MonthFlow]=Q$11)*(WNARevAlloc[Region]=$C$4)*(WNARevAlloc[CustClass]=$D$24)*WNARevAlloc[AdjSRRS1Rev]),SUMPRODUCT((WNARevAlloc[MonthFlow]=Q$11)*(WNARevAlloc[Region]=$C$4)*(WNARevAlloc[CustClass]=$D$24)*WNARevAlloc[AdjSRRS2Rev])) -> 225.9514934 | R36: =IF($C$6="S1",SUMPRODUCT((WNARevAlloc[MonthFlow]=R$11)*(WNARevAlloc[Region]=$C$4)*(WNARevAlloc[CustClass]=$D$24)*WNARevAlloc[AdjSRRS1Rev]),SUMPRODUCT((WNARevAlloc[MonthFlow]=R$11)*(WNARevAlloc[Region]=$C$4)*(WNARevAlloc[CustClass]=$D$24)*WNARevAlloc[AdjSRRS2Rev])) -> 76.95637885 | S36: =IF($C$6="S1",SUMPRODUCT((WNARevAlloc[MonthFlow]=S$11)*(WNARevAlloc[Region]=$C$4)*(WNARevAlloc[CustClass]=$D$24)*WNARevAlloc[AdjSRRS1Rev]),SUMPRODUCT((WNARevAlloc[MonthFlow]=S$11)*(WNARevAlloc[Region]=$C$4)*(WNARevAlloc[CustClass]=$D$24)*WNARevAlloc[AdjSRRS2Rev])) -> 57.51144934 | T36: =IF($C$6="S1",SUMPRODUCT((WNARevAlloc[MonthFlow]=T$11)*(WNARevAlloc[Region]=$C$4)*(WNARevAlloc[CustClass]=$D$24)*WNARevAlloc[AdjSRRS1Rev]),SUMPRODUCT((WNARevAlloc[MonthFlow]=T$11)*(WNARevAlloc[Region]=$C$4)*(WNARevAlloc[CustClass]=$D$24)*WNARevAlloc[AdjSRRS2Rev])) -> 42.19224728 | U36: 43 | V36: 69 | W36: 62
B37: Total True-Up | C37: =SUM(C36:E36) -> 4701.11 | D37: Enter in VolTrueUp Table
B39: * Actual Period revenues were calculated using actual rates, and then adjusted for actual revenues billed.
B40: (See worksheet WNARRevAlloc)

Sheet ARR NEMO (S1)
B2: Liberty Midstates | F2: Year | I2: Rate Sched | J2: SAP Rate Cat. | K2: Territory | L2: Cust. Class
B3: Semi-Annual Reconciliation Rate | I3: 60-GRF | J3: =INDEX(RateSched[SAPRateCategory],MATCH($I3,RateSched[RateSched],0)) -> KMGR_RFS | K3: =INDEX(RateSched[Territory],MATCH($I3,RateSched[RateSched],0)) -> KIRK | L3: =INDEX(RateSched[CustClassShort],MATCH($I3,RateSched[RateSched],0)) -> Res
B4: Region | C4: NEMO | I4: 63-GRF | J4: =INDEX(RateSched[SAPRateCategory],MATCH($I4,RateSched[RateSched],0)) -> NMGR_RFS | K4: =INDEX(RateSched[Territory],MATCH($I4,RateSched[RateSched],0)) -> NEMO | L4: =INDEX(RateSched[CustClassShort],MATCH($I4,RateSched[RateSched],0)) -> Res
B5: Year | C5: =DateSet!C2 -> 2025 | I5: 60-GCSF | J5: =INDEX(RateSched[SAPRateCategory],MATCH($I5,RateSched[RateSched],0)) -> KMGC_SFGS | K5: =INDEX(RateSched[Territory],MATCH($I5,RateSched[RateSched],0)) -> KIRK | L5: =INDEX(RateSched[CustClassShort],MATCH($I5,RateSched[RateSched],0)) -> SGS
B6: Period | C6: S1 | I6: 63-GCSF | J6: =INDEX(RateSched[SAPRateCategory],MATCH($I6,RateSched[RateSched],0)) -> NMGC_SFGS | K6: =INDEX(RateSched[Territory],MATCH($I6,RateSched[RateSched],0)) -> NEMO | L6: =INDEX(RateSched[CustClassShort],MATCH($I6,RateSched[RateSched],0)) -> SGS
B7: Analysis Start | C7: 2024-01-01
B9: SAP Rate Category | C9: KMGR_RFS | D9: NMGR_RFS | E9: Res
B10: Residential | C10: True-Up Period | F10: Actual Period* | U10: Projected Period
B11: Month | C11: =C7 -> 45292 | D11: =EDATE(C11,1) -> 45323 | E11: =EDATE(D11,1) -> 45352 | F11: 45383 | G11: 45413 | H11: 45444 | I11: 45474 | J11: 45505 | K11: 45536 | L11: 45566 | M11: 45597 | N11: 45627 | O11: =EDATE(N11,1) -> 45658 | P11: =EDATE(O11,1) -> 45689 | Q11: =EDATE(P11,1) -> 45717 | R11: =EDATE(Q11,1) -> 45748 | S11: 45778 | T11: =EDATE(S11,1) -> 45809 | U11: =EDATE(T11,1) -> 45839 | V11: =EDATE(U11,1) -> 45870 | W11: =EDATE(V11,1) -> 45901
B12: Est. Volume | C12: =SUMPRODUCT((CustEstVol[MonthFlow]=C11)*(CustEstVol[SAPRateCategory]=$C9)*CustEstVol[NormVol])+SUMPRODUCT((CustEstVol[MonthFlow]=C11)*(CustEstVol[SAPRateCategory]=$D9)*CustEstVol[NormVol]) -> 2516391 | D12: =SUMPRODUCT((CustEstVol[MonthFlow]=D11)*(CustEstVol[SAPRateCategory]=$C9)*CustEstVol[NormVol])+SUMPRODUCT((CustEstVol[MonthFlow]=D11)*(CustEstVol[SAPRateCategory]=$D9)*CustEstVol[NormVol]) -> 2135402 | E12: =SUMPRODUCT((CustEstVol[MonthFlow]=E11)*(CustEstVol[SAPRateCategory]=$C9)*CustEstVol[NormVol])+SUMPRODUCT((CustEstVol[MonthFlow]=E11)*(CustEstVol[SAPRateCategory]=$D9)*CustEstVol[NormVol]) -> 1607542 | U12: =SUMPRODUCT((CustEstVol[MonthFlow]=U11)*(CustEstVol[SAPRateCategory]=$C9)*CustEstVol[NormVol])+SUMPRODUCT((CustEstVol[MonthFlow]=U11)*(CustEstVol[SAPRateCategory]=$D9)*CustEstVol[NormVol]) -> 123637 | V12: =SUMPRODUCT((CustEstVol[MonthFlow]=V11)*(CustEstVol[SAPRateCategory]=$C9)*CustEstVol[NormVol])+SUMPRODUCT((CustEstVol[MonthFlow]=V11)*(CustEstVol[SAPRateCategory]=$D9)*CustEstVol[NormVol]) -> 143777 | W12: =SUMPRODUCT((CustEstVol[MonthFlow]=W11)*(CustEstVol[SAPRateCategory]=$C9)*CustEstVol[NormVol])+SUMPRODUCT((CustEstVol[MonthFlow]=W11)*(CustEstVol[SAPRateCategory]=$D9)*CustEstVol[NormVol]) -> 159543
B13: Actual Volume | C13: =SUMPRODUCT((WNARevAlloc[MonthFlow]=C11)*(WNARevAlloc[SAPRateCategory]=$C9)*WNARevAlloc[Consumption])+SUMPRODUCT((WNARevAlloc[MonthFlow]=C11)*(WNARevAlloc[SAPRateCategory]=$D9)*WNARevAlloc[Consumption]) -> 1685299.421 | D13: =SUMPRODUCT((WNARevAlloc[MonthFlow]=D11)*(WNARevAlloc[SAPRateCategory]=$C9)*WNARevAlloc[Consumption])+SUMPRODUCT((WNARevAlloc[MonthFlow]=D11)*(WNARevAlloc[SAPRateCategory]=$D9)*WNARevAlloc[Consumption]) -> 1095453.07 | E13: =SUMPRODUCT((WNARevAlloc[MonthFlow]=E11)*(WNARevAlloc[SAPRateCategory]=$C9)*WNARevAlloc[Consumption])+SUMPRODUCT((WNARevAlloc[MonthFlow]=E11)*(WNARevAlloc[SAPRateCategory]=$D9)*WNARevAlloc[Consumption]) -> 916047.732 | F13: =SUMPRODUCT((WNARevAlloc[MonthFlow]=F11)*(WNARevAlloc[SAPRateCategory]=$C9)*WNARevAlloc[Consumption])+SUMPRODUCT((WNARevAlloc[MonthFlow]=F11)*(WNARevAlloc[SAPRateCategory]=$D9)*WNARevAlloc[Consumption]) -> 315355.712 | G13: =SUMPRODUCT((WNARevAlloc[MonthFlow]=G11)*(WNARevAlloc[SAPRateCategory]=$C9)*WNARevAlloc[Consumption])+SUMPRODUCT((WNARevAlloc[MonthFlow]=G11)*(WNARevAlloc[SAPRateCategory]=$D9)*WNARevAlloc[Consumption]) -> 151562.135 | H13: =SUMPRODUCT((WNARevAlloc[MonthFlow]=H11)*(WNARevAlloc[SAPRateCategory]=$C9)*WNARevAlloc[Consumption])+SUMPRODUCT((WNARevAlloc[MonthFlow]=H11)*(WNARevAlloc[SAPRateCategory]=$D9)*WNARevAlloc[Consumption]) -> 112300.829 | I13: =SUMPRODUCT((WNARevAlloc[MonthFlow]=I11)*(WNARevAlloc[SAPRateCategory]=$C9)*WNARevAlloc[Consumption])+SUMPRODUCT((WNARevAlloc[MonthFlow]=I11)*(WNARevAlloc[SAPRateCategory]=$D9)*WNARevAlloc[Consumption]) -> 123637.471 | J13: =SUMPRODUCT((WNARevAlloc[MonthFlow]=J11)*(WNARevAlloc[SAPRateCategory]=$C9)*WNARevAlloc[Consumption])+SUMPRODUCT((WNARevAlloc[MonthFlow]=J11)*(WNARevAlloc[SAPRateCategory]=$D9)*WNARevAlloc[Consumption]) -> 143776.547 | K13: =SUMPRODUCT((WNARevAlloc[MonthFlow]=K11)*(WNARevAlloc[SAPRateCategory]=$C9)*WNARevAlloc[Consumption])+SUMPRODUCT((WNARevAlloc[MonthFlow]=K11)*(WNARevAlloc[SAPRateCategory]=$D9)*WNARevAlloc[Consumption]) -> 159543.38 | L13: =SUMPRODUCT((WNARevAlloc[MonthFlow]=L11)*(WNARevAlloc[SAPRateCategory]=$C9)*WNARevAlloc[Consumption])+SUMPRODUCT((WNARevAlloc[MonthFlow]=L11)*(WNARevAlloc[SAPRateCategory]=$D9)*WNARevAlloc[Consumption]) -> 547814.788 | M13: =SUMPRODUCT((WNARevAlloc[MonthFlow]=M11)*(WNARevAlloc[SAPRateCategory]=$C9)*WNARevAlloc[Consumption])+SUMPRODUCT((WNARevAlloc[MonthFlow]=M11)*(WNARevAlloc[SAPRateCategory]=$D9)*WNARevAlloc[Consumption]) -> 1483308.154 | N13: =SUMPRODUCT((WNARevAlloc[MonthFlow]=N11)*(WNARevAlloc[SAPRateCategory]=$C9)*WNARevAlloc[Consumption])+SUMPRODUCT((WNARevAlloc[MonthFlow]=N11)*(WNARevAlloc[SAPRateCategory]=$D9)*WNARevAlloc[Consumption]) -> 2242077.148 | O13: =SUMPRODUCT((WNARevAlloc[MonthFlow]=O11)*(WNARevAlloc[SAPRateCategory]=$C9)*WNARevAlloc[Consumption])+SUMPRODUCT((WNARevAlloc[MonthFlow]=O11)*(WNARevAlloc[SAPRateCategory]=$D9)*WNARevAlloc[Consumption]) -> 2577391.144 | P13: =SUMPRODUCT((WNARevAlloc[MonthFlow]=P11)*(WNARevAlloc[SAPRateCategory]=$C9)*WNARevAlloc[Consumption])+SUMPRODUCT((WNARevAlloc[MonthFlow]=P11)*(WNARevAlloc[SAPRateCategory]=$D9)*WNARevAlloc[Consumption]) -> 1392183.989 | Q13: =SUMPRODUCT((WNARevAlloc[MonthFlow]=Q11)*(WNARevAlloc[SAPRateCategory]=$C9)*WNARevAlloc[Consumption])+SUMPRODUCT((WNARevAlloc[MonthFlow]=Q11)*(WNARevAlloc[SAPRateCategory]=$D9)*WNARevAlloc[Consumption]) -> 869638.939 | R13: =SUMPRODUCT((WNARevAlloc[MonthFlow]=R11)*(WNARevAlloc[SAPRateCategory]=$C9)*WNARevAlloc[Consumption])+SUMPRODUCT((WNARevAlloc[MonthFlow]=R11)*(WNARevAlloc[SAPRateCategory]=$D9)*WNARevAlloc[Consumption]) -> 323058.037 | S13: =SUMPRODUCT((WNARevAlloc[MonthFlow]=S11)*(WNARevAlloc[SAPRateCategory]=$C9)*WNARevAlloc[Consumption])+SUMPRODUCT((WNARevAlloc[MonthFlow]=S11)*(WNARevAlloc[SAPRateCategory]=$D9)*WNARevAlloc[Consumption]) -> 173569.928 | T13: =SUMPRODUCT((WNARevAlloc[MonthFlow]=T11)*(WNARevAlloc[SAPRateCategory]=$C9)*WNARevAlloc[Consumption])+SUMPRODUCT((WNARevAlloc[MonthFlow]=T11)*(WNARevAlloc[SAPRateCategory]=$D9)*WNARevAlloc[Consumption]) -> 127800.134
B14: Vol True-Up | C14: =C13-C12 -> -831091.579 | D14: =D13-D12 -> -1039948.93 | E14: =E13-E12 -> -691494.268
B15: ="WNAR "&$C$6&" Rates in Effect" -> WNAR S1 Rates in Effect
B16: CSWNA | C16: =SUMPRODUCT((WNARRates[BeginDate]<=C$11)*(WNARRates[EndDate]>=C$11)*(WNARRates[Region]=$C$4)*(WNARRates[CustClass]=$E$9)*(WNARRates[Period]=$C$6)*WNARRates[CSWNA]) -> -0.00792 | D16: =SUMPRODUCT((WNARRates[BeginDate]<=D$11)*(WNARRates[EndDate]>=D$11)*(WNARRates[Region]=$C$4)*(WNARRates[CustClass]=$E$9)*(WNARRates[Period]=$C$6)*WNARRates[CSWNA]) -> -0.00792 | E16: =SUMPRODUCT((WNARRates[BeginDate]<=E$11)*(WNARRates[EndDate]>=E$11)*(WNARRates[Region]=$C$4)*(WNARRates[CustClass]=$E$9)*(WNARRates[Period]=$C$6)*WNARRates[CSWNA]) -> -0.00792 | F16: =SUMPRODUCT((WNARRates[BeginDate]<=F$11)*(WNARRates[EndDate]>=F$11)*(WNARRates[Region]=$C$4)*(WNARRates[CustClass]=$E$9)*(WNARRates[Period]=$C$6)*WNARRates[AdjCSWNA]) -> 0.01137 | G16: =SUMPRODUCT((WNARRates[BeginDate]<=G$11)*(WNARRates[EndDate]>=G$11)*(WNARRates[Region]=$C$4)*(WNARRates[CustClass]=$E$9)*(WNARRates[Period]=$C$6)*WNARRates[AdjCSWNA]) -> 0.01137 | H16: =SUMPRODUCT((WNARRates[BeginDate]<=H$11)*(WNARRates[EndDate]>=H$11)*(WNARRates[Region]=$C$4)*(WNARRates[CustClass]=$E$9)*(WNARRates[Period]=$C$6)*WNARRates[AdjCSWNA]) -> 0.01137 | I16: =SUMPRODUCT((WNARRates[BeginDate]<=I$11)*(WNARRates[EndDate]>=I$11)*(WNARRates[Region]=$C$4)*(WNARRates[CustClass]=$E$9)*(WNARRates[Period]=$C$6)*WNARRates[AdjCSWNA]) -> 0.01137 | J16: =SUMPRODUCT((WNARRates[BeginDate]<=J$11)*(WNARRates[EndDate]>=J$11)*(WNARRates[Region]=$C$4)*(WNARRates[CustClass]=$E$9)*(WNARRates[Period]=$C$6)*WNARRates[AdjCSWNA]) -> 0.01137 | K16: =SUMPRODUCT((WNARRates[BeginDate]<=K$11)*(WNARRates[EndDate]>=K$11)*(WNARRates[Region]=$C$4)*(WNARRates[CustClass]=$E$9)*(WNARRates[Period]=$C$6)*WNARRates[AdjCSWNA]) -> 0.01137 | L16: =SUMPRODUCT((WNARRates[BeginDate]<=L$11)*(WNARRates[EndDate]>=L$11)*(WNARRates[Region]=$C$4)*(WNARRates[CustClass]=$E$9)*(WNARRates[Period]=$C$6)*WNARRates[AdjCSWNA]) -> 0.01137 | M16: =SUMPRODUCT((WNARRates[BeginDate]<=M$11)*(WNARRates[EndDate]>=M$11)*(WNARRates[Region]=$C$4)*(WNARRates[CustClass]=$E$9)*(WNARRates[Period]=$C$6)*WNARRates[AdjCSWNA]) -> 0.01137 | N16: =SUMPRODUCT((WNARRates[BeginDate]<=N$11)*(WNARRates[EndDate]>=N$11)*(WNARRates[Region]=$C$4)*(WNARRates[CustClass]=$E$9)*(WNARRates[Period]=$C$6)*WNARRates[AdjCSWNA]) -> 0.01137 | O16: =SUMPRODUCT((WNARRates[BeginDate]<=O$11)*(WNARRates[EndDate]>=O$11)*(WNARRates[Region]=$C$4)*(WNARRates[CustClass]=$E$9)*(WNARRates[Period]=$C$6)*WNARRates[AdjCSWNA]) -> 0.01137 | P16: =SUMPRODUCT((WNARRates[BeginDate]<=P$11)*(WNARRates[EndDate]>=P$11)*(WNARRates[Region]=$C$4)*(WNARRates[CustClass]=$E$9)*(WNARRates[Period]=$C$6)*WNARRates[AdjCSWNA]) -> 0.01137 | Q16: =SUMPRODUCT((WNARRates[BeginDate]<=Q$11)*(WNARRates[EndDate]>=Q$11)*(WNARRates[Region]=$C$4)*(WNARRates[CustClass]=$E$9)*(WNARRates[Period]=$C$6)*WNARRates[AdjCSWNA]) -> 0.01137 | R16: =SUMPRODUCT((WNARRates[BeginDate]<=R$11)*(WNARRates[EndDate]>=R$11)*(WNARRates[Region]=$C$4)*(WNARRates[CustClass]=$E$9)*(WNARRates[Period]=$C$6)*WNARRates[AdjCSWNA]) -> 0.01137 | S16: =SUMPRODUCT((WNARRates[BeginDate]<=S$11)*(WNARRates[EndDate]>=S$11)*(WNARRates[Region]=$C$4)*(WNARRates[CustClass]=$E$9)*(WNARRates[Period]=$C$6)*WNARRates[AdjCSWNA]) -> 0.01137 | T16: =SUMPRODUCT((WNARRates[BeginDate]<=T$11)*(WNARRates[EndDate]>=T$11)*(WNARRates[Region]=$C$4)*(WNARRates[CustClass]=$E$9)*(WNARRates[Period]=$C$6)*WNARRates[AdjCSWNA]) -> 0.01137 | U16: =SUMPRODUCT((WNARRates[BeginDate]<=U$11)*(WNARRates[EndDate]>=U$11)*(WNARRates[Region]=$C$4)*(WNARRates[CustClass]=$E$9)*(WNARRates[Period]=$C$6)*WNARRates[AdjCSWNA]) -> 0.01137 | V16: =SUMPRODUCT((WNARRates[BeginDate]<=V$11)*(WNARRates[EndDate]>=V$11)*(WNARRates[Region]=$C$4)*(WNARRates[CustClass]=$E$9)*(WNARRates[Period]=$C$6)*WNARRates[AdjCSWNA]) -> 0.01137 | W16: =SUMPRODUCT((WNARRates[BeginDate]<=W$11)*(WNARRates[EndDate]>=W$11)*(WNARRates[Region]=$C$4)*(WNARRates[CustClass]=$E$9)*(WNARRates[Period]=$C$6)*WNARRates[AdjCSWNA]) -> 0.01137
B17: SRR | C17: =SUMPRODUCT((WNARRates[BeginDate]<=C$11)*(WNARRates[EndDate]>=C$11)*(WNARRates[Region]=$C$4)*(WNARRates[CustClass]=$E$9)*(WNARRates[Period]=$C$6)*WNARRates[ARR]) -> -0.02679 | D17: =SUMPRODUCT((WNARRates[BeginDate]<=D$11)*(WNARRates[EndDate]>=D$11)*(WNARRates[Region]=$C$4)*(WNARRates[CustClass]=$E$9)*(WNARRates[Period]=$C$6)*WNARRates[ARR]) -> -0.02679 | E17: =SUMPRODUCT((WNARRates[BeginDate]<=E$11)*(WNARRates[EndDate]>=E$11)*(WNARRates[Region]=$C$4)*(WNARRates[CustClass]=$E$9)*(WNARRates[Period]=$C$6)*WNARRates[ARR]) -> -0.02679 | F17: =SUMPRODUCT((WNARRates[BeginDate]<=F$11)*(WNARRates[EndDate]>=F$11)*(WNARRates[Region]=$C$4)*(WNARRates[CustClass]=$E$9)*(WNARRates[Period]=$C$6)*WNARRates[AdjSRR]) -> 0.00133 | G17: =SUMPRODUCT((WNARRates[BeginDate]<=G$11)*(WNARRates[EndDate]>=G$11)*(WNARRates[Region]=$C$4)*(WNARRates[CustClass]=$E$9)*(WNARRates[Period]=$C$6)*WNARRates[AdjSRR]) -> 0.00133 | H17: =SUMPRODUCT((WNARRates[BeginDate]<=H$11)*(WNARRates[EndDate]>=H$11)*(WNARRates[Region]=$C$4)*(WNARRates[CustClass]=$E$9)*(WNARRates[Period]=$C$6)*WNARRates[AdjSRR]) -> 0.00133 | I17: =SUMPRODUCT((WNARRates[BeginDate]<=I$11)*(WNARRates[EndDate]>=I$11)*(WNARRates[Region]=$C$4)*(WNARRates[CustClass]=$E$9)*(WNARRates[Period]=$C$6)*WNARRates[AdjSRR]) -> 0.00133 | J17: =SUMPRODUCT((WNARRates[BeginDate]<=J$11)*(WNARRates[EndDate]>=J$11)*(WNARRates[Region]=$C$4)*(WNARRates[CustClass]=$E$9)*(WNARRates[Period]=$C$6)*WNARRates[AdjSRR]) -> 0.00133 | K17: =SUMPRODUCT((WNARRates[BeginDate]<=K$11)*(WNARRates[EndDate]>=K$11)*(WNARRates[Region]=$C$4)*(WNARRates[CustClass]=$E$9)*(WNARRates[Period]=$C$6)*WNARRates[AdjSRR]) -> 0.00133 | L17: =SUMPRODUCT((WNARRates[BeginDate]<=L$11)*(WNARRates[EndDate]>=L$11)*(WNARRates[Region]=$C$4)*(WNARRates[CustClass]=$E$9)*(WNARRates[Period]=$C$6)*WNARRates[AdjSRR]) -> 0.00133 | M17: =SUMPRODUCT((WNARRates[BeginDate]<=M$11)*(WNARRates[EndDate]>=M$11)*(WNARRates[Region]=$C$4)*(WNARRates[CustClass]=$E$9)*(WNARRates[Period]=$C$6)*WNARRates[AdjSRR]) -> 0.00133 | N17: =SUMPRODUCT((WNARRates[BeginDate]<=N$11)*(WNARRates[EndDate]>=N$11)*(WNARRates[Region]=$C$4)*(WNARRates[CustClass]=$E$9)*(WNARRates[Period]=$C$6)*WNARRates[AdjSRR]) -> 0.00133 | O17: =SUMPRODUCT((WNARRates[BeginDate]<=O$11)*(WNARRates[EndDate]>=O$11)*(WNARRates[Region]=$C$4)*(WNARRates[CustClass]=$E$9)*(WNARRates[Period]=$C$6)*WNARRates[AdjSRR]) -> 0.00133 | P17: =SUMPRODUCT((WNARRates[BeginDate]<=P$11)*(WNARRates[EndDate]>=P$11)*(WNARRates[Region]=$C$4)*(WNARRates[CustClass]=$E$9)*(WNARRates[Period]=$C$6)*WNARRates[AdjSRR]) -> 0.00133 | Q17: =SUMPRODUCT((WNARRates[BeginDate]<=Q$11)*(WNARRates[EndDate]>=Q$11)*(WNARRates[Region]=$C$4)*(WNARRates[CustClass]=$E$9)*(WNARRates[Period]=$C$6)*WNARRates[AdjSRR]) -> 0.00133 | R17: =SUMPRODUCT((WNARRates[BeginDate]<=R$11)*(WNARRates[EndDate]>=R$11)*(WNARRates[Region]=$C$4)*(WNARRates[CustClass]=$E$9)*(WNARRates[Period]=$C$6)*WNARRates[AdjSRR]) -> 0.00133 | S17: =SUMPRODUCT((WNARRates[BeginDate]<=S$11)*(WNARRates[EndDate]>=S$11)*(WNARRates[Region]=$C$4)*(WNARRates[CustClass]=$E$9)*(WNARRates[Period]=$C$6)*WNARRates[AdjSRR]) -> 0.00133 | T17: =SUMPRODUCT((WNARRates[BeginDate]<=T$11)*(WNARRates[EndDate]>=T$11)*(WNARRates[Region]=$C$4)*(WNARRates[CustClass]=$E$9)*(WNARRates[Period]=$C$6)*WNARRates[AdjSRR]) -> 0.00133 | U17: =SUMPRODUCT((WNARRates[BeginDate]<=U$11)*(WNARRates[EndDate]>=U$11)*(WNARRates[Region]=$C$4)*(WNARRates[CustClass]=$E$9)*(WNARRates[Period]=$C$6)*WNARRates[AdjSRR]) -> 0.00133 | V17: =SUMPRODUCT((WNARRates[BeginDate]<=V$11)*(WNARRates[EndDate]>=V$11)*(WNARRates[Region]=$C$4)*(WNARRates[CustClass]=$E$9)*(WNARRates[Period]=$C$6)*WNARRates[AdjSRR]) -> 0.00133 | W17: =SUMPRODUCT((WNARRates[BeginDate]<=W$11)*(WNARRates[EndDate]>=W$11)*(WNARRates[Region]=$C$4)*(WNARRates[CustClass]=$E$9)*(WNARRates[Period]=$C$6)*WNARRates[AdjSRR]) -> 0.00133
B18: Total | C18: =SUM(C16:C17) -> -0.03471 | D18: =SUM(D16:D17) -> -0.03471 | E18: -0.03471 | F18: 0.0127 | G18: 0.0127 | H18: 0.0127 | I18: 0.0127 | J18: 0.0127 | K18: 0.0127 | L18: 0.0127 | M18: 0.0127 | N18: 0.0127 | O18: =SUM(O16:O17) -> 0.0127 | P18: 0.0127 | Q18: 0.0127 | R18: 0.0127 | S18: 0.0127 | T18: 0.0127 | U18: 0.0127 | V18: 0.0127 | W18: 0.0127
B19: CSWNA and SRR Revenue for Period
B20: CSWNA $ | F20: =IF($C$6="S1",SUMPRODUCT((WNARevAlloc[MonthFlow]=F$11)*(WNARevAlloc[Region]=$C$4)*(WNARevAlloc[CustClass]=$E$9)*WNARevAlloc[AdjCSWNAS1Rev]),SUMPRODUCT((WNARevAlloc[MonthFlow]=F$11)*(WNARevAlloc[Region]=$C$4)*(WNARevAlloc[CustClass]=$E$9)*WNARevAlloc[AdjCSWNAS2Rev])) -> 3566.377409 | G20: =IF($C$6="S1",SUMPRODUCT((WNARevAlloc[MonthFlow]=G$11)*(WNARevAlloc[Region]=$C$4)*(WNARevAlloc[CustClass]=$E$9)*WNARevAlloc[AdjCSWNAS1Rev]),SUMPRODUCT((WNARevAlloc[MonthFlow]=G$11)*(WNARevAlloc[Region]=$C$4)*(WNARevAlloc[CustClass]=$E$9)*WNARevAlloc[AdjCSWNAS2Rev])) -> 1703.38407 | H20: =IF($C$6="S1",SUMPRODUCT((WNARevAlloc[MonthFlow]=H$11)*(WNARevAlloc[Region]=$C$4)*(WNARevAlloc[CustClass]=$E$9)*WNARevAlloc[AdjCSWNAS1Rev]),SUMPRODUCT((WNARevAlloc[MonthFlow]=H$11)*(WNARevAlloc[Region]=$C$4)*(WNARevAlloc[CustClass]=$E$9)*WNARevAlloc[AdjCSWNAS2Rev])) -> 1278.494516 | I20: =IF($C$6="S1",SUMPRODUCT((WNARevAlloc[MonthFlow]=I$11)*(WNARevAlloc[Region]=$C$4)*(WNARevAlloc[CustClass]=$E$9)*WNARevAlloc[AdjCSWNAS1Rev]),SUMPRODUCT((WNARevAlloc[MonthFlow]=I$11)*(WNARevAlloc[Region]=$C$4)*(WNARevAlloc[CustClass]=$E$9)*WNARevAlloc[AdjCSWNAS2Rev])) -> 1386.714689 | J20: =IF($C$6="S1",SUMPRODUCT((WNARevAlloc[MonthFlow]=J$11)*(WNARevAlloc[Region]=$C$4)*(WNARevAlloc[CustClass]=$E$9)*WNARevAlloc[AdjCSWNAS1Rev]),SUMPRODUCT((WNARevAlloc[MonthFlow]=J$11)*(WNARevAlloc[Region]=$C$4)*(WNARevAlloc[CustClass]=$E$9)*WNARevAlloc[AdjCSWNAS2Rev])) -> 1475.211445 | K20: =IF($C$6="S1",SUMPRODUCT((WNARevAlloc[MonthFlow]=K$11)*(WNARevAlloc[Region]=$C$4)*(WNARevAlloc[CustClass]=$E$9)*WNARevAlloc[AdjCSWNAS1Rev]),SUMPRODUCT((WNARevAlloc[MonthFlow]=K$11)*(WNARevAlloc[Region]=$C$4)*(WNARevAlloc[CustClass]=$E$9)*WNARevAlloc[AdjCSWNAS2Rev])) -> 1685.68558 | L20: =IF($C$6="S1",SUMPRODUCT((WNARevAlloc[MonthFlow]=L$11)*(WNARevAlloc[Region]=$C$4)*(WNARevAlloc[CustClass]=$E$9)*WNARevAlloc[AdjCSWNAS1Rev]),SUMPRODUCT((WNARevAlloc[MonthFlow]=L$11)*(WNARevAlloc[Region]=$C$4)*(WNARevAlloc[CustClass]=$E$9)*WNARevAlloc[AdjCSWNAS2Rev])) -> 6037.861438 | M20: =IF($C$6="S1",SUMPRODUCT((WNARevAlloc[MonthFlow]=M$11)*(WNARevAlloc[Region]=$C$4)*(WNARevAlloc[CustClass]=$E$9)*WNARevAlloc[AdjCSWNAS1Rev]),SUMPRODUCT((WNARevAlloc[MonthFlow]=M$11)*(WNARevAlloc[Region]=$C$4)*(WNARevAlloc[CustClass]=$E$9)*WNARevAlloc[AdjCSWNAS2Rev])) -> 16831.14157 | N20: =IF($C$6="S1",SUMPRODUCT((WNARevAlloc[MonthFlow]=N$11)*(WNARevAlloc[Region]=$C$4)*(WNARevAlloc[CustClass]=$E$9)*WNARevAlloc[AdjCSWNAS1Rev]),SUMPRODUCT((WNARevAlloc[MonthFlow]=N$11)*(WNARevAlloc[Region]=$C$4)*(WNARevAlloc[CustClass]=$E$9)*WNARevAlloc[AdjCSWNAS2Rev])) -> 25663.96932 | O20: =IF($C$6="S1",SUMPRODUCT((WNARevAlloc[MonthFlow]=O$11)*(WNARevAlloc[Region]=$C$4)*(WNARevAlloc[CustClass]=$E$9)*WNARevAlloc[AdjCSWNAS1Rev]),SUMPRODUCT((WNARevAlloc[MonthFlow]=O$11)*(WNARevAlloc[Region]=$C$4)*(WNARevAlloc[CustClass]=$E$9)*WNARevAlloc[AdjCSWNAS2Rev])) -> 29298.2593 | P20: =IF($C$6="S1",SUMPRODUCT((WNARevAlloc[MonthFlow]=P$11)*(WNARevAlloc[Region]=$C$4)*(WNARevAlloc[CustClass]=$E$9)*WNARevAlloc[AdjCSWNAS1Rev]),SUMPRODUCT((WNARevAlloc[MonthFlow]=P$11)*(WNARevAlloc[Region]=$C$4)*(WNARevAlloc[CustClass]=$E$9)*WNARevAlloc[AdjCSWNAS2Rev])) -> 15808.45376 | Q20: =IF($C$6="S1",SUMPRODUCT((WNARevAlloc[MonthFlow]=Q$11)*(WNARevAlloc[Region]=$C$4)*(WNARevAlloc[CustClass]=$E$9)*WNARevAlloc[AdjCSWNAS1Rev]),SUMPRODUCT((WNARevAlloc[MonthFlow]=Q$11)*(WNARevAlloc[Region]=$C$4)*(WNARevAlloc[CustClass]=$E$9)*WNARevAlloc[AdjCSWNAS2Rev])) -> 9887.822466 | R20: =IF($C$6="S1",SUMPRODUCT((WNARevAlloc[MonthFlow]=R$11)*(WNARevAlloc[Region]=$C$4)*(WNARevAlloc[CustClass]=$E$9)*WNARevAlloc[AdjCSWNAS1Rev]),SUMPRODUCT((WNARevAlloc[MonthFlow]=R$11)*(WNARevAlloc[Region]=$C$4)*(WNARevAlloc[CustClass]=$E$9)*WNARevAlloc[AdjCSWNAS2Rev])) -> 3660.302635 | S20: =IF($C$6="S1",SUMPRODUCT((WNARevAlloc[MonthFlow]=S$11)*(WNARevAlloc[Region]=$C$4)*(WNARevAlloc[CustClass]=$E$9)*WNARevAlloc[AdjCSWNAS1Rev]),SUMPRODUCT((WNARevAlloc[MonthFlow]=S$11)*(WNARevAlloc[Region]=$C$4)*(WNARevAlloc[CustClass]=$E$9)*WNARevAlloc[AdjCSWNAS2Rev])) -> 1970.969681 | T20: =IF($C$6="S1",SUMPRODUCT((WNARevAlloc[MonthFlow]=T$11)*(WNARevAlloc[Region]=$C$4)*(WNARevAlloc[CustClass]=$E$9)*WNARevAlloc[AdjCSWNAS1Rev]),SUMPRODUCT((WNARevAlloc[MonthFlow]=T$11)*(WNARevAlloc[Region]=$C$4)*(WNARevAlloc[CustClass]=$E$9)*WNARevAlloc[AdjCSWNAS2Rev])) -> 1466.987231 | U20: =ROUND(U$12*U16,0) -> 1406 | V20: 1635 | W20: 1814
B21: SRR $ | C21: =ROUND(C14*C18,2) -> 28847.19 | D21: =ROUND(D14*D18,2) -> 36096.63 | E21: =ROUND(E14*E18,2) -> 24001.77 | F21: =IF($C$6="S1",SUMPRODUCT((WNARevAlloc[MonthFlow]=F$11)*(WNARevAlloc[Region]=$C$4)*(WNARevAlloc[CustClass]=$E$9)*WNARevAlloc[AdjSRRS1Rev]),SUMPRODUCT((WNARevAlloc[MonthFlow]=F$11)*(WNARevAlloc[Region]=$C$4)*(WNARevAlloc[CustClass]=$E$9)*WNARevAlloc[AdjSRRS2Rev])) -> 390.4319832 | G21: =IF($C$6="S1",SUMPRODUCT((WNARevAlloc[MonthFlow]=G$11)*(WNARevAlloc[Region]=$C$4)*(WNARevAlloc[CustClass]=$E$9)*WNARevAlloc[AdjSRRS1Rev]),SUMPRODUCT((WNARevAlloc[MonthFlow]=G$11)*(WNARevAlloc[Region]=$C$4)*(WNARevAlloc[CustClass]=$E$9)*WNARevAlloc[AdjSRRS2Rev])) -> 172.4309244 | H21: =IF($C$6="S1",SUMPRODUCT((WNARevAlloc[MonthFlow]=H$11)*(WNARevAlloc[Region]=$C$4)*(WNARevAlloc[CustClass]=$E$9)*WNARevAlloc[AdjSRRS1Rev]),SUMPRODUCT((WNARevAlloc[MonthFlow]=H$11)*(WNARevAlloc[Region]=$C$4)*(WNARevAlloc[CustClass]=$E$9)*WNARevAlloc[AdjSRRS2Rev])) -> 151.5175505 | I21: =IF($C$6="S1",SUMPRODUCT((WNARevAlloc[MonthFlow]=I$11)*(WNARevAlloc[Region]=$C$4)*(WNARevAlloc[CustClass]=$E$9)*WNARevAlloc[AdjSRRS1Rev]),SUMPRODUCT((WNARevAlloc[MonthFlow]=I$11)*(WNARevAlloc[Region]=$C$4)*(WNARevAlloc[CustClass]=$E$9)*WNARevAlloc[AdjSRRS2Rev])) -> 136.1344163 | J21: =IF($C$6="S1",SUMPRODUCT((WNARevAlloc[MonthFlow]=J$11)*(WNARevAlloc[Region]=$C$4)*(WNARevAlloc[CustClass]=$E$9)*WNARevAlloc[AdjSRRS1Rev]),SUMPRODUCT((WNARevAlloc[MonthFlow]=J$11)*(WNARevAlloc[Region]=$C$4)*(WNARevAlloc[CustClass]=$E$9)*WNARevAlloc[AdjSRRS2Rev])) -> -42.11056502 | K21: =IF($C$6="S1",SUMPRODUCT((WNARevAlloc[MonthFlow]=K$11)*(WNARevAlloc[Region]=$C$4)*(WNARevAlloc[CustClass]=$E$9)*WNARevAlloc[AdjSRRS1Rev]),SUMPRODUCT((WNARevAlloc[MonthFlow]=K$11)*(WNARevAlloc[Region]=$C$4)*(WNARevAlloc[CustClass]=$E$9)*WNARevAlloc[AdjSRRS2Rev])) -> 26.499884 | L21: =IF($C$6="S1",SUMPRODUCT((WNARevAlloc[MonthFlow]=L$11)*(WNARevAlloc[Region]=$C$4)*(WNARevAlloc[CustClass]=$E$9)*WNARevAlloc[AdjSRRS1Rev]),SUMPRODUCT((WNARevAlloc[MonthFlow]=L$11)*(WNARevAlloc[Region]=$C$4)*(WNARevAlloc[CustClass]=$E$9)*WNARevAlloc[AdjSRRS2Rev])) -> 450.5527591 | M21: =IF($C$6="S1",SUMPRODUCT((WNARevAlloc[MonthFlow]=M$11)*(WNARevAlloc[Region]=$C$4)*(WNARevAlloc[CustClass]=$E$9)*WNARevAlloc[AdjSRRS1Rev]),SUMPRODUCT((WNARevAlloc[MonthFlow]=M$11)*(WNARevAlloc[Region]=$C$4)*(WNARevAlloc[CustClass]=$E$9)*WNARevAlloc[AdjSRRS2Rev])) -> 1923.017795 | N21: =IF($C$6="S1",SUMPRODUCT((WNARevAlloc[MonthFlow]=N$11)*(WNARevAlloc[Region]=$C$4)*(WNARevAlloc[CustClass]=$E$9)*WNARevAlloc[AdjSRRS1Rev]),SUMPRODUCT((WNARevAlloc[MonthFlow]=N$11)*(WNARevAlloc[Region]=$C$4)*(WNARevAlloc[CustClass]=$E$9)*WNARevAlloc[AdjSRRS2Rev])) -> 3231.791297 | O21: =IF($C$6="S1",SUMPRODUCT((WNARevAlloc[MonthFlow]=O$11)*(WNARevAlloc[Region]=$C$4)*(WNARevAlloc[CustClass]=$E$9)*WNARevAlloc[AdjSRRS1Rev]),SUMPRODUCT((WNARevAlloc[MonthFlow]=O$11)*(WNARevAlloc[Region]=$C$4)*(WNARevAlloc[CustClass]=$E$9)*WNARevAlloc[AdjSRRS2Rev])) -> 3418.1443 | P21: =IF($C$6="S1",SUMPRODUCT((WNARevAlloc[MonthFlow]=P$11)*(WNARevAlloc[Region]=$C$4)*(WNARevAlloc[CustClass]=$E$9)*WNARevAlloc[AdjSRRS1Rev]),SUMPRODUCT((WNARevAlloc[MonthFlow]=P$11)*(WNARevAlloc[Region]=$C$4)*(WNARevAlloc[CustClass]=$E$9)*WNARevAlloc[AdjSRRS2Rev])) -> 1821.490087 | Q21: =IF($C$6="S1",SUMPRODUCT((WNARevAlloc[MonthFlow]=Q$11)*(WNARevAlloc[Region]=$C$4)*(WNARevAlloc[CustClass]=$E$9)*WNARevAlloc[AdjSRRS1Rev]),SUMPRODUCT((WNARevAlloc[MonthFlow]=Q$11)*(WNARevAlloc[Region]=$C$4)*(WNARevAlloc[CustClass]=$E$9)*WNARevAlloc[AdjSRRS2Rev])) -> 1156.623033 | R21: =IF($C$6="S1",SUMPRODUCT((WNARevAlloc[MonthFlow]=R$11)*(WNARevAlloc[Region]=$C$4)*(WNARevAlloc[CustClass]=$E$9)*WNARevAlloc[AdjSRRS1Rev]),SUMPRODUCT((WNARevAlloc[MonthFlow]=R$11)*(WNARevAlloc[Region]=$C$4)*(WNARevAlloc[CustClass]=$E$9)*WNARevAlloc[AdjSRRS2Rev])) -> 410.9457433 | S21: =IF($C$6="S1",SUMPRODUCT((WNARevAlloc[MonthFlow]=S$11)*(WNARevAlloc[Region]=$C$4)*(WNARevAlloc[CustClass]=$E$9)*WNARevAlloc[AdjSRRS1Rev]),SUMPRODUCT((WNARevAlloc[MonthFlow]=S$11)*(WNARevAlloc[Region]=$C$4)*(WNARevAlloc[CustClass]=$E$9)*WNARevAlloc[AdjSRRS2Rev])) -> 226.9334002 | T21: =IF($C$6="S1",SUMPRODUCT((WNARevAlloc[MonthFlow]=T$11)*(WNARevAlloc[Region]=$C$4)*(WNARevAlloc[CustClass]=$E$9)*WNARevAlloc[AdjSRRS1Rev]),SUMPRODUCT((WNARevAlloc[MonthFlow]=T$11)*(WNARevAlloc[Region]=$C$4)*(WNARevAlloc[CustClass]=$E$9)*WNARevAlloc[AdjSRRS2Rev])) -> 189.8571803 | U21: 164 | V21: 191 | W21: 212
B22: Total True-Up | C22: =SUM(C21:E21) -> 88945.59 | D22: Enter in VolTrueUp Table
B24: SAP Rate Category | C24: KMGC_SFGS | D24: NMGC_SFGS | E24: SGS
B25: Small Comm. | C25: True-Up Period | F25: Actual Period* | U25: Projected Period
B26: Month | C26: =C7 -> 45292 | D26: =EDATE(C26,1) -> 45323 | E26: =EDATE(D26,1) -> 45352 | F26: 45383 | G26: 45413 | H26: 45444 | I26: 45474 | J26: 45505 | K26: 45536 | L26: 45566 | M26: 45597 | N26: 45627 | O26: =EDATE(N26,1) -> 45658 | P26: =EDATE(O26,1) -> 45689 | Q26: =EDATE(P26,1) -> 45717 | R26: =EDATE(Q26,1) -> 45748 | S26: =EDATE(R26,1) -> 45778 | T26: =EDATE(S26,1) -> 45809 | U26: =EDATE(T26,1) -> 45839 | V26: =EDATE(U26,1) -> 45870 | W26: =EDATE(V26,1) -> 45901
B27: Est. Volume | C27: =SUMPRODUCT((CustEstVol[MonthFlow]=C26)*(CustEstVol[SAPRateCategory]=$C24)*CustEstVol[NormVol])+SUMPRODUCT((CustEstVol[MonthFlow]=C26)*(CustEstVol[SAPRateCategory]=$D24)*CustEstVol[NormVol]) -> 846654 | D27: =SUMPRODUCT((CustEstVol[MonthFlow]=D26)*(CustEstVol[SAPRateCategory]=$C24)*CustEstVol[NormVol])+SUMPRODUCT((CustEstVol[MonthFlow]=D26)*(CustEstVol[SAPRateCategory]=$D24)*CustEstVol[NormVol]) -> 696626 | E27: =SUMPRODUCT((CustEstVol[MonthFlow]=E26)*(CustEstVol[SAPRateCategory]=$C24)*CustEstVol[NormVol])+SUMPRODUCT((CustEstVol[MonthFlow]=E26)*(CustEstVol[SAPRateCategory]=$D24)*CustEstVol[NormVol]) -> 511849 | U27: =SUMPRODUCT((CustEstVol[MonthFlow]=U26)*(CustEstVol[SAPRateCategory]=$C24)*CustEstVol[NormVol])+SUMPRODUCT((CustEstVol[MonthFlow]=U26)*(CustEstVol[SAPRateCategory]=$D24)*CustEstVol[NormVol]) -> 54587 | V27: =SUMPRODUCT((CustEstVol[MonthFlow]=V26)*(CustEstVol[SAPRateCategory]=$C24)*CustEstVol[NormVol])+SUMPRODUCT((CustEstVol[MonthFlow]=V26)*(CustEstVol[SAPRateCategory]=$D24)*CustEstVol[NormVol]) -> 64985 | W27: =SUMPRODUCT((CustEstVol[MonthFlow]=W26)*(CustEstVol[SAPRateCategory]=$C24)*CustEstVol[NormVol])+SUMPRODUCT((CustEstVol[MonthFlow]=W26)*(CustEstVol[SAPRateCategory]=$D24)*CustEstVol[NormVol]) -> 61465
B28: Actual Volume | C28: =SUMPRODUCT((WNARevAlloc[MonthFlow]=C26)*(WNARevAlloc[SAPRateCategory]=$C24)*WNARevAlloc[Consumption])+SUMPRODUCT((WNARevAlloc[MonthFlow]=C26)*(WNARevAlloc[SAPRateCategory]=$D24)*WNARevAlloc[Consumption]) -> 532153.724 | D28: =SUMPRODUCT((WNARevAlloc[MonthFlow]=D26)*(WNARevAlloc[SAPRateCategory]=$C24)*WNARevAlloc[Consumption])+SUMPRODUCT((WNARevAlloc[MonthFlow]=D26)*(WNARevAlloc[SAPRateCategory]=$D24)*WNARevAlloc[Consumption]) -> 361049.735 | E28: =SUMPRODUCT((WNARevAlloc[MonthFlow]=E26)*(WNARevAlloc[SAPRateCategory]=$C24)*WNARevAlloc[Consumption])+SUMPRODUCT((WNARevAlloc[MonthFlow]=E26)*(WNARevAlloc[SAPRateCategory]=$D24)*WNARevAlloc[Consumption]) -> 287861.789 | F28: =SUMPRODUCT((WNARevAlloc[MonthFlow]=F26)*(WNARevAlloc[SAPRateCategory]=$C24)*WNARevAlloc[Consumption])+SUMPRODUCT((WNARevAlloc[MonthFlow]=F26)*(WNARevAlloc[SAPRateCategory]=$D24)*WNARevAlloc[Consumption]) -> 116651.241 | G28: =SUMPRODUCT((WNARevAlloc[MonthFlow]=G26)*(WNARevAlloc[SAPRateCategory]=$C24)*WNARevAlloc[Consumption])+SUMPRODUCT((WNARevAlloc[MonthFlow]=G26)*(WNARevAlloc[SAPRateCategory]=$D24)*WNARevAlloc[Consumption]) -> 58316.356 | H28: =SUMPRODUCT((WNARevAlloc[MonthFlow]=H26)*(WNARevAlloc[SAPRateCategory]=$C24)*WNARevAlloc[Consumption])+SUMPRODUCT((WNARevAlloc[MonthFlow]=H26)*(WNARevAlloc[SAPRateCategory]=$D24)*WNARevAlloc[Consumption]) -> 45568.258 | I28: =SUMPRODUCT((WNARevAlloc[MonthFlow]=I26)*(WNARevAlloc[SAPRateCategory]=$C24)*WNARevAlloc[Consumption])+SUMPRODUCT((WNARevAlloc[MonthFlow]=I26)*(WNARevAlloc[SAPRateCategory]=$D24)*WNARevAlloc[Consumption]) -> 54586.802 | J28: =SUMPRODUCT((WNARevAlloc[MonthFlow]=J26)*(WNARevAlloc[SAPRateCategory]=$C24)*WNARevAlloc[Consumption])+SUMPRODUCT((WNARevAlloc[MonthFlow]=J26)*(WNARevAlloc[SAPRateCategory]=$D24)*WNARevAlloc[Consumption]) -> 64984.565 | K28: =SUMPRODUCT((WNARevAlloc[MonthFlow]=K26)*(WNARevAlloc[SAPRateCategory]=$C24)*WNARevAlloc[Consumption])+SUMPRODUCT((WNARevAlloc[MonthFlow]=K26)*(WNARevAlloc[SAPRateCategory]=$D24)*WNARevAlloc[Consumption]) -> 61465.108 | L28: =SUMPRODUCT((WNARevAlloc[MonthFlow]=L26)*(WNARevAlloc[SAPRateCategory]=$C24)*WNARevAlloc[Consumption])+SUMPRODUCT((WNARevAlloc[MonthFlow]=L26)*(WNARevAlloc[SAPRateCategory]=$D24)*WNARevAlloc[Consumption]) -> 160109.919 | M28: =SUMPRODUCT((WNARevAlloc[MonthFlow]=M26)*(WNARevAlloc[SAPRateCategory]=$C24)*WNARevAlloc[Consumption])+SUMPRODUCT((WNARevAlloc[MonthFlow]=M26)*(WNARevAlloc[SAPRateCategory]=$D24)*WNARevAlloc[Consumption]) -> 463340.292 | N28: =SUMPRODUCT((WNARevAlloc[MonthFlow]=N26)*(WNARevAlloc[SAPRateCategory]=$C24)*WNARevAlloc[Consumption])+SUMPRODUCT((WNARevAlloc[MonthFlow]=N26)*(WNARevAlloc[SAPRateCategory]=$D24)*WNARevAlloc[Consumption]) -> 736873.303 | O28: =SUMPRODUCT((WNARevAlloc[MonthFlow]=O26)*(WNARevAlloc[SAPRateCategory]=$C24)*WNARevAlloc[Consumption])+SUMPRODUCT((WNARevAlloc[MonthFlow]=O26)*(WNARevAlloc[SAPRateCategory]=$D24)*WNARevAlloc[Consumption]) -> 866237.742 | P28: =SUMPRODUCT((WNARevAlloc[MonthFlow]=P26)*(WNARevAlloc[SAPRateCategory]=$C24)*WNARevAlloc[Consumption])+SUMPRODUCT((WNARevAlloc[MonthFlow]=P26)*(WNARevAlloc[SAPRateCategory]=$D24)*WNARevAlloc[Consumption]) -> 455684.901 | Q28: =SUMPRODUCT((WNARevAlloc[MonthFlow]=Q26)*(WNARevAlloc[SAPRateCategory]=$C24)*WNARevAlloc[Consumption])+SUMPRODUCT((WNARevAlloc[MonthFlow]=Q26)*(WNARevAlloc[SAPRateCategory]=$D24)*WNARevAlloc[Consumption]) -> 274580.871 | R28: =SUMPRODUCT((WNARevAlloc[MonthFlow]=R26)*(WNARevAlloc[SAPRateCategory]=$C24)*WNARevAlloc[Consumption])+SUMPRODUCT((WNARevAlloc[MonthFlow]=R26)*(WNARevAlloc[SAPRateCategory]=$D24)*WNARevAlloc[Consumption]) -> 108468.126 | S28: =SUMPRODUCT((WNARevAlloc[MonthFlow]=S26)*(WNARevAlloc[SAPRateCategory]=$C24)*WNARevAlloc[Consumption])+SUMPRODUCT((WNARevAlloc[MonthFlow]=S26)*(WNARevAlloc[SAPRateCategory]=$D24)*WNARevAlloc[Consumption]) -> 68640.742 | T28: =SUMPRODUCT((WNARevAlloc[MonthFlow]=T26)*(WNARevAlloc[SAPRateCategory]=$C24)*WNARevAlloc[Consumption])+SUMPRODUCT((WNARevAlloc[MonthFlow]=T26)*(WNARevAlloc[SAPRateCategory]=$D24)*WNARevAlloc[Consumption]) -> 53504.96
B29: Vol True-Up | C29: =C28-C27 -> -314500.276 | D29: =D28-D27 -> -335576.265 | E29: =E28-E27 -> -223987.211
B30: ="WNAR "&$C$6&" Rates in Effect" -> WNAR S1 Rates in Effect
B31: CSWNA | C31: =SUMPRODUCT((WNARRates[BeginDate]<=C$26)*(WNARRates[EndDate]>=C$26)*(WNARRates[Region]=$C$4)*(WNARRates[CustClass]=$E$24)*(WNARRates[Period]=$C$6)*WNARRates[CSWNA]) -> -0.00333 | D31: =SUMPRODUCT((WNARRates[BeginDate]<=D$26)*(WNARRates[EndDate]>=D$26)*(WNARRates[Region]=$C$4)*(WNARRates[CustClass]=$E$24)*(WNARRates[Period]=$C$6)*WNARRates[CSWNA]) -> -0.00333 | E31: =SUMPRODUCT((WNARRates[BeginDate]<=E$26)*(WNARRates[EndDate]>=E$26)*(WNARRates[Region]=$C$4)*(WNARRates[CustClass]=$E$24)*(WNARRates[Period]=$C$6)*WNARRates[CSWNA]) -> -0.00333 | F31: =SUMPRODUCT((WNARRates[BeginDate]<=F$26)*(WNARRates[EndDate]>=F$26)*(WNARRates[Region]=$C$4)*(WNARRates[CustClass]=$E$24)*(WNARRates[Period]=$C$6)*WNARRates[AdjCSWNA]) -> 0.00477 | G31: =SUMPRODUCT((WNARRates[BeginDate]<=G$26)*(WNARRates[EndDate]>=G$26)*(WNARRates[Region]=$C$4)*(WNARRates[CustClass]=$E$24)*(WNARRates[Period]=$C$6)*WNARRates[AdjCSWNA]) -> 0.00477 | H31: =SUMPRODUCT((WNARRates[BeginDate]<=H$26)*(WNARRates[EndDate]>=H$26)*(WNARRates[Region]=$C$4)*(WNARRates[CustClass]=$E$24)*(WNARRates[Period]=$C$6)*WNARRates[AdjCSWNA]) -> 0.00477 | I31: =SUMPRODUCT((WNARRates[BeginDate]<=I$26)*(WNARRates[EndDate]>=I$26)*(WNARRates[Region]=$C$4)*(WNARRates[CustClass]=$E$24)*(WNARRates[Period]=$C$6)*WNARRates[AdjCSWNA]) -> 0.00477 | J31: =SUMPRODUCT((WNARRates[BeginDate]<=J$26)*(WNARRates[EndDate]>=J$26)*(WNARRates[Region]=$C$4)*(WNARRates[CustClass]=$E$24)*(WNARRates[Period]=$C$6)*WNARRates[AdjCSWNA]) -> 0.00477 | K31: =SUMPRODUCT((WNARRates[BeginDate]<=K$26)*(WNARRates[EndDate]>=K$26)*(WNARRates[Region]=$C$4)*(WNARRates[CustClass]=$E$24)*(WNARRates[Period]=$C$6)*WNARRates[AdjCSWNA]) -> 0.00477 | L31: =SUMPRODUCT((WNARRates[BeginDate]<=L$26)*(WNARRates[EndDate]>=L$26)*(WNARRates[Region]=$C$4)*(WNARRates[CustClass]=$E$24)*(WNARRates[Period]=$C$6)*WNARRates[AdjCSWNA]) -> 0.00477 | M31: =SUMPRODUCT((WNARRates[BeginDate]<=M$26)*(WNARRates[EndDate]>=M$26)*(WNARRates[Region]=$C$4)*(WNARRates[CustClass]=$E$24)*(WNARRates[Period]=$C$6)*WNARRates[AdjCSWNA]) -> 0.00477 | N31: =SUMPRODUCT((WNARRates[BeginDate]<=N$26)*(WNARRates[EndDate]>=N$26)*(WNARRates[Region]=$C$4)*(WNARRates[CustClass]=$E$24)*(WNARRates[Period]=$C$6)*WNARRates[AdjCSWNA]) -> 0.00477 | O31: =SUMPRODUCT((WNARRates[BeginDate]<=O$26)*(WNARRates[EndDate]>=O$26)*(WNARRates[Region]=$C$4)*(WNARRates[CustClass]=$E$24)*(WNARRates[Period]=$C$6)*WNARRates[AdjCSWNA]) -> 0.00477 | P31: =SUMPRODUCT((WNARRates[BeginDate]<=P$26)*(WNARRates[EndDate]>=P$26)*(WNARRates[Region]=$C$4)*(WNARRates[CustClass]=$E$24)*(WNARRates[Period]=$C$6)*WNARRates[AdjCSWNA]) -> 0.00477 | Q31: =SUMPRODUCT((WNARRates[BeginDate]<=Q$26)*(WNARRates[EndDate]>=Q$26)*(WNARRates[Region]=$C$4)*(WNARRates[CustClass]=$E$24)*(WNARRates[Period]=$C$6)*WNARRates[AdjCSWNA]) -> 0.00477 | R31: =SUMPRODUCT((WNARRates[BeginDate]<=R$26)*(WNARRates[EndDate]>=R$26)*(WNARRates[Region]=$C$4)*(WNARRates[CustClass]=$E$24)*(WNARRates[Period]=$C$6)*WNARRates[AdjCSWNA]) -> 0.00477 | S31: =SUMPRODUCT((WNARRates[BeginDate]<=S$26)*(WNARRates[EndDate]>=S$26)*(WNARRates[Region]=$C$4)*(WNARRates[CustClass]=$E$24)*(WNARRates[Period]=$C$6)*WNARRates[AdjCSWNA]) -> 0.00477 | T31: =SUMPRODUCT((WNARRates[BeginDate]<=T$26)*(WNARRates[EndDate]>=T$26)*(WNARRates[Region]=$C$4)*(WNARRates[CustClass]=$E$24)*(WNARRates[Period]=$C$6)*WNARRates[AdjCSWNA]) -> 0.00477 | U31: =SUMPRODUCT((WNARRates[BeginDate]<=U$26)*(WNARRates[EndDate]>=U$26)*(WNARRates[Region]=$C$4)*(WNARRates[CustClass]=$E$24)*(WNARRates[Period]=$C$6)*WNARRates[AdjCSWNA]) -> 0.00477 | V31: =SUMPRODUCT((WNARRates[BeginDate]<=V$26)*(WNARRates[EndDate]>=V$26)*(WNARRates[Region]=$C$4)*(WNARRates[CustClass]=$E$24)*(WNARRates[Period]=$C$6)*WNARRates[AdjCSWNA]) -> 0.00477 | W31: =SUMPRODUCT((WNARRates[BeginDate]<=W$26)*(WNARRates[EndDate]>=W$26)*(WNARRates[Region]=$C$4)*(WNARRates[CustClass]=$E$24)*(WNARRates[Period]=$C$6)*WNARRates[AdjCSWNA]) -> 0.00477
